{"text_format":"1","workbook":"xlsx","n_sheets":6,"sheets":["Activo Analítico","Pasivo Analítico","Egreso Analitico","Ingreso Analitico","Instructivo","RELACIONES ENTRE EEFF Y ANEXOS"],"not_rendered":{"charts":0,"images":0,"macros":1,"external_links":0,"defined_names":8,"comments":0,"pivot_tables":0},"unopened":[],"bounds":{"document_bytes":16777216,"sheet_cells":100000,"rows_first":2000,"rows_last":500,"rows_between":2000,"halvings":0,"cell_chars":16384,"cell_head_chars":4096},"cells_cut":0,"cells_raw":0,"read":"whole","date_system":"1900"}

{"sheet":"Activo Analítico","index":0,"n_rows":248,"n_cols":12,"rows_kept":248,"cut":false,"hidden":false,"merged":[]}
[null,"EMPRESA FINANCIADORA DE PRIMAS O CUOTAS"]
[null,"ACTIVO ANALÍTICO"]
[null,"AL XX/XX/20___"]
[]
[null,"Nivel 1","Nivel 2","Nivel 3","Nivel 4","Nivel 5","Nivel 6","Nivel 7","Nombre de la Cuenta","Admite Monto","Identificador del Anexo","Cuenta Contable"]
[null,"1.",null,null,null,null,null,null,"ACTIVO","NO",null,{"$f":"+Tabla1[[#This Row],[Nivel 1]]&Tabla1[[#This Row],[Nivel 2]]&Tabla1[[#This Row],[Nivel 3]]&Tabla1[[#This Row],[Nivel 4]]&Tabla1[[#This Row],[Nivel 5]]&Tabla1[[#This Row],[Nivel 6]]&Tabla1[[#This Row],[Nivel 7]]","v":"1."}]
[null,"1.","101.",null,null,null,null,null,"DISPONIBLE","NO","A1",{"$f":"+Tabla1[[#This Row],[Nivel 1]]&Tabla1[[#This Row],[Nivel 2]]&Tabla1[[#This Row],[Nivel 3]]&Tabla1[[#This Row],[Nivel 4]]&Tabla1[[#This Row],[Nivel 5]]&Tabla1[[#This Row],[Nivel 6]]&Tabla1[[#This Row],[Nivel 7]]","v":"1.101."}]
[null,"1.","101.","01.",null,null,null,null,"Caja","NO",null,{"$f":"+Tabla1[[#This Row],[Nivel 1]]&Tabla1[[#This Row],[Nivel 2]]&Tabla1[[#This Row],[Nivel 3]]&Tabla1[[#This Row],[Nivel 4]]&Tabla1[[#This Row],[Nivel 5]]&Tabla1[[#This Row],[Nivel 6]]&Tabla1[[#This Row],[Nivel 7]]","v":"1.101.01."}]
[null,"1.","101.","01.","01.",null,null,null,"Moneda Nacional","SI","A1",{"$f":"+Tabla1[[#This Row],[Nivel 1]]&Tabla1[[#This Row],[Nivel 2]]&Tabla1[[#This Row],[Nivel 3]]&Tabla1[[#This Row],[Nivel 4]]&Tabla1[[#This Row],[Nivel 5]]&Tabla1[[#This Row],[Nivel 6]]&Tabla1[[#This Row],[Nivel 7]]","v":"1.101.01.01."}]
[null,"1.","101.","01.","02.",null,null,null,"Moneda Extranjera","SI","A1",{"$f":"+Tabla1[[#This Row],[Nivel 1]]&Tabla1[[#This Row],[Nivel 2]]&Tabla1[[#This Row],[Nivel 3]]&Tabla1[[#This Row],[Nivel 4]]&Tabla1[[#This Row],[Nivel 5]]&Tabla1[[#This Row],[Nivel 6]]&Tabla1[[#This Row],[Nivel 7]]","v":"1.101.01.02."}]
[null,"1.","101.","02.",null,null,null,null,"Caja Chica","NO",null,{"$f":"+Tabla1[[#This Row],[Nivel 1]]&Tabla1[[#This Row],[Nivel 2]]&Tabla1[[#This Row],[Nivel 3]]&Tabla1[[#This Row],[Nivel 4]]&Tabla1[[#This Row],[Nivel 5]]&Tabla1[[#This Row],[Nivel 6]]&Tabla1[[#This Row],[Nivel 7]]","v":"1.101.02."}]
[null,"1.","101.","02.","01.",null,null,null,"Moneda Nacional","SI","A1",{"$f":"+Tabla1[[#This Row],[Nivel 1]]&Tabla1[[#This Row],[Nivel 2]]&Tabla1[[#This Row],[Nivel 3]]&Tabla1[[#This Row],[Nivel 4]]&Tabla1[[#This Row],[Nivel 5]]&Tabla1[[#This Row],[Nivel 6]]&Tabla1[[#This Row],[Nivel 7]]","v":"1.101.02.01."}]
[null,"1.","101.","02.","02.",null,null,null,"Moneda Extranjera","SI","A1",{"$f":"+Tabla1[[#This Row],[Nivel 1]]&Tabla1[[#This Row],[Nivel 2]]&Tabla1[[#This Row],[Nivel 3]]&Tabla1[[#This Row],[Nivel 4]]&Tabla1[[#This Row],[Nivel 5]]&Tabla1[[#This Row],[Nivel 6]]&Tabla1[[#This Row],[Nivel 7]]","v":"1.101.02.02."}]
[null,"1.","101.","03.",null,null,null,null,"Depósitos a la Vista","NO",null,{"$f":"+Tabla1[[#This Row],[Nivel 1]]&Tabla1[[#This Row],[Nivel 2]]&Tabla1[[#This Row],[Nivel 3]]&Tabla1[[#This Row],[Nivel 4]]&Tabla1[[#This Row],[Nivel 5]]&Tabla1[[#This Row],[Nivel 6]]&Tabla1[[#This Row],[Nivel 7]]","v":"1.101.03."}]
[null,"1.","101.","03.","01.",null,null,null,"Bancos","NO",null,{"$f":"+Tabla1[[#This Row],[Nivel 1]]&Tabla1[[#This Row],[Nivel 2]]&Tabla1[[#This Row],[Nivel 3]]&Tabla1[[#This Row],[Nivel 4]]&Tabla1[[#This Row],[Nivel 5]]&Tabla1[[#This Row],[Nivel 6]]&Tabla1[[#This Row],[Nivel 7]]","v":"1.101.03.01."}]
[null,"1.","101.","03.","01.","01.",null,null,"Moneda Nacional","SI","A1",{"$f":"+Tabla1[[#This Row],[Nivel 1]]&Tabla1[[#This Row],[Nivel 2]]&Tabla1[[#This Row],[Nivel 3]]&Tabla1[[#This Row],[Nivel 4]]&Tabla1[[#This Row],[Nivel 5]]&Tabla1[[#This Row],[Nivel 6]]&Tabla1[[#This Row],[Nivel 7]]","v":"1.101.03.01.01."}]
[null,"1.","101.","03.","01.","02.",null,null,"Moneda Extranjera","SI","A1",{"$f":"+Tabla1[[#This Row],[Nivel 1]]&Tabla1[[#This Row],[Nivel 2]]&Tabla1[[#This Row],[Nivel 3]]&Tabla1[[#This Row],[Nivel 4]]&Tabla1[[#This Row],[Nivel 5]]&Tabla1[[#This Row],[Nivel 6]]&Tabla1[[#This Row],[Nivel 7]]","v":"1.101.03.01.02."}]
[null,"1.","101.","03.","02.",null,null,null,"Otras Instituciones Financieras","NO",null,{"$f":"+Tabla1[[#This Row],[Nivel 1]]&Tabla1[[#This Row],[Nivel 2]]&Tabla1[[#This Row],[Nivel 3]]&Tabla1[[#This Row],[Nivel 4]]&Tabla1[[#This Row],[Nivel 5]]&Tabla1[[#This Row],[Nivel 6]]&Tabla1[[#This Row],[Nivel 7]]","v":"1.101.03.02."}]
[null,"1.","101.","03.","02","01.",null,null,"Moneda Nacional","SI","A1",{"$f":"+Tabla1[[#This Row],[Nivel 1]]&Tabla1[[#This Row],[Nivel 2]]&Tabla1[[#This Row],[Nivel 3]]&Tabla1[[#This Row],[Nivel 4]]&Tabla1[[#This Row],[Nivel 5]]&Tabla1[[#This Row],[Nivel 6]]&Tabla1[[#This Row],[Nivel 7]]","v":"1.101.03.0201."}]
[null,"1.","101.","03.","02","02.",null,null,"Moneda Extranjera","SI","A1",{"$f":"+Tabla1[[#This Row],[Nivel 1]]&Tabla1[[#This Row],[Nivel 2]]&Tabla1[[#This Row],[Nivel 3]]&Tabla1[[#This Row],[Nivel 4]]&Tabla1[[#This Row],[Nivel 5]]&Tabla1[[#This Row],[Nivel 6]]&Tabla1[[#This Row],[Nivel 7]]","v":"1.101.03.0202."}]
[null,"1.","101.","04.",null,null,null,null,"Depósitos a Plazo Fijo","NO",null,{"$f":"+Tabla1[[#This Row],[Nivel 1]]&Tabla1[[#This Row],[Nivel 2]]&Tabla1[[#This Row],[Nivel 3]]&Tabla1[[#This Row],[Nivel 4]]&Tabla1[[#This Row],[Nivel 5]]&Tabla1[[#This Row],[Nivel 6]]&Tabla1[[#This Row],[Nivel 7]]","v":"1.101.04."}]
[null,"1.","101.","04.","01.",null,null,null,"Bancos","NO",null,{"$f":"+Tabla1[[#This Row],[Nivel 1]]&Tabla1[[#This Row],[Nivel 2]]&Tabla1[[#This Row],[Nivel 3]]&Tabla1[[#This Row],[Nivel 4]]&Tabla1[[#This Row],[Nivel 5]]&Tabla1[[#This Row],[Nivel 6]]&Tabla1[[#This Row],[Nivel 7]]","v":"1.101.04.01."}]
[null,"1.","101.","04.","01.","01.",null,null,"Moneda Nacional","SI","A1",{"$f":"+Tabla1[[#This Row],[Nivel 1]]&Tabla1[[#This Row],[Nivel 2]]&Tabla1[[#This Row],[Nivel 3]]&Tabla1[[#This Row],[Nivel 4]]&Tabla1[[#This Row],[Nivel 5]]&Tabla1[[#This Row],[Nivel 6]]&Tabla1[[#This Row],[Nivel 7]]","v":"1.101.04.01.01."}]
[null,"1.","101.","04.","01.","02.",null,null,"Moneda Extranjera","SI","A1",{"$f":"+Tabla1[[#This Row],[Nivel 1]]&Tabla1[[#This Row],[Nivel 2]]&Tabla1[[#This Row],[Nivel 3]]&Tabla1[[#This Row],[Nivel 4]]&Tabla1[[#This Row],[Nivel 5]]&Tabla1[[#This Row],[Nivel 6]]&Tabla1[[#This Row],[Nivel 7]]","v":"1.101.04.01.02."}]
[null,"1.","101.","04.","02.",null,null,null,"Otras Instituciones Financieras","NO",null,{"$f":"+Tabla1[[#This Row],[Nivel 1]]&Tabla1[[#This Row],[Nivel 2]]&Tabla1[[#This Row],[Nivel 3]]&Tabla1[[#This Row],[Nivel 4]]&Tabla1[[#This Row],[Nivel 5]]&Tabla1[[#This Row],[Nivel 6]]&Tabla1[[#This Row],[Nivel 7]]","v":"1.101.04.02."}]
[null,"1.","101.","04.","02.","01.",null,null,"Moneda Nacional","SI","A1",{"$f":"+Tabla1[[#This Row],[Nivel 1]]&Tabla1[[#This Row],[Nivel 2]]&Tabla1[[#This Row],[Nivel 3]]&Tabla1[[#This Row],[Nivel 4]]&Tabla1[[#This Row],[Nivel 5]]&Tabla1[[#This Row],[Nivel 6]]&Tabla1[[#This Row],[Nivel 7]]","v":"1.101.04.02.01."}]
[null,"1.","101.","04.","02.","02.",null,null,"Moneda Extranjera","SI","A1",{"$f":"+Tabla1[[#This Row],[Nivel 1]]&Tabla1[[#This Row],[Nivel 2]]&Tabla1[[#This Row],[Nivel 3]]&Tabla1[[#This Row],[Nivel 4]]&Tabla1[[#This Row],[Nivel 5]]&Tabla1[[#This Row],[Nivel 6]]&Tabla1[[#This Row],[Nivel 7]]","v":"1.101.04.02.02."}]
[null,"1.","102.",null,null,null,null,null,"INVERSIONES","NO",null,{"$f":"+Tabla1[[#This Row],[Nivel 1]]&Tabla1[[#This Row],[Nivel 2]]&Tabla1[[#This Row],[Nivel 3]]&Tabla1[[#This Row],[Nivel 4]]&Tabla1[[#This Row],[Nivel 5]]&Tabla1[[#This Row],[Nivel 6]]&Tabla1[[#This Row],[Nivel 7]]","v":"1.102."}]
[null,"1.","102.","01.",null,null,null,null,"Valores Públicos","NO","A10-C15",{"$f":"+Tabla1[[#This Row],[Nivel 1]]&Tabla1[[#This Row],[Nivel 2]]&Tabla1[[#This Row],[Nivel 3]]&Tabla1[[#This Row],[Nivel 4]]&Tabla1[[#This Row],[Nivel 5]]&Tabla1[[#This Row],[Nivel 6]]&Tabla1[[#This Row],[Nivel 7]]","v":"1.102.01."}]
[null,"1.","102.","01.","01.",null,null,null,"Emitidos o Garantizados por la República","SI","A10-C15",{"$f":"+Tabla1[[#This Row],[Nivel 1]]&Tabla1[[#This Row],[Nivel 2]]&Tabla1[[#This Row],[Nivel 3]]&Tabla1[[#This Row],[Nivel 4]]&Tabla1[[#This Row],[Nivel 5]]&Tabla1[[#This Row],[Nivel 6]]&Tabla1[[#This Row],[Nivel 7]]","v":"1.102.01.01."}]
[null,"1.","102.","01.","02.",null,null,null,"Emitidos por Otros Sujetos de Derecho Público Nacional","SI","A10-C15",{"$f":"+Tabla1[[#This Row],[Nivel 1]]&Tabla1[[#This Row],[Nivel 2]]&Tabla1[[#This Row],[Nivel 3]]&Tabla1[[#This Row],[Nivel 4]]&Tabla1[[#This Row],[Nivel 5]]&Tabla1[[#This Row],[Nivel 6]]&Tabla1[[#This Row],[Nivel 7]]","v":"1.102.01.02."}]
[null,"1.","102.","01.","03.",null,null,null,"Emitidos por Empresas con Participación de la República","SI","A10-C15",{"$f":"+Tabla1[[#This Row],[Nivel 1]]&Tabla1[[#This Row],[Nivel 2]]&Tabla1[[#This Row],[Nivel 3]]&Tabla1[[#This Row],[Nivel 4]]&Tabla1[[#This Row],[Nivel 5]]&Tabla1[[#This Row],[Nivel 6]]&Tabla1[[#This Row],[Nivel 7]]","v":"1.102.01.03."}]
[null,"1.","102.","01.","04.",null,null,null,"Emitidos por Instituciones con Participación de la República","SI","A10-C15",{"$f":"+Tabla1[[#This Row],[Nivel 1]]&Tabla1[[#This Row],[Nivel 2]]&Tabla1[[#This Row],[Nivel 3]]&Tabla1[[#This Row],[Nivel 4]]&Tabla1[[#This Row],[Nivel 5]]&Tabla1[[#This Row],[Nivel 6]]&Tabla1[[#This Row],[Nivel 7]]","v":"1.102.01.04."}]
[null,"1.","102.","02.",null,null,null,null,"Participación en Fondos de Inversión","NO","A10-C15",{"$f":"+Tabla1[[#This Row],[Nivel 1]]&Tabla1[[#This Row],[Nivel 2]]&Tabla1[[#This Row],[Nivel 3]]&Tabla1[[#This Row],[Nivel 4]]&Tabla1[[#This Row],[Nivel 5]]&Tabla1[[#This Row],[Nivel 6]]&Tabla1[[#This Row],[Nivel 7]]","v":"1.102.02."}]
[null,"1.","102.","02.","01.",null,null,null,"Renta Fija","SI","A10-C15",{"$f":"+Tabla1[[#This Row],[Nivel 1]]&Tabla1[[#This Row],[Nivel 2]]&Tabla1[[#This Row],[Nivel 3]]&Tabla1[[#This Row],[Nivel 4]]&Tabla1[[#This Row],[Nivel 5]]&Tabla1[[#This Row],[Nivel 6]]&Tabla1[[#This Row],[Nivel 7]]","v":"1.102.02.01."}]
[null,"1.","102.","02.","02.",null,null,null,"Renta Variable","SI","A10-C15",{"$f":"+Tabla1[[#This Row],[Nivel 1]]&Tabla1[[#This Row],[Nivel 2]]&Tabla1[[#This Row],[Nivel 3]]&Tabla1[[#This Row],[Nivel 4]]&Tabla1[[#This Row],[Nivel 5]]&Tabla1[[#This Row],[Nivel 6]]&Tabla1[[#This Row],[Nivel 7]]","v":"1.102.02.02."}]
[null,"1.","102.","03.",null,null,null,null,"Participación Fondos de Inversión Inmobiliarios","SI","A10-C15",{"$f":"+Tabla1[[#This Row],[Nivel 1]]&Tabla1[[#This Row],[Nivel 2]]&Tabla1[[#This Row],[Nivel 3]]&Tabla1[[#This Row],[Nivel 4]]&Tabla1[[#This Row],[Nivel 5]]&Tabla1[[#This Row],[Nivel 6]]&Tabla1[[#This Row],[Nivel 7]]","v":"1.102.03."}]
[null,"1.","102.","04.",null,null,null,null,"Valores Privados","NO","A10-C15",{"$f":"+Tabla1[[#This Row],[Nivel 1]]&Tabla1[[#This Row],[Nivel 2]]&Tabla1[[#This Row],[Nivel 3]]&Tabla1[[#This Row],[Nivel 4]]&Tabla1[[#This Row],[Nivel 5]]&Tabla1[[#This Row],[Nivel 6]]&Tabla1[[#This Row],[Nivel 7]]","v":"1.102.04."}]
[null,"1.","102.","04.","01.",null,null,null,"Acciones de Sociedades Anónimas","NO",null,{"$f":"+Tabla1[[#This Row],[Nivel 1]]&Tabla1[[#This Row],[Nivel 2]]&Tabla1[[#This Row],[Nivel 3]]&Tabla1[[#This Row],[Nivel 4]]&Tabla1[[#This Row],[Nivel 5]]&Tabla1[[#This Row],[Nivel 6]]&Tabla1[[#This Row],[Nivel 7]]","v":"1.102.04.01."}]
[null,"1.","102.","04.","01.","01.",null,null,"Empresas de Seguros o Reaseguros","SI","A10-C15",{"$f":"+Tabla1[[#This Row],[Nivel 1]]&Tabla1[[#This Row],[Nivel 2]]&Tabla1[[#This Row],[Nivel 3]]&Tabla1[[#This Row],[Nivel 4]]&Tabla1[[#This Row],[Nivel 5]]&Tabla1[[#This Row],[Nivel 6]]&Tabla1[[#This Row],[Nivel 7]]","v":"1.102.04.01.01."}]
[null,"1.","102.","04.","01.","02.",null,null,"Sociedades de Corretaje de Seguros o de Reaseguros o de Valores","SI","A10-C15",{"$f":"+Tabla1[[#This Row],[Nivel 1]]&Tabla1[[#This Row],[Nivel 2]]&Tabla1[[#This Row],[Nivel 3]]&Tabla1[[#This Row],[Nivel 4]]&Tabla1[[#This Row],[Nivel 5]]&Tabla1[[#This Row],[Nivel 6]]&Tabla1[[#This Row],[Nivel 7]]","v":"1.102.04.01.02."}]
[null,"1.","102.","04.","01.","03.",null,null,"Bancos y Otras Instituciones Financieras","SI","A10-C15",{"$f":"+Tabla1[[#This Row],[Nivel 1]]&Tabla1[[#This Row],[Nivel 2]]&Tabla1[[#This Row],[Nivel 3]]&Tabla1[[#This Row],[Nivel 4]]&Tabla1[[#This Row],[Nivel 5]]&Tabla1[[#This Row],[Nivel 6]]&Tabla1[[#This Row],[Nivel 7]]","v":"1.102.04.01.03."}]
[null,"1.","102.","04.","01.","04.",null,null,"Sociedades Industriales y Comerciales","SI","A10-C15",{"$f":"+Tabla1[[#This Row],[Nivel 1]]&Tabla1[[#This Row],[Nivel 2]]&Tabla1[[#This Row],[Nivel 3]]&Tabla1[[#This Row],[Nivel 4]]&Tabla1[[#This Row],[Nivel 5]]&Tabla1[[#This Row],[Nivel 6]]&Tabla1[[#This Row],[Nivel 7]]","v":"1.102.04.01.04."}]
[null,"1.","102.","04.","01.","05.",null,null,"Sociedades Civiles","SI","A10-C15",{"$f":"+Tabla1[[#This Row],[Nivel 1]]&Tabla1[[#This Row],[Nivel 2]]&Tabla1[[#This Row],[Nivel 3]]&Tabla1[[#This Row],[Nivel 4]]&Tabla1[[#This Row],[Nivel 5]]&Tabla1[[#This Row],[Nivel 6]]&Tabla1[[#This Row],[Nivel 7]]","v":"1.102.04.01.05."}]
[null,"1.","102.","04.","01.","06.",null,null,"Empresas Filiales, Afiliadas y Relacionadas","SI","A10-C15",{"$f":"+Tabla1[[#This Row],[Nivel 1]]&Tabla1[[#This Row],[Nivel 2]]&Tabla1[[#This Row],[Nivel 3]]&Tabla1[[#This Row],[Nivel 4]]&Tabla1[[#This Row],[Nivel 5]]&Tabla1[[#This Row],[Nivel 6]]&Tabla1[[#This Row],[Nivel 7]]","v":"1.102.04.01.06."}]
[null,"1.","102.","04.","01.","07.",null,null,"Otras Sociedades Anónimas","SI","A10-C15",{"$f":"+Tabla1[[#This Row],[Nivel 1]]&Tabla1[[#This Row],[Nivel 2]]&Tabla1[[#This Row],[Nivel 3]]&Tabla1[[#This Row],[Nivel 4]]&Tabla1[[#This Row],[Nivel 5]]&Tabla1[[#This Row],[Nivel 6]]&Tabla1[[#This Row],[Nivel 7]]","v":"1.102.04.01.07."}]
[null,"1.","102.","04.","02.",null,null,null,"Bonos de Sociedades Anónimas","SI","A10-C15",{"$f":"+Tabla1[[#This Row],[Nivel 1]]&Tabla1[[#This Row],[Nivel 2]]&Tabla1[[#This Row],[Nivel 3]]&Tabla1[[#This Row],[Nivel 4]]&Tabla1[[#This Row],[Nivel 5]]&Tabla1[[#This Row],[Nivel 6]]&Tabla1[[#This Row],[Nivel 7]]","v":"1.102.04.02."}]
[null,"1.","102.","04.","03.",null,null,null,"Otras Inversiones emitidas por el Sector Privado","SI","A10-C15",{"$f":"+Tabla1[[#This Row],[Nivel 1]]&Tabla1[[#This Row],[Nivel 2]]&Tabla1[[#This Row],[Nivel 3]]&Tabla1[[#This Row],[Nivel 4]]&Tabla1[[#This Row],[Nivel 5]]&Tabla1[[#This Row],[Nivel 6]]&Tabla1[[#This Row],[Nivel 7]]","v":"1.102.04.03."}]
[null,"1.","102.","05.",null,null,null,null,"ACTIVOS EN EL EXTRANJERO","NO","A3",{"$f":"+Tabla1[[#This Row],[Nivel 1]]&Tabla1[[#This Row],[Nivel 2]]&Tabla1[[#This Row],[Nivel 3]]&Tabla1[[#This Row],[Nivel 4]]&Tabla1[[#This Row],[Nivel 5]]&Tabla1[[#This Row],[Nivel 6]]&Tabla1[[#This Row],[Nivel 7]]","v":"1.102.05."}]
[null,"1.","102.","05.","01.",null,null,null,"Bancos  ","SI","A3",{"$f":"+Tabla1[[#This Row],[Nivel 1]]&Tabla1[[#This Row],[Nivel 2]]&Tabla1[[#This Row],[Nivel 3]]&Tabla1[[#This Row],[Nivel 4]]&Tabla1[[#This Row],[Nivel 5]]&Tabla1[[#This Row],[Nivel 6]]&Tabla1[[#This Row],[Nivel 7]]","v":"1.102.05.01."}]
[null,"1.","102.","05.","02.",null,null,null,"Titulos Valores","SI","A3",{"$f":"+Tabla1[[#This Row],[Nivel 1]]&Tabla1[[#This Row],[Nivel 2]]&Tabla1[[#This Row],[Nivel 3]]&Tabla1[[#This Row],[Nivel 4]]&Tabla1[[#This Row],[Nivel 5]]&Tabla1[[#This Row],[Nivel 6]]&Tabla1[[#This Row],[Nivel 7]]","v":"1.102.05.02."}]
[null,"1.","102.","05.","03.",null,null,null,"Inmuebles ","SI","A3",{"$f":"+Tabla1[[#This Row],[Nivel 1]]&Tabla1[[#This Row],[Nivel 2]]&Tabla1[[#This Row],[Nivel 3]]&Tabla1[[#This Row],[Nivel 4]]&Tabla1[[#This Row],[Nivel 5]]&Tabla1[[#This Row],[Nivel 6]]&Tabla1[[#This Row],[Nivel 7]]","v":"1.102.05.03."}]
[null,"1.","102.","05.","04.",null,null,null,"Otras Inversiones ","SI","A3",{"$f":"+Tabla1[[#This Row],[Nivel 1]]&Tabla1[[#This Row],[Nivel 2]]&Tabla1[[#This Row],[Nivel 3]]&Tabla1[[#This Row],[Nivel 4]]&Tabla1[[#This Row],[Nivel 5]]&Tabla1[[#This Row],[Nivel 6]]&Tabla1[[#This Row],[Nivel 7]]","v":"1.102.05.04."}]
[null,"1.","102.","06.",null,null,null,null,"Depósitos y Títulos Valores en Instituciones Intervenidas","SI",null,{"$f":"+Tabla1[[#This Row],[Nivel 1]]&Tabla1[[#This Row],[Nivel 2]]&Tabla1[[#This Row],[Nivel 3]]&Tabla1[[#This Row],[Nivel 4]]&Tabla1[[#This Row],[Nivel 5]]&Tabla1[[#This Row],[Nivel 6]]&Tabla1[[#This Row],[Nivel 7]]","v":"1.102.06."}]
[null,"1.","103.",null,null,null,null,null,"ACTIVOS DEPRECIABLES Y AMORTIZABLES","NO",null,{"$f":"+Tabla1[[#This Row],[Nivel 1]]&Tabla1[[#This Row],[Nivel 2]]&Tabla1[[#This Row],[Nivel 3]]&Tabla1[[#This Row],[Nivel 4]]&Tabla1[[#This Row],[Nivel 5]]&Tabla1[[#This Row],[Nivel 6]]&Tabla1[[#This Row],[Nivel 7]]","v":"1.103."}]
[null,"1.","103.","01.",null,null,null,null,"Activos Depreciables  ","NO",null,{"$f":"+Tabla1[[#This Row],[Nivel 1]]&Tabla1[[#This Row],[Nivel 2]]&Tabla1[[#This Row],[Nivel 3]]&Tabla1[[#This Row],[Nivel 4]]&Tabla1[[#This Row],[Nivel 5]]&Tabla1[[#This Row],[Nivel 6]]&Tabla1[[#This Row],[Nivel 7]]","v":"1.103.01."}]
[null,"1.","103.","01.","01.",null,null,null,"Terrenos","SI","A2-C9",{"$f":"+Tabla1[[#This Row],[Nivel 1]]&Tabla1[[#This Row],[Nivel 2]]&Tabla1[[#This Row],[Nivel 3]]&Tabla1[[#This Row],[Nivel 4]]&Tabla1[[#This Row],[Nivel 5]]&Tabla1[[#This Row],[Nivel 6]]&Tabla1[[#This Row],[Nivel 7]]","v":"1.103.01.01."}]
[null,"1.","103.","01.","02.",null,null,null,"Inmuebles","SI","A2-C9",{"$f":"+Tabla1[[#This Row],[Nivel 1]]&Tabla1[[#This Row],[Nivel 2]]&Tabla1[[#This Row],[Nivel 3]]&Tabla1[[#This Row],[Nivel 4]]&Tabla1[[#This Row],[Nivel 5]]&Tabla1[[#This Row],[Nivel 6]]&Tabla1[[#This Row],[Nivel 7]]","v":"1.103.01.02."}]
[null,"1.","103.","01.","03.",null,null,null,"Mobiliario                                       ","SI",null,{"$f":"+Tabla1[[#This Row],[Nivel 1]]&Tabla1[[#This Row],[Nivel 2]]&Tabla1[[#This Row],[Nivel 3]]&Tabla1[[#This Row],[Nivel 4]]&Tabla1[[#This Row],[Nivel 5]]&Tabla1[[#This Row],[Nivel 6]]&Tabla1[[#This Row],[Nivel 7]]","v":"1.103.01.03."}]
[null,"1.","103.","01.","04.",null,null,null,"Equipos de Oficina","SI",null,{"$f":"+Tabla1[[#This Row],[Nivel 1]]&Tabla1[[#This Row],[Nivel 2]]&Tabla1[[#This Row],[Nivel 3]]&Tabla1[[#This Row],[Nivel 4]]&Tabla1[[#This Row],[Nivel 5]]&Tabla1[[#This Row],[Nivel 6]]&Tabla1[[#This Row],[Nivel 7]]","v":"1.103.01.04."}]
[null,"1.","103.","01.","05.",null,null,null,"Equipos de Computación y Software","SI",null,{"$f":"+Tabla1[[#This Row],[Nivel 1]]&Tabla1[[#This Row],[Nivel 2]]&Tabla1[[#This Row],[Nivel 3]]&Tabla1[[#This Row],[Nivel 4]]&Tabla1[[#This Row],[Nivel 5]]&Tabla1[[#This Row],[Nivel 6]]&Tabla1[[#This Row],[Nivel 7]]","v":"1.103.01.05."}]
[null,"1.","103.","01.","06.",null,null,null,"Vehículos","SI",null,{"$f":"+Tabla1[[#This Row],[Nivel 1]]&Tabla1[[#This Row],[Nivel 2]]&Tabla1[[#This Row],[Nivel 3]]&Tabla1[[#This Row],[Nivel 4]]&Tabla1[[#This Row],[Nivel 5]]&Tabla1[[#This Row],[Nivel 6]]&Tabla1[[#This Row],[Nivel 7]]","v":"1.103.01.06."}]
[null,"1.","103.","01.","07.",null,null,null,"Aeronaves","SI",null,{"$f":"+Tabla1[[#This Row],[Nivel 1]]&Tabla1[[#This Row],[Nivel 2]]&Tabla1[[#This Row],[Nivel 3]]&Tabla1[[#This Row],[Nivel 4]]&Tabla1[[#This Row],[Nivel 5]]&Tabla1[[#This Row],[Nivel 6]]&Tabla1[[#This Row],[Nivel 7]]","v":"1.103.01.07."}]
[null,"1.","103.","01.","08.",null,null,null,"Naves","SI",null,{"$f":"+Tabla1[[#This Row],[Nivel 1]]&Tabla1[[#This Row],[Nivel 2]]&Tabla1[[#This Row],[Nivel 3]]&Tabla1[[#This Row],[Nivel 4]]&Tabla1[[#This Row],[Nivel 5]]&Tabla1[[#This Row],[Nivel 6]]&Tabla1[[#This Row],[Nivel 7]]","v":"1.103.01.08."}]
[null,"1.","103.","02.",null,null,null,null,"Activos Amortizables","NO",null,{"$f":"+Tabla1[[#This Row],[Nivel 1]]&Tabla1[[#This Row],[Nivel 2]]&Tabla1[[#This Row],[Nivel 3]]&Tabla1[[#This Row],[Nivel 4]]&Tabla1[[#This Row],[Nivel 5]]&Tabla1[[#This Row],[Nivel 6]]&Tabla1[[#This Row],[Nivel 7]]","v":"1.103.02."}]
[null,"1.","103.","02.","01.",null,null,null,"Gastos de Constitución","SI",null,{"$f":"+Tabla1[[#This Row],[Nivel 1]]&Tabla1[[#This Row],[Nivel 2]]&Tabla1[[#This Row],[Nivel 3]]&Tabla1[[#This Row],[Nivel 4]]&Tabla1[[#This Row],[Nivel 5]]&Tabla1[[#This Row],[Nivel 6]]&Tabla1[[#This Row],[Nivel 7]]","v":"1.103.02.01."}]
[null,"1.","103.","02.","02.",null,null,null,"Gastos de Instalación","SI",null,{"$f":"+Tabla1[[#This Row],[Nivel 1]]&Tabla1[[#This Row],[Nivel 2]]&Tabla1[[#This Row],[Nivel 3]]&Tabla1[[#This Row],[Nivel 4]]&Tabla1[[#This Row],[Nivel 5]]&Tabla1[[#This Row],[Nivel 6]]&Tabla1[[#This Row],[Nivel 7]]","v":"1.103.02.02."}]
[null,"1.","104.",null,null,null,null,null,"CUENTAS DIVERSAS","NO",null,{"$f":"+Tabla1[[#This Row],[Nivel 1]]&Tabla1[[#This Row],[Nivel 2]]&Tabla1[[#This Row],[Nivel 3]]&Tabla1[[#This Row],[Nivel 4]]&Tabla1[[#This Row],[Nivel 5]]&Tabla1[[#This Row],[Nivel 6]]&Tabla1[[#This Row],[Nivel 7]]","v":"1.104."}]
[null,"1.","104.","01.",null,null,null,null,"Cuentas por Cobrar - Empleados","SI",null,{"$f":"+Tabla1[[#This Row],[Nivel 1]]&Tabla1[[#This Row],[Nivel 2]]&Tabla1[[#This Row],[Nivel 3]]&Tabla1[[#This Row],[Nivel 4]]&Tabla1[[#This Row],[Nivel 5]]&Tabla1[[#This Row],[Nivel 6]]&Tabla1[[#This Row],[Nivel 7]]","v":"1.104.01."}]
[null,"1.","104.","02.",null,null,null,null,"Cuentas por Cobrar - Financiamiento de Primas o Cuotas","NO","A4",{"$f":"+Tabla1[[#This Row],[Nivel 1]]&Tabla1[[#This Row],[Nivel 2]]&Tabla1[[#This Row],[Nivel 3]]&Tabla1[[#This Row],[Nivel 4]]&Tabla1[[#This Row],[Nivel 5]]&Tabla1[[#This Row],[Nivel 6]]&Tabla1[[#This Row],[Nivel 7]]","v":"1.104.02."}]
[null,"1.","104.","02.","01.",null,null,null,"Cuentas por Cobrar - Financiamientos de Primas","NO",null,{"$f":"+Tabla1[[#This Row],[Nivel 1]]&Tabla1[[#This Row],[Nivel 2]]&Tabla1[[#This Row],[Nivel 3]]&Tabla1[[#This Row],[Nivel 4]]&Tabla1[[#This Row],[Nivel 5]]&Tabla1[[#This Row],[Nivel 6]]&Tabla1[[#This Row],[Nivel 7]]","v":"1.104.02.01."}]
[null,"1.","104.","02.","01.","01.",null,null,"Moneda Nacional","SI","A4",{"$f":"+Tabla1[[#This Row],[Nivel 1]]&Tabla1[[#This Row],[Nivel 2]]&Tabla1[[#This Row],[Nivel 3]]&Tabla1[[#This Row],[Nivel 4]]&Tabla1[[#This Row],[Nivel 5]]&Tabla1[[#This Row],[Nivel 6]]&Tabla1[[#This Row],[Nivel 7]]","v":"1.104.02.01.01."}]
[null,"1.","104.","02.","01.","02.",null,null,"Moneda Extranjera","SI","A4",{"$f":"+Tabla1[[#This Row],[Nivel 1]]&Tabla1[[#This Row],[Nivel 2]]&Tabla1[[#This Row],[Nivel 3]]&Tabla1[[#This Row],[Nivel 4]]&Tabla1[[#This Row],[Nivel 5]]&Tabla1[[#This Row],[Nivel 6]]&Tabla1[[#This Row],[Nivel 7]]","v":"1.104.02.01.02."}]
[null,"1.","104.","02.","02.",null,null,null,"Cuentas por Cobrar - Financiamientos de Cuotas","NO",null,{"$f":"+Tabla1[[#This Row],[Nivel 1]]&Tabla1[[#This Row],[Nivel 2]]&Tabla1[[#This Row],[Nivel 3]]&Tabla1[[#This Row],[Nivel 4]]&Tabla1[[#This Row],[Nivel 5]]&Tabla1[[#This Row],[Nivel 6]]&Tabla1[[#This Row],[Nivel 7]]","v":"1.104.02.02."}]
[null,"1.","104.","02.","02.","01.",null,null,"Moneda Nacional","SI","A4",{"$f":"+Tabla1[[#This Row],[Nivel 1]]&Tabla1[[#This Row],[Nivel 2]]&Tabla1[[#This Row],[Nivel 3]]&Tabla1[[#This Row],[Nivel 4]]&Tabla1[[#This Row],[Nivel 5]]&Tabla1[[#This Row],[Nivel 6]]&Tabla1[[#This Row],[Nivel 7]]","v":"1.104.02.02.01."}]
[null,"1.","104.","02.","02.","02.",null,null,"Moneda Extranjera","SI","A4",{"$f":"+Tabla1[[#This Row],[Nivel 1]]&Tabla1[[#This Row],[Nivel 2]]&Tabla1[[#This Row],[Nivel 3]]&Tabla1[[#This Row],[Nivel 4]]&Tabla1[[#This Row],[Nivel 5]]&Tabla1[[#This Row],[Nivel 6]]&Tabla1[[#This Row],[Nivel 7]]","v":"1.104.02.02.02."}]
[null,"1.","104.","03.",null,null,null,null,"Efectos por Cobrar - Financiamiento de Primas o Cuotas","NO",null,{"$f":"+Tabla1[[#This Row],[Nivel 1]]&Tabla1[[#This Row],[Nivel 2]]&Tabla1[[#This Row],[Nivel 3]]&Tabla1[[#This Row],[Nivel 4]]&Tabla1[[#This Row],[Nivel 5]]&Tabla1[[#This Row],[Nivel 6]]&Tabla1[[#This Row],[Nivel 7]]","v":"1.104.03."}]
[null,"1.","104.","03.","01.",null,null,null,"Efectos por Cobrar - Financiamientos de Primas","NO",null,{"$f":"+Tabla1[[#This Row],[Nivel 1]]&Tabla1[[#This Row],[Nivel 2]]&Tabla1[[#This Row],[Nivel 3]]&Tabla1[[#This Row],[Nivel 4]]&Tabla1[[#This Row],[Nivel 5]]&Tabla1[[#This Row],[Nivel 6]]&Tabla1[[#This Row],[Nivel 7]]","v":"1.104.03.01."}]
[null,"1.","104.","03.","01.","01.",null,null,"Moneda Nacional","SI",null,{"$f":"+Tabla1[[#This Row],[Nivel 1]]&Tabla1[[#This Row],[Nivel 2]]&Tabla1[[#This Row],[Nivel 3]]&Tabla1[[#This Row],[Nivel 4]]&Tabla1[[#This Row],[Nivel 5]]&Tabla1[[#This Row],[Nivel 6]]&Tabla1[[#This Row],[Nivel 7]]","v":"1.104.03.01.01."}]
[null,"1.","104.","03.","01.","02.",null,null,"Moneda Extranjera","SI",null,{"$f":"+Tabla1[[#This Row],[Nivel 1]]&Tabla1[[#This Row],[Nivel 2]]&Tabla1[[#This Row],[Nivel 3]]&Tabla1[[#This Row],[Nivel 4]]&Tabla1[[#This Row],[Nivel 5]]&Tabla1[[#This Row],[Nivel 6]]&Tabla1[[#This Row],[Nivel 7]]","v":"1.104.03.01.02."}]
[null,"1.","104.","03.","02.",null,null,null,"Efectos por Cobrar - Financiamientos de Cuotas","NO",null,{"$f":"+Tabla1[[#This Row],[Nivel 1]]&Tabla1[[#This Row],[Nivel 2]]&Tabla1[[#This Row],[Nivel 3]]&Tabla1[[#This Row],[Nivel 4]]&Tabla1[[#This Row],[Nivel 5]]&Tabla1[[#This Row],[Nivel 6]]&Tabla1[[#This Row],[Nivel 7]]","v":"1.104.03.02."}]
[null,"1.","104.","03.","02.","01.",null,null,"Moneda Nacional","SI",null,{"$f":"+Tabla1[[#This Row],[Nivel 1]]&Tabla1[[#This Row],[Nivel 2]]&Tabla1[[#This Row],[Nivel 3]]&Tabla1[[#This Row],[Nivel 4]]&Tabla1[[#This Row],[Nivel 5]]&Tabla1[[#This Row],[Nivel 6]]&Tabla1[[#This Row],[Nivel 7]]","v":"1.104.03.02.01."}]
[null,"1.","104.","03.","02.","02.",null,null,"Moneda Extranjera","SI",null,{"$f":"+Tabla1[[#This Row],[Nivel 1]]&Tabla1[[#This Row],[Nivel 2]]&Tabla1[[#This Row],[Nivel 3]]&Tabla1[[#This Row],[Nivel 4]]&Tabla1[[#This Row],[Nivel 5]]&Tabla1[[#This Row],[Nivel 6]]&Tabla1[[#This Row],[Nivel 7]]","v":"1.104.03.02.02."}]
[null,"1.","104.","04.",null,null,null,null,"Cuentas por Cobrar Diversas","NO",null,{"$f":"+Tabla1[[#This Row],[Nivel 1]]&Tabla1[[#This Row],[Nivel 2]]&Tabla1[[#This Row],[Nivel 3]]&Tabla1[[#This Row],[Nivel 4]]&Tabla1[[#This Row],[Nivel 5]]&Tabla1[[#This Row],[Nivel 6]]&Tabla1[[#This Row],[Nivel 7]]","v":"1.104.04."}]
[null,"1.","104.","04.","01.",null,null,null,"Empresas Filiales, Afiliadas o Relacionadas","NO",null,{"$f":"+Tabla1[[#This Row],[Nivel 1]]&Tabla1[[#This Row],[Nivel 2]]&Tabla1[[#This Row],[Nivel 3]]&Tabla1[[#This Row],[Nivel 4]]&Tabla1[[#This Row],[Nivel 5]]&Tabla1[[#This Row],[Nivel 6]]&Tabla1[[#This Row],[Nivel 7]]","v":"1.104.04.01."}]
[null,"1.","104.","04.","01.","01.",null,null,"Empresas Filiales","SI",null,{"$f":"+Tabla1[[#This Row],[Nivel 1]]&Tabla1[[#This Row],[Nivel 2]]&Tabla1[[#This Row],[Nivel 3]]&Tabla1[[#This Row],[Nivel 4]]&Tabla1[[#This Row],[Nivel 5]]&Tabla1[[#This Row],[Nivel 6]]&Tabla1[[#This Row],[Nivel 7]]","v":"1.104.04.01.01."}]
[null,"1.","104.","04.","01.","02.",null,null,"Empresas Afiliadas","SI",null,{"$f":"+Tabla1[[#This Row],[Nivel 1]]&Tabla1[[#This Row],[Nivel 2]]&Tabla1[[#This Row],[Nivel 3]]&Tabla1[[#This Row],[Nivel 4]]&Tabla1[[#This Row],[Nivel 5]]&Tabla1[[#This Row],[Nivel 6]]&Tabla1[[#This Row],[Nivel 7]]","v":"1.104.04.01.02."}]
[null,"1.","104.","04.","01.","03.",null,null,"Empresas Relacionadas","SI",null,{"$f":"+Tabla1[[#This Row],[Nivel 1]]&Tabla1[[#This Row],[Nivel 2]]&Tabla1[[#This Row],[Nivel 3]]&Tabla1[[#This Row],[Nivel 4]]&Tabla1[[#This Row],[Nivel 5]]&Tabla1[[#This Row],[Nivel 6]]&Tabla1[[#This Row],[Nivel 7]]","v":"1.104.04.01.03."}]
[null,"1.","104.","04.","02.",null,null,null,"Proveedores de Bienes y Servicios","SI",null,{"$f":"+Tabla1[[#This Row],[Nivel 1]]&Tabla1[[#This Row],[Nivel 2]]&Tabla1[[#This Row],[Nivel 3]]&Tabla1[[#This Row],[Nivel 4]]&Tabla1[[#This Row],[Nivel 5]]&Tabla1[[#This Row],[Nivel 6]]&Tabla1[[#This Row],[Nivel 7]]","v":"1.104.04.02."}]
[null,"1.","104.","04.","03.",null,null,null,"Otras Cuentas por Cobrar","SI",null,{"$f":"+Tabla1[[#This Row],[Nivel 1]]&Tabla1[[#This Row],[Nivel 2]]&Tabla1[[#This Row],[Nivel 3]]&Tabla1[[#This Row],[Nivel 4]]&Tabla1[[#This Row],[Nivel 5]]&Tabla1[[#This Row],[Nivel 6]]&Tabla1[[#This Row],[Nivel 7]]","v":"1.104.04.03."}]
[null,"1.","104.","05.",null,null,null,null,"Beneficios Devengados por Cobrar","NO",null,{"$f":"+Tabla1[[#This Row],[Nivel 1]]&Tabla1[[#This Row],[Nivel 2]]&Tabla1[[#This Row],[Nivel 3]]&Tabla1[[#This Row],[Nivel 4]]&Tabla1[[#This Row],[Nivel 5]]&Tabla1[[#This Row],[Nivel 6]]&Tabla1[[#This Row],[Nivel 7]]","v":"1.104.05."}]
[null,"1.","104.","05.","01.",null,null,null,"Intereses por Cobrar","NO",null,{"$f":"+Tabla1[[#This Row],[Nivel 1]]&Tabla1[[#This Row],[Nivel 2]]&Tabla1[[#This Row],[Nivel 3]]&Tabla1[[#This Row],[Nivel 4]]&Tabla1[[#This Row],[Nivel 5]]&Tabla1[[#This Row],[Nivel 6]]&Tabla1[[#This Row],[Nivel 7]]","v":"1.104.05.01."}]
[null,"1.","104.","05.","01.","01.",null,null,"Depósitos a la Vista","NO",null,{"$f":"+Tabla1[[#This Row],[Nivel 1]]&Tabla1[[#This Row],[Nivel 2]]&Tabla1[[#This Row],[Nivel 3]]&Tabla1[[#This Row],[Nivel 4]]&Tabla1[[#This Row],[Nivel 5]]&Tabla1[[#This Row],[Nivel 6]]&Tabla1[[#This Row],[Nivel 7]]","v":"1.104.05.01.01."}]
[null,"1.","104.","05.","01.","01.","01.",null,"Bancos","NO",null,{"$f":"+Tabla1[[#This Row],[Nivel 1]]&Tabla1[[#This Row],[Nivel 2]]&Tabla1[[#This Row],[Nivel 3]]&Tabla1[[#This Row],[Nivel 4]]&Tabla1[[#This Row],[Nivel 5]]&Tabla1[[#This Row],[Nivel 6]]&Tabla1[[#This Row],[Nivel 7]]","v":"1.104.05.01.01.01."}]
[null,"1.","104.","05.","01.","01.","01.","01.","Moneda Nacional","SI",null,{"$f":"+Tabla1[[#This Row],[Nivel 1]]&Tabla1[[#This Row],[Nivel 2]]&Tabla1[[#This Row],[Nivel 3]]&Tabla1[[#This Row],[Nivel 4]]&Tabla1[[#This Row],[Nivel 5]]&Tabla1[[#This Row],[Nivel 6]]&Tabla1[[#This Row],[Nivel 7]]","v":"1.104.05.01.01.01.01."}]
[null,"1.","104.","05.","01.","01.","01.","02.","Moneda Extranjera","SI",null,{"$f":"+Tabla1[[#This Row],[Nivel 1]]&Tabla1[[#This Row],[Nivel 2]]&Tabla1[[#This Row],[Nivel 3]]&Tabla1[[#This Row],[Nivel 4]]&Tabla1[[#This Row],[Nivel 5]]&Tabla1[[#This Row],[Nivel 6]]&Tabla1[[#This Row],[Nivel 7]]","v":"1.104.05.01.01.01.02."}]
[null,"1.","104.","05.","01.","01.","02.",null,"Otras Instituciones Financieras","NO",null,{"$f":"+Tabla1[[#This Row],[Nivel 1]]&Tabla1[[#This Row],[Nivel 2]]&Tabla1[[#This Row],[Nivel 3]]&Tabla1[[#This Row],[Nivel 4]]&Tabla1[[#This Row],[Nivel 5]]&Tabla1[[#This Row],[Nivel 6]]&Tabla1[[#This Row],[Nivel 7]]","v":"1.104.05.01.01.02."}]
[null,"1.","104.","05.","01.","01.","02.","01.","Moneda Nacional","SI",null,{"$f":"+Tabla1[[#This Row],[Nivel 1]]&Tabla1[[#This Row],[Nivel 2]]&Tabla1[[#This Row],[Nivel 3]]&Tabla1[[#This Row],[Nivel 4]]&Tabla1[[#This Row],[Nivel 5]]&Tabla1[[#This Row],[Nivel 6]]&Tabla1[[#This Row],[Nivel 7]]","v":"1.104.05.01.01.02.01."}]
[null,"1.","104.","05.","01.","01.","02.","02.","Moneda Extranjera","SI",null,{"$f":"+Tabla1[[#This Row],[Nivel 1]]&Tabla1[[#This Row],[Nivel 2]]&Tabla1[[#This Row],[Nivel 3]]&Tabla1[[#This Row],[Nivel 4]]&Tabla1[[#This Row],[Nivel 5]]&Tabla1[[#This Row],[Nivel 6]]&Tabla1[[#This Row],[Nivel 7]]","v":"1.104.05.01.01.02.02."}]
[null,"1.","104.","05.","01.","02.",null,null,"Depósitos a Plazo Fijo","NO",null,{"$f":"+Tabla1[[#This Row],[Nivel 1]]&Tabla1[[#This Row],[Nivel 2]]&Tabla1[[#This Row],[Nivel 3]]&Tabla1[[#This Row],[Nivel 4]]&Tabla1[[#This Row],[Nivel 5]]&Tabla1[[#This Row],[Nivel 6]]&Tabla1[[#This Row],[Nivel 7]]","v":"1.104.05.01.02."}]
[null,"1.","104.","05.","01.","02.","01.",null,"Bancos","NO",null,{"$f":"+Tabla1[[#This Row],[Nivel 1]]&Tabla1[[#This Row],[Nivel 2]]&Tabla1[[#This Row],[Nivel 3]]&Tabla1[[#This Row],[Nivel 4]]&Tabla1[[#This Row],[Nivel 5]]&Tabla1[[#This Row],[Nivel 6]]&Tabla1[[#This Row],[Nivel 7]]","v":"1.104.05.01.02.01."}]
[null,"1.","104.","05.","01.","02.","01.","01.","Moneda Nacional","SI",null,{"$f":"+Tabla1[[#This Row],[Nivel 1]]&Tabla1[[#This Row],[Nivel 2]]&Tabla1[[#This Row],[Nivel 3]]&Tabla1[[#This Row],[Nivel 4]]&Tabla1[[#This Row],[Nivel 5]]&Tabla1[[#This Row],[Nivel 6]]&Tabla1[[#This Row],[Nivel 7]]","v":"1.104.05.01.02.01.01."}]
[null,"1.","104.","05.","01.","02.","01.","02.","Moneda Extranjera","SI",null,{"$f":"+Tabla1[[#This Row],[Nivel 1]]&Tabla1[[#This Row],[Nivel 2]]&Tabla1[[#This Row],[Nivel 3]]&Tabla1[[#This Row],[Nivel 4]]&Tabla1[[#This Row],[Nivel 5]]&Tabla1[[#This Row],[Nivel 6]]&Tabla1[[#This Row],[Nivel 7]]","v":"1.104.05.01.02.01.02."}]
[null,"1.","104.","05.","01.","02.","02.",null,"Otras Instituciones Financieras","NO",null,{"$f":"+Tabla1[[#This Row],[Nivel 1]]&Tabla1[[#This Row],[Nivel 2]]&Tabla1[[#This Row],[Nivel 3]]&Tabla1[[#This Row],[Nivel 4]]&Tabla1[[#This Row],[Nivel 5]]&Tabla1[[#This Row],[Nivel 6]]&Tabla1[[#This Row],[Nivel 7]]","v":"1.104.05.01.02.02."}]
[null,"1.","104.","05.","01.","02.","02.","01.","Moneda Nacional","SI",null,{"$f":"+Tabla1[[#This Row],[Nivel 1]]&Tabla1[[#This Row],[Nivel 2]]&Tabla1[[#This Row],[Nivel 3]]&Tabla1[[#This Row],[Nivel 4]]&Tabla1[[#This Row],[Nivel 5]]&Tabla1[[#This Row],[Nivel 6]]&Tabla1[[#This Row],[Nivel 7]]","v":"1.104.05.01.02.02.01."}]
[null,"1.","104.","05.","01.","02.","02.","02.","Moneda Extranjera","SI",null,{"$f":"+Tabla1[[#This Row],[Nivel 1]]&Tabla1[[#This Row],[Nivel 2]]&Tabla1[[#This Row],[Nivel 3]]&Tabla1[[#This Row],[Nivel 4]]&Tabla1[[#This Row],[Nivel 5]]&Tabla1[[#This Row],[Nivel 6]]&Tabla1[[#This Row],[Nivel 7]]","v":"1.104.05.01.02.02.02."}]
[null,"1.","104.","05.","01.","03.",null,null,"Valores Públicos","NO",null,{"$f":"+Tabla1[[#This Row],[Nivel 1]]&Tabla1[[#This Row],[Nivel 2]]&Tabla1[[#This Row],[Nivel 3]]&Tabla1[[#This Row],[Nivel 4]]&Tabla1[[#This Row],[Nivel 5]]&Tabla1[[#This Row],[Nivel 6]]&Tabla1[[#This Row],[Nivel 7]]","v":"1.104.05.01.03."}]
[null,"1.","104.","05.","01.","03.","01.",null,"Emitidos o Garantizados por la República","SI",null,{"$f":"+Tabla1[[#This Row],[Nivel 1]]&Tabla1[[#This Row],[Nivel 2]]&Tabla1[[#This Row],[Nivel 3]]&Tabla1[[#This Row],[Nivel 4]]&Tabla1[[#This Row],[Nivel 5]]&Tabla1[[#This Row],[Nivel 6]]&Tabla1[[#This Row],[Nivel 7]]","v":"1.104.05.01.03.01."}]
[null,"1.","104.","05.","01.","03.","02.",null,"Emitidos por Otros Sujetos de Derecho Público Nacional","SI",null,{"$f":"+Tabla1[[#This Row],[Nivel 1]]&Tabla1[[#This Row],[Nivel 2]]&Tabla1[[#This Row],[Nivel 3]]&Tabla1[[#This Row],[Nivel 4]]&Tabla1[[#This Row],[Nivel 5]]&Tabla1[[#This Row],[Nivel 6]]&Tabla1[[#This Row],[Nivel 7]]","v":"1.104.05.01.03.02."}]
[null,"1.","104.","05.","01.","03.","03.",null,"Emitidos por Empresas con Participación de la República","SI",null,{"$f":"+Tabla1[[#This Row],[Nivel 1]]&Tabla1[[#This Row],[Nivel 2]]&Tabla1[[#This Row],[Nivel 3]]&Tabla1[[#This Row],[Nivel 4]]&Tabla1[[#This Row],[Nivel 5]]&Tabla1[[#This Row],[Nivel 6]]&Tabla1[[#This Row],[Nivel 7]]","v":"1.104.05.01.03.03."}]
[null,"1.","104.","05.","01.","03.","04.",null,"Emitidos por Instituciones con Participación de la República","SI",null,{"$f":"+Tabla1[[#This Row],[Nivel 1]]&Tabla1[[#This Row],[Nivel 2]]&Tabla1[[#This Row],[Nivel 3]]&Tabla1[[#This Row],[Nivel 4]]&Tabla1[[#This Row],[Nivel 5]]&Tabla1[[#This Row],[Nivel 6]]&Tabla1[[#This Row],[Nivel 7]]","v":"1.104.05.01.03.04."}]
[null,"1.","104.","05.","01.","04.",null,null,"Participación en Fondos de Inversión","NO",null,{"$f":"+Tabla1[[#This Row],[Nivel 1]]&Tabla1[[#This Row],[Nivel 2]]&Tabla1[[#This Row],[Nivel 3]]&Tabla1[[#This Row],[Nivel 4]]&Tabla1[[#This Row],[Nivel 5]]&Tabla1[[#This Row],[Nivel 6]]&Tabla1[[#This Row],[Nivel 7]]","v":"1.104.05.01.04."}]
[null,"1.","104.","05.","01.","04.","01.",null,"Renta Fija","SI",null,{"$f":"+Tabla1[[#This Row],[Nivel 1]]&Tabla1[[#This Row],[Nivel 2]]&Tabla1[[#This Row],[Nivel 3]]&Tabla1[[#This Row],[Nivel 4]]&Tabla1[[#This Row],[Nivel 5]]&Tabla1[[#This Row],[Nivel 6]]&Tabla1[[#This Row],[Nivel 7]]","v":"1.104.05.01.04.01."}]
[null,"1.","104.","05.","01.","04.","02.",null,"Renta Variable","SI",null,{"$f":"+Tabla1[[#This Row],[Nivel 1]]&Tabla1[[#This Row],[Nivel 2]]&Tabla1[[#This Row],[Nivel 3]]&Tabla1[[#This Row],[Nivel 4]]&Tabla1[[#This Row],[Nivel 5]]&Tabla1[[#This Row],[Nivel 6]]&Tabla1[[#This Row],[Nivel 7]]","v":"1.104.05.01.04.02."}]
[null,"1.","104.","05.","01.","05.",null,null,"Valores Privados","NO",null,{"$f":"+Tabla1[[#This Row],[Nivel 1]]&Tabla1[[#This Row],[Nivel 2]]&Tabla1[[#This Row],[Nivel 3]]&Tabla1[[#This Row],[Nivel 4]]&Tabla1[[#This Row],[Nivel 5]]&Tabla1[[#This Row],[Nivel 6]]&Tabla1[[#This Row],[Nivel 7]]","v":"1.104.05.01.05."}]
[null,"1.","104.","05.","01.","05.","01.",null,"Bonos de Sociedades Anónimas","SI",null,{"$f":"+Tabla1[[#This Row],[Nivel 1]]&Tabla1[[#This Row],[Nivel 2]]&Tabla1[[#This Row],[Nivel 3]]&Tabla1[[#This Row],[Nivel 4]]&Tabla1[[#This Row],[Nivel 5]]&Tabla1[[#This Row],[Nivel 6]]&Tabla1[[#This Row],[Nivel 7]]","v":"1.104.05.01.05.01."}]
[null,"1.","104.","05.","01.","05.","02.",null,"Otras Inversiones emitidas por el Sector Privado","SI",null,{"$f":"+Tabla1[[#This Row],[Nivel 1]]&Tabla1[[#This Row],[Nivel 2]]&Tabla1[[#This Row],[Nivel 3]]&Tabla1[[#This Row],[Nivel 4]]&Tabla1[[#This Row],[Nivel 5]]&Tabla1[[#This Row],[Nivel 6]]&Tabla1[[#This Row],[Nivel 7]]","v":"1.104.05.01.05.02."}]
[null,"1.","104.","05.","01.","06.",null,null,"Activos en el Extranjero","NO",null,{"$f":"+Tabla1[[#This Row],[Nivel 1]]&Tabla1[[#This Row],[Nivel 2]]&Tabla1[[#This Row],[Nivel 3]]&Tabla1[[#This Row],[Nivel 4]]&Tabla1[[#This Row],[Nivel 5]]&Tabla1[[#This Row],[Nivel 6]]&Tabla1[[#This Row],[Nivel 7]]","v":"1.104.05.01.06."}]
[null,"1.","104.","05.","01.","06.","01.",null,"Bancos  ","SI",null,{"$f":"+Tabla1[[#This Row],[Nivel 1]]&Tabla1[[#This Row],[Nivel 2]]&Tabla1[[#This Row],[Nivel 3]]&Tabla1[[#This Row],[Nivel 4]]&Tabla1[[#This Row],[Nivel 5]]&Tabla1[[#This Row],[Nivel 6]]&Tabla1[[#This Row],[Nivel 7]]","v":"1.104.05.01.06.01."}]
[null,"1.","104.","05.","01.","06.","02.",null,"Titulos Valores","SI",null,{"$f":"+Tabla1[[#This Row],[Nivel 1]]&Tabla1[[#This Row],[Nivel 2]]&Tabla1[[#This Row],[Nivel 3]]&Tabla1[[#This Row],[Nivel 4]]&Tabla1[[#This Row],[Nivel 5]]&Tabla1[[#This Row],[Nivel 6]]&Tabla1[[#This Row],[Nivel 7]]","v":"1.104.05.01.06.02."}]
[null,"1.","104.","05.","01.","06.","03.",null,"Otras Inversiones","SI",null,{"$f":"+Tabla1[[#This Row],[Nivel 1]]&Tabla1[[#This Row],[Nivel 2]]&Tabla1[[#This Row],[Nivel 3]]&Tabla1[[#This Row],[Nivel 4]]&Tabla1[[#This Row],[Nivel 5]]&Tabla1[[#This Row],[Nivel 6]]&Tabla1[[#This Row],[Nivel 7]]","v":"1.104.05.01.06.03."}]
[null,"1.","104.","05.","01.","07.",null,null,"Sobre Depósitos y Títulos Valores en Instituciones Intervenidas","SI",null,{"$f":"+Tabla1[[#This Row],[Nivel 1]]&Tabla1[[#This Row],[Nivel 2]]&Tabla1[[#This Row],[Nivel 3]]&Tabla1[[#This Row],[Nivel 4]]&Tabla1[[#This Row],[Nivel 5]]&Tabla1[[#This Row],[Nivel 6]]&Tabla1[[#This Row],[Nivel 7]]","v":"1.104.05.01.07."}]
[null,"1.","104.","05.","01.","08.",null,null,"Cuentas por Cobrar - Empleados","SI",null,{"$f":"+Tabla1[[#This Row],[Nivel 1]]&Tabla1[[#This Row],[Nivel 2]]&Tabla1[[#This Row],[Nivel 3]]&Tabla1[[#This Row],[Nivel 4]]&Tabla1[[#This Row],[Nivel 5]]&Tabla1[[#This Row],[Nivel 6]]&Tabla1[[#This Row],[Nivel 7]]","v":"1.104.05.01.08."}]
[null,"1.","104.","05.","01.","09.",null,null,"INTERESES POR FINANCIAMIENTO DE PRIMAS O CUOTAS","NO",null,{"$f":"+Tabla1[[#This Row],[Nivel 1]]&Tabla1[[#This Row],[Nivel 2]]&Tabla1[[#This Row],[Nivel 3]]&Tabla1[[#This Row],[Nivel 4]]&Tabla1[[#This Row],[Nivel 5]]&Tabla1[[#This Row],[Nivel 6]]&Tabla1[[#This Row],[Nivel 7]]","v":"1.104.05.01.09."}]
[null,"1.","104.","05.","01.","09.","01.",null,"Primas Financiadas","SI",null,{"$f":"+Tabla1[[#This Row],[Nivel 1]]&Tabla1[[#This Row],[Nivel 2]]&Tabla1[[#This Row],[Nivel 3]]&Tabla1[[#This Row],[Nivel 4]]&Tabla1[[#This Row],[Nivel 5]]&Tabla1[[#This Row],[Nivel 6]]&Tabla1[[#This Row],[Nivel 7]]","v":"1.104.05.01.09.01."}]
[null,"1.","104.","05.","01.","09.","02.",null,"Cuotas Financiadas ","SI",null,{"$f":"+Tabla1[[#This Row],[Nivel 1]]&Tabla1[[#This Row],[Nivel 2]]&Tabla1[[#This Row],[Nivel 3]]&Tabla1[[#This Row],[Nivel 4]]&Tabla1[[#This Row],[Nivel 5]]&Tabla1[[#This Row],[Nivel 6]]&Tabla1[[#This Row],[Nivel 7]]","v":"1.104.05.01.09.02."}]
[null,"1.","104.","05.","01.","10.",null,null,"Sobre cuentas por cobrar a Empresas Filiales, Afiliadas o Relacionadas","NO",null,{"$f":"+Tabla1[[#This Row],[Nivel 1]]&Tabla1[[#This Row],[Nivel 2]]&Tabla1[[#This Row],[Nivel 3]]&Tabla1[[#This Row],[Nivel 4]]&Tabla1[[#This Row],[Nivel 5]]&Tabla1[[#This Row],[Nivel 6]]&Tabla1[[#This Row],[Nivel 7]]","v":"1.104.05.01.10."}]
[null,"1.","104.","05.","01.","10.","01.",null,"Empresas Filiales","SI",null,{"$f":"+Tabla1[[#This Row],[Nivel 1]]&Tabla1[[#This Row],[Nivel 2]]&Tabla1[[#This Row],[Nivel 3]]&Tabla1[[#This Row],[Nivel 4]]&Tabla1[[#This Row],[Nivel 5]]&Tabla1[[#This Row],[Nivel 6]]&Tabla1[[#This Row],[Nivel 7]]","v":"1.104.05.01.10.01."}]
[null,"1.","104.","05.","01.","10.","02.",null,"Empresas Afiliadas","SI",null,{"$f":"+Tabla1[[#This Row],[Nivel 1]]&Tabla1[[#This Row],[Nivel 2]]&Tabla1[[#This Row],[Nivel 3]]&Tabla1[[#This Row],[Nivel 4]]&Tabla1[[#This Row],[Nivel 5]]&Tabla1[[#This Row],[Nivel 6]]&Tabla1[[#This Row],[Nivel 7]]","v":"1.104.05.01.10.02."}]
[null,"1.","104.","05.","01.","10.","03.",null,"Empresas Relacionadas","SI",null,{"$f":"+Tabla1[[#This Row],[Nivel 1]]&Tabla1[[#This Row],[Nivel 2]]&Tabla1[[#This Row],[Nivel 3]]&Tabla1[[#This Row],[Nivel 4]]&Tabla1[[#This Row],[Nivel 5]]&Tabla1[[#This Row],[Nivel 6]]&Tabla1[[#This Row],[Nivel 7]]","v":"1.104.05.01.10.03."}]
[null,"1.","104.","05.","01.","11.",null,null,"Otras Cuentas por Cobrar ","SI",null,{"$f":"+Tabla1[[#This Row],[Nivel 1]]&Tabla1[[#This Row],[Nivel 2]]&Tabla1[[#This Row],[Nivel 3]]&Tabla1[[#This Row],[Nivel 4]]&Tabla1[[#This Row],[Nivel 5]]&Tabla1[[#This Row],[Nivel 6]]&Tabla1[[#This Row],[Nivel 7]]","v":"1.104.05.01.11."}]
[null,"1.","104.","05.","02.",null,null,null,"Dividendos por Cobrar","NO",null,{"$f":"+Tabla1[[#This Row],[Nivel 1]]&Tabla1[[#This Row],[Nivel 2]]&Tabla1[[#This Row],[Nivel 3]]&Tabla1[[#This Row],[Nivel 4]]&Tabla1[[#This Row],[Nivel 5]]&Tabla1[[#This Row],[Nivel 6]]&Tabla1[[#This Row],[Nivel 7]]","v":"1.104.05.02."}]
[null,"1.","104.","05.","02.","01.",null,null,"Participación Fondos de Inversión Inmobiliarios","NO",null,{"$f":"+Tabla1[[#This Row],[Nivel 1]]&Tabla1[[#This Row],[Nivel 2]]&Tabla1[[#This Row],[Nivel 3]]&Tabla1[[#This Row],[Nivel 4]]&Tabla1[[#This Row],[Nivel 5]]&Tabla1[[#This Row],[Nivel 6]]&Tabla1[[#This Row],[Nivel 7]]","v":"1.104.05.02.01."}]
[null,"1.","104.","05.","02.","01.","01.",null,"Moneda Nacional","SI",null,{"$f":"+Tabla1[[#This Row],[Nivel 1]]&Tabla1[[#This Row],[Nivel 2]]&Tabla1[[#This Row],[Nivel 3]]&Tabla1[[#This Row],[Nivel 4]]&Tabla1[[#This Row],[Nivel 5]]&Tabla1[[#This Row],[Nivel 6]]&Tabla1[[#This Row],[Nivel 7]]","v":"1.104.05.02.01.01."}]
[null,"1.","104.","05.","02.","01.","02.",null,"Moneda Extranjera","SI",null,{"$f":"+Tabla1[[#This Row],[Nivel 1]]&Tabla1[[#This Row],[Nivel 2]]&Tabla1[[#This Row],[Nivel 3]]&Tabla1[[#This Row],[Nivel 4]]&Tabla1[[#This Row],[Nivel 5]]&Tabla1[[#This Row],[Nivel 6]]&Tabla1[[#This Row],[Nivel 7]]","v":"1.104.05.02.01.02."}]
[null,"1.","104.","05.","02.","02.",null,null,"Valores Privados","NO",null,{"$f":"+Tabla1[[#This Row],[Nivel 1]]&Tabla1[[#This Row],[Nivel 2]]&Tabla1[[#This Row],[Nivel 3]]&Tabla1[[#This Row],[Nivel 4]]&Tabla1[[#This Row],[Nivel 5]]&Tabla1[[#This Row],[Nivel 6]]&Tabla1[[#This Row],[Nivel 7]]","v":"1.104.05.02.02."}]
[null,"1.","104.","05.","02.","02.","01.",null,"Acciones de Sociedades Anónimas","NO",null,{"$f":"+Tabla1[[#This Row],[Nivel 1]]&Tabla1[[#This Row],[Nivel 2]]&Tabla1[[#This Row],[Nivel 3]]&Tabla1[[#This Row],[Nivel 4]]&Tabla1[[#This Row],[Nivel 5]]&Tabla1[[#This Row],[Nivel 6]]&Tabla1[[#This Row],[Nivel 7]]","v":"1.104.05.02.02.01."}]
[null,"1.","104.","05.","02.","02.","01.","01.","Empresas de Seguros o Reaseguros","SI",null,{"$f":"+Tabla1[[#This Row],[Nivel 1]]&Tabla1[[#This Row],[Nivel 2]]&Tabla1[[#This Row],[Nivel 3]]&Tabla1[[#This Row],[Nivel 4]]&Tabla1[[#This Row],[Nivel 5]]&Tabla1[[#This Row],[Nivel 6]]&Tabla1[[#This Row],[Nivel 7]]","v":"1.104.05.02.02.01.01."}]
[null,"1.","104.","05.","02.","02.","01.","02.","Sociedades de Corretaje de Seguros o de Reaseguros o de Valores","SI",null,{"$f":"+Tabla1[[#This Row],[Nivel 1]]&Tabla1[[#This Row],[Nivel 2]]&Tabla1[[#This Row],[Nivel 3]]&Tabla1[[#This Row],[Nivel 4]]&Tabla1[[#This Row],[Nivel 5]]&Tabla1[[#This Row],[Nivel 6]]&Tabla1[[#This Row],[Nivel 7]]","v":"1.104.05.02.02.01.02."}]
[null,"1.","104.","05.","02.","02.","01.","03.","Bancos y Otras Instituciones Financieras","SI",null,{"$f":"+Tabla1[[#This Row],[Nivel 1]]&Tabla1[[#This Row],[Nivel 2]]&Tabla1[[#This Row],[Nivel 3]]&Tabla1[[#This Row],[Nivel 4]]&Tabla1[[#This Row],[Nivel 5]]&Tabla1[[#This Row],[Nivel 6]]&Tabla1[[#This Row],[Nivel 7]]","v":"1.104.05.02.02.01.03."}]
[null,"1.","104.","05.","02.","02.","01.","04.","Sociedades Industriales y Comerciales","SI",null,{"$f":"+Tabla1[[#This Row],[Nivel 1]]&Tabla1[[#This Row],[Nivel 2]]&Tabla1[[#This Row],[Nivel 3]]&Tabla1[[#This Row],[Nivel 4]]&Tabla1[[#This Row],[Nivel 5]]&Tabla1[[#This Row],[Nivel 6]]&Tabla1[[#This Row],[Nivel 7]]","v":"1.104.05.02.02.01.04."}]
[null,"1.","104.","05.","02.","02.","01.","05.","Sociedades Civiles","SI",null,{"$f":"+Tabla1[[#This Row],[Nivel 1]]&Tabla1[[#This Row],[Nivel 2]]&Tabla1[[#This Row],[Nivel 3]]&Tabla1[[#This Row],[Nivel 4]]&Tabla1[[#This Row],[Nivel 5]]&Tabla1[[#This Row],[Nivel 6]]&Tabla1[[#This Row],[Nivel 7]]","v":"1.104.05.02.02.01.05."}]
[null,"1.","104.","05.","02.","02.","01.","06.","Empresas Filiales, Afiliadas y Relacionadas","SI",null,{"$f":"+Tabla1[[#This Row],[Nivel 1]]&Tabla1[[#This Row],[Nivel 2]]&Tabla1[[#This Row],[Nivel 3]]&Tabla1[[#This Row],[Nivel 4]]&Tabla1[[#This Row],[Nivel 5]]&Tabla1[[#This Row],[Nivel 6]]&Tabla1[[#This Row],[Nivel 7]]","v":"1.104.05.02.02.01.06."}]
[null,"1.","104.","05.","02.","02.","01.","07.","Otras Sociedades Anónimas","SI",null,{"$f":"+Tabla1[[#This Row],[Nivel 1]]&Tabla1[[#This Row],[Nivel 2]]&Tabla1[[#This Row],[Nivel 3]]&Tabla1[[#This Row],[Nivel 4]]&Tabla1[[#This Row],[Nivel 5]]&Tabla1[[#This Row],[Nivel 6]]&Tabla1[[#This Row],[Nivel 7]]","v":"1.104.05.02.02.01.07."}]
[null,"1.","104.","05.","02.","02.","01.","08.","Otras Inversiones emitidas por el Sector Privado.","SI",null,{"$f":"+Tabla1[[#This Row],[Nivel 1]]&Tabla1[[#This Row],[Nivel 2]]&Tabla1[[#This Row],[Nivel 3]]&Tabla1[[#This Row],[Nivel 4]]&Tabla1[[#This Row],[Nivel 5]]&Tabla1[[#This Row],[Nivel 6]]&Tabla1[[#This Row],[Nivel 7]]","v":"1.104.05.02.02.01.08."}]
[null,"1.","104.","05.","03.",null,null,null,"Otros Beneficios Devengados por Cobrar ","NO",null,{"$f":"+Tabla1[[#This Row],[Nivel 1]]&Tabla1[[#This Row],[Nivel 2]]&Tabla1[[#This Row],[Nivel 3]]&Tabla1[[#This Row],[Nivel 4]]&Tabla1[[#This Row],[Nivel 5]]&Tabla1[[#This Row],[Nivel 6]]&Tabla1[[#This Row],[Nivel 7]]","v":"1.104.05.03."}]
[null,"1.","104.","05.","03.","01.",null,null,"Valores Vendidos","SI",null,{"$f":"+Tabla1[[#This Row],[Nivel 1]]&Tabla1[[#This Row],[Nivel 2]]&Tabla1[[#This Row],[Nivel 3]]&Tabla1[[#This Row],[Nivel 4]]&Tabla1[[#This Row],[Nivel 5]]&Tabla1[[#This Row],[Nivel 6]]&Tabla1[[#This Row],[Nivel 7]]","v":"1.104.05.03.01."}]
[null,"1.","104.","05.","03.","02.",null,null,"Valores Redimidos","SI",null,{"$f":"+Tabla1[[#This Row],[Nivel 1]]&Tabla1[[#This Row],[Nivel 2]]&Tabla1[[#This Row],[Nivel 3]]&Tabla1[[#This Row],[Nivel 4]]&Tabla1[[#This Row],[Nivel 5]]&Tabla1[[#This Row],[Nivel 6]]&Tabla1[[#This Row],[Nivel 7]]","v":"1.104.05.03.02."}]
[null,"1.","104.","05.","04.",null,null,null,"Arrendamientos por Cobrar","SI",null,{"$f":"+Tabla1[[#This Row],[Nivel 1]]&Tabla1[[#This Row],[Nivel 2]]&Tabla1[[#This Row],[Nivel 3]]&Tabla1[[#This Row],[Nivel 4]]&Tabla1[[#This Row],[Nivel 5]]&Tabla1[[#This Row],[Nivel 6]]&Tabla1[[#This Row],[Nivel 7]]","v":"1.104.05.04."}]
[null,"1.","104.","05.","05.",null,null,null,"Anticipos a Proveedores de Bienes y Servicios","SI",null,{"$f":"+Tabla1[[#This Row],[Nivel 1]]&Tabla1[[#This Row],[Nivel 2]]&Tabla1[[#This Row],[Nivel 3]]&Tabla1[[#This Row],[Nivel 4]]&Tabla1[[#This Row],[Nivel 5]]&Tabla1[[#This Row],[Nivel 6]]&Tabla1[[#This Row],[Nivel 7]]","v":"1.104.05.05."}]
[null,"1.","104.","05.","06.",null,null,null,"Otras Cuentas por Cobrar","SI",null,{"$f":"+Tabla1[[#This Row],[Nivel 1]]&Tabla1[[#This Row],[Nivel 2]]&Tabla1[[#This Row],[Nivel 3]]&Tabla1[[#This Row],[Nivel 4]]&Tabla1[[#This Row],[Nivel 5]]&Tabla1[[#This Row],[Nivel 6]]&Tabla1[[#This Row],[Nivel 7]]","v":"1.104.05.06."}]
[null,"1.","105.",null,null,null,null,null,"CARGOS DIFERIDOS","NO",null,{"$f":"+Tabla1[[#This Row],[Nivel 1]]&Tabla1[[#This Row],[Nivel 2]]&Tabla1[[#This Row],[Nivel 3]]&Tabla1[[#This Row],[Nivel 4]]&Tabla1[[#This Row],[Nivel 5]]&Tabla1[[#This Row],[Nivel 6]]&Tabla1[[#This Row],[Nivel 7]]","v":"1.105."}]
[null,"1.","105.","01.",null,null,null,null,"Primas Sobre Adquisición de Titulos  Valores ","NO",null,{"$f":"+Tabla1[[#This Row],[Nivel 1]]&Tabla1[[#This Row],[Nivel 2]]&Tabla1[[#This Row],[Nivel 3]]&Tabla1[[#This Row],[Nivel 4]]&Tabla1[[#This Row],[Nivel 5]]&Tabla1[[#This Row],[Nivel 6]]&Tabla1[[#This Row],[Nivel 7]]","v":"1.105.01."}]
[null,"1.","105.","01.","01.",null,null,null,"Valores Públicos","NO",null,{"$f":"+Tabla1[[#This Row],[Nivel 1]]&Tabla1[[#This Row],[Nivel 2]]&Tabla1[[#This Row],[Nivel 3]]&Tabla1[[#This Row],[Nivel 4]]&Tabla1[[#This Row],[Nivel 5]]&Tabla1[[#This Row],[Nivel 6]]&Tabla1[[#This Row],[Nivel 7]]","v":"1.105.01.01."}]
[null,"1.","105.","01.","01.","01.",null,null,"Emitidos o Garantizados por la República","SI",null,{"$f":"+Tabla1[[#This Row],[Nivel 1]]&Tabla1[[#This Row],[Nivel 2]]&Tabla1[[#This Row],[Nivel 3]]&Tabla1[[#This Row],[Nivel 4]]&Tabla1[[#This Row],[Nivel 5]]&Tabla1[[#This Row],[Nivel 6]]&Tabla1[[#This Row],[Nivel 7]]","v":"1.105.01.01.01."}]
[null,"1.","105.","01.","01.","02.",null,null,"Emitidos por Otros Sujetos de Derecho Público Nacional","SI",null,{"$f":"+Tabla1[[#This Row],[Nivel 1]]&Tabla1[[#This Row],[Nivel 2]]&Tabla1[[#This Row],[Nivel 3]]&Tabla1[[#This Row],[Nivel 4]]&Tabla1[[#This Row],[Nivel 5]]&Tabla1[[#This Row],[Nivel 6]]&Tabla1[[#This Row],[Nivel 7]]","v":"1.105.01.01.02."}]
[null,"1.","105.","01.","01.","03.",null,null,"Emitidos por Empresas con Participación de la República","SI",null,{"$f":"+Tabla1[[#This Row],[Nivel 1]]&Tabla1[[#This Row],[Nivel 2]]&Tabla1[[#This Row],[Nivel 3]]&Tabla1[[#This Row],[Nivel 4]]&Tabla1[[#This Row],[Nivel 5]]&Tabla1[[#This Row],[Nivel 6]]&Tabla1[[#This Row],[Nivel 7]]","v":"1.105.01.01.03."}]
[null,"1.","105.","01.","01.","04.",null,null,"Emitidos por Instituciones con Participación de la República","SI",null,{"$f":"+Tabla1[[#This Row],[Nivel 1]]&Tabla1[[#This Row],[Nivel 2]]&Tabla1[[#This Row],[Nivel 3]]&Tabla1[[#This Row],[Nivel 4]]&Tabla1[[#This Row],[Nivel 5]]&Tabla1[[#This Row],[Nivel 6]]&Tabla1[[#This Row],[Nivel 7]]","v":"1.105.01.01.04."}]
[null,"1.","105.","01.","02.",null,null,null,"Participación en Fondos de Inversión","NO",null,{"$f":"+Tabla1[[#This Row],[Nivel 1]]&Tabla1[[#This Row],[Nivel 2]]&Tabla1[[#This Row],[Nivel 3]]&Tabla1[[#This Row],[Nivel 4]]&Tabla1[[#This Row],[Nivel 5]]&Tabla1[[#This Row],[Nivel 6]]&Tabla1[[#This Row],[Nivel 7]]","v":"1.105.01.02."}]
[null,"1.","105.","01.","02.","01.",null,null,"Renta Fija","SI",null,{"$f":"+Tabla1[[#This Row],[Nivel 1]]&Tabla1[[#This Row],[Nivel 2]]&Tabla1[[#This Row],[Nivel 3]]&Tabla1[[#This Row],[Nivel 4]]&Tabla1[[#This Row],[Nivel 5]]&Tabla1[[#This Row],[Nivel 6]]&Tabla1[[#This Row],[Nivel 7]]","v":"1.105.01.02.01."}]
[null,"1.","105.","01.","02.","02.",null,null,"Renta Variable ","SI",null,{"$f":"+Tabla1[[#This Row],[Nivel 1]]&Tabla1[[#This Row],[Nivel 2]]&Tabla1[[#This Row],[Nivel 3]]&Tabla1[[#This Row],[Nivel 4]]&Tabla1[[#This Row],[Nivel 5]]&Tabla1[[#This Row],[Nivel 6]]&Tabla1[[#This Row],[Nivel 7]]","v":"1.105.01.02.02."}]
[null,"1.","105.","01.","03.",null,null,null,"Garantía a la Nación","NO",null,{"$f":"+Tabla1[[#This Row],[Nivel 1]]&Tabla1[[#This Row],[Nivel 2]]&Tabla1[[#This Row],[Nivel 3]]&Tabla1[[#This Row],[Nivel 4]]&Tabla1[[#This Row],[Nivel 5]]&Tabla1[[#This Row],[Nivel 6]]&Tabla1[[#This Row],[Nivel 7]]","v":"1.105.01.03."}]
[null,"1.","105.","01.","03.","01.",null,null,"Valores Públicos","SI",null,{"$f":"+Tabla1[[#This Row],[Nivel 1]]&Tabla1[[#This Row],[Nivel 2]]&Tabla1[[#This Row],[Nivel 3]]&Tabla1[[#This Row],[Nivel 4]]&Tabla1[[#This Row],[Nivel 5]]&Tabla1[[#This Row],[Nivel 6]]&Tabla1[[#This Row],[Nivel 7]]","v":"1.105.01.03.01."}]
[null,"1.","105.","01.","04.",null,null,null,"Valores Privados","NO",null,{"$f":"+Tabla1[[#This Row],[Nivel 1]]&Tabla1[[#This Row],[Nivel 2]]&Tabla1[[#This Row],[Nivel 3]]&Tabla1[[#This Row],[Nivel 4]]&Tabla1[[#This Row],[Nivel 5]]&Tabla1[[#This Row],[Nivel 6]]&Tabla1[[#This Row],[Nivel 7]]","v":"1.105.01.04."}]
[null,"1.","105.","01.","04.","01.",null,null,"Acciones de Sociedades Anónimas","NO",null,{"$f":"+Tabla1[[#This Row],[Nivel 1]]&Tabla1[[#This Row],[Nivel 2]]&Tabla1[[#This Row],[Nivel 3]]&Tabla1[[#This Row],[Nivel 4]]&Tabla1[[#This Row],[Nivel 5]]&Tabla1[[#This Row],[Nivel 6]]&Tabla1[[#This Row],[Nivel 7]]","v":"1.105.01.04.01."}]
[null,"1.","105.","01.","04.","01.","01.",null,"Empresas de Seguros o Reaseguros","SI",null,{"$f":"+Tabla1[[#This Row],[Nivel 1]]&Tabla1[[#This Row],[Nivel 2]]&Tabla1[[#This Row],[Nivel 3]]&Tabla1[[#This Row],[Nivel 4]]&Tabla1[[#This Row],[Nivel 5]]&Tabla1[[#This Row],[Nivel 6]]&Tabla1[[#This Row],[Nivel 7]]","v":"1.105.01.04.01.01."}]
[null,"1.","105.","01.","04.","01.","02.",null,"Sociedades de Corretaje de Seguros o de Reaseguros o de Valores","SI",null,{"$f":"+Tabla1[[#This Row],[Nivel 1]]&Tabla1[[#This Row],[Nivel 2]]&Tabla1[[#This Row],[Nivel 3]]&Tabla1[[#This Row],[Nivel 4]]&Tabla1[[#This Row],[Nivel 5]]&Tabla1[[#This Row],[Nivel 6]]&Tabla1[[#This Row],[Nivel 7]]","v":"1.105.01.04.01.02."}]
[null,"1.","105.","01.","04.","01.","03.",null,"Bancos y Otras Instituciones Financieras","SI",null,{"$f":"+Tabla1[[#This Row],[Nivel 1]]&Tabla1[[#This Row],[Nivel 2]]&Tabla1[[#This Row],[Nivel 3]]&Tabla1[[#This Row],[Nivel 4]]&Tabla1[[#This Row],[Nivel 5]]&Tabla1[[#This Row],[Nivel 6]]&Tabla1[[#This Row],[Nivel 7]]","v":"1.105.01.04.01.03."}]
[null,"1.","105.","01.","04.","01.","04.",null,"Sociedades Industriales y Comerciales","SI",null,{"$f":"+Tabla1[[#This Row],[Nivel 1]]&Tabla1[[#This Row],[Nivel 2]]&Tabla1[[#This Row],[Nivel 3]]&Tabla1[[#This Row],[Nivel 4]]&Tabla1[[#This Row],[Nivel 5]]&Tabla1[[#This Row],[Nivel 6]]&Tabla1[[#This Row],[Nivel 7]]","v":"1.105.01.04.01.04."}]
[null,"1.","105.","01.","04.","01.","05.",null,"Sociedades Civiles","SI",null,{"$f":"+Tabla1[[#This Row],[Nivel 1]]&Tabla1[[#This Row],[Nivel 2]]&Tabla1[[#This Row],[Nivel 3]]&Tabla1[[#This Row],[Nivel 4]]&Tabla1[[#This Row],[Nivel 5]]&Tabla1[[#This Row],[Nivel 6]]&Tabla1[[#This Row],[Nivel 7]]","v":"1.105.01.04.01.05."}]
[null,"1.","105.","01.","04.","01.","06.",null,"Empresas Filiales, Afiliadas y Relacionadas","SI",null,{"$f":"+Tabla1[[#This Row],[Nivel 1]]&Tabla1[[#This Row],[Nivel 2]]&Tabla1[[#This Row],[Nivel 3]]&Tabla1[[#This Row],[Nivel 4]]&Tabla1[[#This Row],[Nivel 5]]&Tabla1[[#This Row],[Nivel 6]]&Tabla1[[#This Row],[Nivel 7]]","v":"1.105.01.04.01.06."}]
[null,"1.","105.","01.","04.","01.","07.",null,"Otras Sociedades Anónimas","SI",null,{"$f":"+Tabla1[[#This Row],[Nivel 1]]&Tabla1[[#This Row],[Nivel 2]]&Tabla1[[#This Row],[Nivel 3]]&Tabla1[[#This Row],[Nivel 4]]&Tabla1[[#This Row],[Nivel 5]]&Tabla1[[#This Row],[Nivel 6]]&Tabla1[[#This Row],[Nivel 7]]","v":"1.105.01.04.01.07."}]
[null,"1.","105.","01.","04.","02.",null,null,"Bonos de Sociedades Anónimas","SI",null,{"$f":"+Tabla1[[#This Row],[Nivel 1]]&Tabla1[[#This Row],[Nivel 2]]&Tabla1[[#This Row],[Nivel 3]]&Tabla1[[#This Row],[Nivel 4]]&Tabla1[[#This Row],[Nivel 5]]&Tabla1[[#This Row],[Nivel 6]]&Tabla1[[#This Row],[Nivel 7]]","v":"1.105.01.04.02."}]
[null,"1.","105.","01.","04.","03.",null,null,"Otras Inversiones emitidas por el Sector Privado.","SI",null,{"$f":"+Tabla1[[#This Row],[Nivel 1]]&Tabla1[[#This Row],[Nivel 2]]&Tabla1[[#This Row],[Nivel 3]]&Tabla1[[#This Row],[Nivel 4]]&Tabla1[[#This Row],[Nivel 5]]&Tabla1[[#This Row],[Nivel 6]]&Tabla1[[#This Row],[Nivel 7]]","v":"1.105.01.04.03."}]
[null,"1.","105.","01.","05.",null,null,null,"Activos en el Extrajero","NO",null,{"$f":"+Tabla1[[#This Row],[Nivel 1]]&Tabla1[[#This Row],[Nivel 2]]&Tabla1[[#This Row],[Nivel 3]]&Tabla1[[#This Row],[Nivel 4]]&Tabla1[[#This Row],[Nivel 5]]&Tabla1[[#This Row],[Nivel 6]]&Tabla1[[#This Row],[Nivel 7]]","v":"1.105.01.05."}]
[null,"1.","105.","01.","05.","01.",null,null,"Titulos Valores","SI",null,{"$f":"+Tabla1[[#This Row],[Nivel 1]]&Tabla1[[#This Row],[Nivel 2]]&Tabla1[[#This Row],[Nivel 3]]&Tabla1[[#This Row],[Nivel 4]]&Tabla1[[#This Row],[Nivel 5]]&Tabla1[[#This Row],[Nivel 6]]&Tabla1[[#This Row],[Nivel 7]]","v":"1.105.01.05.01."}]
[null,"1.","105.","02.",null,null,null,null,"Inventarios - Papelería y Artículos de Oficina","NO",null,{"$f":"+Tabla1[[#This Row],[Nivel 1]]&Tabla1[[#This Row],[Nivel 2]]&Tabla1[[#This Row],[Nivel 3]]&Tabla1[[#This Row],[Nivel 4]]&Tabla1[[#This Row],[Nivel 5]]&Tabla1[[#This Row],[Nivel 6]]&Tabla1[[#This Row],[Nivel 7]]","v":"1.105.02."}]
[null,"1.","105.","02.","01.",null,null,null,"Papelería","SI",null,{"$f":"+Tabla1[[#This Row],[Nivel 1]]&Tabla1[[#This Row],[Nivel 2]]&Tabla1[[#This Row],[Nivel 3]]&Tabla1[[#This Row],[Nivel 4]]&Tabla1[[#This Row],[Nivel 5]]&Tabla1[[#This Row],[Nivel 6]]&Tabla1[[#This Row],[Nivel 7]]","v":"1.105.02.01."}]
[null,"1.","105.","02.","02.",null,null,null,"Artículos de Oficina","SI",null,{"$f":"+Tabla1[[#This Row],[Nivel 1]]&Tabla1[[#This Row],[Nivel 2]]&Tabla1[[#This Row],[Nivel 3]]&Tabla1[[#This Row],[Nivel 4]]&Tabla1[[#This Row],[Nivel 5]]&Tabla1[[#This Row],[Nivel 6]]&Tabla1[[#This Row],[Nivel 7]]","v":"1.105.02.02."}]
[null,"1.","105.","02.","03.",null,null,null,"Artículos e Insumos para Procesamiento de Datos","SI",null,{"$f":"+Tabla1[[#This Row],[Nivel 1]]&Tabla1[[#This Row],[Nivel 2]]&Tabla1[[#This Row],[Nivel 3]]&Tabla1[[#This Row],[Nivel 4]]&Tabla1[[#This Row],[Nivel 5]]&Tabla1[[#This Row],[Nivel 6]]&Tabla1[[#This Row],[Nivel 7]]","v":"1.105.02.03."}]
[null,"1.","105.","03.",null,null,null,null,"Gastos Reembolsables","NO",null,{"$f":"+Tabla1[[#This Row],[Nivel 1]]&Tabla1[[#This Row],[Nivel 2]]&Tabla1[[#This Row],[Nivel 3]]&Tabla1[[#This Row],[Nivel 4]]&Tabla1[[#This Row],[Nivel 5]]&Tabla1[[#This Row],[Nivel 6]]&Tabla1[[#This Row],[Nivel 7]]","v":"1.105.03."}]
[null,"1.","105.","03.","01.",null,null,null,"Gastos de Alojamiento","SI",null,{"$f":"+Tabla1[[#This Row],[Nivel 1]]&Tabla1[[#This Row],[Nivel 2]]&Tabla1[[#This Row],[Nivel 3]]&Tabla1[[#This Row],[Nivel 4]]&Tabla1[[#This Row],[Nivel 5]]&Tabla1[[#This Row],[Nivel 6]]&Tabla1[[#This Row],[Nivel 7]]","v":"1.105.03.01."}]
[null,"1.","105.","03.","02.",null,null,null,"Gastos de Transporte","NO",null,{"$f":"+Tabla1[[#This Row],[Nivel 1]]&Tabla1[[#This Row],[Nivel 2]]&Tabla1[[#This Row],[Nivel 3]]&Tabla1[[#This Row],[Nivel 4]]&Tabla1[[#This Row],[Nivel 5]]&Tabla1[[#This Row],[Nivel 6]]&Tabla1[[#This Row],[Nivel 7]]","v":"1.105.03.02."}]
[null,"1.","105.","03.","02.","01.",null,null,"Aéreos","SI",null,{"$f":"+Tabla1[[#This Row],[Nivel 1]]&Tabla1[[#This Row],[Nivel 2]]&Tabla1[[#This Row],[Nivel 3]]&Tabla1[[#This Row],[Nivel 4]]&Tabla1[[#This Row],[Nivel 5]]&Tabla1[[#This Row],[Nivel 6]]&Tabla1[[#This Row],[Nivel 7]]","v":"1.105.03.02.01."}]
[null,"1.","105.","03.","02.","02.",null,null,"Terrestres","SI",null,{"$f":"+Tabla1[[#This Row],[Nivel 1]]&Tabla1[[#This Row],[Nivel 2]]&Tabla1[[#This Row],[Nivel 3]]&Tabla1[[#This Row],[Nivel 4]]&Tabla1[[#This Row],[Nivel 5]]&Tabla1[[#This Row],[Nivel 6]]&Tabla1[[#This Row],[Nivel 7]]","v":"1.105.03.02.02."}]
[null,"1.","105.","03.","02.","03.",null,null,"Otros Gastos de Transporte","SI",null,{"$f":"+Tabla1[[#This Row],[Nivel 1]]&Tabla1[[#This Row],[Nivel 2]]&Tabla1[[#This Row],[Nivel 3]]&Tabla1[[#This Row],[Nivel 4]]&Tabla1[[#This Row],[Nivel 5]]&Tabla1[[#This Row],[Nivel 6]]&Tabla1[[#This Row],[Nivel 7]]","v":"1.105.03.02.03."}]
[null,"1.","105.","03.","03.",null,null,null,"Gastos de Combustible","SI",null,{"$f":"+Tabla1[[#This Row],[Nivel 1]]&Tabla1[[#This Row],[Nivel 2]]&Tabla1[[#This Row],[Nivel 3]]&Tabla1[[#This Row],[Nivel 4]]&Tabla1[[#This Row],[Nivel 5]]&Tabla1[[#This Row],[Nivel 6]]&Tabla1[[#This Row],[Nivel 7]]","v":"1.105.03.03."}]
[null,"1.","105.","03.","04.",null,null,null,"Otros Gastos Reembolsables","SI",null,{"$f":"+Tabla1[[#This Row],[Nivel 1]]&Tabla1[[#This Row],[Nivel 2]]&Tabla1[[#This Row],[Nivel 3]]&Tabla1[[#This Row],[Nivel 4]]&Tabla1[[#This Row],[Nivel 5]]&Tabla1[[#This Row],[Nivel 6]]&Tabla1[[#This Row],[Nivel 7]]","v":"1.105.03.04."}]
[null,"1.","105.","04.",null,null,null,null,"Gastos Pagados por Anticipado","NO",null,{"$f":"+Tabla1[[#This Row],[Nivel 1]]&Tabla1[[#This Row],[Nivel 2]]&Tabla1[[#This Row],[Nivel 3]]&Tabla1[[#This Row],[Nivel 4]]&Tabla1[[#This Row],[Nivel 5]]&Tabla1[[#This Row],[Nivel 6]]&Tabla1[[#This Row],[Nivel 7]]","v":"1.105.04."}]
[null,"1.","105.","04.","01.",null,null,null,"Impuestos Pagados por Anticipado","NO",null,{"$f":"+Tabla1[[#This Row],[Nivel 1]]&Tabla1[[#This Row],[Nivel 2]]&Tabla1[[#This Row],[Nivel 3]]&Tabla1[[#This Row],[Nivel 4]]&Tabla1[[#This Row],[Nivel 5]]&Tabla1[[#This Row],[Nivel 6]]&Tabla1[[#This Row],[Nivel 7]]","v":"1.105.04.01."}]
[null,"1.","105.","04.","01.","01.",null,null,"Impuesto sobre la Renta","NO",null,{"$f":"+Tabla1[[#This Row],[Nivel 1]]&Tabla1[[#This Row],[Nivel 2]]&Tabla1[[#This Row],[Nivel 3]]&Tabla1[[#This Row],[Nivel 4]]&Tabla1[[#This Row],[Nivel 5]]&Tabla1[[#This Row],[Nivel 6]]&Tabla1[[#This Row],[Nivel 7]]","v":"1.105.04.01.01."}]
[null,"1.","105.","04.","01.","01.","01.",null,"ISLR - Retenido por Terceros","SI",null,{"$f":"+Tabla1[[#This Row],[Nivel 1]]&Tabla1[[#This Row],[Nivel 2]]&Tabla1[[#This Row],[Nivel 3]]&Tabla1[[#This Row],[Nivel 4]]&Tabla1[[#This Row],[Nivel 5]]&Tabla1[[#This Row],[Nivel 6]]&Tabla1[[#This Row],[Nivel 7]]","v":"1.105.04.01.01.01."}]
[null,"1.","105.","04.","01.","01.","02.",null,"ISLR - Declaración Estimada","SI",null,{"$f":"+Tabla1[[#This Row],[Nivel 1]]&Tabla1[[#This Row],[Nivel 2]]&Tabla1[[#This Row],[Nivel 3]]&Tabla1[[#This Row],[Nivel 4]]&Tabla1[[#This Row],[Nivel 5]]&Tabla1[[#This Row],[Nivel 6]]&Tabla1[[#This Row],[Nivel 7]]","v":"1.105.04.01.01.02."}]
[null,"1.","105.","04.","01.","01.","03.",null,"Anticipo  - ISLR  ","SI",null,{"$f":"+Tabla1[[#This Row],[Nivel 1]]&Tabla1[[#This Row],[Nivel 2]]&Tabla1[[#This Row],[Nivel 3]]&Tabla1[[#This Row],[Nivel 4]]&Tabla1[[#This Row],[Nivel 5]]&Tabla1[[#This Row],[Nivel 6]]&Tabla1[[#This Row],[Nivel 7]]","v":"1.105.04.01.01.03."}]
[null,"1.","105.","04.","01.","01.","04.",null,"ISRL por Compensar (Pagado en Exceso)","SI",null,{"$f":"+Tabla1[[#This Row],[Nivel 1]]&Tabla1[[#This Row],[Nivel 2]]&Tabla1[[#This Row],[Nivel 3]]&Tabla1[[#This Row],[Nivel 4]]&Tabla1[[#This Row],[Nivel 5]]&Tabla1[[#This Row],[Nivel 6]]&Tabla1[[#This Row],[Nivel 7]]","v":"1.105.04.01.01.04."}]
[null,"1.","105.","04.","01.","01.","05.",null,"ISLR Diferido","SI",null,{"$f":"+Tabla1[[#This Row],[Nivel 1]]&Tabla1[[#This Row],[Nivel 2]]&Tabla1[[#This Row],[Nivel 3]]&Tabla1[[#This Row],[Nivel 4]]&Tabla1[[#This Row],[Nivel 5]]&Tabla1[[#This Row],[Nivel 6]]&Tabla1[[#This Row],[Nivel 7]]","v":"1.105.04.01.01.05."}]
[null,"1.","105.","04.","01.","02.",null,null,"Impuesto al Valor Agregado ","NO",null,{"$f":"+Tabla1[[#This Row],[Nivel 1]]&Tabla1[[#This Row],[Nivel 2]]&Tabla1[[#This Row],[Nivel 3]]&Tabla1[[#This Row],[Nivel 4]]&Tabla1[[#This Row],[Nivel 5]]&Tabla1[[#This Row],[Nivel 6]]&Tabla1[[#This Row],[Nivel 7]]","v":"1.105.04.01.02."}]
[null,"1.","105.","04.","01.","02.","01.",null,"IVA - Retenido por Terceros sobre Compras o Servicios Recibidos (Crédito Fiscal)","SI",null,{"$f":"+Tabla1[[#This Row],[Nivel 1]]&Tabla1[[#This Row],[Nivel 2]]&Tabla1[[#This Row],[Nivel 3]]&Tabla1[[#This Row],[Nivel 4]]&Tabla1[[#This Row],[Nivel 5]]&Tabla1[[#This Row],[Nivel 6]]&Tabla1[[#This Row],[Nivel 7]]","v":"1.105.04.01.02.01."}]
[null,"1.","105.","04.","01.","03.",null,null,"Otros Impuestos Nacionales","NO",null,{"$f":"+Tabla1[[#This Row],[Nivel 1]]&Tabla1[[#This Row],[Nivel 2]]&Tabla1[[#This Row],[Nivel 3]]&Tabla1[[#This Row],[Nivel 4]]&Tabla1[[#This Row],[Nivel 5]]&Tabla1[[#This Row],[Nivel 6]]&Tabla1[[#This Row],[Nivel 7]]","v":"1.105.04.01.03."}]
[null,"1.","105.","04.","01.","04.",null,null,"Impuestos Municipales","NO",null,{"$f":"+Tabla1[[#This Row],[Nivel 1]]&Tabla1[[#This Row],[Nivel 2]]&Tabla1[[#This Row],[Nivel 3]]&Tabla1[[#This Row],[Nivel 4]]&Tabla1[[#This Row],[Nivel 5]]&Tabla1[[#This Row],[Nivel 6]]&Tabla1[[#This Row],[Nivel 7]]","v":"1.105.04.01.04."}]
[null,"1.","105.","04.","01.","04.","01.",null,"Patente de Industria y Comercio","SI",null,{"$f":"+Tabla1[[#This Row],[Nivel 1]]&Tabla1[[#This Row],[Nivel 2]]&Tabla1[[#This Row],[Nivel 3]]&Tabla1[[#This Row],[Nivel 4]]&Tabla1[[#This Row],[Nivel 5]]&Tabla1[[#This Row],[Nivel 6]]&Tabla1[[#This Row],[Nivel 7]]","v":"1.105.04.01.04.01."}]
[null,"1.","105.","04.","01.","04.","02.",null,"Impuesto Inmobiliario Urbano","SI",null,{"$f":"+Tabla1[[#This Row],[Nivel 1]]&Tabla1[[#This Row],[Nivel 2]]&Tabla1[[#This Row],[Nivel 3]]&Tabla1[[#This Row],[Nivel 4]]&Tabla1[[#This Row],[Nivel 5]]&Tabla1[[#This Row],[Nivel 6]]&Tabla1[[#This Row],[Nivel 7]]","v":"1.105.04.01.04.02."}]
[null,"1.","105.","04.","01.","04.","03.",null,"Impuesto sobre Publicidad y Propaganda","SI",null,{"$f":"+Tabla1[[#This Row],[Nivel 1]]&Tabla1[[#This Row],[Nivel 2]]&Tabla1[[#This Row],[Nivel 3]]&Tabla1[[#This Row],[Nivel 4]]&Tabla1[[#This Row],[Nivel 5]]&Tabla1[[#This Row],[Nivel 6]]&Tabla1[[#This Row],[Nivel 7]]","v":"1.105.04.01.04.03."}]
[null,"1.","105.","04.","01.","04.","04.",null,"Impuesto sobre Circulación de Vehículos","SI",null,{"$f":"+Tabla1[[#This Row],[Nivel 1]]&Tabla1[[#This Row],[Nivel 2]]&Tabla1[[#This Row],[Nivel 3]]&Tabla1[[#This Row],[Nivel 4]]&Tabla1[[#This Row],[Nivel 5]]&Tabla1[[#This Row],[Nivel 6]]&Tabla1[[#This Row],[Nivel 7]]","v":"1.105.04.01.04.04."}]
[null,"1.","105.","04.","01.","05.",null,null,"Otros Impuestos","NO",null,{"$f":"+Tabla1[[#This Row],[Nivel 1]]&Tabla1[[#This Row],[Nivel 2]]&Tabla1[[#This Row],[Nivel 3]]&Tabla1[[#This Row],[Nivel 4]]&Tabla1[[#This Row],[Nivel 5]]&Tabla1[[#This Row],[Nivel 6]]&Tabla1[[#This Row],[Nivel 7]]","v":"1.105.04.01.05."}]
[null,"1.","105.","04.","02.",null,null,null,"Seguros Pagados por Anticipado","SI",null,{"$f":"+Tabla1[[#This Row],[Nivel 1]]&Tabla1[[#This Row],[Nivel 2]]&Tabla1[[#This Row],[Nivel 3]]&Tabla1[[#This Row],[Nivel 4]]&Tabla1[[#This Row],[Nivel 5]]&Tabla1[[#This Row],[Nivel 6]]&Tabla1[[#This Row],[Nivel 7]]","v":"1.105.04.02."}]
[null,"1.","105.","04.","03.",null,null,null,"Intereses Pagados por Anticipado","SI",null,{"$f":"+Tabla1[[#This Row],[Nivel 1]]&Tabla1[[#This Row],[Nivel 2]]&Tabla1[[#This Row],[Nivel 3]]&Tabla1[[#This Row],[Nivel 4]]&Tabla1[[#This Row],[Nivel 5]]&Tabla1[[#This Row],[Nivel 6]]&Tabla1[[#This Row],[Nivel 7]]","v":"1.105.04.03."}]
[null,"1.","105.","04.","04.",null,null,null,"Arrendamientos Pagados por Anticipado","SI",null,{"$f":"+Tabla1[[#This Row],[Nivel 1]]&Tabla1[[#This Row],[Nivel 2]]&Tabla1[[#This Row],[Nivel 3]]&Tabla1[[#This Row],[Nivel 4]]&Tabla1[[#This Row],[Nivel 5]]&Tabla1[[#This Row],[Nivel 6]]&Tabla1[[#This Row],[Nivel 7]]","v":"1.105.04.04."}]
[null,"1.","105.","04.","05.",null,null,null,"Publicidad Pagada por Anticipado","SI",null,{"$f":"+Tabla1[[#This Row],[Nivel 1]]&Tabla1[[#This Row],[Nivel 2]]&Tabla1[[#This Row],[Nivel 3]]&Tabla1[[#This Row],[Nivel 4]]&Tabla1[[#This Row],[Nivel 5]]&Tabla1[[#This Row],[Nivel 6]]&Tabla1[[#This Row],[Nivel 7]]","v":"1.105.04.05."}]
[null,"1.","105.","04.","06.",null,null,null,"Hipotecas Pagadas por Anticipado","SI",null,{"$f":"+Tabla1[[#This Row],[Nivel 1]]&Tabla1[[#This Row],[Nivel 2]]&Tabla1[[#This Row],[Nivel 3]]&Tabla1[[#This Row],[Nivel 4]]&Tabla1[[#This Row],[Nivel 5]]&Tabla1[[#This Row],[Nivel 6]]&Tabla1[[#This Row],[Nivel 7]]","v":"1.105.04.06."}]
[null,"1.","105.","04.","07.",null,null,null,"Comisiones pagadas por anticipado","SI",null,{"$f":"+Tabla1[[#This Row],[Nivel 1]]&Tabla1[[#This Row],[Nivel 2]]&Tabla1[[#This Row],[Nivel 3]]&Tabla1[[#This Row],[Nivel 4]]&Tabla1[[#This Row],[Nivel 5]]&Tabla1[[#This Row],[Nivel 6]]&Tabla1[[#This Row],[Nivel 7]]","v":"1.105.04.07."}]
[null,"1.","105.","04.","08.",null,null,null,"Otros Gastos Pagados por Anticipado","SI",null,{"$f":"+Tabla1[[#This Row],[Nivel 1]]&Tabla1[[#This Row],[Nivel 2]]&Tabla1[[#This Row],[Nivel 3]]&Tabla1[[#This Row],[Nivel 4]]&Tabla1[[#This Row],[Nivel 5]]&Tabla1[[#This Row],[Nivel 6]]&Tabla1[[#This Row],[Nivel 7]]","v":"1.105.04.08."}]
[null,"1.","105.","05.",null,null,null,null,"Operaciones de Permuta","NO",null,{"$f":"+Tabla1[[#This Row],[Nivel 1]]&Tabla1[[#This Row],[Nivel 2]]&Tabla1[[#This Row],[Nivel 3]]&Tabla1[[#This Row],[Nivel 4]]&Tabla1[[#This Row],[Nivel 5]]&Tabla1[[#This Row],[Nivel 6]]&Tabla1[[#This Row],[Nivel 7]]","v":"1.105.05."}]
[null,"1.","105.","05.","01.",null,null,null,"Valores Públicos","SI",null,{"$f":"+Tabla1[[#This Row],[Nivel 1]]&Tabla1[[#This Row],[Nivel 2]]&Tabla1[[#This Row],[Nivel 3]]&Tabla1[[#This Row],[Nivel 4]]&Tabla1[[#This Row],[Nivel 5]]&Tabla1[[#This Row],[Nivel 6]]&Tabla1[[#This Row],[Nivel 7]]","v":"1.105.05.01."}]
[null,"1.","105.","05.","02.",null,null,null,"Valores Privados","SI",null,{"$f":"+Tabla1[[#This Row],[Nivel 1]]&Tabla1[[#This Row],[Nivel 2]]&Tabla1[[#This Row],[Nivel 3]]&Tabla1[[#This Row],[Nivel 4]]&Tabla1[[#This Row],[Nivel 5]]&Tabla1[[#This Row],[Nivel 6]]&Tabla1[[#This Row],[Nivel 7]]","v":"1.105.05.02."}]
[null,"1.","105.","05.","03.",null,null,null,"Inmuebles","SI",null,{"$f":"+Tabla1[[#This Row],[Nivel 1]]&Tabla1[[#This Row],[Nivel 2]]&Tabla1[[#This Row],[Nivel 3]]&Tabla1[[#This Row],[Nivel 4]]&Tabla1[[#This Row],[Nivel 5]]&Tabla1[[#This Row],[Nivel 6]]&Tabla1[[#This Row],[Nivel 7]]","v":"1.105.05.03."}]
[null,"1.","105.","05.","04.",null,null,null,"Terrenos","SI",null,{"$f":"+Tabla1[[#This Row],[Nivel 1]]&Tabla1[[#This Row],[Nivel 2]]&Tabla1[[#This Row],[Nivel 3]]&Tabla1[[#This Row],[Nivel 4]]&Tabla1[[#This Row],[Nivel 5]]&Tabla1[[#This Row],[Nivel 6]]&Tabla1[[#This Row],[Nivel 7]]","v":"1.105.05.04."}]
[null,"1.","105.","05.","05.",null,null,null,"Otros","SI",null,{"$f":"+Tabla1[[#This Row],[Nivel 1]]&Tabla1[[#This Row],[Nivel 2]]&Tabla1[[#This Row],[Nivel 3]]&Tabla1[[#This Row],[Nivel 4]]&Tabla1[[#This Row],[Nivel 5]]&Tabla1[[#This Row],[Nivel 6]]&Tabla1[[#This Row],[Nivel 7]]","v":"1.105.05.05."}]
[null,"1.","106.",null,null,null,null,null,"OTROS ACTIVOS","NO",null,{"$f":"+Tabla1[[#This Row],[Nivel 1]]&Tabla1[[#This Row],[Nivel 2]]&Tabla1[[#This Row],[Nivel 3]]&Tabla1[[#This Row],[Nivel 4]]&Tabla1[[#This Row],[Nivel 5]]&Tabla1[[#This Row],[Nivel 6]]&Tabla1[[#This Row],[Nivel 7]]","v":"1.106."}]
[null,"1.","106.","01.",null,null,null,null,"Operaciones en Tránsito","NO",null,{"$f":"+Tabla1[[#This Row],[Nivel 1]]&Tabla1[[#This Row],[Nivel 2]]&Tabla1[[#This Row],[Nivel 3]]&Tabla1[[#This Row],[Nivel 4]]&Tabla1[[#This Row],[Nivel 5]]&Tabla1[[#This Row],[Nivel 6]]&Tabla1[[#This Row],[Nivel 7]]","v":"1.106.01."}]
[null,"1.","106.","01.","01.",null,null,null,"Bancarias","NO",null,{"$f":"+Tabla1[[#This Row],[Nivel 1]]&Tabla1[[#This Row],[Nivel 2]]&Tabla1[[#This Row],[Nivel 3]]&Tabla1[[#This Row],[Nivel 4]]&Tabla1[[#This Row],[Nivel 5]]&Tabla1[[#This Row],[Nivel 6]]&Tabla1[[#This Row],[Nivel 7]]","v":"1.106.01.01."}]
[null,"1.","106.","01.","01.","01.",null,null,"Moneda Nacional","SI",null,{"$f":"+Tabla1[[#This Row],[Nivel 1]]&Tabla1[[#This Row],[Nivel 2]]&Tabla1[[#This Row],[Nivel 3]]&Tabla1[[#This Row],[Nivel 4]]&Tabla1[[#This Row],[Nivel 5]]&Tabla1[[#This Row],[Nivel 6]]&Tabla1[[#This Row],[Nivel 7]]","v":"1.106.01.01.01."}]
[null,"1.","106.","01.","01.","02.",null,null,"Moneda Extranjera","SI",null,{"$f":"+Tabla1[[#This Row],[Nivel 1]]&Tabla1[[#This Row],[Nivel 2]]&Tabla1[[#This Row],[Nivel 3]]&Tabla1[[#This Row],[Nivel 4]]&Tabla1[[#This Row],[Nivel 5]]&Tabla1[[#This Row],[Nivel 6]]&Tabla1[[#This Row],[Nivel 7]]","v":"1.106.01.01.02."}]
[null,"1.","106.","01.","02.",null,null,null,"Otros","NO",null,{"$f":"+Tabla1[[#This Row],[Nivel 1]]&Tabla1[[#This Row],[Nivel 2]]&Tabla1[[#This Row],[Nivel 3]]&Tabla1[[#This Row],[Nivel 4]]&Tabla1[[#This Row],[Nivel 5]]&Tabla1[[#This Row],[Nivel 6]]&Tabla1[[#This Row],[Nivel 7]]","v":"1.106.01.02."}]
[null,"1.","106.","01.","02.","01.",null,null,"Moneda Nacional","SI",null,{"$f":"+Tabla1[[#This Row],[Nivel 1]]&Tabla1[[#This Row],[Nivel 2]]&Tabla1[[#This Row],[Nivel 3]]&Tabla1[[#This Row],[Nivel 4]]&Tabla1[[#This Row],[Nivel 5]]&Tabla1[[#This Row],[Nivel 6]]&Tabla1[[#This Row],[Nivel 7]]","v":"1.106.01.02.01."}]
[null,"1.","106.","01.","02.","02.",null,null,"Moneda Extranjera","SI",null,{"$f":"+Tabla1[[#This Row],[Nivel 1]]&Tabla1[[#This Row],[Nivel 2]]&Tabla1[[#This Row],[Nivel 3]]&Tabla1[[#This Row],[Nivel 4]]&Tabla1[[#This Row],[Nivel 5]]&Tabla1[[#This Row],[Nivel 6]]&Tabla1[[#This Row],[Nivel 7]]","v":"1.106.01.02.02."}]
[null,"1.","106.","02.",null,null,null,null,"Propiedades, Mejoras Inmobiliarias y Equipos","NO",null,{"$f":"+Tabla1[[#This Row],[Nivel 1]]&Tabla1[[#This Row],[Nivel 2]]&Tabla1[[#This Row],[Nivel 3]]&Tabla1[[#This Row],[Nivel 4]]&Tabla1[[#This Row],[Nivel 5]]&Tabla1[[#This Row],[Nivel 6]]&Tabla1[[#This Row],[Nivel 7]]","v":"1.106.02."}]
[null,"1.","106.","02.","01.",null,null,null,"Edificaciones en Construcción","SI",null,{"$f":"+Tabla1[[#This Row],[Nivel 1]]&Tabla1[[#This Row],[Nivel 2]]&Tabla1[[#This Row],[Nivel 3]]&Tabla1[[#This Row],[Nivel 4]]&Tabla1[[#This Row],[Nivel 5]]&Tabla1[[#This Row],[Nivel 6]]&Tabla1[[#This Row],[Nivel 7]]","v":"1.106.02.01."}]
[null,"1.","106.","02.","02.",null,null,null,"Mejoras Inmobiliarias","SI",null,{"$f":"+Tabla1[[#This Row],[Nivel 1]]&Tabla1[[#This Row],[Nivel 2]]&Tabla1[[#This Row],[Nivel 3]]&Tabla1[[#This Row],[Nivel 4]]&Tabla1[[#This Row],[Nivel 5]]&Tabla1[[#This Row],[Nivel 6]]&Tabla1[[#This Row],[Nivel 7]]","v":"1.106.02.02."}]
[null,"1.","106.","02.","03.",null,null,null,"Equipos","SI",null,{"$f":"+Tabla1[[#This Row],[Nivel 1]]&Tabla1[[#This Row],[Nivel 2]]&Tabla1[[#This Row],[Nivel 3]]&Tabla1[[#This Row],[Nivel 4]]&Tabla1[[#This Row],[Nivel 5]]&Tabla1[[#This Row],[Nivel 6]]&Tabla1[[#This Row],[Nivel 7]]","v":"1.106.02.03."}]
[null,"1.","106.","02.","04.",null,null,null,"Otros","SI",null,{"$f":"+Tabla1[[#This Row],[Nivel 1]]&Tabla1[[#This Row],[Nivel 2]]&Tabla1[[#This Row],[Nivel 3]]&Tabla1[[#This Row],[Nivel 4]]&Tabla1[[#This Row],[Nivel 5]]&Tabla1[[#This Row],[Nivel 6]]&Tabla1[[#This Row],[Nivel 7]]","v":"1.106.02.04."}]
[null,"1.","106.","03.",null,null,null,null,"Acervo Artístico ","NO",null,{"$f":"+Tabla1[[#This Row],[Nivel 1]]&Tabla1[[#This Row],[Nivel 2]]&Tabla1[[#This Row],[Nivel 3]]&Tabla1[[#This Row],[Nivel 4]]&Tabla1[[#This Row],[Nivel 5]]&Tabla1[[#This Row],[Nivel 6]]&Tabla1[[#This Row],[Nivel 7]]","v":"1.106.03."}]
[null,"1.","106.","03.","01.",null,null,null,"Pinturas","SI",null,{"$f":"+Tabla1[[#This Row],[Nivel 1]]&Tabla1[[#This Row],[Nivel 2]]&Tabla1[[#This Row],[Nivel 3]]&Tabla1[[#This Row],[Nivel 4]]&Tabla1[[#This Row],[Nivel 5]]&Tabla1[[#This Row],[Nivel 6]]&Tabla1[[#This Row],[Nivel 7]]","v":"1.106.03.01."}]
[null,"1.","106.","03.","02.",null,null,null,"Esculturas","SI",null,{"$f":"+Tabla1[[#This Row],[Nivel 1]]&Tabla1[[#This Row],[Nivel 2]]&Tabla1[[#This Row],[Nivel 3]]&Tabla1[[#This Row],[Nivel 4]]&Tabla1[[#This Row],[Nivel 5]]&Tabla1[[#This Row],[Nivel 6]]&Tabla1[[#This Row],[Nivel 7]]","v":"1.106.03.02."}]
[null,"1.","106.","03.","03.",null,null,null,"Otros","SI",null,{"$f":"+Tabla1[[#This Row],[Nivel 1]]&Tabla1[[#This Row],[Nivel 2]]&Tabla1[[#This Row],[Nivel 3]]&Tabla1[[#This Row],[Nivel 4]]&Tabla1[[#This Row],[Nivel 5]]&Tabla1[[#This Row],[Nivel 6]]&Tabla1[[#This Row],[Nivel 7]]","v":"1.106.03.03."}]
[null,"1.","106.","04.",null,null,null,null,"Depósitos en Garantía de Servicios ","NO",null,{"$f":"+Tabla1[[#This Row],[Nivel 1]]&Tabla1[[#This Row],[Nivel 2]]&Tabla1[[#This Row],[Nivel 3]]&Tabla1[[#This Row],[Nivel 4]]&Tabla1[[#This Row],[Nivel 5]]&Tabla1[[#This Row],[Nivel 6]]&Tabla1[[#This Row],[Nivel 7]]","v":"1.106.04."}]
[null,null,null,null,null,null,null,null,"TOTAL ACTIVO","NO",null,{"$f":"+Tabla1[[#This Row],[Nivel 1]]&Tabla1[[#This Row],[Nivel 2]]&Tabla1[[#This Row],[Nivel 3]]&Tabla1[[#This Row],[Nivel 4]]&Tabla1[[#This Row],[Nivel 5]]&Tabla1[[#This Row],[Nivel 6]]&Tabla1[[#This Row],[Nivel 7]]","v":""}]
[null,"2.",null,null,null,null,null,null,"CUENTAS DE ORDEN","NO",null,{"$f":"+Tabla1[[#This Row],[Nivel 1]]&Tabla1[[#This Row],[Nivel 2]]&Tabla1[[#This Row],[Nivel 3]]&Tabla1[[#This Row],[Nivel 4]]&Tabla1[[#This Row],[Nivel 5]]&Tabla1[[#This Row],[Nivel 6]]&Tabla1[[#This Row],[Nivel 7]]","v":"2."}]
[null,"2.","201.",null,null,null,null,null,"EFECTOS ENVIADOS AL COBRO","NO",null,{"$f":"+Tabla1[[#This Row],[Nivel 1]]&Tabla1[[#This Row],[Nivel 2]]&Tabla1[[#This Row],[Nivel 3]]&Tabla1[[#This Row],[Nivel 4]]&Tabla1[[#This Row],[Nivel 5]]&Tabla1[[#This Row],[Nivel 6]]&Tabla1[[#This Row],[Nivel 7]]","v":"2.201."}]
[null,"2.","201.","01.",null,null,null,null,"Financiamientos sobre Primas","SI",null,{"$f":"+Tabla1[[#This Row],[Nivel 1]]&Tabla1[[#This Row],[Nivel 2]]&Tabla1[[#This Row],[Nivel 3]]&Tabla1[[#This Row],[Nivel 4]]&Tabla1[[#This Row],[Nivel 5]]&Tabla1[[#This Row],[Nivel 6]]&Tabla1[[#This Row],[Nivel 7]]","v":"2.201.01."}]
[null,"2.","201.","02.",null,null,null,null,"Financiamientos sobre Cuotas","SI",null,{"$f":"+Tabla1[[#This Row],[Nivel 1]]&Tabla1[[#This Row],[Nivel 2]]&Tabla1[[#This Row],[Nivel 3]]&Tabla1[[#This Row],[Nivel 4]]&Tabla1[[#This Row],[Nivel 5]]&Tabla1[[#This Row],[Nivel 6]]&Tabla1[[#This Row],[Nivel 7]]","v":"2.201.02."}]
[null,"2.","202.",null,null,null,null,null,"DEPÓSITOS RECIBIDOS EN GARANTÍA","NO",null,{"$f":"+Tabla1[[#This Row],[Nivel 1]]&Tabla1[[#This Row],[Nivel 2]]&Tabla1[[#This Row],[Nivel 3]]&Tabla1[[#This Row],[Nivel 4]]&Tabla1[[#This Row],[Nivel 5]]&Tabla1[[#This Row],[Nivel 6]]&Tabla1[[#This Row],[Nivel 7]]","v":"2.202."}]
[null,"2.","202.","01.",null,null,null,null,"Bancos","SI",null,{"$f":"+Tabla1[[#This Row],[Nivel 1]]&Tabla1[[#This Row],[Nivel 2]]&Tabla1[[#This Row],[Nivel 3]]&Tabla1[[#This Row],[Nivel 4]]&Tabla1[[#This Row],[Nivel 5]]&Tabla1[[#This Row],[Nivel 6]]&Tabla1[[#This Row],[Nivel 7]]","v":"2.202.01."}]
[null,"2.","202.","02.",null,null,null,null,"Otras Inversiones","SI",null,{"$f":"+Tabla1[[#This Row],[Nivel 1]]&Tabla1[[#This Row],[Nivel 2]]&Tabla1[[#This Row],[Nivel 3]]&Tabla1[[#This Row],[Nivel 4]]&Tabla1[[#This Row],[Nivel 5]]&Tabla1[[#This Row],[Nivel 6]]&Tabla1[[#This Row],[Nivel 7]]","v":"2.202.02."}]
[null,"2.","203.",null,null,null,null,null,"FIDEICOMISO - TRABAJADORES DE LA EMPRESA FINANCIADORA DE PRIMAS","NO",null,{"$f":"+Tabla1[[#This Row],[Nivel 1]]&Tabla1[[#This Row],[Nivel 2]]&Tabla1[[#This Row],[Nivel 3]]&Tabla1[[#This Row],[Nivel 4]]&Tabla1[[#This Row],[Nivel 5]]&Tabla1[[#This Row],[Nivel 6]]&Tabla1[[#This Row],[Nivel 7]]","v":"2.203."}]
[null,"2.","203.","01.",null,null,null,null,"Prestaciones Sociales","SI",null,{"$f":"+Tabla1[[#This Row],[Nivel 1]]&Tabla1[[#This Row],[Nivel 2]]&Tabla1[[#This Row],[Nivel 3]]&Tabla1[[#This Row],[Nivel 4]]&Tabla1[[#This Row],[Nivel 5]]&Tabla1[[#This Row],[Nivel 6]]&Tabla1[[#This Row],[Nivel 7]]","v":"2.203.01."}]
[null,"2.","203.","02.",null,null,null,null,"Otros","SI",null,{"$f":"+Tabla1[[#This Row],[Nivel 1]]&Tabla1[[#This Row],[Nivel 2]]&Tabla1[[#This Row],[Nivel 3]]&Tabla1[[#This Row],[Nivel 4]]&Tabla1[[#This Row],[Nivel 5]]&Tabla1[[#This Row],[Nivel 6]]&Tabla1[[#This Row],[Nivel 7]]","v":"2.203.02."}]
[null,null,null,null,null,null,null,null,"TOTAL CUENTAS DE ORDEN","NO"]

{"sheet":"Pasivo Analítico","index":1,"n_rows":322,"n_cols":12,"rows_kept":322,"cut":false,"hidden":false,"merged":[]}
[null,"EMPRESA FINANCIADORA DE PRIMAS O CUOTAS"]
[null,"PASIVO ANALÍTICO"]
[null,"AL XX/XX/30___"]
[]
[null,"Nivel 1","Nivel 2","Nivel 3","Nivel 4","Nivel 5","Nivel 6","Nivel 7","Nombre de la Cuenta","Admite Monto","Identificador del Anexo","Cuenta Contable"]
[null,"3.",null,null,null,null,null,null,"PASIVO","NO",null,{"$f":"+Tabla2[[#This Row],[Nivel 1]]&Tabla2[[#This Row],[Nivel 2]]&Tabla2[[#This Row],[Nivel 3]]&Tabla2[[#This Row],[Nivel 4]]&Tabla2[[#This Row],[Nivel 5]]&Tabla2[[#This Row],[Nivel 6]]&Tabla2[[#This Row],[Nivel 7]]","v":"3."}]
[null,"3.","301.",null,null,null,null,null,"OBLIGACIONES POR PAGAR","NO",null,{"$f":"+Tabla2[[#This Row],[Nivel 1]]&Tabla2[[#This Row],[Nivel 2]]&Tabla2[[#This Row],[Nivel 3]]&Tabla2[[#This Row],[Nivel 4]]&Tabla2[[#This Row],[Nivel 5]]&Tabla2[[#This Row],[Nivel 6]]&Tabla2[[#This Row],[Nivel 7]]","v":"3.301."}]
[null,"3.","301.","01.",null,null,null,null,"Cuentas y Efectos por Pagar - Financiamiento de Primas o Cuotas","NO","A5",{"$f":"+Tabla2[[#This Row],[Nivel 1]]&Tabla2[[#This Row],[Nivel 2]]&Tabla2[[#This Row],[Nivel 3]]&Tabla2[[#This Row],[Nivel 4]]&Tabla2[[#This Row],[Nivel 5]]&Tabla2[[#This Row],[Nivel 6]]&Tabla2[[#This Row],[Nivel 7]]","v":"3.301.01."}]
[null,"3.","301.","01.","01.",null,null,null,"Cuentas por Pagar - Financiamiento de Primas o Cuotas","NO",null,{"$f":"+Tabla2[[#This Row],[Nivel 1]]&Tabla2[[#This Row],[Nivel 2]]&Tabla2[[#This Row],[Nivel 3]]&Tabla2[[#This Row],[Nivel 4]]&Tabla2[[#This Row],[Nivel 5]]&Tabla2[[#This Row],[Nivel 6]]&Tabla2[[#This Row],[Nivel 7]]","v":"3.301.01.01."}]
[null,"3.","301.","01.","01.","01.",null,null,"Cuentas por Pagar - Primas Financiadas","SI","A5",{"$f":"+Tabla2[[#This Row],[Nivel 1]]&Tabla2[[#This Row],[Nivel 2]]&Tabla2[[#This Row],[Nivel 3]]&Tabla2[[#This Row],[Nivel 4]]&Tabla2[[#This Row],[Nivel 5]]&Tabla2[[#This Row],[Nivel 6]]&Tabla2[[#This Row],[Nivel 7]]","v":"3.301.01.01.01."}]
[null,"3.","301.","01.","01.","02.",null,null,"Cuentas por Pagar - Cuotas Financiadas ","SI","A5",{"$f":"+Tabla2[[#This Row],[Nivel 1]]&Tabla2[[#This Row],[Nivel 2]]&Tabla2[[#This Row],[Nivel 3]]&Tabla2[[#This Row],[Nivel 4]]&Tabla2[[#This Row],[Nivel 5]]&Tabla2[[#This Row],[Nivel 6]]&Tabla2[[#This Row],[Nivel 7]]","v":"3.301.01.01.02."}]
[null,"3.","301.","01.","02.",null,null,null,"Efectos por Pagar - Financiamiento de Primas o Cuotas","NO",null,{"$f":"+Tabla2[[#This Row],[Nivel 1]]&Tabla2[[#This Row],[Nivel 2]]&Tabla2[[#This Row],[Nivel 3]]&Tabla2[[#This Row],[Nivel 4]]&Tabla2[[#This Row],[Nivel 5]]&Tabla2[[#This Row],[Nivel 6]]&Tabla2[[#This Row],[Nivel 7]]","v":"3.301.01.02."}]
[null,"3.","301.","01.","02.","01.",null,null,"Efectos por Pagar - Primas Financiadas","SI","A5",{"$f":"+Tabla2[[#This Row],[Nivel 1]]&Tabla2[[#This Row],[Nivel 2]]&Tabla2[[#This Row],[Nivel 3]]&Tabla2[[#This Row],[Nivel 4]]&Tabla2[[#This Row],[Nivel 5]]&Tabla2[[#This Row],[Nivel 6]]&Tabla2[[#This Row],[Nivel 7]]","v":"3.301.01.02.01."}]
[null,"3.","301.","01.","02.","02.",null,null,"Efectos por Pagar - Cuotas Financiadas ","SI","A5",{"$f":"+Tabla2[[#This Row],[Nivel 1]]&Tabla2[[#This Row],[Nivel 2]]&Tabla2[[#This Row],[Nivel 3]]&Tabla2[[#This Row],[Nivel 4]]&Tabla2[[#This Row],[Nivel 5]]&Tabla2[[#This Row],[Nivel 6]]&Tabla2[[#This Row],[Nivel 7]]","v":"3.301.01.02.02."}]
[null,"3.","301.","01.","03.",null,null,null,"Efectos Descontados de Primas o Cuotas","NO",null,{"$f":"+Tabla2[[#This Row],[Nivel 1]]&Tabla2[[#This Row],[Nivel 2]]&Tabla2[[#This Row],[Nivel 3]]&Tabla2[[#This Row],[Nivel 4]]&Tabla2[[#This Row],[Nivel 5]]&Tabla2[[#This Row],[Nivel 6]]&Tabla2[[#This Row],[Nivel 7]]","v":"3.301.01.03."}]
[null,"3.","301.","01.","03.","01.",null,null,"Efectos Descontados - Primas Financiadas","SI","A5",{"$f":"+Tabla2[[#This Row],[Nivel 1]]&Tabla2[[#This Row],[Nivel 2]]&Tabla2[[#This Row],[Nivel 3]]&Tabla2[[#This Row],[Nivel 4]]&Tabla2[[#This Row],[Nivel 5]]&Tabla2[[#This Row],[Nivel 6]]&Tabla2[[#This Row],[Nivel 7]]","v":"3.301.01.03.01."}]
[null,"3.","301.","01.","03.","02.",null,null,"Efectos Descontados - Cuotas Financiadas ","SI","A5",{"$f":"+Tabla2[[#This Row],[Nivel 1]]&Tabla2[[#This Row],[Nivel 2]]&Tabla2[[#This Row],[Nivel 3]]&Tabla2[[#This Row],[Nivel 4]]&Tabla2[[#This Row],[Nivel 5]]&Tabla2[[#This Row],[Nivel 6]]&Tabla2[[#This Row],[Nivel 7]]","v":"3.301.01.03.02."}]
[null,"3.","301.","01.","04.",null,null,null,"Reintegros al Cliente por Pagar","SI","A5",{"$f":"+Tabla2[[#This Row],[Nivel 1]]&Tabla2[[#This Row],[Nivel 2]]&Tabla2[[#This Row],[Nivel 3]]&Tabla2[[#This Row],[Nivel 4]]&Tabla2[[#This Row],[Nivel 5]]&Tabla2[[#This Row],[Nivel 6]]&Tabla2[[#This Row],[Nivel 7]]","v":"3.301.01.04."}]
[null,"3.","301.","02.",null,null,null,null,"A Corto Plazo","NO","A6",{"$f":"+Tabla2[[#This Row],[Nivel 1]]&Tabla2[[#This Row],[Nivel 2]]&Tabla2[[#This Row],[Nivel 3]]&Tabla2[[#This Row],[Nivel 4]]&Tabla2[[#This Row],[Nivel 5]]&Tabla2[[#This Row],[Nivel 6]]&Tabla2[[#This Row],[Nivel 7]]","v":"3.301.02."}]
[null,"3.","301.","02.","01.",null,null,null,"Préstamos Bancarios ","SI","A6",{"$f":"+Tabla2[[#This Row],[Nivel 1]]&Tabla2[[#This Row],[Nivel 2]]&Tabla2[[#This Row],[Nivel 3]]&Tabla2[[#This Row],[Nivel 4]]&Tabla2[[#This Row],[Nivel 5]]&Tabla2[[#This Row],[Nivel 6]]&Tabla2[[#This Row],[Nivel 7]]","v":"3.301.02.01."}]
[null,"3.","301.","02.","02.",null,null,null,"Sobregiros Bancarios ","SI","A6",{"$f":"+Tabla2[[#This Row],[Nivel 1]]&Tabla2[[#This Row],[Nivel 2]]&Tabla2[[#This Row],[Nivel 3]]&Tabla2[[#This Row],[Nivel 4]]&Tabla2[[#This Row],[Nivel 5]]&Tabla2[[#This Row],[Nivel 6]]&Tabla2[[#This Row],[Nivel 7]]","v":"3.301.02.02."}]
[null,"3.","301.","02.","03.",null,null,null,"Pagarés","SI","A6",{"$f":"+Tabla2[[#This Row],[Nivel 1]]&Tabla2[[#This Row],[Nivel 2]]&Tabla2[[#This Row],[Nivel 3]]&Tabla2[[#This Row],[Nivel 4]]&Tabla2[[#This Row],[Nivel 5]]&Tabla2[[#This Row],[Nivel 6]]&Tabla2[[#This Row],[Nivel 7]]","v":"3.301.02.03."}]
[null,"3.","301.","02.","04.",null,null,null,"Línea de Crédito","SI","A6",{"$f":"+Tabla2[[#This Row],[Nivel 1]]&Tabla2[[#This Row],[Nivel 2]]&Tabla2[[#This Row],[Nivel 3]]&Tabla2[[#This Row],[Nivel 4]]&Tabla2[[#This Row],[Nivel 5]]&Tabla2[[#This Row],[Nivel 6]]&Tabla2[[#This Row],[Nivel 7]]","v":"3.301.02.04."}]
[null,"3.","301.","02.","05.",null,null,null,"Cartas de Crédito","SI","A6",{"$f":"+Tabla2[[#This Row],[Nivel 1]]&Tabla2[[#This Row],[Nivel 2]]&Tabla2[[#This Row],[Nivel 3]]&Tabla2[[#This Row],[Nivel 4]]&Tabla2[[#This Row],[Nivel 5]]&Tabla2[[#This Row],[Nivel 6]]&Tabla2[[#This Row],[Nivel 7]]","v":"3.301.02.05."}]
[null,"3.","301.","02.","06.",null,null,null,"Otras Obligaciones a Corto Plazo","SI","A6",{"$f":"+Tabla2[[#This Row],[Nivel 1]]&Tabla2[[#This Row],[Nivel 2]]&Tabla2[[#This Row],[Nivel 3]]&Tabla2[[#This Row],[Nivel 4]]&Tabla2[[#This Row],[Nivel 5]]&Tabla2[[#This Row],[Nivel 6]]&Tabla2[[#This Row],[Nivel 7]]","v":"3.301.02.06."}]
[null,"3.","301.","03.",null,null,null,null,"A Largo Plazo","NO","A7",{"$f":"+Tabla2[[#This Row],[Nivel 1]]&Tabla2[[#This Row],[Nivel 2]]&Tabla2[[#This Row],[Nivel 3]]&Tabla2[[#This Row],[Nivel 4]]&Tabla2[[#This Row],[Nivel 5]]&Tabla2[[#This Row],[Nivel 6]]&Tabla2[[#This Row],[Nivel 7]]","v":"3.301.03."}]
[null,"3.","301.","03.","01.",null,null,null,"Hipotecas","SI","A7",{"$f":"+Tabla2[[#This Row],[Nivel 1]]&Tabla2[[#This Row],[Nivel 2]]&Tabla2[[#This Row],[Nivel 3]]&Tabla2[[#This Row],[Nivel 4]]&Tabla2[[#This Row],[Nivel 5]]&Tabla2[[#This Row],[Nivel 6]]&Tabla2[[#This Row],[Nivel 7]]","v":"3.301.03.01."}]
[null,"3.","301.","03.","02.",null,null,null,"Bonos y Obligaciones","SI","A7",{"$f":"+Tabla2[[#This Row],[Nivel 1]]&Tabla2[[#This Row],[Nivel 2]]&Tabla2[[#This Row],[Nivel 3]]&Tabla2[[#This Row],[Nivel 4]]&Tabla2[[#This Row],[Nivel 5]]&Tabla2[[#This Row],[Nivel 6]]&Tabla2[[#This Row],[Nivel 7]]","v":"3.301.03.02."}]
[null,"3.","301.","03.","03.",null,null,null,"Otras Obligaciones a Largo Plazo ","SI","A7",{"$f":"+Tabla2[[#This Row],[Nivel 1]]&Tabla2[[#This Row],[Nivel 2]]&Tabla2[[#This Row],[Nivel 3]]&Tabla2[[#This Row],[Nivel 4]]&Tabla2[[#This Row],[Nivel 5]]&Tabla2[[#This Row],[Nivel 6]]&Tabla2[[#This Row],[Nivel 7]]","v":"3.301.03.03."}]
[null,"3.","301.","04.",null,null,null,null,"Participación Estatutaria","NO",null,{"$f":"+Tabla2[[#This Row],[Nivel 1]]&Tabla2[[#This Row],[Nivel 2]]&Tabla2[[#This Row],[Nivel 3]]&Tabla2[[#This Row],[Nivel 4]]&Tabla2[[#This Row],[Nivel 5]]&Tabla2[[#This Row],[Nivel 6]]&Tabla2[[#This Row],[Nivel 7]]","v":"3.301.04."}]
[null,"3.","301.","04.","01.",null,null,null,"Junta Directiva","SI",null,{"$f":"+Tabla2[[#This Row],[Nivel 1]]&Tabla2[[#This Row],[Nivel 2]]&Tabla2[[#This Row],[Nivel 3]]&Tabla2[[#This Row],[Nivel 4]]&Tabla2[[#This Row],[Nivel 5]]&Tabla2[[#This Row],[Nivel 6]]&Tabla2[[#This Row],[Nivel 7]]","v":"3.301.04.01."}]
[null,"3.","301.","04.","02.",null,null,null,"Ejecutivos","SI",null,{"$f":"+Tabla2[[#This Row],[Nivel 1]]&Tabla2[[#This Row],[Nivel 2]]&Tabla2[[#This Row],[Nivel 3]]&Tabla2[[#This Row],[Nivel 4]]&Tabla2[[#This Row],[Nivel 5]]&Tabla2[[#This Row],[Nivel 6]]&Tabla2[[#This Row],[Nivel 7]]","v":"3.301.04.02."}]
[null,"3.","301.","05.",null,null,null,null,"Cuentas por Pagar Accionistas","NO",null,{"$f":"+Tabla2[[#This Row],[Nivel 1]]&Tabla2[[#This Row],[Nivel 2]]&Tabla2[[#This Row],[Nivel 3]]&Tabla2[[#This Row],[Nivel 4]]&Tabla2[[#This Row],[Nivel 5]]&Tabla2[[#This Row],[Nivel 6]]&Tabla2[[#This Row],[Nivel 7]]","v":"3.301.05."}]
[null,"3.","301.","05.","01.",null,null,null,"Dividendos Decretados","SI",null,{"$f":"+Tabla2[[#This Row],[Nivel 1]]&Tabla2[[#This Row],[Nivel 2]]&Tabla2[[#This Row],[Nivel 3]]&Tabla2[[#This Row],[Nivel 4]]&Tabla2[[#This Row],[Nivel 5]]&Tabla2[[#This Row],[Nivel 6]]&Tabla2[[#This Row],[Nivel 7]]","v":"3.301.05.01."}]
[null,"3.","301.","05.","02.",null,null,null,"Otras cuentas por Pagar","SI","A8",{"$f":"+Tabla2[[#This Row],[Nivel 1]]&Tabla2[[#This Row],[Nivel 2]]&Tabla2[[#This Row],[Nivel 3]]&Tabla2[[#This Row],[Nivel 4]]&Tabla2[[#This Row],[Nivel 5]]&Tabla2[[#This Row],[Nivel 6]]&Tabla2[[#This Row],[Nivel 7]]","v":"3.301.05.02."}]
[null,"3.","301.","06.",null,null,null,null,"Gastos Acumulados por Pagar","NO",null,{"$f":"+Tabla2[[#This Row],[Nivel 1]]&Tabla2[[#This Row],[Nivel 2]]&Tabla2[[#This Row],[Nivel 3]]&Tabla2[[#This Row],[Nivel 4]]&Tabla2[[#This Row],[Nivel 5]]&Tabla2[[#This Row],[Nivel 6]]&Tabla2[[#This Row],[Nivel 7]]","v":"3.301.06."}]
[null,"3.","301.","06.","01.",null,null,null,"Proveedores de Bienes  y Servicios ","SI",null,{"$f":"+Tabla2[[#This Row],[Nivel 1]]&Tabla2[[#This Row],[Nivel 2]]&Tabla2[[#This Row],[Nivel 3]]&Tabla2[[#This Row],[Nivel 4]]&Tabla2[[#This Row],[Nivel 5]]&Tabla2[[#This Row],[Nivel 6]]&Tabla2[[#This Row],[Nivel 7]]","v":"3.301.06.01."}]
[null,"3.","301.","06.","02.",null,null,null,"Otros Gastos Acumulados","SI",null,{"$f":"+Tabla2[[#This Row],[Nivel 1]]&Tabla2[[#This Row],[Nivel 2]]&Tabla2[[#This Row],[Nivel 3]]&Tabla2[[#This Row],[Nivel 4]]&Tabla2[[#This Row],[Nivel 5]]&Tabla2[[#This Row],[Nivel 6]]&Tabla2[[#This Row],[Nivel 7]]","v":"3.301.06.02."}]
[null,"3.","301.","07.",null,null,null,null,"Gravámenes y Contribuciones por Pagar","NO",null,{"$f":"+Tabla2[[#This Row],[Nivel 1]]&Tabla2[[#This Row],[Nivel 2]]&Tabla2[[#This Row],[Nivel 3]]&Tabla2[[#This Row],[Nivel 4]]&Tabla2[[#This Row],[Nivel 5]]&Tabla2[[#This Row],[Nivel 6]]&Tabla2[[#This Row],[Nivel 7]]","v":"3.301.07."}]
[null,"3.","301.","07.","01.",null,null,null,"Gravámenes  por Pagar","NO",null,{"$f":"+Tabla2[[#This Row],[Nivel 1]]&Tabla2[[#This Row],[Nivel 2]]&Tabla2[[#This Row],[Nivel 3]]&Tabla2[[#This Row],[Nivel 4]]&Tabla2[[#This Row],[Nivel 5]]&Tabla2[[#This Row],[Nivel 6]]&Tabla2[[#This Row],[Nivel 7]]","v":"3.301.07.01."}]
[null,"3.","301.","07.","01.","01.",null,null,"Impuesto sobre la Renta","NO",null,{"$f":"+Tabla2[[#This Row],[Nivel 1]]&Tabla2[[#This Row],[Nivel 2]]&Tabla2[[#This Row],[Nivel 3]]&Tabla2[[#This Row],[Nivel 4]]&Tabla2[[#This Row],[Nivel 5]]&Tabla2[[#This Row],[Nivel 6]]&Tabla2[[#This Row],[Nivel 7]]","v":"3.301.07.01.01."}]
[null,"3.","301.","07.","01.","01.","01.",null,"Utilidad del Ejercicio","SI",null,{"$f":"+Tabla2[[#This Row],[Nivel 1]]&Tabla2[[#This Row],[Nivel 2]]&Tabla2[[#This Row],[Nivel 3]]&Tabla2[[#This Row],[Nivel 4]]&Tabla2[[#This Row],[Nivel 5]]&Tabla2[[#This Row],[Nivel 6]]&Tabla2[[#This Row],[Nivel 7]]","v":"3.301.07.01.01.01."}]
[null,"3.","301.","07.","01.","01.","02.",null,"Retenciones Junta Directiva","SI",null,{"$f":"+Tabla2[[#This Row],[Nivel 1]]&Tabla2[[#This Row],[Nivel 2]]&Tabla2[[#This Row],[Nivel 3]]&Tabla2[[#This Row],[Nivel 4]]&Tabla2[[#This Row],[Nivel 5]]&Tabla2[[#This Row],[Nivel 6]]&Tabla2[[#This Row],[Nivel 7]]","v":"3.301.07.01.01.02."}]
[null,"3.","301.","07.","01.","01.","03.",null,"Retenciones al Personal - Ejecutivos","SI",null,{"$f":"+Tabla2[[#This Row],[Nivel 1]]&Tabla2[[#This Row],[Nivel 2]]&Tabla2[[#This Row],[Nivel 3]]&Tabla2[[#This Row],[Nivel 4]]&Tabla2[[#This Row],[Nivel 5]]&Tabla2[[#This Row],[Nivel 6]]&Tabla2[[#This Row],[Nivel 7]]","v":"3.301.07.01.01.03."}]
[null,"3.","301.","07.","01.","01.","04.",null,"Retenciones al Personal - Empleados ","SI",null,{"$f":"+Tabla2[[#This Row],[Nivel 1]]&Tabla2[[#This Row],[Nivel 2]]&Tabla2[[#This Row],[Nivel 3]]&Tabla2[[#This Row],[Nivel 4]]&Tabla2[[#This Row],[Nivel 5]]&Tabla2[[#This Row],[Nivel 6]]&Tabla2[[#This Row],[Nivel 7]]","v":"3.301.07.01.01.04."}]
[null,"3.","301.","07.","01.","01.","05.",null,"Retenciones Varias del ISLR - Personas Naturales","SI",null,{"$f":"+Tabla2[[#This Row],[Nivel 1]]&Tabla2[[#This Row],[Nivel 2]]&Tabla2[[#This Row],[Nivel 3]]&Tabla2[[#This Row],[Nivel 4]]&Tabla2[[#This Row],[Nivel 5]]&Tabla2[[#This Row],[Nivel 6]]&Tabla2[[#This Row],[Nivel 7]]","v":"3.301.07.01.01.05."}]
[null,"3.","301.","07.","01.","01.","06.",null,"Retenciones Varias del ISLR - Personas Jurídicas","SI",null,{"$f":"+Tabla2[[#This Row],[Nivel 1]]&Tabla2[[#This Row],[Nivel 2]]&Tabla2[[#This Row],[Nivel 3]]&Tabla2[[#This Row],[Nivel 4]]&Tabla2[[#This Row],[Nivel 5]]&Tabla2[[#This Row],[Nivel 6]]&Tabla2[[#This Row],[Nivel 7]]","v":"3.301.07.01.01.06."}]
[null,"3.","301.","07.","01.","01.","07.",null,"Retenciones por Pagos al Exterior","SI",null,{"$f":"+Tabla2[[#This Row],[Nivel 1]]&Tabla2[[#This Row],[Nivel 2]]&Tabla2[[#This Row],[Nivel 3]]&Tabla2[[#This Row],[Nivel 4]]&Tabla2[[#This Row],[Nivel 5]]&Tabla2[[#This Row],[Nivel 6]]&Tabla2[[#This Row],[Nivel 7]]","v":"3.301.07.01.01.07."}]
[null,"3.","301.","07.","01.","01.","08.",null,"ISLR sobre Dividendos Decretados","SI",null,{"$f":"+Tabla2[[#This Row],[Nivel 1]]&Tabla2[[#This Row],[Nivel 2]]&Tabla2[[#This Row],[Nivel 3]]&Tabla2[[#This Row],[Nivel 4]]&Tabla2[[#This Row],[Nivel 5]]&Tabla2[[#This Row],[Nivel 6]]&Tabla2[[#This Row],[Nivel 7]]","v":"3.301.07.01.01.08."}]
[null,"3.","301.","07.","01.","01.","09.",null,"ISLR Diferido","SI",null,{"$f":"+Tabla2[[#This Row],[Nivel 1]]&Tabla2[[#This Row],[Nivel 2]]&Tabla2[[#This Row],[Nivel 3]]&Tabla2[[#This Row],[Nivel 4]]&Tabla2[[#This Row],[Nivel 5]]&Tabla2[[#This Row],[Nivel 6]]&Tabla2[[#This Row],[Nivel 7]]","v":"3.301.07.01.01.09."}]
[null,"3.","301.","07.","01.","02.",null,null,"Impuesto al Valor Agregado","NO",null,{"$f":"+Tabla2[[#This Row],[Nivel 1]]&Tabla2[[#This Row],[Nivel 2]]&Tabla2[[#This Row],[Nivel 3]]&Tabla2[[#This Row],[Nivel 4]]&Tabla2[[#This Row],[Nivel 5]]&Tabla2[[#This Row],[Nivel 6]]&Tabla2[[#This Row],[Nivel 7]]","v":"3.301.07.01.02."}]
[null,"3.","301.","07.","01.","02.","01.",null,"IVA - Retenido a Terceros sobre Ventas o Servicios Prestados (Débito Fiscal) ","SI",null,{"$f":"+Tabla2[[#This Row],[Nivel 1]]&Tabla2[[#This Row],[Nivel 2]]&Tabla2[[#This Row],[Nivel 3]]&Tabla2[[#This Row],[Nivel 4]]&Tabla2[[#This Row],[Nivel 5]]&Tabla2[[#This Row],[Nivel 6]]&Tabla2[[#This Row],[Nivel 7]]","v":"3.301.07.01.02.01."}]
[null,"3.","301.","07.","01.","03.",null,null,"Impuesto a las Grandes Transacciones Financieras","SI",null,{"$f":"+Tabla2[[#This Row],[Nivel 1]]&Tabla2[[#This Row],[Nivel 2]]&Tabla2[[#This Row],[Nivel 3]]&Tabla2[[#This Row],[Nivel 4]]&Tabla2[[#This Row],[Nivel 5]]&Tabla2[[#This Row],[Nivel 6]]&Tabla2[[#This Row],[Nivel 7]]","v":"3.301.07.01.03."}]
[null,"3.","301.","07.","01.","04.",null,null,"Impuesto a los Grandes Patrimonios","SI",null,{"$f":"+Tabla2[[#This Row],[Nivel 1]]&Tabla2[[#This Row],[Nivel 2]]&Tabla2[[#This Row],[Nivel 3]]&Tabla2[[#This Row],[Nivel 4]]&Tabla2[[#This Row],[Nivel 5]]&Tabla2[[#This Row],[Nivel 6]]&Tabla2[[#This Row],[Nivel 7]]","v":"3.301.07.01.04."}]
[null,"3.","301.","07.","01.","05.",null,null,"Otros Impuestos Nacionales","NO",null,{"$f":"+Tabla2[[#This Row],[Nivel 1]]&Tabla2[[#This Row],[Nivel 2]]&Tabla2[[#This Row],[Nivel 3]]&Tabla2[[#This Row],[Nivel 4]]&Tabla2[[#This Row],[Nivel 5]]&Tabla2[[#This Row],[Nivel 6]]&Tabla2[[#This Row],[Nivel 7]]","v":"3.301.07.01.05."}]
[null,"3.","301.","07.","01.","05.","01.",null,"Impuestos Municipales","NO",null,{"$f":"+Tabla2[[#This Row],[Nivel 1]]&Tabla2[[#This Row],[Nivel 2]]&Tabla2[[#This Row],[Nivel 3]]&Tabla2[[#This Row],[Nivel 4]]&Tabla2[[#This Row],[Nivel 5]]&Tabla2[[#This Row],[Nivel 6]]&Tabla2[[#This Row],[Nivel 7]]","v":"3.301.07.01.05.01."}]
[null,"3.","301.","07.","01.","05.","01.","01.","Patente de Industria y Comercio","SI",null,{"$f":"+Tabla2[[#This Row],[Nivel 1]]&Tabla2[[#This Row],[Nivel 2]]&Tabla2[[#This Row],[Nivel 3]]&Tabla2[[#This Row],[Nivel 4]]&Tabla2[[#This Row],[Nivel 5]]&Tabla2[[#This Row],[Nivel 6]]&Tabla2[[#This Row],[Nivel 7]]","v":"3.301.07.01.05.01.01."}]
[null,"3.","301.","07.","01.","05.","01.","02.","Impuesto Inmobiliario Urbano","SI",null,{"$f":"+Tabla2[[#This Row],[Nivel 1]]&Tabla2[[#This Row],[Nivel 2]]&Tabla2[[#This Row],[Nivel 3]]&Tabla2[[#This Row],[Nivel 4]]&Tabla2[[#This Row],[Nivel 5]]&Tabla2[[#This Row],[Nivel 6]]&Tabla2[[#This Row],[Nivel 7]]","v":"3.301.07.01.05.01.02."}]
[null,"3.","301.","07.","01.","05.","01.","03.","Impuesto sobre Publicidad y Propaganda","SI",null,{"$f":"+Tabla2[[#This Row],[Nivel 1]]&Tabla2[[#This Row],[Nivel 2]]&Tabla2[[#This Row],[Nivel 3]]&Tabla2[[#This Row],[Nivel 4]]&Tabla2[[#This Row],[Nivel 5]]&Tabla2[[#This Row],[Nivel 6]]&Tabla2[[#This Row],[Nivel 7]]","v":"3.301.07.01.05.01.03."}]
[null,"3.","301.","07.","01.","05.","01.","04.","Impuesto sobre Circulación de Vehículos","SI",null,{"$f":"+Tabla2[[#This Row],[Nivel 1]]&Tabla2[[#This Row],[Nivel 2]]&Tabla2[[#This Row],[Nivel 3]]&Tabla2[[#This Row],[Nivel 4]]&Tabla2[[#This Row],[Nivel 5]]&Tabla2[[#This Row],[Nivel 6]]&Tabla2[[#This Row],[Nivel 7]]","v":"3.301.07.01.05.01.04."}]
[null,"3.","301.","07.","01.","05.","01.","05.","Otros Impuestos","SI",null,{"$f":"+Tabla2[[#This Row],[Nivel 1]]&Tabla2[[#This Row],[Nivel 2]]&Tabla2[[#This Row],[Nivel 3]]&Tabla2[[#This Row],[Nivel 4]]&Tabla2[[#This Row],[Nivel 5]]&Tabla2[[#This Row],[Nivel 6]]&Tabla2[[#This Row],[Nivel 7]]","v":"3.301.07.01.05.01.05."}]
[null,"3.","301.","07.","02.",null,null,null,"Contribuciones por Pagar","NO",null,{"$f":"+Tabla2[[#This Row],[Nivel 1]]&Tabla2[[#This Row],[Nivel 2]]&Tabla2[[#This Row],[Nivel 3]]&Tabla2[[#This Row],[Nivel 4]]&Tabla2[[#This Row],[Nivel 5]]&Tabla2[[#This Row],[Nivel 6]]&Tabla2[[#This Row],[Nivel 7]]","v":"3.301.07.02."}]
[null,"3.","301.","07.","02.","01.",null,null,"Instituto Nacional de Capacitación y Educación Socialista (INCES) ","NO",null,{"$f":"+Tabla2[[#This Row],[Nivel 1]]&Tabla2[[#This Row],[Nivel 2]]&Tabla2[[#This Row],[Nivel 3]]&Tabla2[[#This Row],[Nivel 4]]&Tabla2[[#This Row],[Nivel 5]]&Tabla2[[#This Row],[Nivel 6]]&Tabla2[[#This Row],[Nivel 7]]","v":"3.301.07.02.01."}]
[null,"3.","301.","07.","02.","01.","01.",null,"Aporte - Patronal","SI",null,{"$f":"+Tabla2[[#This Row],[Nivel 1]]&Tabla2[[#This Row],[Nivel 2]]&Tabla2[[#This Row],[Nivel 3]]&Tabla2[[#This Row],[Nivel 4]]&Tabla2[[#This Row],[Nivel 5]]&Tabla2[[#This Row],[Nivel 6]]&Tabla2[[#This Row],[Nivel 7]]","v":"3.301.07.02.01.01."}]
[null,"3.","301.","07.","02.","01.","02.",null,"Aporte - Empleado ","SI",null,{"$f":"+Tabla2[[#This Row],[Nivel 1]]&Tabla2[[#This Row],[Nivel 2]]&Tabla2[[#This Row],[Nivel 3]]&Tabla2[[#This Row],[Nivel 4]]&Tabla2[[#This Row],[Nivel 5]]&Tabla2[[#This Row],[Nivel 6]]&Tabla2[[#This Row],[Nivel 7]]","v":"3.301.07.02.01.02."}]
[null,"3.","301.","07.","02.","02.",null,null,"Instituto Venezolano de los Seguros Sociales (IVSS) ","NO",null,{"$f":"+Tabla2[[#This Row],[Nivel 1]]&Tabla2[[#This Row],[Nivel 2]]&Tabla2[[#This Row],[Nivel 3]]&Tabla2[[#This Row],[Nivel 4]]&Tabla2[[#This Row],[Nivel 5]]&Tabla2[[#This Row],[Nivel 6]]&Tabla2[[#This Row],[Nivel 7]]","v":"3.301.07.02.02."}]
[null,"3.","301.","07.","02.","02.","01.",null,"Aporte - Patronal","SI",null,{"$f":"+Tabla2[[#This Row],[Nivel 1]]&Tabla2[[#This Row],[Nivel 2]]&Tabla2[[#This Row],[Nivel 3]]&Tabla2[[#This Row],[Nivel 4]]&Tabla2[[#This Row],[Nivel 5]]&Tabla2[[#This Row],[Nivel 6]]&Tabla2[[#This Row],[Nivel 7]]","v":"3.301.07.02.02.01."}]
[null,"3.","301.","07.","02.","02.","02.",null,"Aporte - Empleado ","SI",null,{"$f":"+Tabla2[[#This Row],[Nivel 1]]&Tabla2[[#This Row],[Nivel 2]]&Tabla2[[#This Row],[Nivel 3]]&Tabla2[[#This Row],[Nivel 4]]&Tabla2[[#This Row],[Nivel 5]]&Tabla2[[#This Row],[Nivel 6]]&Tabla2[[#This Row],[Nivel 7]]","v":"3.301.07.02.02.02."}]
[null,"3.","301.","07.","02.","03.",null,null,"Instituto Venezolano de los Seguros Sociales (IVSS) - Paro Forzoso ","NO",null,{"$f":"+Tabla2[[#This Row],[Nivel 1]]&Tabla2[[#This Row],[Nivel 2]]&Tabla2[[#This Row],[Nivel 3]]&Tabla2[[#This Row],[Nivel 4]]&Tabla2[[#This Row],[Nivel 5]]&Tabla2[[#This Row],[Nivel 6]]&Tabla2[[#This Row],[Nivel 7]]","v":"3.301.07.02.03."}]
[null,"3.","301.","07.","02.","03.","01.",null,"Aporte - Patronal","SI",null,{"$f":"+Tabla2[[#This Row],[Nivel 1]]&Tabla2[[#This Row],[Nivel 2]]&Tabla2[[#This Row],[Nivel 3]]&Tabla2[[#This Row],[Nivel 4]]&Tabla2[[#This Row],[Nivel 5]]&Tabla2[[#This Row],[Nivel 6]]&Tabla2[[#This Row],[Nivel 7]]","v":"3.301.07.02.03.01."}]
[null,"3.","301.","07.","02.","03.","02.",null,"Aporte - Empleado ","SI",null,{"$f":"+Tabla2[[#This Row],[Nivel 1]]&Tabla2[[#This Row],[Nivel 2]]&Tabla2[[#This Row],[Nivel 3]]&Tabla2[[#This Row],[Nivel 4]]&Tabla2[[#This Row],[Nivel 5]]&Tabla2[[#This Row],[Nivel 6]]&Tabla2[[#This Row],[Nivel 7]]","v":"3.301.07.02.03.02."}]
[null,"3.","301.","07.","02.","04.",null,null,"Fondo de Ahorro Obligatorio para la Vivienda (FAOV)","NO",null,{"$f":"+Tabla2[[#This Row],[Nivel 1]]&Tabla2[[#This Row],[Nivel 2]]&Tabla2[[#This Row],[Nivel 3]]&Tabla2[[#This Row],[Nivel 4]]&Tabla2[[#This Row],[Nivel 5]]&Tabla2[[#This Row],[Nivel 6]]&Tabla2[[#This Row],[Nivel 7]]","v":"3.301.07.02.04."}]
[null,"3.","301.","07.","02.","04.","01.",null,"Aporte - Patronal","SI",null,{"$f":"+Tabla2[[#This Row],[Nivel 1]]&Tabla2[[#This Row],[Nivel 2]]&Tabla2[[#This Row],[Nivel 3]]&Tabla2[[#This Row],[Nivel 4]]&Tabla2[[#This Row],[Nivel 5]]&Tabla2[[#This Row],[Nivel 6]]&Tabla2[[#This Row],[Nivel 7]]","v":"3.301.07.02.04.01."}]
[null,"3.","301.","07.","02.","04.","02.",null,"Aporte - Empleado ","SI",null,{"$f":"+Tabla2[[#This Row],[Nivel 1]]&Tabla2[[#This Row],[Nivel 2]]&Tabla2[[#This Row],[Nivel 3]]&Tabla2[[#This Row],[Nivel 4]]&Tabla2[[#This Row],[Nivel 5]]&Tabla2[[#This Row],[Nivel 6]]&Tabla2[[#This Row],[Nivel 7]]","v":"3.301.07.02.04.02."}]
[null,"3.","301.","07.","02.","05.",null,null,"Ley Orgánica de Ciencia, Tecnología é Innovación (LOCTI)","SI",null,{"$f":"+Tabla2[[#This Row],[Nivel 1]]&Tabla2[[#This Row],[Nivel 2]]&Tabla2[[#This Row],[Nivel 3]]&Tabla2[[#This Row],[Nivel 4]]&Tabla2[[#This Row],[Nivel 5]]&Tabla2[[#This Row],[Nivel 6]]&Tabla2[[#This Row],[Nivel 7]]","v":"3.301.07.02.05."}]
[null,"3.","301.","07.","02.","06.",null,null,"Decreto con Fuerza de Ley de los Cuerpos de Bomberos y Bomberas y Administración de Emergencias de Carácter Civil","SI",null,{"$f":"+Tabla2[[#This Row],[Nivel 1]]&Tabla2[[#This Row],[Nivel 2]]&Tabla2[[#This Row],[Nivel 3]]&Tabla2[[#This Row],[Nivel 4]]&Tabla2[[#This Row],[Nivel 5]]&Tabla2[[#This Row],[Nivel 6]]&Tabla2[[#This Row],[Nivel 7]]","v":"3.301.07.02.06."}]
[null,"3.","301.","07.","02.","07.",null,null,"Ley Orgánica de Drogas","SI",null,{"$f":"+Tabla2[[#This Row],[Nivel 1]]&Tabla2[[#This Row],[Nivel 2]]&Tabla2[[#This Row],[Nivel 3]]&Tabla2[[#This Row],[Nivel 4]]&Tabla2[[#This Row],[Nivel 5]]&Tabla2[[#This Row],[Nivel 6]]&Tabla2[[#This Row],[Nivel 7]]","v":"3.301.07.02.07."}]
[null,"3.","301.","07.","02.","08.",null,null,"Ley del Deporte","SI",null,{"$f":"+Tabla2[[#This Row],[Nivel 1]]&Tabla2[[#This Row],[Nivel 2]]&Tabla2[[#This Row],[Nivel 3]]&Tabla2[[#This Row],[Nivel 4]]&Tabla2[[#This Row],[Nivel 5]]&Tabla2[[#This Row],[Nivel 6]]&Tabla2[[#This Row],[Nivel 7]]","v":"3.301.07.02.08."}]
[null,"3.","301.","07.","02.","09.",null,null,"Ley de Gestión Integral de Riesgos Socio-Naturales y Tecnológicos","SI",null,{"$f":"+Tabla2[[#This Row],[Nivel 1]]&Tabla2[[#This Row],[Nivel 2]]&Tabla2[[#This Row],[Nivel 3]]&Tabla2[[#This Row],[Nivel 4]]&Tabla2[[#This Row],[Nivel 5]]&Tabla2[[#This Row],[Nivel 6]]&Tabla2[[#This Row],[Nivel 7]]","v":"3.301.07.02.09."}]
[null,"3.","301.","07.","02.","10.",null,null,"Otras Contribuciones","SI",null,{"$f":"+Tabla2[[#This Row],[Nivel 1]]&Tabla2[[#This Row],[Nivel 2]]&Tabla2[[#This Row],[Nivel 3]]&Tabla2[[#This Row],[Nivel 4]]&Tabla2[[#This Row],[Nivel 5]]&Tabla2[[#This Row],[Nivel 6]]&Tabla2[[#This Row],[Nivel 7]]","v":"3.301.07.02.10."}]
[null,"3.","302.",null,null,null,null,null,"CUENTAS DIVERSAS","NO",null,{"$f":"+Tabla2[[#This Row],[Nivel 1]]&Tabla2[[#This Row],[Nivel 2]]&Tabla2[[#This Row],[Nivel 3]]&Tabla2[[#This Row],[Nivel 4]]&Tabla2[[#This Row],[Nivel 5]]&Tabla2[[#This Row],[Nivel 6]]&Tabla2[[#This Row],[Nivel 7]]","v":"3.302."}]
[null,"3.","302.","01.",null,null,null,null,"Cuentas por Pagar","NO",null,{"$f":"+Tabla2[[#This Row],[Nivel 1]]&Tabla2[[#This Row],[Nivel 2]]&Tabla2[[#This Row],[Nivel 3]]&Tabla2[[#This Row],[Nivel 4]]&Tabla2[[#This Row],[Nivel 5]]&Tabla2[[#This Row],[Nivel 6]]&Tabla2[[#This Row],[Nivel 7]]","v":"3.302.01."}]
[null,"3.","302.","01.","01.",null,null,null,"Empresas Filiales, Afiliadas o Relacionadas","NO",null,{"$f":"+Tabla2[[#This Row],[Nivel 1]]&Tabla2[[#This Row],[Nivel 2]]&Tabla2[[#This Row],[Nivel 3]]&Tabla2[[#This Row],[Nivel 4]]&Tabla2[[#This Row],[Nivel 5]]&Tabla2[[#This Row],[Nivel 6]]&Tabla2[[#This Row],[Nivel 7]]","v":"3.302.01.01."}]
[null,"3.","302.","01.","01.","01.",null,null,"Empresas Filiales","SI",null,{"$f":"+Tabla2[[#This Row],[Nivel 1]]&Tabla2[[#This Row],[Nivel 2]]&Tabla2[[#This Row],[Nivel 3]]&Tabla2[[#This Row],[Nivel 4]]&Tabla2[[#This Row],[Nivel 5]]&Tabla2[[#This Row],[Nivel 6]]&Tabla2[[#This Row],[Nivel 7]]","v":"3.302.01.01.01."}]
[null,"3.","302.","01.","01.","02.",null,null,"Empresas Afiliadas","SI",null,{"$f":"+Tabla2[[#This Row],[Nivel 1]]&Tabla2[[#This Row],[Nivel 2]]&Tabla2[[#This Row],[Nivel 3]]&Tabla2[[#This Row],[Nivel 4]]&Tabla2[[#This Row],[Nivel 5]]&Tabla2[[#This Row],[Nivel 6]]&Tabla2[[#This Row],[Nivel 7]]","v":"3.302.01.01.02."}]
[null,"3.","302.","01.","01.","03.",null,null,"Empresas Relacionadas","SI",null,{"$f":"+Tabla2[[#This Row],[Nivel 1]]&Tabla2[[#This Row],[Nivel 2]]&Tabla2[[#This Row],[Nivel 3]]&Tabla2[[#This Row],[Nivel 4]]&Tabla2[[#This Row],[Nivel 5]]&Tabla2[[#This Row],[Nivel 6]]&Tabla2[[#This Row],[Nivel 7]]","v":"3.302.01.01.03."}]
[null,"3.","302.","01.","02.",null,null,null,"Proveedores de Bienes y Servicios","NO",null,{"$f":"+Tabla2[[#This Row],[Nivel 1]]&Tabla2[[#This Row],[Nivel 2]]&Tabla2[[#This Row],[Nivel 3]]&Tabla2[[#This Row],[Nivel 4]]&Tabla2[[#This Row],[Nivel 5]]&Tabla2[[#This Row],[Nivel 6]]&Tabla2[[#This Row],[Nivel 7]]","v":"3.302.01.02."}]
[null,"3.","302.","01.","03.",null,null,null,"Arrendamientos por Pagar","SI",null,{"$f":"+Tabla2[[#This Row],[Nivel 1]]&Tabla2[[#This Row],[Nivel 2]]&Tabla2[[#This Row],[Nivel 3]]&Tabla2[[#This Row],[Nivel 4]]&Tabla2[[#This Row],[Nivel 5]]&Tabla2[[#This Row],[Nivel 6]]&Tabla2[[#This Row],[Nivel 7]]","v":"3.302.01.03."}]
[null,"3.","302.","01.","04.",null,null,null,"Otras Cuentas por Pagar","SI",null,{"$f":"+Tabla2[[#This Row],[Nivel 1]]&Tabla2[[#This Row],[Nivel 2]]&Tabla2[[#This Row],[Nivel 3]]&Tabla2[[#This Row],[Nivel 4]]&Tabla2[[#This Row],[Nivel 5]]&Tabla2[[#This Row],[Nivel 6]]&Tabla2[[#This Row],[Nivel 7]]","v":"3.302.01.04."}]
[null,"3.","302.","02.",null,null,null,null,"Cuentas por Pagar al Personal","NO",null,{"$f":"+Tabla2[[#This Row],[Nivel 1]]&Tabla2[[#This Row],[Nivel 2]]&Tabla2[[#This Row],[Nivel 3]]&Tabla2[[#This Row],[Nivel 4]]&Tabla2[[#This Row],[Nivel 5]]&Tabla2[[#This Row],[Nivel 6]]&Tabla2[[#This Row],[Nivel 7]]","v":"3.302.02."}]
[null,"3.","302.","02.","01.",null,null,null,"Sueldos y Salarios","SI",null,{"$f":"+Tabla2[[#This Row],[Nivel 1]]&Tabla2[[#This Row],[Nivel 2]]&Tabla2[[#This Row],[Nivel 3]]&Tabla2[[#This Row],[Nivel 4]]&Tabla2[[#This Row],[Nivel 5]]&Tabla2[[#This Row],[Nivel 6]]&Tabla2[[#This Row],[Nivel 7]]","v":"3.302.02.01."}]
[null,"3.","302.","02.","02.",null,null,null,"Vacaciones","SI",null,{"$f":"+Tabla2[[#This Row],[Nivel 1]]&Tabla2[[#This Row],[Nivel 2]]&Tabla2[[#This Row],[Nivel 3]]&Tabla2[[#This Row],[Nivel 4]]&Tabla2[[#This Row],[Nivel 5]]&Tabla2[[#This Row],[Nivel 6]]&Tabla2[[#This Row],[Nivel 7]]","v":"3.302.02.02."}]
[null,"3.","302.","02.","03.",null,null,null,"Bono Vacacional","SI",null,{"$f":"+Tabla2[[#This Row],[Nivel 1]]&Tabla2[[#This Row],[Nivel 2]]&Tabla2[[#This Row],[Nivel 3]]&Tabla2[[#This Row],[Nivel 4]]&Tabla2[[#This Row],[Nivel 5]]&Tabla2[[#This Row],[Nivel 6]]&Tabla2[[#This Row],[Nivel 7]]","v":"3.302.02.03."}]
[null,"3.","302.","02.","04.",null,null,null,"Bonificaciones Especiales","SI",null,{"$f":"+Tabla2[[#This Row],[Nivel 1]]&Tabla2[[#This Row],[Nivel 2]]&Tabla2[[#This Row],[Nivel 3]]&Tabla2[[#This Row],[Nivel 4]]&Tabla2[[#This Row],[Nivel 5]]&Tabla2[[#This Row],[Nivel 6]]&Tabla2[[#This Row],[Nivel 7]]","v":"3.302.02.04."}]
[null,"3.","302.","02.","05.",null,null,null,"Utilidades o aguinaldos","SI",null,{"$f":"+Tabla2[[#This Row],[Nivel 1]]&Tabla2[[#This Row],[Nivel 2]]&Tabla2[[#This Row],[Nivel 3]]&Tabla2[[#This Row],[Nivel 4]]&Tabla2[[#This Row],[Nivel 5]]&Tabla2[[#This Row],[Nivel 6]]&Tabla2[[#This Row],[Nivel 7]]","v":"3.302.02.05."}]
[null,"3.","302.","02.","06.",null,null,null,"Prestaciones Sociales","SI",null,{"$f":"+Tabla2[[#This Row],[Nivel 1]]&Tabla2[[#This Row],[Nivel 2]]&Tabla2[[#This Row],[Nivel 3]]&Tabla2[[#This Row],[Nivel 4]]&Tabla2[[#This Row],[Nivel 5]]&Tabla2[[#This Row],[Nivel 6]]&Tabla2[[#This Row],[Nivel 7]]","v":"3.302.02.06."}]
[null,"3.","302.","02.","07.",null,null,null,"Intereses Sobre Prestaciones Sociales","SI",null,{"$f":"+Tabla2[[#This Row],[Nivel 1]]&Tabla2[[#This Row],[Nivel 2]]&Tabla2[[#This Row],[Nivel 3]]&Tabla2[[#This Row],[Nivel 4]]&Tabla2[[#This Row],[Nivel 5]]&Tabla2[[#This Row],[Nivel 6]]&Tabla2[[#This Row],[Nivel 7]]","v":"3.302.02.07."}]
[null,"3.","302.","02.","08.",null,null,null,"Otras Cuentas por Pagar al Personal","SI",null,{"$f":"+Tabla2[[#This Row],[Nivel 1]]&Tabla2[[#This Row],[Nivel 2]]&Tabla2[[#This Row],[Nivel 3]]&Tabla2[[#This Row],[Nivel 4]]&Tabla2[[#This Row],[Nivel 5]]&Tabla2[[#This Row],[Nivel 6]]&Tabla2[[#This Row],[Nivel 7]]","v":"3.302.02.08."}]
[null,"3.","303.",null,null,null,null,null,"CRÉDITOS DIFERIDOS","NO",null,{"$f":"+Tabla2[[#This Row],[Nivel 1]]&Tabla2[[#This Row],[Nivel 2]]&Tabla2[[#This Row],[Nivel 3]]&Tabla2[[#This Row],[Nivel 4]]&Tabla2[[#This Row],[Nivel 5]]&Tabla2[[#This Row],[Nivel 6]]&Tabla2[[#This Row],[Nivel 7]]","v":"3.303."}]
[null,"3.","303.","01.",null,null,null,null,"Descuentos en Adquisición de Títulos Valores","NO",null,{"$f":"+Tabla2[[#This Row],[Nivel 1]]&Tabla2[[#This Row],[Nivel 2]]&Tabla2[[#This Row],[Nivel 3]]&Tabla2[[#This Row],[Nivel 4]]&Tabla2[[#This Row],[Nivel 5]]&Tabla2[[#This Row],[Nivel 6]]&Tabla2[[#This Row],[Nivel 7]]","v":"3.303.01."}]
[null,"3.","303.","01.","01.",null,null,null,"Valores Públicos","NO",null,{"$f":"+Tabla2[[#This Row],[Nivel 1]]&Tabla2[[#This Row],[Nivel 2]]&Tabla2[[#This Row],[Nivel 3]]&Tabla2[[#This Row],[Nivel 4]]&Tabla2[[#This Row],[Nivel 5]]&Tabla2[[#This Row],[Nivel 6]]&Tabla2[[#This Row],[Nivel 7]]","v":"3.303.01.01."}]
[null,"3.","303.","01.","01.","01.",null,null,"Emitidos o Garantizados por la República","SI",null,{"$f":"+Tabla2[[#This Row],[Nivel 1]]&Tabla2[[#This Row],[Nivel 2]]&Tabla2[[#This Row],[Nivel 3]]&Tabla2[[#This Row],[Nivel 4]]&Tabla2[[#This Row],[Nivel 5]]&Tabla2[[#This Row],[Nivel 6]]&Tabla2[[#This Row],[Nivel 7]]","v":"3.303.01.01.01."}]
[null,"3.","303.","01.","01.","02.",null,null,"Emitidos por Otros Sujetos de Derecho Público Nacional","SI",null,{"$f":"+Tabla2[[#This Row],[Nivel 1]]&Tabla2[[#This Row],[Nivel 2]]&Tabla2[[#This Row],[Nivel 3]]&Tabla2[[#This Row],[Nivel 4]]&Tabla2[[#This Row],[Nivel 5]]&Tabla2[[#This Row],[Nivel 6]]&Tabla2[[#This Row],[Nivel 7]]","v":"3.303.01.01.02."}]
[null,"3.","303.","01.","01.","03.",null,null,"Emitidos por Empresas con Participación de la República","SI",null,{"$f":"+Tabla2[[#This Row],[Nivel 1]]&Tabla2[[#This Row],[Nivel 2]]&Tabla2[[#This Row],[Nivel 3]]&Tabla2[[#This Row],[Nivel 4]]&Tabla2[[#This Row],[Nivel 5]]&Tabla2[[#This Row],[Nivel 6]]&Tabla2[[#This Row],[Nivel 7]]","v":"3.303.01.01.03."}]
[null,"3.","303.","01.","01.","04.",null,null,"Emitidos por Instituciones con Participación de la República","SI",null,{"$f":"+Tabla2[[#This Row],[Nivel 1]]&Tabla2[[#This Row],[Nivel 2]]&Tabla2[[#This Row],[Nivel 3]]&Tabla2[[#This Row],[Nivel 4]]&Tabla2[[#This Row],[Nivel 5]]&Tabla2[[#This Row],[Nivel 6]]&Tabla2[[#This Row],[Nivel 7]]","v":"3.303.01.01.04."}]
[null,"3.","303.","01.","02.",null,null,null,"Participación en Fondos de Inversión","NO",null,{"$f":"+Tabla2[[#This Row],[Nivel 1]]&Tabla2[[#This Row],[Nivel 2]]&Tabla2[[#This Row],[Nivel 3]]&Tabla2[[#This Row],[Nivel 4]]&Tabla2[[#This Row],[Nivel 5]]&Tabla2[[#This Row],[Nivel 6]]&Tabla2[[#This Row],[Nivel 7]]","v":"3.303.01.02."}]
[null,"3.","303.","01.","02.","01.",null,null,"Renta Fija","SI",null,{"$f":"+Tabla2[[#This Row],[Nivel 1]]&Tabla2[[#This Row],[Nivel 2]]&Tabla2[[#This Row],[Nivel 3]]&Tabla2[[#This Row],[Nivel 4]]&Tabla2[[#This Row],[Nivel 5]]&Tabla2[[#This Row],[Nivel 6]]&Tabla2[[#This Row],[Nivel 7]]","v":"3.303.01.02.01."}]
[null,"3.","303.","01.","02.","02.",null,null,"Renta Variable","SI",null,{"$f":"+Tabla2[[#This Row],[Nivel 1]]&Tabla2[[#This Row],[Nivel 2]]&Tabla2[[#This Row],[Nivel 3]]&Tabla2[[#This Row],[Nivel 4]]&Tabla2[[#This Row],[Nivel 5]]&Tabla2[[#This Row],[Nivel 6]]&Tabla2[[#This Row],[Nivel 7]]","v":"3.303.01.02.02."}]
[null,"3.","303.","01.","03.",null,null,null,"Valores Privados","NO",null,{"$f":"+Tabla2[[#This Row],[Nivel 1]]&Tabla2[[#This Row],[Nivel 2]]&Tabla2[[#This Row],[Nivel 3]]&Tabla2[[#This Row],[Nivel 4]]&Tabla2[[#This Row],[Nivel 5]]&Tabla2[[#This Row],[Nivel 6]]&Tabla2[[#This Row],[Nivel 7]]","v":"3.303.01.03."}]
[null,"3.","303.","01.","03.","01.",null,null,"Acciones de Sociedades Anónimas","NO",null,{"$f":"+Tabla2[[#This Row],[Nivel 1]]&Tabla2[[#This Row],[Nivel 2]]&Tabla2[[#This Row],[Nivel 3]]&Tabla2[[#This Row],[Nivel 4]]&Tabla2[[#This Row],[Nivel 5]]&Tabla2[[#This Row],[Nivel 6]]&Tabla2[[#This Row],[Nivel 7]]","v":"3.303.01.03.01."}]
[null,"3.","303.","01.","03.","01.","01.",null,"Empresas de Seguros o Reaseguros","SI",null,{"$f":"+Tabla2[[#This Row],[Nivel 1]]&Tabla2[[#This Row],[Nivel 2]]&Tabla2[[#This Row],[Nivel 3]]&Tabla2[[#This Row],[Nivel 4]]&Tabla2[[#This Row],[Nivel 5]]&Tabla2[[#This Row],[Nivel 6]]&Tabla2[[#This Row],[Nivel 7]]","v":"3.303.01.03.01.01."}]
[null,"3.","303.","01.","03.","01.","02.",null,"Sociedades de Corretaje de Seguros, de Reaseguros o de Valores","SI",null,{"$f":"+Tabla2[[#This Row],[Nivel 1]]&Tabla2[[#This Row],[Nivel 2]]&Tabla2[[#This Row],[Nivel 3]]&Tabla2[[#This Row],[Nivel 4]]&Tabla2[[#This Row],[Nivel 5]]&Tabla2[[#This Row],[Nivel 6]]&Tabla2[[#This Row],[Nivel 7]]","v":"3.303.01.03.01.02."}]
[null,"3.","303.","01.","03.","01.","03.",null,"Bancos y Otras Instituciones Financieras","SI",null,{"$f":"+Tabla2[[#This Row],[Nivel 1]]&Tabla2[[#This Row],[Nivel 2]]&Tabla2[[#This Row],[Nivel 3]]&Tabla2[[#This Row],[Nivel 4]]&Tabla2[[#This Row],[Nivel 5]]&Tabla2[[#This Row],[Nivel 6]]&Tabla2[[#This Row],[Nivel 7]]","v":"3.303.01.03.01.03."}]
[null,"3.","303.","01.","03.","01.","04.",null,"Sociedades Industriales y Comerciales","SI",null,{"$f":"+Tabla2[[#This Row],[Nivel 1]]&Tabla2[[#This Row],[Nivel 2]]&Tabla2[[#This Row],[Nivel 3]]&Tabla2[[#This Row],[Nivel 4]]&Tabla2[[#This Row],[Nivel 5]]&Tabla2[[#This Row],[Nivel 6]]&Tabla2[[#This Row],[Nivel 7]]","v":"3.303.01.03.01.04."}]
[null,"3.","303.","01.","03.","01.","05.",null,"Sociedades Civiles","SI",null,{"$f":"+Tabla2[[#This Row],[Nivel 1]]&Tabla2[[#This Row],[Nivel 2]]&Tabla2[[#This Row],[Nivel 3]]&Tabla2[[#This Row],[Nivel 4]]&Tabla2[[#This Row],[Nivel 5]]&Tabla2[[#This Row],[Nivel 6]]&Tabla2[[#This Row],[Nivel 7]]","v":"3.303.01.03.01.05."}]
[null,"3.","303.","01.","03.","01.","06.",null,"Empresas Filiales, Afiliadas y Relacionadas","SI",null,{"$f":"+Tabla2[[#This Row],[Nivel 1]]&Tabla2[[#This Row],[Nivel 2]]&Tabla2[[#This Row],[Nivel 3]]&Tabla2[[#This Row],[Nivel 4]]&Tabla2[[#This Row],[Nivel 5]]&Tabla2[[#This Row],[Nivel 6]]&Tabla2[[#This Row],[Nivel 7]]","v":"3.303.01.03.01.06."}]
[null,"3.","303.","01.","03.","01.","07.",null,"Otras Sociedades Anónimas","SI",null,{"$f":"+Tabla2[[#This Row],[Nivel 1]]&Tabla2[[#This Row],[Nivel 2]]&Tabla2[[#This Row],[Nivel 3]]&Tabla2[[#This Row],[Nivel 4]]&Tabla2[[#This Row],[Nivel 5]]&Tabla2[[#This Row],[Nivel 6]]&Tabla2[[#This Row],[Nivel 7]]","v":"3.303.01.03.01.07."}]
[null,"3.","303.","01.","03.","02.",null,null,"Bonos de Sociedades Anónimas","SI",null,{"$f":"+Tabla2[[#This Row],[Nivel 1]]&Tabla2[[#This Row],[Nivel 2]]&Tabla2[[#This Row],[Nivel 3]]&Tabla2[[#This Row],[Nivel 4]]&Tabla2[[#This Row],[Nivel 5]]&Tabla2[[#This Row],[Nivel 6]]&Tabla2[[#This Row],[Nivel 7]]","v":"3.303.01.03.02."}]
[null,"3.","303.","01.","03.","03.",null,null,"Otras Inversiones emitidas por el Sector Privado.","SI",null,{"$f":"+Tabla2[[#This Row],[Nivel 1]]&Tabla2[[#This Row],[Nivel 2]]&Tabla2[[#This Row],[Nivel 3]]&Tabla2[[#This Row],[Nivel 4]]&Tabla2[[#This Row],[Nivel 5]]&Tabla2[[#This Row],[Nivel 6]]&Tabla2[[#This Row],[Nivel 7]]","v":"3.303.01.03.03."}]
[null,"3.","303.","01.","04.",null,null,null,"Activos en el Extranjero","SI",null,{"$f":"+Tabla2[[#This Row],[Nivel 1]]&Tabla2[[#This Row],[Nivel 2]]&Tabla2[[#This Row],[Nivel 3]]&Tabla2[[#This Row],[Nivel 4]]&Tabla2[[#This Row],[Nivel 5]]&Tabla2[[#This Row],[Nivel 6]]&Tabla2[[#This Row],[Nivel 7]]","v":"3.303.01.04."}]
[null,"3.","303.","02.",null,null,null,null,"Utilidad No Realizada en Venta de Bienes Inmuebles","NO",null,{"$f":"+Tabla2[[#This Row],[Nivel 1]]&Tabla2[[#This Row],[Nivel 2]]&Tabla2[[#This Row],[Nivel 3]]&Tabla2[[#This Row],[Nivel 4]]&Tabla2[[#This Row],[Nivel 5]]&Tabla2[[#This Row],[Nivel 6]]&Tabla2[[#This Row],[Nivel 7]]","v":"3.303.02."}]
[null,"3.","303.","02.","01.",null,null,null,"Terrenos","SI",null,{"$f":"+Tabla2[[#This Row],[Nivel 1]]&Tabla2[[#This Row],[Nivel 2]]&Tabla2[[#This Row],[Nivel 3]]&Tabla2[[#This Row],[Nivel 4]]&Tabla2[[#This Row],[Nivel 5]]&Tabla2[[#This Row],[Nivel 6]]&Tabla2[[#This Row],[Nivel 7]]","v":"3.303.02.01."}]
[null,"3.","303.","02.","02.",null,null,null,"Inmuebles Edificados","SI",null,{"$f":"+Tabla2[[#This Row],[Nivel 1]]&Tabla2[[#This Row],[Nivel 2]]&Tabla2[[#This Row],[Nivel 3]]&Tabla2[[#This Row],[Nivel 4]]&Tabla2[[#This Row],[Nivel 5]]&Tabla2[[#This Row],[Nivel 6]]&Tabla2[[#This Row],[Nivel 7]]","v":"3.303.02.02."}]
[null,"3.","303.","03.",null,null,null,null,"Fluctuación Cambiaria","NO",null,{"$f":"+Tabla2[[#This Row],[Nivel 1]]&Tabla2[[#This Row],[Nivel 2]]&Tabla2[[#This Row],[Nivel 3]]&Tabla2[[#This Row],[Nivel 4]]&Tabla2[[#This Row],[Nivel 5]]&Tabla2[[#This Row],[Nivel 6]]&Tabla2[[#This Row],[Nivel 7]]","v":"3.303.03."}]
[null,"3.","303.","03.","01.",null,null,null,"Sobre Activos","NO",null,{"$f":"+Tabla2[[#This Row],[Nivel 1]]&Tabla2[[#This Row],[Nivel 2]]&Tabla2[[#This Row],[Nivel 3]]&Tabla2[[#This Row],[Nivel 4]]&Tabla2[[#This Row],[Nivel 5]]&Tabla2[[#This Row],[Nivel 6]]&Tabla2[[#This Row],[Nivel 7]]","v":"3.303.03.01."}]
[null,"3.","303.","03.","01.","01.",null,null,"Valores Públicos","NO",null,{"$f":"+Tabla2[[#This Row],[Nivel 1]]&Tabla2[[#This Row],[Nivel 2]]&Tabla2[[#This Row],[Nivel 3]]&Tabla2[[#This Row],[Nivel 4]]&Tabla2[[#This Row],[Nivel 5]]&Tabla2[[#This Row],[Nivel 6]]&Tabla2[[#This Row],[Nivel 7]]","v":"3.303.03.01.01."}]
[null,"3.","303.","03.","01.","01.","01.",null,"Emitidos o Garantizados por la República","SI",null,{"$f":"+Tabla2[[#This Row],[Nivel 1]]&Tabla2[[#This Row],[Nivel 2]]&Tabla2[[#This Row],[Nivel 3]]&Tabla2[[#This Row],[Nivel 4]]&Tabla2[[#This Row],[Nivel 5]]&Tabla2[[#This Row],[Nivel 6]]&Tabla2[[#This Row],[Nivel 7]]","v":"3.303.03.01.01.01."}]
[null,"3.","303.","03.","01.","01.","02.",null,"Emitidos por Otros Sujetos de Derecho Público Nacional","SI",null,{"$f":"+Tabla2[[#This Row],[Nivel 1]]&Tabla2[[#This Row],[Nivel 2]]&Tabla2[[#This Row],[Nivel 3]]&Tabla2[[#This Row],[Nivel 4]]&Tabla2[[#This Row],[Nivel 5]]&Tabla2[[#This Row],[Nivel 6]]&Tabla2[[#This Row],[Nivel 7]]","v":"3.303.03.01.01.02."}]
[null,"3.","303.","03.","01.","01.","03.",null,"Emitidos por Empresas con Participación de la República","SI",null,{"$f":"+Tabla2[[#This Row],[Nivel 1]]&Tabla2[[#This Row],[Nivel 2]]&Tabla2[[#This Row],[Nivel 3]]&Tabla2[[#This Row],[Nivel 4]]&Tabla2[[#This Row],[Nivel 5]]&Tabla2[[#This Row],[Nivel 6]]&Tabla2[[#This Row],[Nivel 7]]","v":"3.303.03.01.01.03."}]
[null,"3.","303.","03.","01.","01.","04.",null,"Emitidos por Instituciones con Participación de la República","SI",null,{"$f":"+Tabla2[[#This Row],[Nivel 1]]&Tabla2[[#This Row],[Nivel 2]]&Tabla2[[#This Row],[Nivel 3]]&Tabla2[[#This Row],[Nivel 4]]&Tabla2[[#This Row],[Nivel 5]]&Tabla2[[#This Row],[Nivel 6]]&Tabla2[[#This Row],[Nivel 7]]","v":"3.303.03.01.01.04."}]
[null,"3.","303.","03.","01.","02.",null,null,"Participación en Fondos de Inversión","NO",null,{"$f":"+Tabla2[[#This Row],[Nivel 1]]&Tabla2[[#This Row],[Nivel 2]]&Tabla2[[#This Row],[Nivel 3]]&Tabla2[[#This Row],[Nivel 4]]&Tabla2[[#This Row],[Nivel 5]]&Tabla2[[#This Row],[Nivel 6]]&Tabla2[[#This Row],[Nivel 7]]","v":"3.303.03.01.02."}]
[null,"3.","303.","03.","01.","02.","01.",null,"Renta Fija","SI",null,{"$f":"+Tabla2[[#This Row],[Nivel 1]]&Tabla2[[#This Row],[Nivel 2]]&Tabla2[[#This Row],[Nivel 3]]&Tabla2[[#This Row],[Nivel 4]]&Tabla2[[#This Row],[Nivel 5]]&Tabla2[[#This Row],[Nivel 6]]&Tabla2[[#This Row],[Nivel 7]]","v":"3.303.03.01.02.01."}]
[null,"3.","303.","03.","01.","02.","02.",null,"Renta Variable","SI",null,{"$f":"+Tabla2[[#This Row],[Nivel 1]]&Tabla2[[#This Row],[Nivel 2]]&Tabla2[[#This Row],[Nivel 3]]&Tabla2[[#This Row],[Nivel 4]]&Tabla2[[#This Row],[Nivel 5]]&Tabla2[[#This Row],[Nivel 6]]&Tabla2[[#This Row],[Nivel 7]]","v":"3.303.03.01.02.02."}]
[null,"3.","303.","03.","01.","03.",null,null,"Participación Fondos de Inversión Inmobiliarios","SI",null,{"$f":"+Tabla2[[#This Row],[Nivel 1]]&Tabla2[[#This Row],[Nivel 2]]&Tabla2[[#This Row],[Nivel 3]]&Tabla2[[#This Row],[Nivel 4]]&Tabla2[[#This Row],[Nivel 5]]&Tabla2[[#This Row],[Nivel 6]]&Tabla2[[#This Row],[Nivel 7]]","v":"3.303.03.01.03."}]
[null,"3.","303.","03.","01.","04.",null,null,"Valores Privados","NO",null,{"$f":"+Tabla2[[#This Row],[Nivel 1]]&Tabla2[[#This Row],[Nivel 2]]&Tabla2[[#This Row],[Nivel 3]]&Tabla2[[#This Row],[Nivel 4]]&Tabla2[[#This Row],[Nivel 5]]&Tabla2[[#This Row],[Nivel 6]]&Tabla2[[#This Row],[Nivel 7]]","v":"3.303.03.01.04."}]
[null,"3.","303.","03.","01.","04.","01.",null,"Acciones de Sociedades Anónimas","NO",null,{"$f":"+Tabla2[[#This Row],[Nivel 1]]&Tabla2[[#This Row],[Nivel 2]]&Tabla2[[#This Row],[Nivel 3]]&Tabla2[[#This Row],[Nivel 4]]&Tabla2[[#This Row],[Nivel 5]]&Tabla2[[#This Row],[Nivel 6]]&Tabla2[[#This Row],[Nivel 7]]","v":"3.303.03.01.04.01."}]
[null,"3.","303.","03.","01.","04.","01.","01.","Empresas de Seguros o Reaseguros","SI",null,{"$f":"+Tabla2[[#This Row],[Nivel 1]]&Tabla2[[#This Row],[Nivel 2]]&Tabla2[[#This Row],[Nivel 3]]&Tabla2[[#This Row],[Nivel 4]]&Tabla2[[#This Row],[Nivel 5]]&Tabla2[[#This Row],[Nivel 6]]&Tabla2[[#This Row],[Nivel 7]]","v":"3.303.03.01.04.01.01."}]
[null,"3.","303.","03.","01.","04.","01.","02.","Sociedades de Corretaje de Seguros, de Reaseguros o de Valores","SI",null,{"$f":"+Tabla2[[#This Row],[Nivel 1]]&Tabla2[[#This Row],[Nivel 2]]&Tabla2[[#This Row],[Nivel 3]]&Tabla2[[#This Row],[Nivel 4]]&Tabla2[[#This Row],[Nivel 5]]&Tabla2[[#This Row],[Nivel 6]]&Tabla2[[#This Row],[Nivel 7]]","v":"3.303.03.01.04.01.02."}]
[null,"3.","303.","03.","01.","04.","01.","03.","Bancos y Otras Instituciones Financieras","SI",null,{"$f":"+Tabla2[[#This Row],[Nivel 1]]&Tabla2[[#This Row],[Nivel 2]]&Tabla2[[#This Row],[Nivel 3]]&Tabla2[[#This Row],[Nivel 4]]&Tabla2[[#This Row],[Nivel 5]]&Tabla2[[#This Row],[Nivel 6]]&Tabla2[[#This Row],[Nivel 7]]","v":"3.303.03.01.04.01.03."}]
[null,"3.","303.","03.","01.","04.","01.","04.","Sociedades Industriales y Comerciales","SI",null,{"$f":"+Tabla2[[#This Row],[Nivel 1]]&Tabla2[[#This Row],[Nivel 2]]&Tabla2[[#This Row],[Nivel 3]]&Tabla2[[#This Row],[Nivel 4]]&Tabla2[[#This Row],[Nivel 5]]&Tabla2[[#This Row],[Nivel 6]]&Tabla2[[#This Row],[Nivel 7]]","v":"3.303.03.01.04.01.04."}]
[null,"3.","303.","03.","01.","04.","01.","05.","Sociedades Civiles","SI",null,{"$f":"+Tabla2[[#This Row],[Nivel 1]]&Tabla2[[#This Row],[Nivel 2]]&Tabla2[[#This Row],[Nivel 3]]&Tabla2[[#This Row],[Nivel 4]]&Tabla2[[#This Row],[Nivel 5]]&Tabla2[[#This Row],[Nivel 6]]&Tabla2[[#This Row],[Nivel 7]]","v":"3.303.03.01.04.01.05."}]
[null,"3.","303.","03.","01.","04.","01.","06.","Empresas Filiales, Afiliadas y Relacionadas","SI",null,{"$f":"+Tabla2[[#This Row],[Nivel 1]]&Tabla2[[#This Row],[Nivel 2]]&Tabla2[[#This Row],[Nivel 3]]&Tabla2[[#This Row],[Nivel 4]]&Tabla2[[#This Row],[Nivel 5]]&Tabla2[[#This Row],[Nivel 6]]&Tabla2[[#This Row],[Nivel 7]]","v":"3.303.03.01.04.01.06."}]
[null,"3.","303.","03.","01.","04.","01.","07.","Otras Sociedades Anónimas","SI",null,{"$f":"+Tabla2[[#This Row],[Nivel 1]]&Tabla2[[#This Row],[Nivel 2]]&Tabla2[[#This Row],[Nivel 3]]&Tabla2[[#This Row],[Nivel 4]]&Tabla2[[#This Row],[Nivel 5]]&Tabla2[[#This Row],[Nivel 6]]&Tabla2[[#This Row],[Nivel 7]]","v":"3.303.03.01.04.01.07."}]
[null,"3.","303.","03.","01.","04.","02.",null,"Bonos de Sociedades Anónimas","SI",null,{"$f":"+Tabla2[[#This Row],[Nivel 1]]&Tabla2[[#This Row],[Nivel 2]]&Tabla2[[#This Row],[Nivel 3]]&Tabla2[[#This Row],[Nivel 4]]&Tabla2[[#This Row],[Nivel 5]]&Tabla2[[#This Row],[Nivel 6]]&Tabla2[[#This Row],[Nivel 7]]","v":"3.303.03.01.04.02."}]
[null,"3.","303.","03.","01.","04.","03.",null,"Otras Inversiones emitidas por el Sector Privado.","SI",null,{"$f":"+Tabla2[[#This Row],[Nivel 1]]&Tabla2[[#This Row],[Nivel 2]]&Tabla2[[#This Row],[Nivel 3]]&Tabla2[[#This Row],[Nivel 4]]&Tabla2[[#This Row],[Nivel 5]]&Tabla2[[#This Row],[Nivel 6]]&Tabla2[[#This Row],[Nivel 7]]","v":"3.303.03.01.04.03."}]
[null,"3.","303.","03.","01.","05.",null,null,"Activos en el Extranjero","NO",null,{"$f":"+Tabla2[[#This Row],[Nivel 1]]&Tabla2[[#This Row],[Nivel 2]]&Tabla2[[#This Row],[Nivel 3]]&Tabla2[[#This Row],[Nivel 4]]&Tabla2[[#This Row],[Nivel 5]]&Tabla2[[#This Row],[Nivel 6]]&Tabla2[[#This Row],[Nivel 7]]","v":"3.303.03.01.05."}]
[null,"3.","303.","03.","01.","05.","01.",null,"Bancos  ","SI",null,{"$f":"+Tabla2[[#This Row],[Nivel 1]]&Tabla2[[#This Row],[Nivel 2]]&Tabla2[[#This Row],[Nivel 3]]&Tabla2[[#This Row],[Nivel 4]]&Tabla2[[#This Row],[Nivel 5]]&Tabla2[[#This Row],[Nivel 6]]&Tabla2[[#This Row],[Nivel 7]]","v":"3.303.03.01.05.01."}]
[null,"3.","303.","03.","01.","05.","02.",null,"Titulos Valores","SI",null,{"$f":"+Tabla2[[#This Row],[Nivel 1]]&Tabla2[[#This Row],[Nivel 2]]&Tabla2[[#This Row],[Nivel 3]]&Tabla2[[#This Row],[Nivel 4]]&Tabla2[[#This Row],[Nivel 5]]&Tabla2[[#This Row],[Nivel 6]]&Tabla2[[#This Row],[Nivel 7]]","v":"3.303.03.01.05.02."}]
[null,"3.","303.","03.","01.","05.","03.",null,"Inmuebles ","SI",null,{"$f":"+Tabla2[[#This Row],[Nivel 1]]&Tabla2[[#This Row],[Nivel 2]]&Tabla2[[#This Row],[Nivel 3]]&Tabla2[[#This Row],[Nivel 4]]&Tabla2[[#This Row],[Nivel 5]]&Tabla2[[#This Row],[Nivel 6]]&Tabla2[[#This Row],[Nivel 7]]","v":"3.303.03.01.05.03."}]
[null,"3.","303.","03.","01.","05.","04.",null,"Otras Inversiones ","SI",null,{"$f":"+Tabla2[[#This Row],[Nivel 1]]&Tabla2[[#This Row],[Nivel 2]]&Tabla2[[#This Row],[Nivel 3]]&Tabla2[[#This Row],[Nivel 4]]&Tabla2[[#This Row],[Nivel 5]]&Tabla2[[#This Row],[Nivel 6]]&Tabla2[[#This Row],[Nivel 7]]","v":"3.303.03.01.05.04."}]
[null,"3.","303.","04.",null,null,null,null,"Operaciones en Proceso","NO",null,{"$f":"+Tabla2[[#This Row],[Nivel 1]]&Tabla2[[#This Row],[Nivel 2]]&Tabla2[[#This Row],[Nivel 3]]&Tabla2[[#This Row],[Nivel 4]]&Tabla2[[#This Row],[Nivel 5]]&Tabla2[[#This Row],[Nivel 6]]&Tabla2[[#This Row],[Nivel 7]]","v":"3.303.04."}]
[null,"3.","303.","04.","01.",null,null,null,"Operaciones Bancarias","SI",null,{"$f":"+Tabla2[[#This Row],[Nivel 1]]&Tabla2[[#This Row],[Nivel 2]]&Tabla2[[#This Row],[Nivel 3]]&Tabla2[[#This Row],[Nivel 4]]&Tabla2[[#This Row],[Nivel 5]]&Tabla2[[#This Row],[Nivel 6]]&Tabla2[[#This Row],[Nivel 7]]","v":"3.303.04.01."}]
[null,"3.","303.","04.","02.",null,null,null,"Operaciones de Caja o Cobranzas","SI",null,{"$f":"+Tabla2[[#This Row],[Nivel 1]]&Tabla2[[#This Row],[Nivel 2]]&Tabla2[[#This Row],[Nivel 3]]&Tabla2[[#This Row],[Nivel 4]]&Tabla2[[#This Row],[Nivel 5]]&Tabla2[[#This Row],[Nivel 6]]&Tabla2[[#This Row],[Nivel 7]]","v":"3.303.04.02."}]
[null,"3.","303.","04.","03.",null,null,null,"Otras Operaciones en Proceso","SI",null,{"$f":"+Tabla2[[#This Row],[Nivel 1]]&Tabla2[[#This Row],[Nivel 2]]&Tabla2[[#This Row],[Nivel 3]]&Tabla2[[#This Row],[Nivel 4]]&Tabla2[[#This Row],[Nivel 5]]&Tabla2[[#This Row],[Nivel 6]]&Tabla2[[#This Row],[Nivel 7]]","v":"3.303.04.03."}]
[null,"3.","303.","05.",null,null,null,null,"Organismos y Entes de la Administración Pública","SI",null,{"$f":"+Tabla2[[#This Row],[Nivel 1]]&Tabla2[[#This Row],[Nivel 2]]&Tabla2[[#This Row],[Nivel 3]]&Tabla2[[#This Row],[Nivel 4]]&Tabla2[[#This Row],[Nivel 5]]&Tabla2[[#This Row],[Nivel 6]]&Tabla2[[#This Row],[Nivel 7]]","v":"3.303.05."}]
[null,"3.","303.","06.",null,null,null,null,"Operaciones de Permuta","NO",null,{"$f":"+Tabla2[[#This Row],[Nivel 1]]&Tabla2[[#This Row],[Nivel 2]]&Tabla2[[#This Row],[Nivel 3]]&Tabla2[[#This Row],[Nivel 4]]&Tabla2[[#This Row],[Nivel 5]]&Tabla2[[#This Row],[Nivel 6]]&Tabla2[[#This Row],[Nivel 7]]","v":"3.303.06."}]
[null,"3.","303.","06.","01.",null,null,null,"Valores Públicos","SI",null,{"$f":"+Tabla2[[#This Row],[Nivel 1]]&Tabla2[[#This Row],[Nivel 2]]&Tabla2[[#This Row],[Nivel 3]]&Tabla2[[#This Row],[Nivel 4]]&Tabla2[[#This Row],[Nivel 5]]&Tabla2[[#This Row],[Nivel 6]]&Tabla2[[#This Row],[Nivel 7]]","v":"3.303.06.01."}]
[null,"3.","303.","06.","02.",null,null,null,"Valores Privados","SI",null,{"$f":"+Tabla2[[#This Row],[Nivel 1]]&Tabla2[[#This Row],[Nivel 2]]&Tabla2[[#This Row],[Nivel 3]]&Tabla2[[#This Row],[Nivel 4]]&Tabla2[[#This Row],[Nivel 5]]&Tabla2[[#This Row],[Nivel 6]]&Tabla2[[#This Row],[Nivel 7]]","v":"3.303.06.02."}]
[null,"3.","303.","06.","03.",null,null,null,"Terrenos y Edificaciones","SI",null,{"$f":"+Tabla2[[#This Row],[Nivel 1]]&Tabla2[[#This Row],[Nivel 2]]&Tabla2[[#This Row],[Nivel 3]]&Tabla2[[#This Row],[Nivel 4]]&Tabla2[[#This Row],[Nivel 5]]&Tabla2[[#This Row],[Nivel 6]]&Tabla2[[#This Row],[Nivel 7]]","v":"3.303.06.03."}]
[null,"3.","303.","06.","04.",null,null,null,"Otros Activos","SI",null,{"$f":"+Tabla2[[#This Row],[Nivel 1]]&Tabla2[[#This Row],[Nivel 2]]&Tabla2[[#This Row],[Nivel 3]]&Tabla2[[#This Row],[Nivel 4]]&Tabla2[[#This Row],[Nivel 5]]&Tabla2[[#This Row],[Nivel 6]]&Tabla2[[#This Row],[Nivel 7]]","v":"3.303.06.04."}]
[null,"3.","303.","07.",null,null,null,null,"Otros Créditos Diferidos","NO",null,{"$f":"+Tabla2[[#This Row],[Nivel 1]]&Tabla2[[#This Row],[Nivel 2]]&Tabla2[[#This Row],[Nivel 3]]&Tabla2[[#This Row],[Nivel 4]]&Tabla2[[#This Row],[Nivel 5]]&Tabla2[[#This Row],[Nivel 6]]&Tabla2[[#This Row],[Nivel 7]]","v":"3.303.07."}]
[null,"3.","303.","07.","01.",null,null,null,"Intereses sobre Primas y Cuotas Financiadas","NO",null,{"$f":"+Tabla2[[#This Row],[Nivel 1]]&Tabla2[[#This Row],[Nivel 2]]&Tabla2[[#This Row],[Nivel 3]]&Tabla2[[#This Row],[Nivel 4]]&Tabla2[[#This Row],[Nivel 5]]&Tabla2[[#This Row],[Nivel 6]]&Tabla2[[#This Row],[Nivel 7]]","v":"3.303.07.01."}]
[null,"3.","303.","07.","01.","01.",null,null,"Primas Financiadas","SI",null,{"$f":"+Tabla2[[#This Row],[Nivel 1]]&Tabla2[[#This Row],[Nivel 2]]&Tabla2[[#This Row],[Nivel 3]]&Tabla2[[#This Row],[Nivel 4]]&Tabla2[[#This Row],[Nivel 5]]&Tabla2[[#This Row],[Nivel 6]]&Tabla2[[#This Row],[Nivel 7]]","v":"3.303.07.01.01."}]
[null,"3.","303.","07.","01.","02.",null,null,"Cuotas Financiadas ","SI",null,{"$f":"+Tabla2[[#This Row],[Nivel 1]]&Tabla2[[#This Row],[Nivel 2]]&Tabla2[[#This Row],[Nivel 3]]&Tabla2[[#This Row],[Nivel 4]]&Tabla2[[#This Row],[Nivel 5]]&Tabla2[[#This Row],[Nivel 6]]&Tabla2[[#This Row],[Nivel 7]]","v":"3.303.07.01.02."}]
[null,"3.","303.","07.","02.",null,null,null,"Otros Ingresos no Devengados","SI",null,{"$f":"+Tabla2[[#This Row],[Nivel 1]]&Tabla2[[#This Row],[Nivel 2]]&Tabla2[[#This Row],[Nivel 3]]&Tabla2[[#This Row],[Nivel 4]]&Tabla2[[#This Row],[Nivel 5]]&Tabla2[[#This Row],[Nivel 6]]&Tabla2[[#This Row],[Nivel 7]]","v":"3.303.07.02."}]
[null,"3.","304.",null,null,null,null,null,"RESERVAS DE PROVISIÓN","NO",null,{"$f":"+Tabla2[[#This Row],[Nivel 1]]&Tabla2[[#This Row],[Nivel 2]]&Tabla2[[#This Row],[Nivel 3]]&Tabla2[[#This Row],[Nivel 4]]&Tabla2[[#This Row],[Nivel 5]]&Tabla2[[#This Row],[Nivel 6]]&Tabla2[[#This Row],[Nivel 7]]","v":"3.304."}]
[null,"3.","304.","01.",null,null,null,null,"Para Cuentas Dudosas","NO",null,{"$f":"+Tabla2[[#This Row],[Nivel 1]]&Tabla2[[#This Row],[Nivel 2]]&Tabla2[[#This Row],[Nivel 3]]&Tabla2[[#This Row],[Nivel 4]]&Tabla2[[#This Row],[Nivel 5]]&Tabla2[[#This Row],[Nivel 6]]&Tabla2[[#This Row],[Nivel 7]]","v":"3.304.01."}]
[null,"3.","304.","01.","01.",null,null,null,"Cuentas por Cobrar ","SI",null,{"$f":"+Tabla2[[#This Row],[Nivel 1]]&Tabla2[[#This Row],[Nivel 2]]&Tabla2[[#This Row],[Nivel 3]]&Tabla2[[#This Row],[Nivel 4]]&Tabla2[[#This Row],[Nivel 5]]&Tabla2[[#This Row],[Nivel 6]]&Tabla2[[#This Row],[Nivel 7]]","v":"3.304.01.01."}]
[null,"3.","304.","01.","02.",null,null,null,"Préstamos por Cobrar ","SI",null,{"$f":"+Tabla2[[#This Row],[Nivel 1]]&Tabla2[[#This Row],[Nivel 2]]&Tabla2[[#This Row],[Nivel 3]]&Tabla2[[#This Row],[Nivel 4]]&Tabla2[[#This Row],[Nivel 5]]&Tabla2[[#This Row],[Nivel 6]]&Tabla2[[#This Row],[Nivel 7]]","v":"3.304.01.02."}]
[null,"3.","304.","01.","03.",null,null,null,"Otras Cuentas por Cobrar","SI",null,{"$f":"+Tabla2[[#This Row],[Nivel 1]]&Tabla2[[#This Row],[Nivel 2]]&Tabla2[[#This Row],[Nivel 3]]&Tabla2[[#This Row],[Nivel 4]]&Tabla2[[#This Row],[Nivel 5]]&Tabla2[[#This Row],[Nivel 6]]&Tabla2[[#This Row],[Nivel 7]]","v":"3.304.01.03."}]
[null,"3.","304.","02.",null,null,null,null,"Para Otros Fines","NO",null,{"$f":"+Tabla2[[#This Row],[Nivel 1]]&Tabla2[[#This Row],[Nivel 2]]&Tabla2[[#This Row],[Nivel 3]]&Tabla2[[#This Row],[Nivel 4]]&Tabla2[[#This Row],[Nivel 5]]&Tabla2[[#This Row],[Nivel 6]]&Tabla2[[#This Row],[Nivel 7]]","v":"3.304.02."}]
[null,"3.","304.","02.","01.",null,null,null,"Depósitos y Títulos Valores ","NO",null,{"$f":"+Tabla2[[#This Row],[Nivel 1]]&Tabla2[[#This Row],[Nivel 2]]&Tabla2[[#This Row],[Nivel 3]]&Tabla2[[#This Row],[Nivel 4]]&Tabla2[[#This Row],[Nivel 5]]&Tabla2[[#This Row],[Nivel 6]]&Tabla2[[#This Row],[Nivel 7]]","v":"3.304.02.01."}]
[null,"3.","304.","02.","01.","01.",null,null,"Bancos","SI",null,{"$f":"+Tabla2[[#This Row],[Nivel 1]]&Tabla2[[#This Row],[Nivel 2]]&Tabla2[[#This Row],[Nivel 3]]&Tabla2[[#This Row],[Nivel 4]]&Tabla2[[#This Row],[Nivel 5]]&Tabla2[[#This Row],[Nivel 6]]&Tabla2[[#This Row],[Nivel 7]]","v":"3.304.02.01.01."}]
[null,"3.","304.","02.","01.","02.",null,null,"Titulos Valores","NO",null,{"$f":"+Tabla2[[#This Row],[Nivel 1]]&Tabla2[[#This Row],[Nivel 2]]&Tabla2[[#This Row],[Nivel 3]]&Tabla2[[#This Row],[Nivel 4]]&Tabla2[[#This Row],[Nivel 5]]&Tabla2[[#This Row],[Nivel 6]]&Tabla2[[#This Row],[Nivel 7]]","v":"3.304.02.01.02."}]
[null,"3.","304.","02.","01.","02.","01.",null,"Públicos","SI",null,{"$f":"+Tabla2[[#This Row],[Nivel 1]]&Tabla2[[#This Row],[Nivel 2]]&Tabla2[[#This Row],[Nivel 3]]&Tabla2[[#This Row],[Nivel 4]]&Tabla2[[#This Row],[Nivel 5]]&Tabla2[[#This Row],[Nivel 6]]&Tabla2[[#This Row],[Nivel 7]]","v":"3.304.02.01.02.01."}]
[null,"3.","304.","02.","01.","02.","02.",null,"Privados","SI",null,{"$f":"+Tabla2[[#This Row],[Nivel 1]]&Tabla2[[#This Row],[Nivel 2]]&Tabla2[[#This Row],[Nivel 3]]&Tabla2[[#This Row],[Nivel 4]]&Tabla2[[#This Row],[Nivel 5]]&Tabla2[[#This Row],[Nivel 6]]&Tabla2[[#This Row],[Nivel 7]]","v":"3.304.02.01.02.02."}]
[null,"3.","304.","02.","02.",null,null,null,"Organismos y Entes de la Administración Pública","SI",null,{"$f":"+Tabla2[[#This Row],[Nivel 1]]&Tabla2[[#This Row],[Nivel 2]]&Tabla2[[#This Row],[Nivel 3]]&Tabla2[[#This Row],[Nivel 4]]&Tabla2[[#This Row],[Nivel 5]]&Tabla2[[#This Row],[Nivel 6]]&Tabla2[[#This Row],[Nivel 7]]","v":"3.304.02.02."}]
[null,"3.","304.","02.","03.",null,null,null,"Valores Privados","NO",null,{"$f":"+Tabla2[[#This Row],[Nivel 1]]&Tabla2[[#This Row],[Nivel 2]]&Tabla2[[#This Row],[Nivel 3]]&Tabla2[[#This Row],[Nivel 4]]&Tabla2[[#This Row],[Nivel 5]]&Tabla2[[#This Row],[Nivel 6]]&Tabla2[[#This Row],[Nivel 7]]","v":"3.304.02.03."}]
[null,"3.","304.","02.","03.","01.",null,null,"Acciones de Sociedades Anónimas","SI",null,{"$f":"+Tabla2[[#This Row],[Nivel 1]]&Tabla2[[#This Row],[Nivel 2]]&Tabla2[[#This Row],[Nivel 3]]&Tabla2[[#This Row],[Nivel 4]]&Tabla2[[#This Row],[Nivel 5]]&Tabla2[[#This Row],[Nivel 6]]&Tabla2[[#This Row],[Nivel 7]]","v":"3.304.02.03.01."}]
[null,"3.","304.","02.","03.","02.",null,null,"Bonos de Sociedades Anónimas","SI",null,{"$f":"+Tabla2[[#This Row],[Nivel 1]]&Tabla2[[#This Row],[Nivel 2]]&Tabla2[[#This Row],[Nivel 3]]&Tabla2[[#This Row],[Nivel 4]]&Tabla2[[#This Row],[Nivel 5]]&Tabla2[[#This Row],[Nivel 6]]&Tabla2[[#This Row],[Nivel 7]]","v":"3.304.02.03.02."}]
[null,"3.","304.","02.","03.","03.",null,null,"Obligaciones Mercantiles","SI",null,{"$f":"+Tabla2[[#This Row],[Nivel 1]]&Tabla2[[#This Row],[Nivel 2]]&Tabla2[[#This Row],[Nivel 3]]&Tabla2[[#This Row],[Nivel 4]]&Tabla2[[#This Row],[Nivel 5]]&Tabla2[[#This Row],[Nivel 6]]&Tabla2[[#This Row],[Nivel 7]]","v":"3.304.02.03.03."}]
[null,"3.","304.","02.","03.","04.",null,null,"Otras Inversiones ","SI",null,{"$f":"+Tabla2[[#This Row],[Nivel 1]]&Tabla2[[#This Row],[Nivel 2]]&Tabla2[[#This Row],[Nivel 3]]&Tabla2[[#This Row],[Nivel 4]]&Tabla2[[#This Row],[Nivel 5]]&Tabla2[[#This Row],[Nivel 6]]&Tabla2[[#This Row],[Nivel 7]]","v":"3.304.02.03.04."}]
[null,"3.","304.","02.","03.","05.",null,null,"Otras Inversiones emitidas por el Sector Privado.","SI",null,{"$f":"+Tabla2[[#This Row],[Nivel 1]]&Tabla2[[#This Row],[Nivel 2]]&Tabla2[[#This Row],[Nivel 3]]&Tabla2[[#This Row],[Nivel 4]]&Tabla2[[#This Row],[Nivel 5]]&Tabla2[[#This Row],[Nivel 6]]&Tabla2[[#This Row],[Nivel 7]]","v":"3.304.02.03.05."}]
[null,"3.","304.","02.","03.","06.",null,null,"Activos en el Extranjero","SI",null,{"$f":"+Tabla2[[#This Row],[Nivel 1]]&Tabla2[[#This Row],[Nivel 2]]&Tabla2[[#This Row],[Nivel 3]]&Tabla2[[#This Row],[Nivel 4]]&Tabla2[[#This Row],[Nivel 5]]&Tabla2[[#This Row],[Nivel 6]]&Tabla2[[#This Row],[Nivel 7]]","v":"3.304.02.03.06."}]
[null,"3.","304.","03.",null,null,null,null,"Otras Contingencias","NO",null,{"$f":"+Tabla2[[#This Row],[Nivel 1]]&Tabla2[[#This Row],[Nivel 2]]&Tabla2[[#This Row],[Nivel 3]]&Tabla2[[#This Row],[Nivel 4]]&Tabla2[[#This Row],[Nivel 5]]&Tabla2[[#This Row],[Nivel 6]]&Tabla2[[#This Row],[Nivel 7]]","v":"3.304.03."}]
[null,"3.","304.","03.","01.",null,null,null,"Litigios","SI",null,{"$f":"+Tabla2[[#This Row],[Nivel 1]]&Tabla2[[#This Row],[Nivel 2]]&Tabla2[[#This Row],[Nivel 3]]&Tabla2[[#This Row],[Nivel 4]]&Tabla2[[#This Row],[Nivel 5]]&Tabla2[[#This Row],[Nivel 6]]&Tabla2[[#This Row],[Nivel 7]]","v":"3.304.03.01."}]
[null,"3.","304.","03.","02.",null,null,null,"Multas ","SI",null,{"$f":"+Tabla2[[#This Row],[Nivel 1]]&Tabla2[[#This Row],[Nivel 2]]&Tabla2[[#This Row],[Nivel 3]]&Tabla2[[#This Row],[Nivel 4]]&Tabla2[[#This Row],[Nivel 5]]&Tabla2[[#This Row],[Nivel 6]]&Tabla2[[#This Row],[Nivel 7]]","v":"3.304.03.02."}]
[null,"3.","304.","03.","03.",null,null,null,"Reparos","SI",null,{"$f":"+Tabla2[[#This Row],[Nivel 1]]&Tabla2[[#This Row],[Nivel 2]]&Tabla2[[#This Row],[Nivel 3]]&Tabla2[[#This Row],[Nivel 4]]&Tabla2[[#This Row],[Nivel 5]]&Tabla2[[#This Row],[Nivel 6]]&Tabla2[[#This Row],[Nivel 7]]","v":"3.304.03.03."}]
[null,"3.","304.","03.","04.",null,null,null,"Otras ","SI",null,{"$f":"+Tabla2[[#This Row],[Nivel 1]]&Tabla2[[#This Row],[Nivel 2]]&Tabla2[[#This Row],[Nivel 3]]&Tabla2[[#This Row],[Nivel 4]]&Tabla2[[#This Row],[Nivel 5]]&Tabla2[[#This Row],[Nivel 6]]&Tabla2[[#This Row],[Nivel 7]]","v":"3.304.03.04."}]
[null,"3.","304.","04.",null,null,null,null,"Participación Estatutaria","SI",null,{"$f":"+Tabla2[[#This Row],[Nivel 1]]&Tabla2[[#This Row],[Nivel 2]]&Tabla2[[#This Row],[Nivel 3]]&Tabla2[[#This Row],[Nivel 4]]&Tabla2[[#This Row],[Nivel 5]]&Tabla2[[#This Row],[Nivel 6]]&Tabla2[[#This Row],[Nivel 7]]","v":"3.304.04."}]
[null,"3.","304.","05.",null,null,null,null,"Prestaciones Laborales de Ley","NO",null,{"$f":"+Tabla2[[#This Row],[Nivel 1]]&Tabla2[[#This Row],[Nivel 2]]&Tabla2[[#This Row],[Nivel 3]]&Tabla2[[#This Row],[Nivel 4]]&Tabla2[[#This Row],[Nivel 5]]&Tabla2[[#This Row],[Nivel 6]]&Tabla2[[#This Row],[Nivel 7]]","v":"3.304.05."}]
[null,"3.","304.","05.","01.",null,null,null,"Vacaciones ","SI",null,{"$f":"+Tabla2[[#This Row],[Nivel 1]]&Tabla2[[#This Row],[Nivel 2]]&Tabla2[[#This Row],[Nivel 3]]&Tabla2[[#This Row],[Nivel 4]]&Tabla2[[#This Row],[Nivel 5]]&Tabla2[[#This Row],[Nivel 6]]&Tabla2[[#This Row],[Nivel 7]]","v":"3.304.05.01."}]
[null,"3.","304.","05.","02.",null,null,null,"Bono Vacacional","SI",null,{"$f":"+Tabla2[[#This Row],[Nivel 1]]&Tabla2[[#This Row],[Nivel 2]]&Tabla2[[#This Row],[Nivel 3]]&Tabla2[[#This Row],[Nivel 4]]&Tabla2[[#This Row],[Nivel 5]]&Tabla2[[#This Row],[Nivel 6]]&Tabla2[[#This Row],[Nivel 7]]","v":"3.304.05.02."}]
[null,"3.","304.","05.","03.",null,null,null,"Bonificaciones Especiales","SI",null,{"$f":"+Tabla2[[#This Row],[Nivel 1]]&Tabla2[[#This Row],[Nivel 2]]&Tabla2[[#This Row],[Nivel 3]]&Tabla2[[#This Row],[Nivel 4]]&Tabla2[[#This Row],[Nivel 5]]&Tabla2[[#This Row],[Nivel 6]]&Tabla2[[#This Row],[Nivel 7]]","v":"3.304.05.03."}]
[null,"3.","304.","05.","04.",null,null,null,"Prestaciones Sociales","SI",null,{"$f":"+Tabla2[[#This Row],[Nivel 1]]&Tabla2[[#This Row],[Nivel 2]]&Tabla2[[#This Row],[Nivel 3]]&Tabla2[[#This Row],[Nivel 4]]&Tabla2[[#This Row],[Nivel 5]]&Tabla2[[#This Row],[Nivel 6]]&Tabla2[[#This Row],[Nivel 7]]","v":"3.304.05.04."}]
[null,"3.","304.","05.","05.",null,null,null,"Caja de Ahorro de los Trabajadores - Aporte Patronal","SI",null,{"$f":"+Tabla2[[#This Row],[Nivel 1]]&Tabla2[[#This Row],[Nivel 2]]&Tabla2[[#This Row],[Nivel 3]]&Tabla2[[#This Row],[Nivel 4]]&Tabla2[[#This Row],[Nivel 5]]&Tabla2[[#This Row],[Nivel 6]]&Tabla2[[#This Row],[Nivel 7]]","v":"3.304.05.05."}]
[null,"3.","304.","05.","06.",null,null,null,"Otras Cuentas por Pagar al Personal","SI",null,{"$f":"+Tabla2[[#This Row],[Nivel 1]]&Tabla2[[#This Row],[Nivel 2]]&Tabla2[[#This Row],[Nivel 3]]&Tabla2[[#This Row],[Nivel 4]]&Tabla2[[#This Row],[Nivel 5]]&Tabla2[[#This Row],[Nivel 6]]&Tabla2[[#This Row],[Nivel 7]]","v":"3.304.05.06."}]
[null,"3.","304.","06.",null,null,null,null,"Gravámenes y Contribuciones","NO",null,{"$f":"+Tabla2[[#This Row],[Nivel 1]]&Tabla2[[#This Row],[Nivel 2]]&Tabla2[[#This Row],[Nivel 3]]&Tabla2[[#This Row],[Nivel 4]]&Tabla2[[#This Row],[Nivel 5]]&Tabla2[[#This Row],[Nivel 6]]&Tabla2[[#This Row],[Nivel 7]]","v":"3.304.06."}]
[null,"3.","304.","06.","01.",null,null,null,"Gravámenes","NO",null,{"$f":"+Tabla2[[#This Row],[Nivel 1]]&Tabla2[[#This Row],[Nivel 2]]&Tabla2[[#This Row],[Nivel 3]]&Tabla2[[#This Row],[Nivel 4]]&Tabla2[[#This Row],[Nivel 5]]&Tabla2[[#This Row],[Nivel 6]]&Tabla2[[#This Row],[Nivel 7]]","v":"3.304.06.01."}]
[null,"3.","304.","06.","01.","01.",null,null,"Impuesto Sobre la Renta","SI",null,{"$f":"+Tabla2[[#This Row],[Nivel 1]]&Tabla2[[#This Row],[Nivel 2]]&Tabla2[[#This Row],[Nivel 3]]&Tabla2[[#This Row],[Nivel 4]]&Tabla2[[#This Row],[Nivel 5]]&Tabla2[[#This Row],[Nivel 6]]&Tabla2[[#This Row],[Nivel 7]]","v":"3.304.06.01.01."}]
[null,"3.","304.","06.","01.","02.",null,null,"Impuesto Sobre la Renta - Diferido","SI",null,{"$f":"+Tabla2[[#This Row],[Nivel 1]]&Tabla2[[#This Row],[Nivel 2]]&Tabla2[[#This Row],[Nivel 3]]&Tabla2[[#This Row],[Nivel 4]]&Tabla2[[#This Row],[Nivel 5]]&Tabla2[[#This Row],[Nivel 6]]&Tabla2[[#This Row],[Nivel 7]]","v":"3.304.06.01.02."}]
[null,"3.","304.","06.","01.","03.",null,null,"Impuesto al Valor Agregado","SI",null,{"$f":"+Tabla2[[#This Row],[Nivel 1]]&Tabla2[[#This Row],[Nivel 2]]&Tabla2[[#This Row],[Nivel 3]]&Tabla2[[#This Row],[Nivel 4]]&Tabla2[[#This Row],[Nivel 5]]&Tabla2[[#This Row],[Nivel 6]]&Tabla2[[#This Row],[Nivel 7]]","v":"3.304.06.01.03."}]
[null,"3.","304.","06.","01.","04.",null,null,"Impuesto a las Grandes Transacciones Financieras","SI",null,{"$f":"+Tabla2[[#This Row],[Nivel 1]]&Tabla2[[#This Row],[Nivel 2]]&Tabla2[[#This Row],[Nivel 3]]&Tabla2[[#This Row],[Nivel 4]]&Tabla2[[#This Row],[Nivel 5]]&Tabla2[[#This Row],[Nivel 6]]&Tabla2[[#This Row],[Nivel 7]]","v":"3.304.06.01.04."}]
[null,"3.","304.","06.","01.","05.",null,null,"Impuesto a los Grandes Patrimonios","SI",null,{"$f":"+Tabla2[[#This Row],[Nivel 1]]&Tabla2[[#This Row],[Nivel 2]]&Tabla2[[#This Row],[Nivel 3]]&Tabla2[[#This Row],[Nivel 4]]&Tabla2[[#This Row],[Nivel 5]]&Tabla2[[#This Row],[Nivel 6]]&Tabla2[[#This Row],[Nivel 7]]","v":"3.304.06.01.05."}]
[null,"3.","304.","06.","01.","06.",null,null,"Impuestos Municipales","SI",null,{"$f":"+Tabla2[[#This Row],[Nivel 1]]&Tabla2[[#This Row],[Nivel 2]]&Tabla2[[#This Row],[Nivel 3]]&Tabla2[[#This Row],[Nivel 4]]&Tabla2[[#This Row],[Nivel 5]]&Tabla2[[#This Row],[Nivel 6]]&Tabla2[[#This Row],[Nivel 7]]","v":"3.304.06.01.06."}]
[null,"3.","304.","06.","01.","07.",null,null,"Otros Impuestos","SI",null,{"$f":"+Tabla2[[#This Row],[Nivel 1]]&Tabla2[[#This Row],[Nivel 2]]&Tabla2[[#This Row],[Nivel 3]]&Tabla2[[#This Row],[Nivel 4]]&Tabla2[[#This Row],[Nivel 5]]&Tabla2[[#This Row],[Nivel 6]]&Tabla2[[#This Row],[Nivel 7]]","v":"3.304.06.01.07."}]
[null,"3.","304.","06.","02.",null,null,null,"Contribuciones","NO",null,{"$f":"+Tabla2[[#This Row],[Nivel 1]]&Tabla2[[#This Row],[Nivel 2]]&Tabla2[[#This Row],[Nivel 3]]&Tabla2[[#This Row],[Nivel 4]]&Tabla2[[#This Row],[Nivel 5]]&Tabla2[[#This Row],[Nivel 6]]&Tabla2[[#This Row],[Nivel 7]]","v":"3.304.06.02."}]
[null,"3.","304.","06.","02.","01.",null,null,"Instituto Nacional de Capacitación y Educación Socialista (INCES) - Aporte Patronal","SI",null,{"$f":"+Tabla2[[#This Row],[Nivel 1]]&Tabla2[[#This Row],[Nivel 2]]&Tabla2[[#This Row],[Nivel 3]]&Tabla2[[#This Row],[Nivel 4]]&Tabla2[[#This Row],[Nivel 5]]&Tabla2[[#This Row],[Nivel 6]]&Tabla2[[#This Row],[Nivel 7]]","v":"3.304.06.02.01."}]
[null,"3.","304.","06.","02.","02.",null,null,"Instituto Venezolano de los Seguros Sociales (IVSS) - Aporte Patronal","SI",null,{"$f":"+Tabla2[[#This Row],[Nivel 1]]&Tabla2[[#This Row],[Nivel 2]]&Tabla2[[#This Row],[Nivel 3]]&Tabla2[[#This Row],[Nivel 4]]&Tabla2[[#This Row],[Nivel 5]]&Tabla2[[#This Row],[Nivel 6]]&Tabla2[[#This Row],[Nivel 7]]","v":"3.304.06.02.02."}]
[null,"3.","304.","06.","02.","03.",null,null,"Instituto Venezolano de los Seguros Sociales (IVSS) - Paro Forzoso - Aporte Patronal ","SI",null,{"$f":"+Tabla2[[#This Row],[Nivel 1]]&Tabla2[[#This Row],[Nivel 2]]&Tabla2[[#This Row],[Nivel 3]]&Tabla2[[#This Row],[Nivel 4]]&Tabla2[[#This Row],[Nivel 5]]&Tabla2[[#This Row],[Nivel 6]]&Tabla2[[#This Row],[Nivel 7]]","v":"3.304.06.02.03."}]
[null,"3.","304.","06.","02.","04.",null,null,"Fondo de Ahorro Obligatorio para la Vivienda (FAOV) -  Aporte Patronal","SI",null,{"$f":"+Tabla2[[#This Row],[Nivel 1]]&Tabla2[[#This Row],[Nivel 2]]&Tabla2[[#This Row],[Nivel 3]]&Tabla2[[#This Row],[Nivel 4]]&Tabla2[[#This Row],[Nivel 5]]&Tabla2[[#This Row],[Nivel 6]]&Tabla2[[#This Row],[Nivel 7]]","v":"3.304.06.02.04."}]
[null,"3.","304.","06.","02.","05.",null,null,"Aporte Especial a la Superintendencia de la Actividad Aseguradora","SI",null,{"$f":"+Tabla2[[#This Row],[Nivel 1]]&Tabla2[[#This Row],[Nivel 2]]&Tabla2[[#This Row],[Nivel 3]]&Tabla2[[#This Row],[Nivel 4]]&Tabla2[[#This Row],[Nivel 5]]&Tabla2[[#This Row],[Nivel 6]]&Tabla2[[#This Row],[Nivel 7]]","v":"3.304.06.02.05."}]
[null,"3.","304.","06.","02.","06.",null,null,"Ley Orgánica de Ciencia, Tecnología e Innovación (LOCTI)","SI",null,{"$f":"+Tabla2[[#This Row],[Nivel 1]]&Tabla2[[#This Row],[Nivel 2]]&Tabla2[[#This Row],[Nivel 3]]&Tabla2[[#This Row],[Nivel 4]]&Tabla2[[#This Row],[Nivel 5]]&Tabla2[[#This Row],[Nivel 6]]&Tabla2[[#This Row],[Nivel 7]]","v":"3.304.06.02.06."}]
[null,"3.","304.","06.","02.","07.",null,null,"Decreto con Fuerza de Ley de los Cuerpos de Bomberos y Bomberas y Administración de Emergencias de Carácter Civil","SI",null,{"$f":"+Tabla2[[#This Row],[Nivel 1]]&Tabla2[[#This Row],[Nivel 2]]&Tabla2[[#This Row],[Nivel 3]]&Tabla2[[#This Row],[Nivel 4]]&Tabla2[[#This Row],[Nivel 5]]&Tabla2[[#This Row],[Nivel 6]]&Tabla2[[#This Row],[Nivel 7]]","v":"3.304.06.02.07."}]
[null,"3.","304.","06.","02.","08.",null,null,"Ley Orgánica de Drogas","SI",null,{"$f":"+Tabla2[[#This Row],[Nivel 1]]&Tabla2[[#This Row],[Nivel 2]]&Tabla2[[#This Row],[Nivel 3]]&Tabla2[[#This Row],[Nivel 4]]&Tabla2[[#This Row],[Nivel 5]]&Tabla2[[#This Row],[Nivel 6]]&Tabla2[[#This Row],[Nivel 7]]","v":"3.304.06.02.08."}]
[null,"3.","304.","06.","02.","09.",null,null,"Ley del Deporte","SI",null,{"$f":"+Tabla2[[#This Row],[Nivel 1]]&Tabla2[[#This Row],[Nivel 2]]&Tabla2[[#This Row],[Nivel 3]]&Tabla2[[#This Row],[Nivel 4]]&Tabla2[[#This Row],[Nivel 5]]&Tabla2[[#This Row],[Nivel 6]]&Tabla2[[#This Row],[Nivel 7]]","v":"3.304.06.02.09."}]
[null,"3.","304.","06.","02.","10.",null,null,"Ley de Gestión Integral de Riesgos Socio-Naturales y Tecnológicos","SI",null,{"$f":"+Tabla2[[#This Row],[Nivel 1]]&Tabla2[[#This Row],[Nivel 2]]&Tabla2[[#This Row],[Nivel 3]]&Tabla2[[#This Row],[Nivel 4]]&Tabla2[[#This Row],[Nivel 5]]&Tabla2[[#This Row],[Nivel 6]]&Tabla2[[#This Row],[Nivel 7]]","v":"3.304.06.02.10."}]
[null,"3.","304.","06.","02.","11.",null,null,"Otras Contribuciones","SI",null,{"$f":"+Tabla2[[#This Row],[Nivel 1]]&Tabla2[[#This Row],[Nivel 2]]&Tabla2[[#This Row],[Nivel 3]]&Tabla2[[#This Row],[Nivel 4]]&Tabla2[[#This Row],[Nivel 5]]&Tabla2[[#This Row],[Nivel 6]]&Tabla2[[#This Row],[Nivel 7]]","v":"3.304.06.02.11."}]
[null,"3.","305.",null,null,null,null,null,"RESERVAS DE DEPRECIACIÓN, AMORTIZACIÓN Y DEVALUACIÓN","NO",null,{"$f":"+Tabla2[[#This Row],[Nivel 1]]&Tabla2[[#This Row],[Nivel 2]]&Tabla2[[#This Row],[Nivel 3]]&Tabla2[[#This Row],[Nivel 4]]&Tabla2[[#This Row],[Nivel 5]]&Tabla2[[#This Row],[Nivel 6]]&Tabla2[[#This Row],[Nivel 7]]","v":"3.305."}]
[null,"3.","305.","01.",null,null,null,null,"Depreciación Acumulada","NO",null,{"$f":"+Tabla2[[#This Row],[Nivel 1]]&Tabla2[[#This Row],[Nivel 2]]&Tabla2[[#This Row],[Nivel 3]]&Tabla2[[#This Row],[Nivel 4]]&Tabla2[[#This Row],[Nivel 5]]&Tabla2[[#This Row],[Nivel 6]]&Tabla2[[#This Row],[Nivel 7]]","v":"3.305.01."}]
[null,"3.","305.","01.","01.",null,null,null,"Inmuebles  Edificados","SI","A2-C11",{"$f":"+Tabla2[[#This Row],[Nivel 1]]&Tabla2[[#This Row],[Nivel 2]]&Tabla2[[#This Row],[Nivel 3]]&Tabla2[[#This Row],[Nivel 4]]&Tabla2[[#This Row],[Nivel 5]]&Tabla2[[#This Row],[Nivel 6]]&Tabla2[[#This Row],[Nivel 7]]","v":"3.305.01.01."}]
[null,"3.","305.","01.","02.",null,null,null,"Mobiliario","SI",null,{"$f":"+Tabla2[[#This Row],[Nivel 1]]&Tabla2[[#This Row],[Nivel 2]]&Tabla2[[#This Row],[Nivel 3]]&Tabla2[[#This Row],[Nivel 4]]&Tabla2[[#This Row],[Nivel 5]]&Tabla2[[#This Row],[Nivel 6]]&Tabla2[[#This Row],[Nivel 7]]","v":"3.305.01.02."}]
[null,"3.","305.","01.","03.",null,null,null,"Equipos de Oficina","SI",null,{"$f":"+Tabla2[[#This Row],[Nivel 1]]&Tabla2[[#This Row],[Nivel 2]]&Tabla2[[#This Row],[Nivel 3]]&Tabla2[[#This Row],[Nivel 4]]&Tabla2[[#This Row],[Nivel 5]]&Tabla2[[#This Row],[Nivel 6]]&Tabla2[[#This Row],[Nivel 7]]","v":"3.305.01.03."}]
[null,"3.","305.","01.","04.",null,null,null,"Equipos de Computación y Software","SI",null,{"$f":"+Tabla2[[#This Row],[Nivel 1]]&Tabla2[[#This Row],[Nivel 2]]&Tabla2[[#This Row],[Nivel 3]]&Tabla2[[#This Row],[Nivel 4]]&Tabla2[[#This Row],[Nivel 5]]&Tabla2[[#This Row],[Nivel 6]]&Tabla2[[#This Row],[Nivel 7]]","v":"3.305.01.04."}]
[null,"3.","305.","01.","05.",null,null,null,"Vehiculos","SI",null,{"$f":"+Tabla2[[#This Row],[Nivel 1]]&Tabla2[[#This Row],[Nivel 2]]&Tabla2[[#This Row],[Nivel 3]]&Tabla2[[#This Row],[Nivel 4]]&Tabla2[[#This Row],[Nivel 5]]&Tabla2[[#This Row],[Nivel 6]]&Tabla2[[#This Row],[Nivel 7]]","v":"3.305.01.05."}]
[null,"3.","305.","01.","06.",null,null,null,"Aeronaves","SI",null,{"$f":"+Tabla2[[#This Row],[Nivel 1]]&Tabla2[[#This Row],[Nivel 2]]&Tabla2[[#This Row],[Nivel 3]]&Tabla2[[#This Row],[Nivel 4]]&Tabla2[[#This Row],[Nivel 5]]&Tabla2[[#This Row],[Nivel 6]]&Tabla2[[#This Row],[Nivel 7]]","v":"3.305.01.06."}]
[null,"3.","305.","01.","07.",null,null,null,"Naves","SI",null,{"$f":"+Tabla2[[#This Row],[Nivel 1]]&Tabla2[[#This Row],[Nivel 2]]&Tabla2[[#This Row],[Nivel 3]]&Tabla2[[#This Row],[Nivel 4]]&Tabla2[[#This Row],[Nivel 5]]&Tabla2[[#This Row],[Nivel 6]]&Tabla2[[#This Row],[Nivel 7]]","v":"3.305.01.07."}]
[null,"3.","305.","02.",null,null,null,null,"Amortización Acumulada ","NO",null,{"$f":"+Tabla2[[#This Row],[Nivel 1]]&Tabla2[[#This Row],[Nivel 2]]&Tabla2[[#This Row],[Nivel 3]]&Tabla2[[#This Row],[Nivel 4]]&Tabla2[[#This Row],[Nivel 5]]&Tabla2[[#This Row],[Nivel 6]]&Tabla2[[#This Row],[Nivel 7]]","v":"3.305.02."}]
[null,"3.","305.","02.","01.",null,null,null,"Gastos de Constitución","SI",null,{"$f":"+Tabla2[[#This Row],[Nivel 1]]&Tabla2[[#This Row],[Nivel 2]]&Tabla2[[#This Row],[Nivel 3]]&Tabla2[[#This Row],[Nivel 4]]&Tabla2[[#This Row],[Nivel 5]]&Tabla2[[#This Row],[Nivel 6]]&Tabla2[[#This Row],[Nivel 7]]","v":"3.305.02.01."}]
[null,"3.","305.","02.","02.",null,null,null,"Gastos de Instalación","SI",null,{"$f":"+Tabla2[[#This Row],[Nivel 1]]&Tabla2[[#This Row],[Nivel 2]]&Tabla2[[#This Row],[Nivel 3]]&Tabla2[[#This Row],[Nivel 4]]&Tabla2[[#This Row],[Nivel 5]]&Tabla2[[#This Row],[Nivel 6]]&Tabla2[[#This Row],[Nivel 7]]","v":"3.305.02.02."}]
[null,"3.","305.","03.",null,null,null,null,"Devaluación","NO",null,{"$f":"+Tabla2[[#This Row],[Nivel 1]]&Tabla2[[#This Row],[Nivel 2]]&Tabla2[[#This Row],[Nivel 3]]&Tabla2[[#This Row],[Nivel 4]]&Tabla2[[#This Row],[Nivel 5]]&Tabla2[[#This Row],[Nivel 6]]&Tabla2[[#This Row],[Nivel 7]]","v":"3.305.03."}]
[null,"3.","305.","03.","01.",null,null,null,"Valores","NO",null,{"$f":"+Tabla2[[#This Row],[Nivel 1]]&Tabla2[[#This Row],[Nivel 2]]&Tabla2[[#This Row],[Nivel 3]]&Tabla2[[#This Row],[Nivel 4]]&Tabla2[[#This Row],[Nivel 5]]&Tabla2[[#This Row],[Nivel 6]]&Tabla2[[#This Row],[Nivel 7]]","v":"3.305.03.01."}]
[null,"3.","305.","03.","01.","01.",null,null,"Valores Públicos","NO",null,{"$f":"+Tabla2[[#This Row],[Nivel 1]]&Tabla2[[#This Row],[Nivel 2]]&Tabla2[[#This Row],[Nivel 3]]&Tabla2[[#This Row],[Nivel 4]]&Tabla2[[#This Row],[Nivel 5]]&Tabla2[[#This Row],[Nivel 6]]&Tabla2[[#This Row],[Nivel 7]]","v":"3.305.03.01.01."}]
[null,"3.","305.","03.","01.","01.","01.",null,"Emitidos o Garantizados por la República","SI",null,{"$f":"+Tabla2[[#This Row],[Nivel 1]]&Tabla2[[#This Row],[Nivel 2]]&Tabla2[[#This Row],[Nivel 3]]&Tabla2[[#This Row],[Nivel 4]]&Tabla2[[#This Row],[Nivel 5]]&Tabla2[[#This Row],[Nivel 6]]&Tabla2[[#This Row],[Nivel 7]]","v":"3.305.03.01.01.01."}]
[null,"3.","305.","03.","01.","01.","02.",null,"Emitidos por Otros Sujetos de Derecho Público Nacional","SI",null,{"$f":"+Tabla2[[#This Row],[Nivel 1]]&Tabla2[[#This Row],[Nivel 2]]&Tabla2[[#This Row],[Nivel 3]]&Tabla2[[#This Row],[Nivel 4]]&Tabla2[[#This Row],[Nivel 5]]&Tabla2[[#This Row],[Nivel 6]]&Tabla2[[#This Row],[Nivel 7]]","v":"3.305.03.01.01.02."}]
[null,"3.","305.","03.","01.","01.","03.",null,"Emitidos por Empresas con Participación de la República","SI",null,{"$f":"+Tabla2[[#This Row],[Nivel 1]]&Tabla2[[#This Row],[Nivel 2]]&Tabla2[[#This Row],[Nivel 3]]&Tabla2[[#This Row],[Nivel 4]]&Tabla2[[#This Row],[Nivel 5]]&Tabla2[[#This Row],[Nivel 6]]&Tabla2[[#This Row],[Nivel 7]]","v":"3.305.03.01.01.03."}]
[null,"3.","305.","03.","01.","01.","04.",null,"Emitidos por Instituciones con Participación de la República","SI",null,{"$f":"+Tabla2[[#This Row],[Nivel 1]]&Tabla2[[#This Row],[Nivel 2]]&Tabla2[[#This Row],[Nivel 3]]&Tabla2[[#This Row],[Nivel 4]]&Tabla2[[#This Row],[Nivel 5]]&Tabla2[[#This Row],[Nivel 6]]&Tabla2[[#This Row],[Nivel 7]]","v":"3.305.03.01.01.04."}]
[null,"3.","305.","03.","01.","02.",null,null,"Participación en Fondos de Inversión","NO",null,{"$f":"+Tabla2[[#This Row],[Nivel 1]]&Tabla2[[#This Row],[Nivel 2]]&Tabla2[[#This Row],[Nivel 3]]&Tabla2[[#This Row],[Nivel 4]]&Tabla2[[#This Row],[Nivel 5]]&Tabla2[[#This Row],[Nivel 6]]&Tabla2[[#This Row],[Nivel 7]]","v":"3.305.03.01.02."}]
[null,"3.","305.","03.","01.","02.","01.",null,"Renta Fija","SI",null,{"$f":"+Tabla2[[#This Row],[Nivel 1]]&Tabla2[[#This Row],[Nivel 2]]&Tabla2[[#This Row],[Nivel 3]]&Tabla2[[#This Row],[Nivel 4]]&Tabla2[[#This Row],[Nivel 5]]&Tabla2[[#This Row],[Nivel 6]]&Tabla2[[#This Row],[Nivel 7]]","v":"3.305.03.01.02.01."}]
[null,"3.","305.","03.","01.","02.","02.",null,"Renta Variable","SI",null,{"$f":"+Tabla2[[#This Row],[Nivel 1]]&Tabla2[[#This Row],[Nivel 2]]&Tabla2[[#This Row],[Nivel 3]]&Tabla2[[#This Row],[Nivel 4]]&Tabla2[[#This Row],[Nivel 5]]&Tabla2[[#This Row],[Nivel 6]]&Tabla2[[#This Row],[Nivel 7]]","v":"3.305.03.01.02.02."}]
[null,"3.","305.","03.","01.","03.",null,null,"Valores Privados","NO",null,{"$f":"+Tabla2[[#This Row],[Nivel 1]]&Tabla2[[#This Row],[Nivel 2]]&Tabla2[[#This Row],[Nivel 3]]&Tabla2[[#This Row],[Nivel 4]]&Tabla2[[#This Row],[Nivel 5]]&Tabla2[[#This Row],[Nivel 6]]&Tabla2[[#This Row],[Nivel 7]]","v":"3.305.03.01.03."}]
[null,"3.","305.","03.","01.","03.","01.",null,"Acciones de Sociedades Anónimas","NO",null,{"$f":"+Tabla2[[#This Row],[Nivel 1]]&Tabla2[[#This Row],[Nivel 2]]&Tabla2[[#This Row],[Nivel 3]]&Tabla2[[#This Row],[Nivel 4]]&Tabla2[[#This Row],[Nivel 5]]&Tabla2[[#This Row],[Nivel 6]]&Tabla2[[#This Row],[Nivel 7]]","v":"3.305.03.01.03.01."}]
[null,"3.","305.","03.","01.","03.","01.","01.","Empresas de Seguros o Reaseguros","SI",null,{"$f":"+Tabla2[[#This Row],[Nivel 1]]&Tabla2[[#This Row],[Nivel 2]]&Tabla2[[#This Row],[Nivel 3]]&Tabla2[[#This Row],[Nivel 4]]&Tabla2[[#This Row],[Nivel 5]]&Tabla2[[#This Row],[Nivel 6]]&Tabla2[[#This Row],[Nivel 7]]","v":"3.305.03.01.03.01.01."}]
[null,"3.","305.","03.","01.","03.","01.","02.","Sociedades de Corretaje de Seguros, de Reaseguros o de Valores","SI",null,{"$f":"+Tabla2[[#This Row],[Nivel 1]]&Tabla2[[#This Row],[Nivel 2]]&Tabla2[[#This Row],[Nivel 3]]&Tabla2[[#This Row],[Nivel 4]]&Tabla2[[#This Row],[Nivel 5]]&Tabla2[[#This Row],[Nivel 6]]&Tabla2[[#This Row],[Nivel 7]]","v":"3.305.03.01.03.01.02."}]
[null,"3.","305.","03.","01.","03.","01.","03.","Bancos y Otras Instituciones Financieras","SI",null,{"$f":"+Tabla2[[#This Row],[Nivel 1]]&Tabla2[[#This Row],[Nivel 2]]&Tabla2[[#This Row],[Nivel 3]]&Tabla2[[#This Row],[Nivel 4]]&Tabla2[[#This Row],[Nivel 5]]&Tabla2[[#This Row],[Nivel 6]]&Tabla2[[#This Row],[Nivel 7]]","v":"3.305.03.01.03.01.03."}]
[null,"3.","305.","03.","01.","03.","01.","04.","Sociedades Industriales y Comerciales","SI",null,{"$f":"+Tabla2[[#This Row],[Nivel 1]]&Tabla2[[#This Row],[Nivel 2]]&Tabla2[[#This Row],[Nivel 3]]&Tabla2[[#This Row],[Nivel 4]]&Tabla2[[#This Row],[Nivel 5]]&Tabla2[[#This Row],[Nivel 6]]&Tabla2[[#This Row],[Nivel 7]]","v":"3.305.03.01.03.01.04."}]
[null,"3.","305.","03.","01.","03.","01.","05.","Sociedades Civiles","SI",null,{"$f":"+Tabla2[[#This Row],[Nivel 1]]&Tabla2[[#This Row],[Nivel 2]]&Tabla2[[#This Row],[Nivel 3]]&Tabla2[[#This Row],[Nivel 4]]&Tabla2[[#This Row],[Nivel 5]]&Tabla2[[#This Row],[Nivel 6]]&Tabla2[[#This Row],[Nivel 7]]","v":"3.305.03.01.03.01.05."}]
[null,"3.","305.","03.","01.","03.","01.","06.","Empresas Filiales, Afiliadas y Relacionadas","SI",null,{"$f":"+Tabla2[[#This Row],[Nivel 1]]&Tabla2[[#This Row],[Nivel 2]]&Tabla2[[#This Row],[Nivel 3]]&Tabla2[[#This Row],[Nivel 4]]&Tabla2[[#This Row],[Nivel 5]]&Tabla2[[#This Row],[Nivel 6]]&Tabla2[[#This Row],[Nivel 7]]","v":"3.305.03.01.03.01.06."}]
[null,"3.","305.","03.","01.","03.","01.","07.","Otras Sociedades Anónimas","SI",null,{"$f":"+Tabla2[[#This Row],[Nivel 1]]&Tabla2[[#This Row],[Nivel 2]]&Tabla2[[#This Row],[Nivel 3]]&Tabla2[[#This Row],[Nivel 4]]&Tabla2[[#This Row],[Nivel 5]]&Tabla2[[#This Row],[Nivel 6]]&Tabla2[[#This Row],[Nivel 7]]","v":"3.305.03.01.03.01.07."}]
[null,"3.","305.","03.","01.","03.","02.",null,"Bonos de Sociedades Anónimas","SI",null,{"$f":"+Tabla2[[#This Row],[Nivel 1]]&Tabla2[[#This Row],[Nivel 2]]&Tabla2[[#This Row],[Nivel 3]]&Tabla2[[#This Row],[Nivel 4]]&Tabla2[[#This Row],[Nivel 5]]&Tabla2[[#This Row],[Nivel 6]]&Tabla2[[#This Row],[Nivel 7]]","v":"3.305.03.01.03.02."}]
[null,"3.","305.","03.","01.","03.","03.",null,"Otras Inversiones emitidas por el Sector Privado.","SI",null,{"$f":"+Tabla2[[#This Row],[Nivel 1]]&Tabla2[[#This Row],[Nivel 2]]&Tabla2[[#This Row],[Nivel 3]]&Tabla2[[#This Row],[Nivel 4]]&Tabla2[[#This Row],[Nivel 5]]&Tabla2[[#This Row],[Nivel 6]]&Tabla2[[#This Row],[Nivel 7]]","v":"3.305.03.01.03.03."}]
[null,"3.","305.","03.","01.","04.",null,null,"Activos en el Extranjero","NO",null,{"$f":"+Tabla2[[#This Row],[Nivel 1]]&Tabla2[[#This Row],[Nivel 2]]&Tabla2[[#This Row],[Nivel 3]]&Tabla2[[#This Row],[Nivel 4]]&Tabla2[[#This Row],[Nivel 5]]&Tabla2[[#This Row],[Nivel 6]]&Tabla2[[#This Row],[Nivel 7]]","v":"3.305.03.01.04."}]
[null,"3.","305.","03.","01.","04.","01.",null,"Titulos Valores","SI",null,{"$f":"+Tabla2[[#This Row],[Nivel 1]]&Tabla2[[#This Row],[Nivel 2]]&Tabla2[[#This Row],[Nivel 3]]&Tabla2[[#This Row],[Nivel 4]]&Tabla2[[#This Row],[Nivel 5]]&Tabla2[[#This Row],[Nivel 6]]&Tabla2[[#This Row],[Nivel 7]]","v":"3.305.03.01.04.01."}]
[null,"3.","305.","03.","01.","05.",null,null,"Depósitos y Títulos Valores en Instituciones Intervenidas","SI",null,{"$f":"+Tabla2[[#This Row],[Nivel 1]]&Tabla2[[#This Row],[Nivel 2]]&Tabla2[[#This Row],[Nivel 3]]&Tabla2[[#This Row],[Nivel 4]]&Tabla2[[#This Row],[Nivel 5]]&Tabla2[[#This Row],[Nivel 6]]&Tabla2[[#This Row],[Nivel 7]]","v":"3.305.03.01.05."}]
[null,"3.","305.","03.","02.",null,null,null,"Bienes","NO",null,{"$f":"+Tabla2[[#This Row],[Nivel 1]]&Tabla2[[#This Row],[Nivel 2]]&Tabla2[[#This Row],[Nivel 3]]&Tabla2[[#This Row],[Nivel 4]]&Tabla2[[#This Row],[Nivel 5]]&Tabla2[[#This Row],[Nivel 6]]&Tabla2[[#This Row],[Nivel 7]]","v":"3.305.03.02."}]
[null,"3.","305.","03.","02.","01.",null,null,"Participación Fondos de Inversión Inmobiliarios","SI",null,{"$f":"+Tabla2[[#This Row],[Nivel 1]]&Tabla2[[#This Row],[Nivel 2]]&Tabla2[[#This Row],[Nivel 3]]&Tabla2[[#This Row],[Nivel 4]]&Tabla2[[#This Row],[Nivel 5]]&Tabla2[[#This Row],[Nivel 6]]&Tabla2[[#This Row],[Nivel 7]]","v":"3.305.03.02.01."}]
[null,"3.","305.","03.","02.","02.",null,null,"Activos Depreciables  ","NO","A2-C12",{"$f":"+Tabla2[[#This Row],[Nivel 1]]&Tabla2[[#This Row],[Nivel 2]]&Tabla2[[#This Row],[Nivel 3]]&Tabla2[[#This Row],[Nivel 4]]&Tabla2[[#This Row],[Nivel 5]]&Tabla2[[#This Row],[Nivel 6]]&Tabla2[[#This Row],[Nivel 7]]","v":"3.305.03.02.02."}]
[null,"3.","305.","03.","02.","02.","01.",null,"Terrenos","SI","A2-C12",{"$f":"+Tabla2[[#This Row],[Nivel 1]]&Tabla2[[#This Row],[Nivel 2]]&Tabla2[[#This Row],[Nivel 3]]&Tabla2[[#This Row],[Nivel 4]]&Tabla2[[#This Row],[Nivel 5]]&Tabla2[[#This Row],[Nivel 6]]&Tabla2[[#This Row],[Nivel 7]]","v":"3.305.03.02.02.01."}]
[null,"3.","305.","03.","02.","02.","02.",null,"Edificaciones","SI","A2-C12",{"$f":"+Tabla2[[#This Row],[Nivel 1]]&Tabla2[[#This Row],[Nivel 2]]&Tabla2[[#This Row],[Nivel 3]]&Tabla2[[#This Row],[Nivel 4]]&Tabla2[[#This Row],[Nivel 5]]&Tabla2[[#This Row],[Nivel 6]]&Tabla2[[#This Row],[Nivel 7]]","v":"3.305.03.02.02.02."}]
[null,"3.","305.","03.","02.","03.",null,null,"Activos en el Extranjero","NO",null,{"$f":"+Tabla2[[#This Row],[Nivel 1]]&Tabla2[[#This Row],[Nivel 2]]&Tabla2[[#This Row],[Nivel 3]]&Tabla2[[#This Row],[Nivel 4]]&Tabla2[[#This Row],[Nivel 5]]&Tabla2[[#This Row],[Nivel 6]]&Tabla2[[#This Row],[Nivel 7]]","v":"3.305.03.02.03."}]
[null,"3.","305.","03.","02.","03.","01.",null,"Inmuebles ","SI",null,{"$f":"+Tabla2[[#This Row],[Nivel 1]]&Tabla2[[#This Row],[Nivel 2]]&Tabla2[[#This Row],[Nivel 3]]&Tabla2[[#This Row],[Nivel 4]]&Tabla2[[#This Row],[Nivel 5]]&Tabla2[[#This Row],[Nivel 6]]&Tabla2[[#This Row],[Nivel 7]]","v":"3.305.03.02.03.01."}]
[null,"3.","305.","03.","02.","03.","02.",null,"Otras Inversiones ","SI",null,{"$f":"+Tabla2[[#This Row],[Nivel 1]]&Tabla2[[#This Row],[Nivel 2]]&Tabla2[[#This Row],[Nivel 3]]&Tabla2[[#This Row],[Nivel 4]]&Tabla2[[#This Row],[Nivel 5]]&Tabla2[[#This Row],[Nivel 6]]&Tabla2[[#This Row],[Nivel 7]]","v":"3.305.03.02.03.02."}]
[null,"4.",null,null,null,null,null,null,"PATRIMONIO","NO",null,{"$f":"+Tabla2[[#This Row],[Nivel 1]]&Tabla2[[#This Row],[Nivel 2]]&Tabla2[[#This Row],[Nivel 3]]&Tabla2[[#This Row],[Nivel 4]]&Tabla2[[#This Row],[Nivel 5]]&Tabla2[[#This Row],[Nivel 6]]&Tabla2[[#This Row],[Nivel 7]]","v":"4."}]
[null,"4.","401.",null,null,null,null,null,"Capital Pagado","SI","A9",{"$f":"+Tabla2[[#This Row],[Nivel 1]]&Tabla2[[#This Row],[Nivel 2]]&Tabla2[[#This Row],[Nivel 3]]&Tabla2[[#This Row],[Nivel 4]]&Tabla2[[#This Row],[Nivel 5]]&Tabla2[[#This Row],[Nivel 6]]&Tabla2[[#This Row],[Nivel 7]]","v":"4.401."}]
[null,"4.","402.",null,null,null,null,null,"Superávit Ganado","NO",null,{"$f":"+Tabla2[[#This Row],[Nivel 1]]&Tabla2[[#This Row],[Nivel 2]]&Tabla2[[#This Row],[Nivel 3]]&Tabla2[[#This Row],[Nivel 4]]&Tabla2[[#This Row],[Nivel 5]]&Tabla2[[#This Row],[Nivel 6]]&Tabla2[[#This Row],[Nivel 7]]","v":"4.402."}]
[null,"4.","402.","01.",null,null,null,null,"Reserva Legal","SI",null,{"$f":"+Tabla2[[#This Row],[Nivel 1]]&Tabla2[[#This Row],[Nivel 2]]&Tabla2[[#This Row],[Nivel 3]]&Tabla2[[#This Row],[Nivel 4]]&Tabla2[[#This Row],[Nivel 5]]&Tabla2[[#This Row],[Nivel 6]]&Tabla2[[#This Row],[Nivel 7]]","v":"4.402.01."}]
[null,"4.","402.","02.",null,null,null,null,"Reservas Estatutarias","SI",null,{"$f":"+Tabla2[[#This Row],[Nivel 1]]&Tabla2[[#This Row],[Nivel 2]]&Tabla2[[#This Row],[Nivel 3]]&Tabla2[[#This Row],[Nivel 4]]&Tabla2[[#This Row],[Nivel 5]]&Tabla2[[#This Row],[Nivel 6]]&Tabla2[[#This Row],[Nivel 7]]","v":"4.402.02."}]
[null,"4.","402.","03.",null,null,null,null,"Reservas Voluntarias","SI",null,{"$f":"+Tabla2[[#This Row],[Nivel 1]]&Tabla2[[#This Row],[Nivel 2]]&Tabla2[[#This Row],[Nivel 3]]&Tabla2[[#This Row],[Nivel 4]]&Tabla2[[#This Row],[Nivel 5]]&Tabla2[[#This Row],[Nivel 6]]&Tabla2[[#This Row],[Nivel 7]]","v":"4.402.03."}]
[null,"4.","402.","04.",null,null,null,null,"Utilidades No Distribuidas","SI",null,{"$f":"+Tabla2[[#This Row],[Nivel 1]]&Tabla2[[#This Row],[Nivel 2]]&Tabla2[[#This Row],[Nivel 3]]&Tabla2[[#This Row],[Nivel 4]]&Tabla2[[#This Row],[Nivel 5]]&Tabla2[[#This Row],[Nivel 6]]&Tabla2[[#This Row],[Nivel 7]]","v":"4.402.04."}]
[null,"4.","403.",null,null,null,null,null,"Utilidad","NO",null,{"$f":"+Tabla2[[#This Row],[Nivel 1]]&Tabla2[[#This Row],[Nivel 2]]&Tabla2[[#This Row],[Nivel 3]]&Tabla2[[#This Row],[Nivel 4]]&Tabla2[[#This Row],[Nivel 5]]&Tabla2[[#This Row],[Nivel 6]]&Tabla2[[#This Row],[Nivel 7]]","v":"4.403."}]
[null,"4.","403.","01.",null,null,null,null,"Utilidad Del Ejercicio ","SI",null,{"$f":"+Tabla2[[#This Row],[Nivel 1]]&Tabla2[[#This Row],[Nivel 2]]&Tabla2[[#This Row],[Nivel 3]]&Tabla2[[#This Row],[Nivel 4]]&Tabla2[[#This Row],[Nivel 5]]&Tabla2[[#This Row],[Nivel 6]]&Tabla2[[#This Row],[Nivel 7]]","v":"4.403.01."}]
[null,"4.","403.","02.",null,null,null,null,"Saldo de Operaciones - Utilidad","SI",null,{"$f":"+Tabla2[[#This Row],[Nivel 1]]&Tabla2[[#This Row],[Nivel 2]]&Tabla2[[#This Row],[Nivel 3]]&Tabla2[[#This Row],[Nivel 4]]&Tabla2[[#This Row],[Nivel 5]]&Tabla2[[#This Row],[Nivel 6]]&Tabla2[[#This Row],[Nivel 7]]","v":"4.403.02."}]
[null,"4.","404.",null,null,null,null,null,"Pérdidas ","NO",null,{"$f":"+Tabla2[[#This Row],[Nivel 1]]&Tabla2[[#This Row],[Nivel 2]]&Tabla2[[#This Row],[Nivel 3]]&Tabla2[[#This Row],[Nivel 4]]&Tabla2[[#This Row],[Nivel 5]]&Tabla2[[#This Row],[Nivel 6]]&Tabla2[[#This Row],[Nivel 7]]","v":"4.404."}]
[null,"4.","404.","01.",null,null,null,null,"Pérdida Del Ejercicio ","SI",null,{"$f":"+Tabla2[[#This Row],[Nivel 1]]&Tabla2[[#This Row],[Nivel 2]]&Tabla2[[#This Row],[Nivel 3]]&Tabla2[[#This Row],[Nivel 4]]&Tabla2[[#This Row],[Nivel 5]]&Tabla2[[#This Row],[Nivel 6]]&Tabla2[[#This Row],[Nivel 7]]","v":"4.404.01."}]
[null,"4.","404.","02.",null,null,null,null,"Pérdidas De Ejercicios Anteriores","SI",null,{"$f":"+Tabla2[[#This Row],[Nivel 1]]&Tabla2[[#This Row],[Nivel 2]]&Tabla2[[#This Row],[Nivel 3]]&Tabla2[[#This Row],[Nivel 4]]&Tabla2[[#This Row],[Nivel 5]]&Tabla2[[#This Row],[Nivel 6]]&Tabla2[[#This Row],[Nivel 7]]","v":"4.404.02."}]
[null,"4.","404.","03.",null,null,null,null,"Saldo de Operaciones - Pérdida","SI",null,{"$f":"+Tabla2[[#This Row],[Nivel 1]]&Tabla2[[#This Row],[Nivel 2]]&Tabla2[[#This Row],[Nivel 3]]&Tabla2[[#This Row],[Nivel 4]]&Tabla2[[#This Row],[Nivel 5]]&Tabla2[[#This Row],[Nivel 6]]&Tabla2[[#This Row],[Nivel 7]]","v":"4.404.03."}]
[null,"4.","405.",null,null,null,null,null,"Aportes No Capitalizados","NO",null,{"$f":"+Tabla2[[#This Row],[Nivel 1]]&Tabla2[[#This Row],[Nivel 2]]&Tabla2[[#This Row],[Nivel 3]]&Tabla2[[#This Row],[Nivel 4]]&Tabla2[[#This Row],[Nivel 5]]&Tabla2[[#This Row],[Nivel 6]]&Tabla2[[#This Row],[Nivel 7]]","v":"4.405."}]
[null,"4.","405.","01.",null,null,null,null,"Efectivo","SI",null,{"$f":"+Tabla2[[#This Row],[Nivel 1]]&Tabla2[[#This Row],[Nivel 2]]&Tabla2[[#This Row],[Nivel 3]]&Tabla2[[#This Row],[Nivel 4]]&Tabla2[[#This Row],[Nivel 5]]&Tabla2[[#This Row],[Nivel 6]]&Tabla2[[#This Row],[Nivel 7]]","v":"4.405.01."}]
[null,"4.","405.","02.",null,null,null,null,"Títulos del Estado Venezolano indexados ","SI",null,{"$f":"+Tabla2[[#This Row],[Nivel 1]]&Tabla2[[#This Row],[Nivel 2]]&Tabla2[[#This Row],[Nivel 3]]&Tabla2[[#This Row],[Nivel 4]]&Tabla2[[#This Row],[Nivel 5]]&Tabla2[[#This Row],[Nivel 6]]&Tabla2[[#This Row],[Nivel 7]]","v":"4.405.02."}]
[null,"4.","406.",null,null,null,null,null,"Superávit no Realizado","NO",null,{"$f":"+Tabla2[[#This Row],[Nivel 1]]&Tabla2[[#This Row],[Nivel 2]]&Tabla2[[#This Row],[Nivel 3]]&Tabla2[[#This Row],[Nivel 4]]&Tabla2[[#This Row],[Nivel 5]]&Tabla2[[#This Row],[Nivel 6]]&Tabla2[[#This Row],[Nivel 7]]","v":"4.406."}]
[null,"4.","406.","01.",null,null,null,null,"Reservas para Revalorización de Valores","NO",null,{"$f":"+Tabla2[[#This Row],[Nivel 1]]&Tabla2[[#This Row],[Nivel 2]]&Tabla2[[#This Row],[Nivel 3]]&Tabla2[[#This Row],[Nivel 4]]&Tabla2[[#This Row],[Nivel 5]]&Tabla2[[#This Row],[Nivel 6]]&Tabla2[[#This Row],[Nivel 7]]","v":"4.406.01."}]
[null,"4.","406.","01.","01.",null,null,null,"Valores Publicos","NO",null,{"$f":"+Tabla2[[#This Row],[Nivel 1]]&Tabla2[[#This Row],[Nivel 2]]&Tabla2[[#This Row],[Nivel 3]]&Tabla2[[#This Row],[Nivel 4]]&Tabla2[[#This Row],[Nivel 5]]&Tabla2[[#This Row],[Nivel 6]]&Tabla2[[#This Row],[Nivel 7]]","v":"4.406.01.01."}]
[null,"4.","406.","01.","01.","01.",null,null,"Emitidos o Garantizados por la República","SI",null,{"$f":"+Tabla2[[#This Row],[Nivel 1]]&Tabla2[[#This Row],[Nivel 2]]&Tabla2[[#This Row],[Nivel 3]]&Tabla2[[#This Row],[Nivel 4]]&Tabla2[[#This Row],[Nivel 5]]&Tabla2[[#This Row],[Nivel 6]]&Tabla2[[#This Row],[Nivel 7]]","v":"4.406.01.01.01."}]
[null,"4.","406.","01.","01.","02.",null,null,"Emitidos por Otros Sujetos de Derecho Público Nacional","SI",null,{"$f":"+Tabla2[[#This Row],[Nivel 1]]&Tabla2[[#This Row],[Nivel 2]]&Tabla2[[#This Row],[Nivel 3]]&Tabla2[[#This Row],[Nivel 4]]&Tabla2[[#This Row],[Nivel 5]]&Tabla2[[#This Row],[Nivel 6]]&Tabla2[[#This Row],[Nivel 7]]","v":"4.406.01.01.02."}]
[null,"4.","406.","01.","01.","03.",null,null,"Emitidos por Empresas con Participación de la República","SI",null,{"$f":"+Tabla2[[#This Row],[Nivel 1]]&Tabla2[[#This Row],[Nivel 2]]&Tabla2[[#This Row],[Nivel 3]]&Tabla2[[#This Row],[Nivel 4]]&Tabla2[[#This Row],[Nivel 5]]&Tabla2[[#This Row],[Nivel 6]]&Tabla2[[#This Row],[Nivel 7]]","v":"4.406.01.01.03."}]
[null,"4.","406.","01.","01.","04.",null,null,"Emitidos por Instituciones con Participación de la República","SI",null,{"$f":"+Tabla2[[#This Row],[Nivel 1]]&Tabla2[[#This Row],[Nivel 2]]&Tabla2[[#This Row],[Nivel 3]]&Tabla2[[#This Row],[Nivel 4]]&Tabla2[[#This Row],[Nivel 5]]&Tabla2[[#This Row],[Nivel 6]]&Tabla2[[#This Row],[Nivel 7]]","v":"4.406.01.01.04."}]
[null,"4.","406.","01.","02.",null,null,null,"Reservas para Revalorización de Fondos de Inversión","NO",null,{"$f":"+Tabla2[[#This Row],[Nivel 1]]&Tabla2[[#This Row],[Nivel 2]]&Tabla2[[#This Row],[Nivel 3]]&Tabla2[[#This Row],[Nivel 4]]&Tabla2[[#This Row],[Nivel 5]]&Tabla2[[#This Row],[Nivel 6]]&Tabla2[[#This Row],[Nivel 7]]","v":"4.406.01.02."}]
[null,"4.","406.","01.","02.","01.",null,null,"Participación en Fondos de Inversión","SI",null,{"$f":"+Tabla2[[#This Row],[Nivel 1]]&Tabla2[[#This Row],[Nivel 2]]&Tabla2[[#This Row],[Nivel 3]]&Tabla2[[#This Row],[Nivel 4]]&Tabla2[[#This Row],[Nivel 5]]&Tabla2[[#This Row],[Nivel 6]]&Tabla2[[#This Row],[Nivel 7]]","v":"4.406.01.02.01."}]
[null,"4.","406.","01.","02.","02.",null,null,"Participación Fondos de Inversión Inmobiliarios","SI",null,{"$f":"+Tabla2[[#This Row],[Nivel 1]]&Tabla2[[#This Row],[Nivel 2]]&Tabla2[[#This Row],[Nivel 3]]&Tabla2[[#This Row],[Nivel 4]]&Tabla2[[#This Row],[Nivel 5]]&Tabla2[[#This Row],[Nivel 6]]&Tabla2[[#This Row],[Nivel 7]]","v":"4.406.01.02.02."}]
[null,"4.","406.","01.","03.",null,null,null,"Valores Privados","NO",null,{"$f":"+Tabla2[[#This Row],[Nivel 1]]&Tabla2[[#This Row],[Nivel 2]]&Tabla2[[#This Row],[Nivel 3]]&Tabla2[[#This Row],[Nivel 4]]&Tabla2[[#This Row],[Nivel 5]]&Tabla2[[#This Row],[Nivel 6]]&Tabla2[[#This Row],[Nivel 7]]","v":"4.406.01.03."}]
[null,"4.","406.","01.","03.","01.",null,null,"Acciones de Sociedades Anónimas","NO",null,{"$f":"+Tabla2[[#This Row],[Nivel 1]]&Tabla2[[#This Row],[Nivel 2]]&Tabla2[[#This Row],[Nivel 3]]&Tabla2[[#This Row],[Nivel 4]]&Tabla2[[#This Row],[Nivel 5]]&Tabla2[[#This Row],[Nivel 6]]&Tabla2[[#This Row],[Nivel 7]]","v":"4.406.01.03.01."}]
[null,"4.","406.","01.","03.","01.","01.",null,"Empresas de Seguros o Reaseguros","SI",null,{"$f":"+Tabla2[[#This Row],[Nivel 1]]&Tabla2[[#This Row],[Nivel 2]]&Tabla2[[#This Row],[Nivel 3]]&Tabla2[[#This Row],[Nivel 4]]&Tabla2[[#This Row],[Nivel 5]]&Tabla2[[#This Row],[Nivel 6]]&Tabla2[[#This Row],[Nivel 7]]","v":"4.406.01.03.01.01."}]
[null,"4.","406.","01.","03.","01.","02.",null,"Sociedades de Corretaje de Seguros, de Reaseguros o de Valores","SI",null,{"$f":"+Tabla2[[#This Row],[Nivel 1]]&Tabla2[[#This Row],[Nivel 2]]&Tabla2[[#This Row],[Nivel 3]]&Tabla2[[#This Row],[Nivel 4]]&Tabla2[[#This Row],[Nivel 5]]&Tabla2[[#This Row],[Nivel 6]]&Tabla2[[#This Row],[Nivel 7]]","v":"4.406.01.03.01.02."}]
[null,"4.","406.","01.","03.","01.","03.",null,"Bancos y Otras Instituciones Financieras","SI",null,{"$f":"+Tabla2[[#This Row],[Nivel 1]]&Tabla2[[#This Row],[Nivel 2]]&Tabla2[[#This Row],[Nivel 3]]&Tabla2[[#This Row],[Nivel 4]]&Tabla2[[#This Row],[Nivel 5]]&Tabla2[[#This Row],[Nivel 6]]&Tabla2[[#This Row],[Nivel 7]]","v":"4.406.01.03.01.03."}]
[null,"4.","406.","01.","03.","01.","04.",null,"Sociedades Industriales y Comerciales","SI",null,{"$f":"+Tabla2[[#This Row],[Nivel 1]]&Tabla2[[#This Row],[Nivel 2]]&Tabla2[[#This Row],[Nivel 3]]&Tabla2[[#This Row],[Nivel 4]]&Tabla2[[#This Row],[Nivel 5]]&Tabla2[[#This Row],[Nivel 6]]&Tabla2[[#This Row],[Nivel 7]]","v":"4.406.01.03.01.04."}]
[null,"4.","406.","01.","03.","01.","05.",null,"Sociedades Civiles","SI",null,{"$f":"+Tabla2[[#This Row],[Nivel 1]]&Tabla2[[#This Row],[Nivel 2]]&Tabla2[[#This Row],[Nivel 3]]&Tabla2[[#This Row],[Nivel 4]]&Tabla2[[#This Row],[Nivel 5]]&Tabla2[[#This Row],[Nivel 6]]&Tabla2[[#This Row],[Nivel 7]]","v":"4.406.01.03.01.05."}]
[null,"4.","406.","01.","03.","01.","06.",null,"Empresas Filiales, Afiliadas y Relacionadas","SI",null,{"$f":"+Tabla2[[#This Row],[Nivel 1]]&Tabla2[[#This Row],[Nivel 2]]&Tabla2[[#This Row],[Nivel 3]]&Tabla2[[#This Row],[Nivel 4]]&Tabla2[[#This Row],[Nivel 5]]&Tabla2[[#This Row],[Nivel 6]]&Tabla2[[#This Row],[Nivel 7]]","v":"4.406.01.03.01.06."}]
[null,"4.","406.","01.","03.","01.","07.",null,"Otras Sociedades Anónimas","SI",null,{"$f":"+Tabla2[[#This Row],[Nivel 1]]&Tabla2[[#This Row],[Nivel 2]]&Tabla2[[#This Row],[Nivel 3]]&Tabla2[[#This Row],[Nivel 4]]&Tabla2[[#This Row],[Nivel 5]]&Tabla2[[#This Row],[Nivel 6]]&Tabla2[[#This Row],[Nivel 7]]","v":"4.406.01.03.01.07."}]
[null,"4.","406.","01.","03.","02.",null,null,"Bonos de Sociedades Anónimas","SI",null,{"$f":"+Tabla2[[#This Row],[Nivel 1]]&Tabla2[[#This Row],[Nivel 2]]&Tabla2[[#This Row],[Nivel 3]]&Tabla2[[#This Row],[Nivel 4]]&Tabla2[[#This Row],[Nivel 5]]&Tabla2[[#This Row],[Nivel 6]]&Tabla2[[#This Row],[Nivel 7]]","v":"4.406.01.03.02."}]
[null,"4.","406.","01.","03.","03.",null,null,"Otras Inversiones emitidas por el Sector Privado.","SI",null,{"$f":"+Tabla2[[#This Row],[Nivel 1]]&Tabla2[[#This Row],[Nivel 2]]&Tabla2[[#This Row],[Nivel 3]]&Tabla2[[#This Row],[Nivel 4]]&Tabla2[[#This Row],[Nivel 5]]&Tabla2[[#This Row],[Nivel 6]]&Tabla2[[#This Row],[Nivel 7]]","v":"4.406.01.03.03."}]
[null,"4.","406.","01.","04.",null,null,null,"Activos en el Extranjero","NO",null,{"$f":"+Tabla2[[#This Row],[Nivel 1]]&Tabla2[[#This Row],[Nivel 2]]&Tabla2[[#This Row],[Nivel 3]]&Tabla2[[#This Row],[Nivel 4]]&Tabla2[[#This Row],[Nivel 5]]&Tabla2[[#This Row],[Nivel 6]]&Tabla2[[#This Row],[Nivel 7]]","v":"4.406.01.04."}]
[null,"4.","406.","01.","04.","01.",null,null,"Titulos Valores","SI",null,{"$f":"+Tabla2[[#This Row],[Nivel 1]]&Tabla2[[#This Row],[Nivel 2]]&Tabla2[[#This Row],[Nivel 3]]&Tabla2[[#This Row],[Nivel 4]]&Tabla2[[#This Row],[Nivel 5]]&Tabla2[[#This Row],[Nivel 6]]&Tabla2[[#This Row],[Nivel 7]]","v":"4.406.01.04.01."}]
[null,"4.","406.","02.",null,null,null,null,"Reservas para Revalorización de Inmuebles","NO","A2-C13",{"$f":"+Tabla2[[#This Row],[Nivel 1]]&Tabla2[[#This Row],[Nivel 2]]&Tabla2[[#This Row],[Nivel 3]]&Tabla2[[#This Row],[Nivel 4]]&Tabla2[[#This Row],[Nivel 5]]&Tabla2[[#This Row],[Nivel 6]]&Tabla2[[#This Row],[Nivel 7]]","v":"4.406.02."}]
[null,"4.","406.","02.","01.",null,null,null,"Terrenos","SI","A2-C13",{"$f":"+Tabla2[[#This Row],[Nivel 1]]&Tabla2[[#This Row],[Nivel 2]]&Tabla2[[#This Row],[Nivel 3]]&Tabla2[[#This Row],[Nivel 4]]&Tabla2[[#This Row],[Nivel 5]]&Tabla2[[#This Row],[Nivel 6]]&Tabla2[[#This Row],[Nivel 7]]","v":"4.406.02.01."}]
[null,"4.","406.","02.","02.",null,null,null,"Inmuebles","SI","A2-C13",{"$f":"+Tabla2[[#This Row],[Nivel 1]]&Tabla2[[#This Row],[Nivel 2]]&Tabla2[[#This Row],[Nivel 3]]&Tabla2[[#This Row],[Nivel 4]]&Tabla2[[#This Row],[Nivel 5]]&Tabla2[[#This Row],[Nivel 6]]&Tabla2[[#This Row],[Nivel 7]]","v":"4.406.02.02."}]
[null,"4.","406.","02.","03.",null,null,null,"Otros","SI",null,{"$f":"+Tabla2[[#This Row],[Nivel 1]]&Tabla2[[#This Row],[Nivel 2]]&Tabla2[[#This Row],[Nivel 3]]&Tabla2[[#This Row],[Nivel 4]]&Tabla2[[#This Row],[Nivel 5]]&Tabla2[[#This Row],[Nivel 6]]&Tabla2[[#This Row],[Nivel 7]]","v":"4.406.02.03."}]
[null,"4.","406.","03.",null,null,null,null,"Reservas para Revalorización de Acervo Artistico","NO",null,{"$f":"+Tabla2[[#This Row],[Nivel 1]]&Tabla2[[#This Row],[Nivel 2]]&Tabla2[[#This Row],[Nivel 3]]&Tabla2[[#This Row],[Nivel 4]]&Tabla2[[#This Row],[Nivel 5]]&Tabla2[[#This Row],[Nivel 6]]&Tabla2[[#This Row],[Nivel 7]]","v":"4.406.03."}]
[null,"4.","406.","03.","01.",null,null,null,"Pinturas","SI",null,{"$f":"+Tabla2[[#This Row],[Nivel 1]]&Tabla2[[#This Row],[Nivel 2]]&Tabla2[[#This Row],[Nivel 3]]&Tabla2[[#This Row],[Nivel 4]]&Tabla2[[#This Row],[Nivel 5]]&Tabla2[[#This Row],[Nivel 6]]&Tabla2[[#This Row],[Nivel 7]]","v":"4.406.03.01."}]
[null,"4.","406.","03.","02.",null,null,null,"Esculturas","SI",null,{"$f":"+Tabla2[[#This Row],[Nivel 1]]&Tabla2[[#This Row],[Nivel 2]]&Tabla2[[#This Row],[Nivel 3]]&Tabla2[[#This Row],[Nivel 4]]&Tabla2[[#This Row],[Nivel 5]]&Tabla2[[#This Row],[Nivel 6]]&Tabla2[[#This Row],[Nivel 7]]","v":"4.406.03.02."}]
[null,"4.","406.","03.","03.",null,null,null,"Otros","SI",null,{"$f":"+Tabla2[[#This Row],[Nivel 1]]&Tabla2[[#This Row],[Nivel 2]]&Tabla2[[#This Row],[Nivel 3]]&Tabla2[[#This Row],[Nivel 4]]&Tabla2[[#This Row],[Nivel 5]]&Tabla2[[#This Row],[Nivel 6]]&Tabla2[[#This Row],[Nivel 7]]","v":"4.406.03.03."}]
[null,null,null,null,null,null,null,null,"TOTAL PASIVO Y PATRIMONIO","NO",null,{"$f":"+Tabla2[[#This Row],[Nivel 1]]&Tabla2[[#This Row],[Nivel 2]]&Tabla2[[#This Row],[Nivel 3]]&Tabla2[[#This Row],[Nivel 4]]&Tabla2[[#This Row],[Nivel 5]]&Tabla2[[#This Row],[Nivel 6]]&Tabla2[[#This Row],[Nivel 7]]","v":""}]
[null,"5.",null,null,null,null,null,null,"CUENTAS DE ORDEN","NO",null,{"$f":"+Tabla2[[#This Row],[Nivel 1]]&Tabla2[[#This Row],[Nivel 2]]&Tabla2[[#This Row],[Nivel 3]]&Tabla2[[#This Row],[Nivel 4]]&Tabla2[[#This Row],[Nivel 5]]&Tabla2[[#This Row],[Nivel 6]]&Tabla2[[#This Row],[Nivel 7]]","v":"5."}]
[null,"5.","501.",null,null,null,null,null,"EFECTOS ENVIADOS AL COBRO","NO",null,{"$f":"+Tabla2[[#This Row],[Nivel 1]]&Tabla2[[#This Row],[Nivel 2]]&Tabla2[[#This Row],[Nivel 3]]&Tabla2[[#This Row],[Nivel 4]]&Tabla2[[#This Row],[Nivel 5]]&Tabla2[[#This Row],[Nivel 6]]&Tabla2[[#This Row],[Nivel 7]]","v":"5.501."}]
[null,"5.","501.","01.",null,null,null,null,"Financiamientos sobre Primas","SI",null,{"$f":"+Tabla2[[#This Row],[Nivel 1]]&Tabla2[[#This Row],[Nivel 2]]&Tabla2[[#This Row],[Nivel 3]]&Tabla2[[#This Row],[Nivel 4]]&Tabla2[[#This Row],[Nivel 5]]&Tabla2[[#This Row],[Nivel 6]]&Tabla2[[#This Row],[Nivel 7]]","v":"5.501.01."}]
[null,"5.","501.","02.",null,null,null,null,"Financiamientos sobre Cuotas","SI",null,{"$f":"+Tabla2[[#This Row],[Nivel 1]]&Tabla2[[#This Row],[Nivel 2]]&Tabla2[[#This Row],[Nivel 3]]&Tabla2[[#This Row],[Nivel 4]]&Tabla2[[#This Row],[Nivel 5]]&Tabla2[[#This Row],[Nivel 6]]&Tabla2[[#This Row],[Nivel 7]]","v":"5.501.02."}]
[null,"5.","502.",null,null,null,null,null,"DEPÓSITOS RECIBIDOS EN GARANTÍA","NO",null,{"$f":"+Tabla2[[#This Row],[Nivel 1]]&Tabla2[[#This Row],[Nivel 2]]&Tabla2[[#This Row],[Nivel 3]]&Tabla2[[#This Row],[Nivel 4]]&Tabla2[[#This Row],[Nivel 5]]&Tabla2[[#This Row],[Nivel 6]]&Tabla2[[#This Row],[Nivel 7]]","v":"5.502."}]
[null,"5.","502.","01.",null,null,null,null,"Bancos","SI",null,{"$f":"+Tabla2[[#This Row],[Nivel 1]]&Tabla2[[#This Row],[Nivel 2]]&Tabla2[[#This Row],[Nivel 3]]&Tabla2[[#This Row],[Nivel 4]]&Tabla2[[#This Row],[Nivel 5]]&Tabla2[[#This Row],[Nivel 6]]&Tabla2[[#This Row],[Nivel 7]]","v":"5.502.01."}]
[null,"5.","502.","02.",null,null,null,null,"Otras Inversiones","SI",null,{"$f":"+Tabla2[[#This Row],[Nivel 1]]&Tabla2[[#This Row],[Nivel 2]]&Tabla2[[#This Row],[Nivel 3]]&Tabla2[[#This Row],[Nivel 4]]&Tabla2[[#This Row],[Nivel 5]]&Tabla2[[#This Row],[Nivel 6]]&Tabla2[[#This Row],[Nivel 7]]","v":"5.502.02."}]
[null,"5.","503.",null,null,null,null,null,"FIDEICOMISO - TRABAJADORES DE LA EMPRESA FINANCIADORA DE PRIMAS","NO",null,{"$f":"+Tabla2[[#This Row],[Nivel 1]]&Tabla2[[#This Row],[Nivel 2]]&Tabla2[[#This Row],[Nivel 3]]&Tabla2[[#This Row],[Nivel 4]]&Tabla2[[#This Row],[Nivel 5]]&Tabla2[[#This Row],[Nivel 6]]&Tabla2[[#This Row],[Nivel 7]]","v":"5.503."}]
[null,"5.","503.","01.",null,null,null,null,"Prestaciones Sociales","SI",null,{"$f":"+Tabla2[[#This Row],[Nivel 1]]&Tabla2[[#This Row],[Nivel 2]]&Tabla2[[#This Row],[Nivel 3]]&Tabla2[[#This Row],[Nivel 4]]&Tabla2[[#This Row],[Nivel 5]]&Tabla2[[#This Row],[Nivel 6]]&Tabla2[[#This Row],[Nivel 7]]","v":"5.503.01."}]
[null,"5.","503.","02.",null,null,null,null,"Otros","SI",null,{"$f":"+Tabla2[[#This Row],[Nivel 1]]&Tabla2[[#This Row],[Nivel 2]]&Tabla2[[#This Row],[Nivel 3]]&Tabla2[[#This Row],[Nivel 4]]&Tabla2[[#This Row],[Nivel 5]]&Tabla2[[#This Row],[Nivel 6]]&Tabla2[[#This Row],[Nivel 7]]","v":"5.503.02."}]
[null,null,null,null,null,null,null,null,"TOTAL CUENTAS DE ORDEN","NO"]

{"sheet":"Egreso Analitico","index":2,"n_rows":253,"n_cols":12,"rows_kept":253,"cut":false,"hidden":false,"merged":[]}
[null,"EMPRESA FINANCIADORA DE PRIMAS O CUOTAS"]
[null,"EGRESO ANALÍTICO"]
[null,"AL XX/XX/20___"]
[]
[null,"Nivel 1","Nivel 2","Nivel 3","Nivel 4","Nivel 5","Nivel 6","Nivel 7","Nombre de la Cuenta","Admite Monto","Identificador del Anexo","Cuenta Contable"]
[null,"6.",null,null,null,null,null,null,"EGRESO","NO",null,{"$f":"+Tabla3[[#This Row],[Nivel 1]]&Tabla3[[#This Row],[Nivel 2]]&Tabla3[[#This Row],[Nivel 3]]&Tabla3[[#This Row],[Nivel 4]]&Tabla3[[#This Row],[Nivel 5]]&Tabla3[[#This Row],[Nivel 6]]&Tabla3[[#This Row],[Nivel 7]]","v":"6."}]
[null,"6.","601.",null,null,null,null,null,"GASTOS POR FINANCIAMIENTO DE PRIMAS O CUOTAS","NO",null,{"$f":"+Tabla3[[#This Row],[Nivel 1]]&Tabla3[[#This Row],[Nivel 2]]&Tabla3[[#This Row],[Nivel 3]]&Tabla3[[#This Row],[Nivel 4]]&Tabla3[[#This Row],[Nivel 5]]&Tabla3[[#This Row],[Nivel 6]]&Tabla3[[#This Row],[Nivel 7]]","v":"6.601."}]
[null,"6.","601.","01.",null,null,null,null,"Administrativos","SI",null,{"$f":"+Tabla3[[#This Row],[Nivel 1]]&Tabla3[[#This Row],[Nivel 2]]&Tabla3[[#This Row],[Nivel 3]]&Tabla3[[#This Row],[Nivel 4]]&Tabla3[[#This Row],[Nivel 5]]&Tabla3[[#This Row],[Nivel 6]]&Tabla3[[#This Row],[Nivel 7]]","v":"6.601.01."}]
[null,"6.","601.","02.",null,null,null,null,"Cobranzas","SI",null,{"$f":"+Tabla3[[#This Row],[Nivel 1]]&Tabla3[[#This Row],[Nivel 2]]&Tabla3[[#This Row],[Nivel 3]]&Tabla3[[#This Row],[Nivel 4]]&Tabla3[[#This Row],[Nivel 5]]&Tabla3[[#This Row],[Nivel 6]]&Tabla3[[#This Row],[Nivel 7]]","v":"6.601.02."}]
[null,"6.","601.","03.",null,null,null,null,"Devoluciones y Anulaciones por Financiamiento","SI",null,{"$f":"+Tabla3[[#This Row],[Nivel 1]]&Tabla3[[#This Row],[Nivel 2]]&Tabla3[[#This Row],[Nivel 3]]&Tabla3[[#This Row],[Nivel 4]]&Tabla3[[#This Row],[Nivel 5]]&Tabla3[[#This Row],[Nivel 6]]&Tabla3[[#This Row],[Nivel 7]]","v":"6.601.03."}]
[null,"6.","602.",null,null,null,null,null,"GESTIÓN GENERAL DE LA EMPRESA","NO",null,{"$f":"+Tabla3[[#This Row],[Nivel 1]]&Tabla3[[#This Row],[Nivel 2]]&Tabla3[[#This Row],[Nivel 3]]&Tabla3[[#This Row],[Nivel 4]]&Tabla3[[#This Row],[Nivel 5]]&Tabla3[[#This Row],[Nivel 6]]&Tabla3[[#This Row],[Nivel 7]]","v":"6.602."}]
[null,"6.","602.","01.",null,null,null,null,"GASTOS DE ADMINISTRACIÓN","NO",null,{"$f":"+Tabla3[[#This Row],[Nivel 1]]&Tabla3[[#This Row],[Nivel 2]]&Tabla3[[#This Row],[Nivel 3]]&Tabla3[[#This Row],[Nivel 4]]&Tabla3[[#This Row],[Nivel 5]]&Tabla3[[#This Row],[Nivel 6]]&Tabla3[[#This Row],[Nivel 7]]","v":"6.602.01."}]
[null,"6.","602.","01.","01.",null,null,null,"Gastos de Personal","NO",null,{"$f":"+Tabla3[[#This Row],[Nivel 1]]&Tabla3[[#This Row],[Nivel 2]]&Tabla3[[#This Row],[Nivel 3]]&Tabla3[[#This Row],[Nivel 4]]&Tabla3[[#This Row],[Nivel 5]]&Tabla3[[#This Row],[Nivel 6]]&Tabla3[[#This Row],[Nivel 7]]","v":"6.602.01.01."}]
[null,"6.","602.","01.","01.","01.",null,null,"Sueldos y Salarios","SI",null,{"$f":"+Tabla3[[#This Row],[Nivel 1]]&Tabla3[[#This Row],[Nivel 2]]&Tabla3[[#This Row],[Nivel 3]]&Tabla3[[#This Row],[Nivel 4]]&Tabla3[[#This Row],[Nivel 5]]&Tabla3[[#This Row],[Nivel 6]]&Tabla3[[#This Row],[Nivel 7]]","v":"6.602.01.01.01."}]
[null,"6.","602.","01.","01.","02.",null,null,"Vacaciones","SI",null,{"$f":"+Tabla3[[#This Row],[Nivel 1]]&Tabla3[[#This Row],[Nivel 2]]&Tabla3[[#This Row],[Nivel 3]]&Tabla3[[#This Row],[Nivel 4]]&Tabla3[[#This Row],[Nivel 5]]&Tabla3[[#This Row],[Nivel 6]]&Tabla3[[#This Row],[Nivel 7]]","v":"6.602.01.01.02."}]
[null,"6.","602.","01.","01.","03.",null,null,"Bono Vacacional","SI",null,{"$f":"+Tabla3[[#This Row],[Nivel 1]]&Tabla3[[#This Row],[Nivel 2]]&Tabla3[[#This Row],[Nivel 3]]&Tabla3[[#This Row],[Nivel 4]]&Tabla3[[#This Row],[Nivel 5]]&Tabla3[[#This Row],[Nivel 6]]&Tabla3[[#This Row],[Nivel 7]]","v":"6.602.01.01.03."}]
[null,"6.","602.","01.","01.","04.",null,null,"Bonificaciones Especiales","SI",null,{"$f":"+Tabla3[[#This Row],[Nivel 1]]&Tabla3[[#This Row],[Nivel 2]]&Tabla3[[#This Row],[Nivel 3]]&Tabla3[[#This Row],[Nivel 4]]&Tabla3[[#This Row],[Nivel 5]]&Tabla3[[#This Row],[Nivel 6]]&Tabla3[[#This Row],[Nivel 7]]","v":"6.602.01.01.04."}]
[null,"6.","602.","01.","01.","05.",null,null,"Utilidades o aguinaldos","SI",null,{"$f":"+Tabla3[[#This Row],[Nivel 1]]&Tabla3[[#This Row],[Nivel 2]]&Tabla3[[#This Row],[Nivel 3]]&Tabla3[[#This Row],[Nivel 4]]&Tabla3[[#This Row],[Nivel 5]]&Tabla3[[#This Row],[Nivel 6]]&Tabla3[[#This Row],[Nivel 7]]","v":"6.602.01.01.05."}]
[null,"6.","602.","01.","01.","06.",null,null,"Prestaciones Sociales","SI",null,{"$f":"+Tabla3[[#This Row],[Nivel 1]]&Tabla3[[#This Row],[Nivel 2]]&Tabla3[[#This Row],[Nivel 3]]&Tabla3[[#This Row],[Nivel 4]]&Tabla3[[#This Row],[Nivel 5]]&Tabla3[[#This Row],[Nivel 6]]&Tabla3[[#This Row],[Nivel 7]]","v":"6.602.01.01.06."}]
[null,"6.","602.","01.","01.","07.",null,null,"Intereses Sobre Prestaciones Sociales","SI",null,{"$f":"+Tabla3[[#This Row],[Nivel 1]]&Tabla3[[#This Row],[Nivel 2]]&Tabla3[[#This Row],[Nivel 3]]&Tabla3[[#This Row],[Nivel 4]]&Tabla3[[#This Row],[Nivel 5]]&Tabla3[[#This Row],[Nivel 6]]&Tabla3[[#This Row],[Nivel 7]]","v":"6.602.01.01.07."}]
[null,"6.","602.","01.","01.","08.",null,null,"Otros Gastos del Personal","SI",null,{"$f":"+Tabla3[[#This Row],[Nivel 1]]&Tabla3[[#This Row],[Nivel 2]]&Tabla3[[#This Row],[Nivel 3]]&Tabla3[[#This Row],[Nivel 4]]&Tabla3[[#This Row],[Nivel 5]]&Tabla3[[#This Row],[Nivel 6]]&Tabla3[[#This Row],[Nivel 7]]","v":"6.602.01.01.08."}]
[null,"6.","602.","01.","02.",null,null,null,"Gravámenes y Contribuciones ","NO",null,{"$f":"+Tabla3[[#This Row],[Nivel 1]]&Tabla3[[#This Row],[Nivel 2]]&Tabla3[[#This Row],[Nivel 3]]&Tabla3[[#This Row],[Nivel 4]]&Tabla3[[#This Row],[Nivel 5]]&Tabla3[[#This Row],[Nivel 6]]&Tabla3[[#This Row],[Nivel 7]]","v":"6.602.01.02."}]
[null,"6.","602.","01.","02.","01.",null,null,"Gravámenes","NO",null,{"$f":"+Tabla3[[#This Row],[Nivel 1]]&Tabla3[[#This Row],[Nivel 2]]&Tabla3[[#This Row],[Nivel 3]]&Tabla3[[#This Row],[Nivel 4]]&Tabla3[[#This Row],[Nivel 5]]&Tabla3[[#This Row],[Nivel 6]]&Tabla3[[#This Row],[Nivel 7]]","v":"6.602.01.02.01."}]
[null,"6.","602.","01.","02.","01.","01.",null,"Impuesto Sobre la Renta","SI",null,{"$f":"+Tabla3[[#This Row],[Nivel 1]]&Tabla3[[#This Row],[Nivel 2]]&Tabla3[[#This Row],[Nivel 3]]&Tabla3[[#This Row],[Nivel 4]]&Tabla3[[#This Row],[Nivel 5]]&Tabla3[[#This Row],[Nivel 6]]&Tabla3[[#This Row],[Nivel 7]]","v":"6.602.01.02.01.01."}]
[null,"6.","602.","01.","02.","01.","02.",null,"Impuesto al Valor Agregado","SI",null,{"$f":"+Tabla3[[#This Row],[Nivel 1]]&Tabla3[[#This Row],[Nivel 2]]&Tabla3[[#This Row],[Nivel 3]]&Tabla3[[#This Row],[Nivel 4]]&Tabla3[[#This Row],[Nivel 5]]&Tabla3[[#This Row],[Nivel 6]]&Tabla3[[#This Row],[Nivel 7]]","v":"6.602.01.02.01.02."}]
[null,"6.","602.","01.","02.","01.","03.",null,"Impuesto a las Grandes Transacciones Financieras","SI",null,{"$f":"+Tabla3[[#This Row],[Nivel 1]]&Tabla3[[#This Row],[Nivel 2]]&Tabla3[[#This Row],[Nivel 3]]&Tabla3[[#This Row],[Nivel 4]]&Tabla3[[#This Row],[Nivel 5]]&Tabla3[[#This Row],[Nivel 6]]&Tabla3[[#This Row],[Nivel 7]]","v":"6.602.01.02.01.03."}]
[null,"6.","602.","01.","02.","01.","04.",null,"Impuesto a los Grandes Patrimonios","SI",null,{"$f":"+Tabla3[[#This Row],[Nivel 1]]&Tabla3[[#This Row],[Nivel 2]]&Tabla3[[#This Row],[Nivel 3]]&Tabla3[[#This Row],[Nivel 4]]&Tabla3[[#This Row],[Nivel 5]]&Tabla3[[#This Row],[Nivel 6]]&Tabla3[[#This Row],[Nivel 7]]","v":"6.602.01.02.01.04."}]
[null,"6.","602.","01.","02.","02.",null,null,"Impuestos ","NO",null,{"$f":"+Tabla3[[#This Row],[Nivel 1]]&Tabla3[[#This Row],[Nivel 2]]&Tabla3[[#This Row],[Nivel 3]]&Tabla3[[#This Row],[Nivel 4]]&Tabla3[[#This Row],[Nivel 5]]&Tabla3[[#This Row],[Nivel 6]]&Tabla3[[#This Row],[Nivel 7]]","v":"6.602.01.02.02."}]
[null,"6.","602.","01.","02.","02.","01.",null,"Impuestos Municipales","SI",null,{"$f":"+Tabla3[[#This Row],[Nivel 1]]&Tabla3[[#This Row],[Nivel 2]]&Tabla3[[#This Row],[Nivel 3]]&Tabla3[[#This Row],[Nivel 4]]&Tabla3[[#This Row],[Nivel 5]]&Tabla3[[#This Row],[Nivel 6]]&Tabla3[[#This Row],[Nivel 7]]","v":"6.602.01.02.02.01."}]
[null,"6.","602.","01.","02.","02.","01.","01.","Patente de Industria y Comercio","SI",null,{"$f":"+Tabla3[[#This Row],[Nivel 1]]&Tabla3[[#This Row],[Nivel 2]]&Tabla3[[#This Row],[Nivel 3]]&Tabla3[[#This Row],[Nivel 4]]&Tabla3[[#This Row],[Nivel 5]]&Tabla3[[#This Row],[Nivel 6]]&Tabla3[[#This Row],[Nivel 7]]","v":"6.602.01.02.02.01.01."}]
[null,"6.","602.","01.","02.","02.","01.","02.","Impuesto Inmobiliario Urbano","SI",null,{"$f":"+Tabla3[[#This Row],[Nivel 1]]&Tabla3[[#This Row],[Nivel 2]]&Tabla3[[#This Row],[Nivel 3]]&Tabla3[[#This Row],[Nivel 4]]&Tabla3[[#This Row],[Nivel 5]]&Tabla3[[#This Row],[Nivel 6]]&Tabla3[[#This Row],[Nivel 7]]","v":"6.602.01.02.02.01.02."}]
[null,"6.","602.","01.","02.","02.","01.","03.","Impuesto sobre Publicidad y Propaganda","SI",null,{"$f":"+Tabla3[[#This Row],[Nivel 1]]&Tabla3[[#This Row],[Nivel 2]]&Tabla3[[#This Row],[Nivel 3]]&Tabla3[[#This Row],[Nivel 4]]&Tabla3[[#This Row],[Nivel 5]]&Tabla3[[#This Row],[Nivel 6]]&Tabla3[[#This Row],[Nivel 7]]","v":"6.602.01.02.02.01.03."}]
[null,"6.","602.","01.","02.","02.","01.","04.","Impuesto sobre Circulación de Vehículos","SI",null,{"$f":"+Tabla3[[#This Row],[Nivel 1]]&Tabla3[[#This Row],[Nivel 2]]&Tabla3[[#This Row],[Nivel 3]]&Tabla3[[#This Row],[Nivel 4]]&Tabla3[[#This Row],[Nivel 5]]&Tabla3[[#This Row],[Nivel 6]]&Tabla3[[#This Row],[Nivel 7]]","v":"6.602.01.02.02.01.04."}]
[null,"6.","602.","01.","02.","02.","01.","05.","Otros Impuestos Municipales","SI",null,{"$f":"+Tabla3[[#This Row],[Nivel 1]]&Tabla3[[#This Row],[Nivel 2]]&Tabla3[[#This Row],[Nivel 3]]&Tabla3[[#This Row],[Nivel 4]]&Tabla3[[#This Row],[Nivel 5]]&Tabla3[[#This Row],[Nivel 6]]&Tabla3[[#This Row],[Nivel 7]]","v":"6.602.01.02.02.01.05."}]
[null,"6.","602.","01.","02.","02.","02.",null,"Otros Impuestos","SI",null,{"$f":"+Tabla3[[#This Row],[Nivel 1]]&Tabla3[[#This Row],[Nivel 2]]&Tabla3[[#This Row],[Nivel 3]]&Tabla3[[#This Row],[Nivel 4]]&Tabla3[[#This Row],[Nivel 5]]&Tabla3[[#This Row],[Nivel 6]]&Tabla3[[#This Row],[Nivel 7]]","v":"6.602.01.02.02.02."}]
[null,"6.","602.","01.","02.","03.",null,null,"Contribuciones","NO",null,{"$f":"+Tabla3[[#This Row],[Nivel 1]]&Tabla3[[#This Row],[Nivel 2]]&Tabla3[[#This Row],[Nivel 3]]&Tabla3[[#This Row],[Nivel 4]]&Tabla3[[#This Row],[Nivel 5]]&Tabla3[[#This Row],[Nivel 6]]&Tabla3[[#This Row],[Nivel 7]]","v":"6.602.01.02.03."}]
[null,"6.","602.","01.","02.","03.","01.",null,"Instituto Nacional de Capacitación y Educación Socialista (INCES) ","SI",null,{"$f":"+Tabla3[[#This Row],[Nivel 1]]&Tabla3[[#This Row],[Nivel 2]]&Tabla3[[#This Row],[Nivel 3]]&Tabla3[[#This Row],[Nivel 4]]&Tabla3[[#This Row],[Nivel 5]]&Tabla3[[#This Row],[Nivel 6]]&Tabla3[[#This Row],[Nivel 7]]","v":"6.602.01.02.03.01."}]
[null,"6.","602.","01.","02.","03.","02.",null,"Instituto Venezolano de los Seguros Sociales (IVSS) ","SI",null,{"$f":"+Tabla3[[#This Row],[Nivel 1]]&Tabla3[[#This Row],[Nivel 2]]&Tabla3[[#This Row],[Nivel 3]]&Tabla3[[#This Row],[Nivel 4]]&Tabla3[[#This Row],[Nivel 5]]&Tabla3[[#This Row],[Nivel 6]]&Tabla3[[#This Row],[Nivel 7]]","v":"6.602.01.02.03.02."}]
[null,"6.","602.","01.","02.","03.","03.",null,"Instituto Venezolano de los Seguros Sociales (IVSS) - Paro Forzoso ","SI",null,{"$f":"+Tabla3[[#This Row],[Nivel 1]]&Tabla3[[#This Row],[Nivel 2]]&Tabla3[[#This Row],[Nivel 3]]&Tabla3[[#This Row],[Nivel 4]]&Tabla3[[#This Row],[Nivel 5]]&Tabla3[[#This Row],[Nivel 6]]&Tabla3[[#This Row],[Nivel 7]]","v":"6.602.01.02.03.03."}]
[null,"6.","602.","01.","02.","03.","04.",null,"Fondo de Ahorro Obligatorio para la Vivienda (FAOV)","SI",null,{"$f":"+Tabla3[[#This Row],[Nivel 1]]&Tabla3[[#This Row],[Nivel 2]]&Tabla3[[#This Row],[Nivel 3]]&Tabla3[[#This Row],[Nivel 4]]&Tabla3[[#This Row],[Nivel 5]]&Tabla3[[#This Row],[Nivel 6]]&Tabla3[[#This Row],[Nivel 7]]","v":"6.602.01.02.03.04."}]
[null,"6.","602.","01.","02.","03.","05.",null,"Aporte Especial a la Superintendencia de la Actividad Aseguradora","SI",null,{"$f":"+Tabla3[[#This Row],[Nivel 1]]&Tabla3[[#This Row],[Nivel 2]]&Tabla3[[#This Row],[Nivel 3]]&Tabla3[[#This Row],[Nivel 4]]&Tabla3[[#This Row],[Nivel 5]]&Tabla3[[#This Row],[Nivel 6]]&Tabla3[[#This Row],[Nivel 7]]","v":"6.602.01.02.03.05."}]
[null,"6.","602.","01.","02.","03.","06.",null,"Ley Orgánica de Ciencia, Tecnología é Innovación (LOCTI)","SI",null,{"$f":"+Tabla3[[#This Row],[Nivel 1]]&Tabla3[[#This Row],[Nivel 2]]&Tabla3[[#This Row],[Nivel 3]]&Tabla3[[#This Row],[Nivel 4]]&Tabla3[[#This Row],[Nivel 5]]&Tabla3[[#This Row],[Nivel 6]]&Tabla3[[#This Row],[Nivel 7]]","v":"6.602.01.02.03.06."}]
[null,"6.","602.","01.","02.","03.","07.",null,"Decreto con Fuerza de Ley de los Cuerpos de Bomberos y Bomberas y Administración de Emergencias de Carácter Civil","SI",null,{"$f":"+Tabla3[[#This Row],[Nivel 1]]&Tabla3[[#This Row],[Nivel 2]]&Tabla3[[#This Row],[Nivel 3]]&Tabla3[[#This Row],[Nivel 4]]&Tabla3[[#This Row],[Nivel 5]]&Tabla3[[#This Row],[Nivel 6]]&Tabla3[[#This Row],[Nivel 7]]","v":"6.602.01.02.03.07."}]
[null,"6.","602.","01.","02.","03.","08.",null,"Ley Orgánica de Drogas","SI",null,{"$f":"+Tabla3[[#This Row],[Nivel 1]]&Tabla3[[#This Row],[Nivel 2]]&Tabla3[[#This Row],[Nivel 3]]&Tabla3[[#This Row],[Nivel 4]]&Tabla3[[#This Row],[Nivel 5]]&Tabla3[[#This Row],[Nivel 6]]&Tabla3[[#This Row],[Nivel 7]]","v":"6.602.01.02.03.08."}]
[null,"6.","602.","01.","02.","03.","09.",null,"Ley del Deporte","SI",null,{"$f":"+Tabla3[[#This Row],[Nivel 1]]&Tabla3[[#This Row],[Nivel 2]]&Tabla3[[#This Row],[Nivel 3]]&Tabla3[[#This Row],[Nivel 4]]&Tabla3[[#This Row],[Nivel 5]]&Tabla3[[#This Row],[Nivel 6]]&Tabla3[[#This Row],[Nivel 7]]","v":"6.602.01.02.03.09."}]
[null,"6.","602.","01.","02.","03.","10.",null,"Ley de Gestión Integral de Riesgos Socio-Naturales y Tecnológicos","SI",null,{"$f":"+Tabla3[[#This Row],[Nivel 1]]&Tabla3[[#This Row],[Nivel 2]]&Tabla3[[#This Row],[Nivel 3]]&Tabla3[[#This Row],[Nivel 4]]&Tabla3[[#This Row],[Nivel 5]]&Tabla3[[#This Row],[Nivel 6]]&Tabla3[[#This Row],[Nivel 7]]","v":"6.602.01.02.03.10."}]
[null,"6.","602.","01.","02.","03.","12.",null,"Otras Contribuciones","SI",null,{"$f":"+Tabla3[[#This Row],[Nivel 1]]&Tabla3[[#This Row],[Nivel 2]]&Tabla3[[#This Row],[Nivel 3]]&Tabla3[[#This Row],[Nivel 4]]&Tabla3[[#This Row],[Nivel 5]]&Tabla3[[#This Row],[Nivel 6]]&Tabla3[[#This Row],[Nivel 7]]","v":"6.602.01.02.03.12."}]
[null,"6.","602.","01.","03.",null,null,null,"Arrendamientos","SI",null,{"$f":"+Tabla3[[#This Row],[Nivel 1]]&Tabla3[[#This Row],[Nivel 2]]&Tabla3[[#This Row],[Nivel 3]]&Tabla3[[#This Row],[Nivel 4]]&Tabla3[[#This Row],[Nivel 5]]&Tabla3[[#This Row],[Nivel 6]]&Tabla3[[#This Row],[Nivel 7]]","v":"6.602.01.03."}]
[null,"6.","602.","01.","04.",null,null,null,"Mantenimiento y Reparaciones Ordinarias","SI",null,{"$f":"+Tabla3[[#This Row],[Nivel 1]]&Tabla3[[#This Row],[Nivel 2]]&Tabla3[[#This Row],[Nivel 3]]&Tabla3[[#This Row],[Nivel 4]]&Tabla3[[#This Row],[Nivel 5]]&Tabla3[[#This Row],[Nivel 6]]&Tabla3[[#This Row],[Nivel 7]]","v":"6.602.01.04."}]
[null,"6.","602.","01.","05.",null,null,null,"Liberalidades","SI",null,{"$f":"+Tabla3[[#This Row],[Nivel 1]]&Tabla3[[#This Row],[Nivel 2]]&Tabla3[[#This Row],[Nivel 3]]&Tabla3[[#This Row],[Nivel 4]]&Tabla3[[#This Row],[Nivel 5]]&Tabla3[[#This Row],[Nivel 6]]&Tabla3[[#This Row],[Nivel 7]]","v":"6.602.01.05."}]
[null,"6.","602.","01.","06.",null,null,null,"Donaciones","SI",null,{"$f":"+Tabla3[[#This Row],[Nivel 1]]&Tabla3[[#This Row],[Nivel 2]]&Tabla3[[#This Row],[Nivel 3]]&Tabla3[[#This Row],[Nivel 4]]&Tabla3[[#This Row],[Nivel 5]]&Tabla3[[#This Row],[Nivel 6]]&Tabla3[[#This Row],[Nivel 7]]","v":"6.602.01.06."}]
[null,"6.","602.","01.","07.",null,null,null,"Publicidad y Propaganda","SI",null,{"$f":"+Tabla3[[#This Row],[Nivel 1]]&Tabla3[[#This Row],[Nivel 2]]&Tabla3[[#This Row],[Nivel 3]]&Tabla3[[#This Row],[Nivel 4]]&Tabla3[[#This Row],[Nivel 5]]&Tabla3[[#This Row],[Nivel 6]]&Tabla3[[#This Row],[Nivel 7]]","v":"6.602.01.07."}]
[null,"6.","602.","01.","08.",null,null,null,"Servicios Básicos","NO",null,{"$f":"+Tabla3[[#This Row],[Nivel 1]]&Tabla3[[#This Row],[Nivel 2]]&Tabla3[[#This Row],[Nivel 3]]&Tabla3[[#This Row],[Nivel 4]]&Tabla3[[#This Row],[Nivel 5]]&Tabla3[[#This Row],[Nivel 6]]&Tabla3[[#This Row],[Nivel 7]]","v":"6.602.01.08."}]
[null,"6.","602.","01.","08.","01.",null,null,"Energía Eléctrica","SI",null,{"$f":"+Tabla3[[#This Row],[Nivel 1]]&Tabla3[[#This Row],[Nivel 2]]&Tabla3[[#This Row],[Nivel 3]]&Tabla3[[#This Row],[Nivel 4]]&Tabla3[[#This Row],[Nivel 5]]&Tabla3[[#This Row],[Nivel 6]]&Tabla3[[#This Row],[Nivel 7]]","v":"6.602.01.08.01."}]
[null,"6.","602.","01.","08.","02.",null,null,"Comunicaciones","SI",null,{"$f":"+Tabla3[[#This Row],[Nivel 1]]&Tabla3[[#This Row],[Nivel 2]]&Tabla3[[#This Row],[Nivel 3]]&Tabla3[[#This Row],[Nivel 4]]&Tabla3[[#This Row],[Nivel 5]]&Tabla3[[#This Row],[Nivel 6]]&Tabla3[[#This Row],[Nivel 7]]","v":"6.602.01.08.02."}]
[null,"6.","602.","01.","08.","03.",null,null,"Servicio de Agua ","SI",null,{"$f":"+Tabla3[[#This Row],[Nivel 1]]&Tabla3[[#This Row],[Nivel 2]]&Tabla3[[#This Row],[Nivel 3]]&Tabla3[[#This Row],[Nivel 4]]&Tabla3[[#This Row],[Nivel 5]]&Tabla3[[#This Row],[Nivel 6]]&Tabla3[[#This Row],[Nivel 7]]","v":"6.602.01.08.03."}]
[null,"6.","602.","01.","08.","04.",null,null,"Aseo Urbano ","SI",null,{"$f":"+Tabla3[[#This Row],[Nivel 1]]&Tabla3[[#This Row],[Nivel 2]]&Tabla3[[#This Row],[Nivel 3]]&Tabla3[[#This Row],[Nivel 4]]&Tabla3[[#This Row],[Nivel 5]]&Tabla3[[#This Row],[Nivel 6]]&Tabla3[[#This Row],[Nivel 7]]","v":"6.602.01.08.04."}]
[null,"6.","602.","01.","09.",null,null,null,"Relaciones Públicas","SI",null,{"$f":"+Tabla3[[#This Row],[Nivel 1]]&Tabla3[[#This Row],[Nivel 2]]&Tabla3[[#This Row],[Nivel 3]]&Tabla3[[#This Row],[Nivel 4]]&Tabla3[[#This Row],[Nivel 5]]&Tabla3[[#This Row],[Nivel 6]]&Tabla3[[#This Row],[Nivel 7]]","v":"6.602.01.09."}]
[null,"6.","602.","01.","10.",null,null,null,"Honorarios Profesionales","SI",null,{"$f":"+Tabla3[[#This Row],[Nivel 1]]&Tabla3[[#This Row],[Nivel 2]]&Tabla3[[#This Row],[Nivel 3]]&Tabla3[[#This Row],[Nivel 4]]&Tabla3[[#This Row],[Nivel 5]]&Tabla3[[#This Row],[Nivel 6]]&Tabla3[[#This Row],[Nivel 7]]","v":"6.602.01.10."}]
[null,"6.","602.","01.","11.",null,null,null,"Gastos de Procesamiento de Datos","SI",null,{"$f":"+Tabla3[[#This Row],[Nivel 1]]&Tabla3[[#This Row],[Nivel 2]]&Tabla3[[#This Row],[Nivel 3]]&Tabla3[[#This Row],[Nivel 4]]&Tabla3[[#This Row],[Nivel 5]]&Tabla3[[#This Row],[Nivel 6]]&Tabla3[[#This Row],[Nivel 7]]","v":"6.602.01.11."}]
[null,"6.","602.","01.","12.",null,null,null,"Gastos de Viajes","SI",null,{"$f":"+Tabla3[[#This Row],[Nivel 1]]&Tabla3[[#This Row],[Nivel 2]]&Tabla3[[#This Row],[Nivel 3]]&Tabla3[[#This Row],[Nivel 4]]&Tabla3[[#This Row],[Nivel 5]]&Tabla3[[#This Row],[Nivel 6]]&Tabla3[[#This Row],[Nivel 7]]","v":"6.602.01.12."}]
[null,"6.","602.","01.","13.",null,null,null,"Gastos de Inmuebles","SI",null,{"$f":"+Tabla3[[#This Row],[Nivel 1]]&Tabla3[[#This Row],[Nivel 2]]&Tabla3[[#This Row],[Nivel 3]]&Tabla3[[#This Row],[Nivel 4]]&Tabla3[[#This Row],[Nivel 5]]&Tabla3[[#This Row],[Nivel 6]]&Tabla3[[#This Row],[Nivel 7]]","v":"6.602.01.13."}]
[null,"6.","602.","01.","14.",null,null,null,"Gastos de Producción","SI",null,{"$f":"+Tabla3[[#This Row],[Nivel 1]]&Tabla3[[#This Row],[Nivel 2]]&Tabla3[[#This Row],[Nivel 3]]&Tabla3[[#This Row],[Nivel 4]]&Tabla3[[#This Row],[Nivel 5]]&Tabla3[[#This Row],[Nivel 6]]&Tabla3[[#This Row],[Nivel 7]]","v":"6.602.01.14."}]
[null,"6.","602.","01.","15.",null,null,null,"Otros Gastos de Administración","SI",null,{"$f":"+Tabla3[[#This Row],[Nivel 1]]&Tabla3[[#This Row],[Nivel 2]]&Tabla3[[#This Row],[Nivel 3]]&Tabla3[[#This Row],[Nivel 4]]&Tabla3[[#This Row],[Nivel 5]]&Tabla3[[#This Row],[Nivel 6]]&Tabla3[[#This Row],[Nivel 7]]","v":"6.602.01.15."}]
[null,"6.","602.","01.","16.",null,null,null,"Gastos No Deducibles","SI",null,{"$f":"+Tabla3[[#This Row],[Nivel 1]]&Tabla3[[#This Row],[Nivel 2]]&Tabla3[[#This Row],[Nivel 3]]&Tabla3[[#This Row],[Nivel 4]]&Tabla3[[#This Row],[Nivel 5]]&Tabla3[[#This Row],[Nivel 6]]&Tabla3[[#This Row],[Nivel 7]]","v":"6.602.01.16."}]
[null,"6.","602.","02.",null,null,null,null,"EGRESOS FINANCIEROS","NO",null,{"$f":"+Tabla3[[#This Row],[Nivel 1]]&Tabla3[[#This Row],[Nivel 2]]&Tabla3[[#This Row],[Nivel 3]]&Tabla3[[#This Row],[Nivel 4]]&Tabla3[[#This Row],[Nivel 5]]&Tabla3[[#This Row],[Nivel 6]]&Tabla3[[#This Row],[Nivel 7]]","v":"6.602.02."}]
[null,"6.","602.","02.","01.",null,null,null,"Intereses Pagados","NO",null,{"$f":"+Tabla3[[#This Row],[Nivel 1]]&Tabla3[[#This Row],[Nivel 2]]&Tabla3[[#This Row],[Nivel 3]]&Tabla3[[#This Row],[Nivel 4]]&Tabla3[[#This Row],[Nivel 5]]&Tabla3[[#This Row],[Nivel 6]]&Tabla3[[#This Row],[Nivel 7]]","v":"6.602.02.01."}]
[null,"6.","602.","02.","01.","01.",null,null,"Sobre Comisiones y Operaciones Bancarias","NO",null,{"$f":"+Tabla3[[#This Row],[Nivel 1]]&Tabla3[[#This Row],[Nivel 2]]&Tabla3[[#This Row],[Nivel 3]]&Tabla3[[#This Row],[Nivel 4]]&Tabla3[[#This Row],[Nivel 5]]&Tabla3[[#This Row],[Nivel 6]]&Tabla3[[#This Row],[Nivel 7]]","v":"6.602.02.01.01."}]
[null,"6.","602.","02.","01.","01.","01.",null,"Moneda Nacional","SI",null,{"$f":"+Tabla3[[#This Row],[Nivel 1]]&Tabla3[[#This Row],[Nivel 2]]&Tabla3[[#This Row],[Nivel 3]]&Tabla3[[#This Row],[Nivel 4]]&Tabla3[[#This Row],[Nivel 5]]&Tabla3[[#This Row],[Nivel 6]]&Tabla3[[#This Row],[Nivel 7]]","v":"6.602.02.01.01.01."}]
[null,"6.","602.","02.","01.","01.","02.",null,"Moneda Extranjera","SI",null,{"$f":"+Tabla3[[#This Row],[Nivel 1]]&Tabla3[[#This Row],[Nivel 2]]&Tabla3[[#This Row],[Nivel 3]]&Tabla3[[#This Row],[Nivel 4]]&Tabla3[[#This Row],[Nivel 5]]&Tabla3[[#This Row],[Nivel 6]]&Tabla3[[#This Row],[Nivel 7]]","v":"6.602.02.01.01.02."}]
[null,"6.","602.","02.","01.","02.",null,null,"Sobre Valores","NO",null,{"$f":"+Tabla3[[#This Row],[Nivel 1]]&Tabla3[[#This Row],[Nivel 2]]&Tabla3[[#This Row],[Nivel 3]]&Tabla3[[#This Row],[Nivel 4]]&Tabla3[[#This Row],[Nivel 5]]&Tabla3[[#This Row],[Nivel 6]]&Tabla3[[#This Row],[Nivel 7]]","v":"6.602.02.01.02."}]
[null,"6.","602.","02.","01.","02.","01.",null,"Moneda Nacional","SI",null,{"$f":"+Tabla3[[#This Row],[Nivel 1]]&Tabla3[[#This Row],[Nivel 2]]&Tabla3[[#This Row],[Nivel 3]]&Tabla3[[#This Row],[Nivel 4]]&Tabla3[[#This Row],[Nivel 5]]&Tabla3[[#This Row],[Nivel 6]]&Tabla3[[#This Row],[Nivel 7]]","v":"6.602.02.01.02.01."}]
[null,"6.","602.","02.","01.","02.","02.",null,"Moneda Extranjera","SI",null,{"$f":"+Tabla3[[#This Row],[Nivel 1]]&Tabla3[[#This Row],[Nivel 2]]&Tabla3[[#This Row],[Nivel 3]]&Tabla3[[#This Row],[Nivel 4]]&Tabla3[[#This Row],[Nivel 5]]&Tabla3[[#This Row],[Nivel 6]]&Tabla3[[#This Row],[Nivel 7]]","v":"6.602.02.01.02.02."}]
[null,"6.","602.","02.","01.","03.",null,null,"Otras Inversiones ","NO",null,{"$f":"+Tabla3[[#This Row],[Nivel 1]]&Tabla3[[#This Row],[Nivel 2]]&Tabla3[[#This Row],[Nivel 3]]&Tabla3[[#This Row],[Nivel 4]]&Tabla3[[#This Row],[Nivel 5]]&Tabla3[[#This Row],[Nivel 6]]&Tabla3[[#This Row],[Nivel 7]]","v":"6.602.02.01.03."}]
[null,"6.","602.","02.","01.","03.","01.",null,"Moneda Nacional","SI",null,{"$f":"+Tabla3[[#This Row],[Nivel 1]]&Tabla3[[#This Row],[Nivel 2]]&Tabla3[[#This Row],[Nivel 3]]&Tabla3[[#This Row],[Nivel 4]]&Tabla3[[#This Row],[Nivel 5]]&Tabla3[[#This Row],[Nivel 6]]&Tabla3[[#This Row],[Nivel 7]]","v":"6.602.02.01.03.01."}]
[null,"6.","602.","02.","01.","03.","02.",null,"Moneda Extranjera","SI",null,{"$f":"+Tabla3[[#This Row],[Nivel 1]]&Tabla3[[#This Row],[Nivel 2]]&Tabla3[[#This Row],[Nivel 3]]&Tabla3[[#This Row],[Nivel 4]]&Tabla3[[#This Row],[Nivel 5]]&Tabla3[[#This Row],[Nivel 6]]&Tabla3[[#This Row],[Nivel 7]]","v":"6.602.02.01.03.02."}]
[null,"6.","602.","03.",null,null,null,null,"Ajustes de Valores y  Bienes ","NO",null,{"$f":"+Tabla3[[#This Row],[Nivel 1]]&Tabla3[[#This Row],[Nivel 2]]&Tabla3[[#This Row],[Nivel 3]]&Tabla3[[#This Row],[Nivel 4]]&Tabla3[[#This Row],[Nivel 5]]&Tabla3[[#This Row],[Nivel 6]]&Tabla3[[#This Row],[Nivel 7]]","v":"6.602.03."}]
[null,"6.","602.","03.","01.",null,null,null,"Ajustes de Valores","NO",null,{"$f":"+Tabla3[[#This Row],[Nivel 1]]&Tabla3[[#This Row],[Nivel 2]]&Tabla3[[#This Row],[Nivel 3]]&Tabla3[[#This Row],[Nivel 4]]&Tabla3[[#This Row],[Nivel 5]]&Tabla3[[#This Row],[Nivel 6]]&Tabla3[[#This Row],[Nivel 7]]","v":"6.602.03.01."}]
[null,"6.","602.","03.","01.","01.",null,null,"Valores Públicos","NO",null,{"$f":"+Tabla3[[#This Row],[Nivel 1]]&Tabla3[[#This Row],[Nivel 2]]&Tabla3[[#This Row],[Nivel 3]]&Tabla3[[#This Row],[Nivel 4]]&Tabla3[[#This Row],[Nivel 5]]&Tabla3[[#This Row],[Nivel 6]]&Tabla3[[#This Row],[Nivel 7]]","v":"6.602.03.01.01."}]
[null,"6.","602.","03.","01.","01.","01.",null,"Emitidos o Garantizados por la República","SI",null,{"$f":"+Tabla3[[#This Row],[Nivel 1]]&Tabla3[[#This Row],[Nivel 2]]&Tabla3[[#This Row],[Nivel 3]]&Tabla3[[#This Row],[Nivel 4]]&Tabla3[[#This Row],[Nivel 5]]&Tabla3[[#This Row],[Nivel 6]]&Tabla3[[#This Row],[Nivel 7]]","v":"6.602.03.01.01.01."}]
[null,"6.","602.","03.","01.","01.","02.",null,"Emitidos por Otros Sujetos de Derecho Público Nacional","SI",null,{"$f":"+Tabla3[[#This Row],[Nivel 1]]&Tabla3[[#This Row],[Nivel 2]]&Tabla3[[#This Row],[Nivel 3]]&Tabla3[[#This Row],[Nivel 4]]&Tabla3[[#This Row],[Nivel 5]]&Tabla3[[#This Row],[Nivel 6]]&Tabla3[[#This Row],[Nivel 7]]","v":"6.602.03.01.01.02."}]
[null,"6.","602.","03.","01.","01.","03.",null,"Emitidos por Empresas con Participación de la República","SI",null,{"$f":"+Tabla3[[#This Row],[Nivel 1]]&Tabla3[[#This Row],[Nivel 2]]&Tabla3[[#This Row],[Nivel 3]]&Tabla3[[#This Row],[Nivel 4]]&Tabla3[[#This Row],[Nivel 5]]&Tabla3[[#This Row],[Nivel 6]]&Tabla3[[#This Row],[Nivel 7]]","v":"6.602.03.01.01.03."}]
[null,"6.","602.","03.","01.","01.","04.",null,"Emitidos por Instituciones con Participación de la República","SI",null,{"$f":"+Tabla3[[#This Row],[Nivel 1]]&Tabla3[[#This Row],[Nivel 2]]&Tabla3[[#This Row],[Nivel 3]]&Tabla3[[#This Row],[Nivel 4]]&Tabla3[[#This Row],[Nivel 5]]&Tabla3[[#This Row],[Nivel 6]]&Tabla3[[#This Row],[Nivel 7]]","v":"6.602.03.01.01.04."}]
[null,"6.","602.","03.","01.","02.",null,null,"Participación en Fondos de Inversión","NO",null,{"$f":"+Tabla3[[#This Row],[Nivel 1]]&Tabla3[[#This Row],[Nivel 2]]&Tabla3[[#This Row],[Nivel 3]]&Tabla3[[#This Row],[Nivel 4]]&Tabla3[[#This Row],[Nivel 5]]&Tabla3[[#This Row],[Nivel 6]]&Tabla3[[#This Row],[Nivel 7]]","v":"6.602.03.01.02."}]
[null,"6.","602.","03.","01.","02.","01.",null,"Renta Fija","SI",null,{"$f":"+Tabla3[[#This Row],[Nivel 1]]&Tabla3[[#This Row],[Nivel 2]]&Tabla3[[#This Row],[Nivel 3]]&Tabla3[[#This Row],[Nivel 4]]&Tabla3[[#This Row],[Nivel 5]]&Tabla3[[#This Row],[Nivel 6]]&Tabla3[[#This Row],[Nivel 7]]","v":"6.602.03.01.02.01."}]
[null,"6.","602.","03.","01.","02.","02.",null,"Renta Variable","SI",null,{"$f":"+Tabla3[[#This Row],[Nivel 1]]&Tabla3[[#This Row],[Nivel 2]]&Tabla3[[#This Row],[Nivel 3]]&Tabla3[[#This Row],[Nivel 4]]&Tabla3[[#This Row],[Nivel 5]]&Tabla3[[#This Row],[Nivel 6]]&Tabla3[[#This Row],[Nivel 7]]","v":"6.602.03.01.02.02."}]
[null,"6.","602.","03.","01.","03.",null,null,"Garantía a la Nación","NO",null,{"$f":"+Tabla3[[#This Row],[Nivel 1]]&Tabla3[[#This Row],[Nivel 2]]&Tabla3[[#This Row],[Nivel 3]]&Tabla3[[#This Row],[Nivel 4]]&Tabla3[[#This Row],[Nivel 5]]&Tabla3[[#This Row],[Nivel 6]]&Tabla3[[#This Row],[Nivel 7]]","v":"6.602.03.01.03."}]
[null,"6.","602.","03.","01.","03.","01.",null,"Valores Públicos","SI",null,{"$f":"+Tabla3[[#This Row],[Nivel 1]]&Tabla3[[#This Row],[Nivel 2]]&Tabla3[[#This Row],[Nivel 3]]&Tabla3[[#This Row],[Nivel 4]]&Tabla3[[#This Row],[Nivel 5]]&Tabla3[[#This Row],[Nivel 6]]&Tabla3[[#This Row],[Nivel 7]]","v":"6.602.03.01.03.01."}]
[null,"6.","602.","03.","01.","04.",null,null,"Valores Privados","NO",null,{"$f":"+Tabla3[[#This Row],[Nivel 1]]&Tabla3[[#This Row],[Nivel 2]]&Tabla3[[#This Row],[Nivel 3]]&Tabla3[[#This Row],[Nivel 4]]&Tabla3[[#This Row],[Nivel 5]]&Tabla3[[#This Row],[Nivel 6]]&Tabla3[[#This Row],[Nivel 7]]","v":"6.602.03.01.04."}]
[null,"6.","602.","03.","01.","04.","01.",null,"Acciones de Sociedades Anónimas","NO",null,{"$f":"+Tabla3[[#This Row],[Nivel 1]]&Tabla3[[#This Row],[Nivel 2]]&Tabla3[[#This Row],[Nivel 3]]&Tabla3[[#This Row],[Nivel 4]]&Tabla3[[#This Row],[Nivel 5]]&Tabla3[[#This Row],[Nivel 6]]&Tabla3[[#This Row],[Nivel 7]]","v":"6.602.03.01.04.01."}]
[null,"6.","602.","03.","01.","04.","01.","01.","Empresas de Seguros o Reaseguros","SI",null,{"$f":"+Tabla3[[#This Row],[Nivel 1]]&Tabla3[[#This Row],[Nivel 2]]&Tabla3[[#This Row],[Nivel 3]]&Tabla3[[#This Row],[Nivel 4]]&Tabla3[[#This Row],[Nivel 5]]&Tabla3[[#This Row],[Nivel 6]]&Tabla3[[#This Row],[Nivel 7]]","v":"6.602.03.01.04.01.01."}]
[null,"6.","602.","03.","01.","04.","01.","02.","Sociedades de Corretaje de Seguros, de Reaseguros o de Valores","SI",null,{"$f":"+Tabla3[[#This Row],[Nivel 1]]&Tabla3[[#This Row],[Nivel 2]]&Tabla3[[#This Row],[Nivel 3]]&Tabla3[[#This Row],[Nivel 4]]&Tabla3[[#This Row],[Nivel 5]]&Tabla3[[#This Row],[Nivel 6]]&Tabla3[[#This Row],[Nivel 7]]","v":"6.602.03.01.04.01.02."}]
[null,"6.","602.","03.","01.","04.","01.","03.","Bancos y Otras Instituciones Financieras","SI",null,{"$f":"+Tabla3[[#This Row],[Nivel 1]]&Tabla3[[#This Row],[Nivel 2]]&Tabla3[[#This Row],[Nivel 3]]&Tabla3[[#This Row],[Nivel 4]]&Tabla3[[#This Row],[Nivel 5]]&Tabla3[[#This Row],[Nivel 6]]&Tabla3[[#This Row],[Nivel 7]]","v":"6.602.03.01.04.01.03."}]
[null,"6.","602.","03.","01.","04.","01.","04.","Sociedades Industriales y Comerciales","SI",null,{"$f":"+Tabla3[[#This Row],[Nivel 1]]&Tabla3[[#This Row],[Nivel 2]]&Tabla3[[#This Row],[Nivel 3]]&Tabla3[[#This Row],[Nivel 4]]&Tabla3[[#This Row],[Nivel 5]]&Tabla3[[#This Row],[Nivel 6]]&Tabla3[[#This Row],[Nivel 7]]","v":"6.602.03.01.04.01.04."}]
[null,"6.","602.","03.","01.","04.","01.","05.","Sociedades Civiles","SI",null,{"$f":"+Tabla3[[#This Row],[Nivel 1]]&Tabla3[[#This Row],[Nivel 2]]&Tabla3[[#This Row],[Nivel 3]]&Tabla3[[#This Row],[Nivel 4]]&Tabla3[[#This Row],[Nivel 5]]&Tabla3[[#This Row],[Nivel 6]]&Tabla3[[#This Row],[Nivel 7]]","v":"6.602.03.01.04.01.05."}]
[null,"6.","602.","03.","01.","04.","01.","06.","Empresas Filiales, Afiliadas y Relacionadas","SI",null,{"$f":"+Tabla3[[#This Row],[Nivel 1]]&Tabla3[[#This Row],[Nivel 2]]&Tabla3[[#This Row],[Nivel 3]]&Tabla3[[#This Row],[Nivel 4]]&Tabla3[[#This Row],[Nivel 5]]&Tabla3[[#This Row],[Nivel 6]]&Tabla3[[#This Row],[Nivel 7]]","v":"6.602.03.01.04.01.06."}]
[null,"6.","602.","03.","01.","04.","01.","07.","Otras Sociedades Anónimas","SI",null,{"$f":"+Tabla3[[#This Row],[Nivel 1]]&Tabla3[[#This Row],[Nivel 2]]&Tabla3[[#This Row],[Nivel 3]]&Tabla3[[#This Row],[Nivel 4]]&Tabla3[[#This Row],[Nivel 5]]&Tabla3[[#This Row],[Nivel 6]]&Tabla3[[#This Row],[Nivel 7]]","v":"6.602.03.01.04.01.07."}]
[null,"6.","602.","03.","01.","04.","02.",null,"Bonos de Sociedades Anónimas","SI",null,{"$f":"+Tabla3[[#This Row],[Nivel 1]]&Tabla3[[#This Row],[Nivel 2]]&Tabla3[[#This Row],[Nivel 3]]&Tabla3[[#This Row],[Nivel 4]]&Tabla3[[#This Row],[Nivel 5]]&Tabla3[[#This Row],[Nivel 6]]&Tabla3[[#This Row],[Nivel 7]]","v":"6.602.03.01.04.02."}]
[null,"6.","602.","03.","01.","04.","03.",null,"Otras Inversiones emitidas por el Sector Privado.","SI",null,{"$f":"+Tabla3[[#This Row],[Nivel 1]]&Tabla3[[#This Row],[Nivel 2]]&Tabla3[[#This Row],[Nivel 3]]&Tabla3[[#This Row],[Nivel 4]]&Tabla3[[#This Row],[Nivel 5]]&Tabla3[[#This Row],[Nivel 6]]&Tabla3[[#This Row],[Nivel 7]]","v":"6.602.03.01.04.03."}]
[null,"6.","602.","03.","01.","05.",null,null,"Activos en el Extranjero","NO",null,{"$f":"+Tabla3[[#This Row],[Nivel 1]]&Tabla3[[#This Row],[Nivel 2]]&Tabla3[[#This Row],[Nivel 3]]&Tabla3[[#This Row],[Nivel 4]]&Tabla3[[#This Row],[Nivel 5]]&Tabla3[[#This Row],[Nivel 6]]&Tabla3[[#This Row],[Nivel 7]]","v":"6.602.03.01.05."}]
[null,"6.","602.","03.","01.","05.","01.",null,"Titulos Valores","SI",null,{"$f":"+Tabla3[[#This Row],[Nivel 1]]&Tabla3[[#This Row],[Nivel 2]]&Tabla3[[#This Row],[Nivel 3]]&Tabla3[[#This Row],[Nivel 4]]&Tabla3[[#This Row],[Nivel 5]]&Tabla3[[#This Row],[Nivel 6]]&Tabla3[[#This Row],[Nivel 7]]","v":"6.602.03.01.05.01."}]
[null,"6.","602.","03.","02.",null,null,null,"Bienes","NO",null,{"$f":"+Tabla3[[#This Row],[Nivel 1]]&Tabla3[[#This Row],[Nivel 2]]&Tabla3[[#This Row],[Nivel 3]]&Tabla3[[#This Row],[Nivel 4]]&Tabla3[[#This Row],[Nivel 5]]&Tabla3[[#This Row],[Nivel 6]]&Tabla3[[#This Row],[Nivel 7]]","v":"6.602.03.02."}]
[null,"6.","602.","03.","02.","01.",null,null,"Participación Fondos de Inversión Inmobiliarios","SI",null,{"$f":"+Tabla3[[#This Row],[Nivel 1]]&Tabla3[[#This Row],[Nivel 2]]&Tabla3[[#This Row],[Nivel 3]]&Tabla3[[#This Row],[Nivel 4]]&Tabla3[[#This Row],[Nivel 5]]&Tabla3[[#This Row],[Nivel 6]]&Tabla3[[#This Row],[Nivel 7]]","v":"6.602.03.02.01."}]
[null,"6.","602.","03.","02.","02.",null,null,"Bienes Inmuebles Edificados","NO",null,{"$f":"+Tabla3[[#This Row],[Nivel 1]]&Tabla3[[#This Row],[Nivel 2]]&Tabla3[[#This Row],[Nivel 3]]&Tabla3[[#This Row],[Nivel 4]]&Tabla3[[#This Row],[Nivel 5]]&Tabla3[[#This Row],[Nivel 6]]&Tabla3[[#This Row],[Nivel 7]]","v":"6.602.03.02.02."}]
[null,"6.","602.","03.","02.","02.","01.",null,"Terrenos","SI",null,{"$f":"+Tabla3[[#This Row],[Nivel 1]]&Tabla3[[#This Row],[Nivel 2]]&Tabla3[[#This Row],[Nivel 3]]&Tabla3[[#This Row],[Nivel 4]]&Tabla3[[#This Row],[Nivel 5]]&Tabla3[[#This Row],[Nivel 6]]&Tabla3[[#This Row],[Nivel 7]]","v":"6.602.03.02.02.01."}]
[null,"6.","602.","03.","02.","02.","02.",null,"Edificaciones","SI",null,{"$f":"+Tabla3[[#This Row],[Nivel 1]]&Tabla3[[#This Row],[Nivel 2]]&Tabla3[[#This Row],[Nivel 3]]&Tabla3[[#This Row],[Nivel 4]]&Tabla3[[#This Row],[Nivel 5]]&Tabla3[[#This Row],[Nivel 6]]&Tabla3[[#This Row],[Nivel 7]]","v":"6.602.03.02.02.02."}]
[null,"6.","602.","03.","02.","03.",null,null,"Activos en el Extranjero","NO",null,{"$f":"+Tabla3[[#This Row],[Nivel 1]]&Tabla3[[#This Row],[Nivel 2]]&Tabla3[[#This Row],[Nivel 3]]&Tabla3[[#This Row],[Nivel 4]]&Tabla3[[#This Row],[Nivel 5]]&Tabla3[[#This Row],[Nivel 6]]&Tabla3[[#This Row],[Nivel 7]]","v":"6.602.03.02.03."}]
[null,"6.","602.","03.","02.","03.","01.",null,"Inmuebles ","SI",null,{"$f":"+Tabla3[[#This Row],[Nivel 1]]&Tabla3[[#This Row],[Nivel 2]]&Tabla3[[#This Row],[Nivel 3]]&Tabla3[[#This Row],[Nivel 4]]&Tabla3[[#This Row],[Nivel 5]]&Tabla3[[#This Row],[Nivel 6]]&Tabla3[[#This Row],[Nivel 7]]","v":"6.602.03.02.03.01."}]
[null,"6.","602.","03.","02.","03.","02.",null,"Otras Inversiones ","SI",null,{"$f":"+Tabla3[[#This Row],[Nivel 1]]&Tabla3[[#This Row],[Nivel 2]]&Tabla3[[#This Row],[Nivel 3]]&Tabla3[[#This Row],[Nivel 4]]&Tabla3[[#This Row],[Nivel 5]]&Tabla3[[#This Row],[Nivel 6]]&Tabla3[[#This Row],[Nivel 7]]","v":"6.602.03.02.03.02."}]
[null,"6.","602.","03.","02.","04.",null,null,"Acervo Artistico","SI",null,{"$f":"+Tabla3[[#This Row],[Nivel 1]]&Tabla3[[#This Row],[Nivel 2]]&Tabla3[[#This Row],[Nivel 3]]&Tabla3[[#This Row],[Nivel 4]]&Tabla3[[#This Row],[Nivel 5]]&Tabla3[[#This Row],[Nivel 6]]&Tabla3[[#This Row],[Nivel 7]]","v":"6.602.03.02.04."}]
[null,"6.","602.","04.",null,null,null,null,"Fluctuación Cambiaria","NO",null,{"$f":"+Tabla3[[#This Row],[Nivel 1]]&Tabla3[[#This Row],[Nivel 2]]&Tabla3[[#This Row],[Nivel 3]]&Tabla3[[#This Row],[Nivel 4]]&Tabla3[[#This Row],[Nivel 5]]&Tabla3[[#This Row],[Nivel 6]]&Tabla3[[#This Row],[Nivel 7]]","v":"6.602.04."}]
[null,"6.","602.","04.","01.",null,null,null,"Sobre Activos","NO",null,{"$f":"+Tabla3[[#This Row],[Nivel 1]]&Tabla3[[#This Row],[Nivel 2]]&Tabla3[[#This Row],[Nivel 3]]&Tabla3[[#This Row],[Nivel 4]]&Tabla3[[#This Row],[Nivel 5]]&Tabla3[[#This Row],[Nivel 6]]&Tabla3[[#This Row],[Nivel 7]]","v":"6.602.04.01."}]
[null,"6.","602.","04.","01.","01.",null,null,"Disponible","NO",null,{"$f":"+Tabla3[[#This Row],[Nivel 1]]&Tabla3[[#This Row],[Nivel 2]]&Tabla3[[#This Row],[Nivel 3]]&Tabla3[[#This Row],[Nivel 4]]&Tabla3[[#This Row],[Nivel 5]]&Tabla3[[#This Row],[Nivel 6]]&Tabla3[[#This Row],[Nivel 7]]","v":"6.602.04.01.01."}]
[null,"6.","602.","04.","01.","01.","01.",null,"Caja","SI",null,{"$f":"+Tabla3[[#This Row],[Nivel 1]]&Tabla3[[#This Row],[Nivel 2]]&Tabla3[[#This Row],[Nivel 3]]&Tabla3[[#This Row],[Nivel 4]]&Tabla3[[#This Row],[Nivel 5]]&Tabla3[[#This Row],[Nivel 6]]&Tabla3[[#This Row],[Nivel 7]]","v":"6.602.04.01.01.01."}]
[null,"6.","602.","04.","01.","01.","02.",null,"Caja Chica","SI",null,{"$f":"+Tabla3[[#This Row],[Nivel 1]]&Tabla3[[#This Row],[Nivel 2]]&Tabla3[[#This Row],[Nivel 3]]&Tabla3[[#This Row],[Nivel 4]]&Tabla3[[#This Row],[Nivel 5]]&Tabla3[[#This Row],[Nivel 6]]&Tabla3[[#This Row],[Nivel 7]]","v":"6.602.04.01.01.02."}]
[null,"6.","602.","04.","01.","01.","03.",null,"Depósitos a la Vista","NO",null,{"$f":"+Tabla3[[#This Row],[Nivel 1]]&Tabla3[[#This Row],[Nivel 2]]&Tabla3[[#This Row],[Nivel 3]]&Tabla3[[#This Row],[Nivel 4]]&Tabla3[[#This Row],[Nivel 5]]&Tabla3[[#This Row],[Nivel 6]]&Tabla3[[#This Row],[Nivel 7]]","v":"6.602.04.01.01.03."}]
[null,"6.","602.","04.","01.","01.","03.","01.","Bancos","SI",null,{"$f":"+Tabla3[[#This Row],[Nivel 1]]&Tabla3[[#This Row],[Nivel 2]]&Tabla3[[#This Row],[Nivel 3]]&Tabla3[[#This Row],[Nivel 4]]&Tabla3[[#This Row],[Nivel 5]]&Tabla3[[#This Row],[Nivel 6]]&Tabla3[[#This Row],[Nivel 7]]","v":"6.602.04.01.01.03.01."}]
[null,"6.","602.","04.","01.","01.","03.","02.","Otras Instituciones Financieras","SI",null,{"$f":"+Tabla3[[#This Row],[Nivel 1]]&Tabla3[[#This Row],[Nivel 2]]&Tabla3[[#This Row],[Nivel 3]]&Tabla3[[#This Row],[Nivel 4]]&Tabla3[[#This Row],[Nivel 5]]&Tabla3[[#This Row],[Nivel 6]]&Tabla3[[#This Row],[Nivel 7]]","v":"6.602.04.01.01.03.02."}]
[null,"6.","602.","04.","01.","01.","04.",null,"Depósitos a Plazo","NO",null,{"$f":"+Tabla3[[#This Row],[Nivel 1]]&Tabla3[[#This Row],[Nivel 2]]&Tabla3[[#This Row],[Nivel 3]]&Tabla3[[#This Row],[Nivel 4]]&Tabla3[[#This Row],[Nivel 5]]&Tabla3[[#This Row],[Nivel 6]]&Tabla3[[#This Row],[Nivel 7]]","v":"6.602.04.01.01.04."}]
[null,"6.","602.","04.","01.","01.","04.","01.","Bancos","SI",null,{"$f":"+Tabla3[[#This Row],[Nivel 1]]&Tabla3[[#This Row],[Nivel 2]]&Tabla3[[#This Row],[Nivel 3]]&Tabla3[[#This Row],[Nivel 4]]&Tabla3[[#This Row],[Nivel 5]]&Tabla3[[#This Row],[Nivel 6]]&Tabla3[[#This Row],[Nivel 7]]","v":"6.602.04.01.01.04.01."}]
[null,"6.","602.","04.","01.","01.","04.","02.","Otras Instituciones Financieras","SI",null,{"$f":"+Tabla3[[#This Row],[Nivel 1]]&Tabla3[[#This Row],[Nivel 2]]&Tabla3[[#This Row],[Nivel 3]]&Tabla3[[#This Row],[Nivel 4]]&Tabla3[[#This Row],[Nivel 5]]&Tabla3[[#This Row],[Nivel 6]]&Tabla3[[#This Row],[Nivel 7]]","v":"6.602.04.01.01.04.02."}]
[null,"6.","602.","04.","01.","02.",null,null,"Valores Públicos","NO",null,{"$f":"+Tabla3[[#This Row],[Nivel 1]]&Tabla3[[#This Row],[Nivel 2]]&Tabla3[[#This Row],[Nivel 3]]&Tabla3[[#This Row],[Nivel 4]]&Tabla3[[#This Row],[Nivel 5]]&Tabla3[[#This Row],[Nivel 6]]&Tabla3[[#This Row],[Nivel 7]]","v":"6.602.04.01.02."}]
[null,"6.","602.","04.","01.","02.","01.",null,"Emitidos o Garantizados por la República","SI",null,{"$f":"+Tabla3[[#This Row],[Nivel 1]]&Tabla3[[#This Row],[Nivel 2]]&Tabla3[[#This Row],[Nivel 3]]&Tabla3[[#This Row],[Nivel 4]]&Tabla3[[#This Row],[Nivel 5]]&Tabla3[[#This Row],[Nivel 6]]&Tabla3[[#This Row],[Nivel 7]]","v":"6.602.04.01.02.01."}]
[null,"6.","602.","04.","01.","02.","02.",null,"Emitidos por Otros Sujetos de Derecho Público Nacional","SI",null,{"$f":"+Tabla3[[#This Row],[Nivel 1]]&Tabla3[[#This Row],[Nivel 2]]&Tabla3[[#This Row],[Nivel 3]]&Tabla3[[#This Row],[Nivel 4]]&Tabla3[[#This Row],[Nivel 5]]&Tabla3[[#This Row],[Nivel 6]]&Tabla3[[#This Row],[Nivel 7]]","v":"6.602.04.01.02.02."}]
[null,"6.","602.","04.","01.","02.","03.",null,"Emitidos por Empresas con Participación de la República","SI",null,{"$f":"+Tabla3[[#This Row],[Nivel 1]]&Tabla3[[#This Row],[Nivel 2]]&Tabla3[[#This Row],[Nivel 3]]&Tabla3[[#This Row],[Nivel 4]]&Tabla3[[#This Row],[Nivel 5]]&Tabla3[[#This Row],[Nivel 6]]&Tabla3[[#This Row],[Nivel 7]]","v":"6.602.04.01.02.03."}]
[null,"6.","602.","04.","01.","02.","04.",null,"Emitidos por Instituciones con Participación de la República","SI",null,{"$f":"+Tabla3[[#This Row],[Nivel 1]]&Tabla3[[#This Row],[Nivel 2]]&Tabla3[[#This Row],[Nivel 3]]&Tabla3[[#This Row],[Nivel 4]]&Tabla3[[#This Row],[Nivel 5]]&Tabla3[[#This Row],[Nivel 6]]&Tabla3[[#This Row],[Nivel 7]]","v":"6.602.04.01.02.04."}]
[null,"6.","602.","04.","01.","03.",null,null,"Participación en Fondos de Inversión","NO",null,{"$f":"+Tabla3[[#This Row],[Nivel 1]]&Tabla3[[#This Row],[Nivel 2]]&Tabla3[[#This Row],[Nivel 3]]&Tabla3[[#This Row],[Nivel 4]]&Tabla3[[#This Row],[Nivel 5]]&Tabla3[[#This Row],[Nivel 6]]&Tabla3[[#This Row],[Nivel 7]]","v":"6.602.04.01.03."}]
[null,"6.","602.","04.","01.","03.","01.",null,"Renta Fija","SI",null,{"$f":"+Tabla3[[#This Row],[Nivel 1]]&Tabla3[[#This Row],[Nivel 2]]&Tabla3[[#This Row],[Nivel 3]]&Tabla3[[#This Row],[Nivel 4]]&Tabla3[[#This Row],[Nivel 5]]&Tabla3[[#This Row],[Nivel 6]]&Tabla3[[#This Row],[Nivel 7]]","v":"6.602.04.01.03.01."}]
[null,"6.","602.","04.","01.","03.","02.",null,"Renta Variable","SI",null,{"$f":"+Tabla3[[#This Row],[Nivel 1]]&Tabla3[[#This Row],[Nivel 2]]&Tabla3[[#This Row],[Nivel 3]]&Tabla3[[#This Row],[Nivel 4]]&Tabla3[[#This Row],[Nivel 5]]&Tabla3[[#This Row],[Nivel 6]]&Tabla3[[#This Row],[Nivel 7]]","v":"6.602.04.01.03.02."}]
[null,"6.","602.","04.","01.","04.",null,null,"Participación Fondos de Inversión Inmobiliarios","SI",null,{"$f":"+Tabla3[[#This Row],[Nivel 1]]&Tabla3[[#This Row],[Nivel 2]]&Tabla3[[#This Row],[Nivel 3]]&Tabla3[[#This Row],[Nivel 4]]&Tabla3[[#This Row],[Nivel 5]]&Tabla3[[#This Row],[Nivel 6]]&Tabla3[[#This Row],[Nivel 7]]","v":"6.602.04.01.04."}]
[null,"6.","602.","04.","01.","05.",null,null,"Valores Privados","NO",null,{"$f":"+Tabla3[[#This Row],[Nivel 1]]&Tabla3[[#This Row],[Nivel 2]]&Tabla3[[#This Row],[Nivel 3]]&Tabla3[[#This Row],[Nivel 4]]&Tabla3[[#This Row],[Nivel 5]]&Tabla3[[#This Row],[Nivel 6]]&Tabla3[[#This Row],[Nivel 7]]","v":"6.602.04.01.05."}]
[null,"6.","602.","04.","01.","05.","01.",null,"Acciones de Sociedades Anónimas","NO",null,{"$f":"+Tabla3[[#This Row],[Nivel 1]]&Tabla3[[#This Row],[Nivel 2]]&Tabla3[[#This Row],[Nivel 3]]&Tabla3[[#This Row],[Nivel 4]]&Tabla3[[#This Row],[Nivel 5]]&Tabla3[[#This Row],[Nivel 6]]&Tabla3[[#This Row],[Nivel 7]]","v":"6.602.04.01.05.01."}]
[null,"6.","602.","04.","01.","05.","01.","01.","Empresas de Seguros o Reaseguros","SI",null,{"$f":"+Tabla3[[#This Row],[Nivel 1]]&Tabla3[[#This Row],[Nivel 2]]&Tabla3[[#This Row],[Nivel 3]]&Tabla3[[#This Row],[Nivel 4]]&Tabla3[[#This Row],[Nivel 5]]&Tabla3[[#This Row],[Nivel 6]]&Tabla3[[#This Row],[Nivel 7]]","v":"6.602.04.01.05.01.01."}]
[null,"6.","602.","04.","01.","05.","01.","02.","Sociedades de Corretaje de Seguros, de Reaseguros o de Valores","SI",null,{"$f":"+Tabla3[[#This Row],[Nivel 1]]&Tabla3[[#This Row],[Nivel 2]]&Tabla3[[#This Row],[Nivel 3]]&Tabla3[[#This Row],[Nivel 4]]&Tabla3[[#This Row],[Nivel 5]]&Tabla3[[#This Row],[Nivel 6]]&Tabla3[[#This Row],[Nivel 7]]","v":"6.602.04.01.05.01.02."}]
[null,"6.","602.","04.","01.","05.","01.","03.","Bancos y Otras Instituciones Financieras","SI",null,{"$f":"+Tabla3[[#This Row],[Nivel 1]]&Tabla3[[#This Row],[Nivel 2]]&Tabla3[[#This Row],[Nivel 3]]&Tabla3[[#This Row],[Nivel 4]]&Tabla3[[#This Row],[Nivel 5]]&Tabla3[[#This Row],[Nivel 6]]&Tabla3[[#This Row],[Nivel 7]]","v":"6.602.04.01.05.01.03."}]
[null,"6.","602.","04.","01.","05.","01.","04.","Sociedades Industriales y Comerciales","SI",null,{"$f":"+Tabla3[[#This Row],[Nivel 1]]&Tabla3[[#This Row],[Nivel 2]]&Tabla3[[#This Row],[Nivel 3]]&Tabla3[[#This Row],[Nivel 4]]&Tabla3[[#This Row],[Nivel 5]]&Tabla3[[#This Row],[Nivel 6]]&Tabla3[[#This Row],[Nivel 7]]","v":"6.602.04.01.05.01.04."}]
[null,"6.","602.","04.","01.","05.","01.","05.","Sociedades Civiles","SI",null,{"$f":"+Tabla3[[#This Row],[Nivel 1]]&Tabla3[[#This Row],[Nivel 2]]&Tabla3[[#This Row],[Nivel 3]]&Tabla3[[#This Row],[Nivel 4]]&Tabla3[[#This Row],[Nivel 5]]&Tabla3[[#This Row],[Nivel 6]]&Tabla3[[#This Row],[Nivel 7]]","v":"6.602.04.01.05.01.05."}]
[null,"6.","602.","04.","01.","05.","01.","06.","Empresas Filiales, Afiliadas y Relacionadas","SI",null,{"$f":"+Tabla3[[#This Row],[Nivel 1]]&Tabla3[[#This Row],[Nivel 2]]&Tabla3[[#This Row],[Nivel 3]]&Tabla3[[#This Row],[Nivel 4]]&Tabla3[[#This Row],[Nivel 5]]&Tabla3[[#This Row],[Nivel 6]]&Tabla3[[#This Row],[Nivel 7]]","v":"6.602.04.01.05.01.06."}]
[null,"6.","602.","04.","01.","05.","01.","07.","Otras Sociedades Anónimas","SI",null,{"$f":"+Tabla3[[#This Row],[Nivel 1]]&Tabla3[[#This Row],[Nivel 2]]&Tabla3[[#This Row],[Nivel 3]]&Tabla3[[#This Row],[Nivel 4]]&Tabla3[[#This Row],[Nivel 5]]&Tabla3[[#This Row],[Nivel 6]]&Tabla3[[#This Row],[Nivel 7]]","v":"6.602.04.01.05.01.07."}]
[null,"6.","602.","04.","01.","05.","02.",null,"Bonos de Sociedades Anónimas","SI",null,{"$f":"+Tabla3[[#This Row],[Nivel 1]]&Tabla3[[#This Row],[Nivel 2]]&Tabla3[[#This Row],[Nivel 3]]&Tabla3[[#This Row],[Nivel 4]]&Tabla3[[#This Row],[Nivel 5]]&Tabla3[[#This Row],[Nivel 6]]&Tabla3[[#This Row],[Nivel 7]]","v":"6.602.04.01.05.02."}]
[null,"6.","602.","04.","01.","05.","03.",null,"Otras Inversiones emitidas por el Sector Privado.","SI",null,{"$f":"+Tabla3[[#This Row],[Nivel 1]]&Tabla3[[#This Row],[Nivel 2]]&Tabla3[[#This Row],[Nivel 3]]&Tabla3[[#This Row],[Nivel 4]]&Tabla3[[#This Row],[Nivel 5]]&Tabla3[[#This Row],[Nivel 6]]&Tabla3[[#This Row],[Nivel 7]]","v":"6.602.04.01.05.03."}]
[null,"6.","602.","04.","01.","06.",null,null,"Activos en el Extranjero","NO",null,{"$f":"+Tabla3[[#This Row],[Nivel 1]]&Tabla3[[#This Row],[Nivel 2]]&Tabla3[[#This Row],[Nivel 3]]&Tabla3[[#This Row],[Nivel 4]]&Tabla3[[#This Row],[Nivel 5]]&Tabla3[[#This Row],[Nivel 6]]&Tabla3[[#This Row],[Nivel 7]]","v":"6.602.04.01.06."}]
[null,"6.","602.","04.","01.","06.","01.",null,"Bancos  ","SI",null,{"$f":"+Tabla3[[#This Row],[Nivel 1]]&Tabla3[[#This Row],[Nivel 2]]&Tabla3[[#This Row],[Nivel 3]]&Tabla3[[#This Row],[Nivel 4]]&Tabla3[[#This Row],[Nivel 5]]&Tabla3[[#This Row],[Nivel 6]]&Tabla3[[#This Row],[Nivel 7]]","v":"6.602.04.01.06.01."}]
[null,"6.","602.","04.","01.","06.","02.",null,"Titulos Valores","SI",null,{"$f":"+Tabla3[[#This Row],[Nivel 1]]&Tabla3[[#This Row],[Nivel 2]]&Tabla3[[#This Row],[Nivel 3]]&Tabla3[[#This Row],[Nivel 4]]&Tabla3[[#This Row],[Nivel 5]]&Tabla3[[#This Row],[Nivel 6]]&Tabla3[[#This Row],[Nivel 7]]","v":"6.602.04.01.06.02."}]
[null,"6.","602.","04.","01.","06.","03.",null,"Inmuebles ","SI",null,{"$f":"+Tabla3[[#This Row],[Nivel 1]]&Tabla3[[#This Row],[Nivel 2]]&Tabla3[[#This Row],[Nivel 3]]&Tabla3[[#This Row],[Nivel 4]]&Tabla3[[#This Row],[Nivel 5]]&Tabla3[[#This Row],[Nivel 6]]&Tabla3[[#This Row],[Nivel 7]]","v":"6.602.04.01.06.03."}]
[null,"6.","602.","04.","01.","06.","04.",null,"Otras Inversiones ","SI",null,{"$f":"+Tabla3[[#This Row],[Nivel 1]]&Tabla3[[#This Row],[Nivel 2]]&Tabla3[[#This Row],[Nivel 3]]&Tabla3[[#This Row],[Nivel 4]]&Tabla3[[#This Row],[Nivel 5]]&Tabla3[[#This Row],[Nivel 6]]&Tabla3[[#This Row],[Nivel 7]]","v":"6.602.04.01.06.04."}]
[null,"6.","602.","05.",null,null,null,null,"Pérdida en Negociación de Valores y Bienes ","NO",null,{"$f":"+Tabla3[[#This Row],[Nivel 1]]&Tabla3[[#This Row],[Nivel 2]]&Tabla3[[#This Row],[Nivel 3]]&Tabla3[[#This Row],[Nivel 4]]&Tabla3[[#This Row],[Nivel 5]]&Tabla3[[#This Row],[Nivel 6]]&Tabla3[[#This Row],[Nivel 7]]","v":"6.602.05."}]
[null,"6.","602.","05.","01.",null,null,null,"Pérdida en Negociación de Valores  ","NO",null,{"$f":"+Tabla3[[#This Row],[Nivel 1]]&Tabla3[[#This Row],[Nivel 2]]&Tabla3[[#This Row],[Nivel 3]]&Tabla3[[#This Row],[Nivel 4]]&Tabla3[[#This Row],[Nivel 5]]&Tabla3[[#This Row],[Nivel 6]]&Tabla3[[#This Row],[Nivel 7]]","v":"6.602.05.01."}]
[null,"6.","602.","05.","01.","01.",null,null,"Valores Públicos","NO",null,{"$f":"+Tabla3[[#This Row],[Nivel 1]]&Tabla3[[#This Row],[Nivel 2]]&Tabla3[[#This Row],[Nivel 3]]&Tabla3[[#This Row],[Nivel 4]]&Tabla3[[#This Row],[Nivel 5]]&Tabla3[[#This Row],[Nivel 6]]&Tabla3[[#This Row],[Nivel 7]]","v":"6.602.05.01.01."}]
[null,"6.","602.","05.","01.","01.","01.",null,"Emitidos o Garantizados por la República","SI",null,{"$f":"+Tabla3[[#This Row],[Nivel 1]]&Tabla3[[#This Row],[Nivel 2]]&Tabla3[[#This Row],[Nivel 3]]&Tabla3[[#This Row],[Nivel 4]]&Tabla3[[#This Row],[Nivel 5]]&Tabla3[[#This Row],[Nivel 6]]&Tabla3[[#This Row],[Nivel 7]]","v":"6.602.05.01.01.01."}]
[null,"6.","602.","05.","01.","01.","02.",null,"Emitidos por Otros Sujetos de Derecho Público Nacional","SI",null,{"$f":"+Tabla3[[#This Row],[Nivel 1]]&Tabla3[[#This Row],[Nivel 2]]&Tabla3[[#This Row],[Nivel 3]]&Tabla3[[#This Row],[Nivel 4]]&Tabla3[[#This Row],[Nivel 5]]&Tabla3[[#This Row],[Nivel 6]]&Tabla3[[#This Row],[Nivel 7]]","v":"6.602.05.01.01.02."}]
[null,"6.","602.","05.","01.","01.","03.",null,"Emitidos por Empresas con Participación de la República","SI",null,{"$f":"+Tabla3[[#This Row],[Nivel 1]]&Tabla3[[#This Row],[Nivel 2]]&Tabla3[[#This Row],[Nivel 3]]&Tabla3[[#This Row],[Nivel 4]]&Tabla3[[#This Row],[Nivel 5]]&Tabla3[[#This Row],[Nivel 6]]&Tabla3[[#This Row],[Nivel 7]]","v":"6.602.05.01.01.03."}]
[null,"6.","602.","05.","01.","01.","04.",null,"Emitidos por Instituciones con Participación de la República","SI",null,{"$f":"+Tabla3[[#This Row],[Nivel 1]]&Tabla3[[#This Row],[Nivel 2]]&Tabla3[[#This Row],[Nivel 3]]&Tabla3[[#This Row],[Nivel 4]]&Tabla3[[#This Row],[Nivel 5]]&Tabla3[[#This Row],[Nivel 6]]&Tabla3[[#This Row],[Nivel 7]]","v":"6.602.05.01.01.04."}]
[null,"6.","602.","05.","01.","02.",null,null,"Participación en Fondos de Inversión","NO",null,{"$f":"+Tabla3[[#This Row],[Nivel 1]]&Tabla3[[#This Row],[Nivel 2]]&Tabla3[[#This Row],[Nivel 3]]&Tabla3[[#This Row],[Nivel 4]]&Tabla3[[#This Row],[Nivel 5]]&Tabla3[[#This Row],[Nivel 6]]&Tabla3[[#This Row],[Nivel 7]]","v":"6.602.05.01.02."}]
[null,"6.","602.","05.","01.","02.","01.",null,"Renta Fija","SI",null,{"$f":"+Tabla3[[#This Row],[Nivel 1]]&Tabla3[[#This Row],[Nivel 2]]&Tabla3[[#This Row],[Nivel 3]]&Tabla3[[#This Row],[Nivel 4]]&Tabla3[[#This Row],[Nivel 5]]&Tabla3[[#This Row],[Nivel 6]]&Tabla3[[#This Row],[Nivel 7]]","v":"6.602.05.01.02.01."}]
[null,"6.","602.","05.","01.","02.","02.",null,"Renta Variable","SI",null,{"$f":"+Tabla3[[#This Row],[Nivel 1]]&Tabla3[[#This Row],[Nivel 2]]&Tabla3[[#This Row],[Nivel 3]]&Tabla3[[#This Row],[Nivel 4]]&Tabla3[[#This Row],[Nivel 5]]&Tabla3[[#This Row],[Nivel 6]]&Tabla3[[#This Row],[Nivel 7]]","v":"6.602.05.01.02.02."}]
[null,"6.","602.","05.","01.","03.",null,null,"Garantía a la Nación","NO",null,{"$f":"+Tabla3[[#This Row],[Nivel 1]]&Tabla3[[#This Row],[Nivel 2]]&Tabla3[[#This Row],[Nivel 3]]&Tabla3[[#This Row],[Nivel 4]]&Tabla3[[#This Row],[Nivel 5]]&Tabla3[[#This Row],[Nivel 6]]&Tabla3[[#This Row],[Nivel 7]]","v":"6.602.05.01.03."}]
[null,"6.","602.","05.","01.","03.","01.",null,"Valores Públicos","SI",null,{"$f":"+Tabla3[[#This Row],[Nivel 1]]&Tabla3[[#This Row],[Nivel 2]]&Tabla3[[#This Row],[Nivel 3]]&Tabla3[[#This Row],[Nivel 4]]&Tabla3[[#This Row],[Nivel 5]]&Tabla3[[#This Row],[Nivel 6]]&Tabla3[[#This Row],[Nivel 7]]","v":"6.602.05.01.03.01."}]
[null,"6.","602.","05.","01.","04.",null,null,"Valores Privados","NO",null,{"$f":"+Tabla3[[#This Row],[Nivel 1]]&Tabla3[[#This Row],[Nivel 2]]&Tabla3[[#This Row],[Nivel 3]]&Tabla3[[#This Row],[Nivel 4]]&Tabla3[[#This Row],[Nivel 5]]&Tabla3[[#This Row],[Nivel 6]]&Tabla3[[#This Row],[Nivel 7]]","v":"6.602.05.01.04."}]
[null,"6.","602.","05.","01.","04.","01.",null,"Acciones de Sociedades Anónimas","NO",null,{"$f":"+Tabla3[[#This Row],[Nivel 1]]&Tabla3[[#This Row],[Nivel 2]]&Tabla3[[#This Row],[Nivel 3]]&Tabla3[[#This Row],[Nivel 4]]&Tabla3[[#This Row],[Nivel 5]]&Tabla3[[#This Row],[Nivel 6]]&Tabla3[[#This Row],[Nivel 7]]","v":"6.602.05.01.04.01."}]
[null,"6.","602.","05.","01.","04.","01.","01.","Empresas de Seguros o Reaseguros","SI",null,{"$f":"+Tabla3[[#This Row],[Nivel 1]]&Tabla3[[#This Row],[Nivel 2]]&Tabla3[[#This Row],[Nivel 3]]&Tabla3[[#This Row],[Nivel 4]]&Tabla3[[#This Row],[Nivel 5]]&Tabla3[[#This Row],[Nivel 6]]&Tabla3[[#This Row],[Nivel 7]]","v":"6.602.05.01.04.01.01."}]
[null,"6.","602.","05.","01.","04.","01.","02.","Sociedades de Corretaje de Seguros, de Reaseguros o de Valores","SI",null,{"$f":"+Tabla3[[#This Row],[Nivel 1]]&Tabla3[[#This Row],[Nivel 2]]&Tabla3[[#This Row],[Nivel 3]]&Tabla3[[#This Row],[Nivel 4]]&Tabla3[[#This Row],[Nivel 5]]&Tabla3[[#This Row],[Nivel 6]]&Tabla3[[#This Row],[Nivel 7]]","v":"6.602.05.01.04.01.02."}]
[null,"6.","602.","05.","01.","04.","01.","03.","Bancos y Otras Instituciones Financieras","SI",null,{"$f":"+Tabla3[[#This Row],[Nivel 1]]&Tabla3[[#This Row],[Nivel 2]]&Tabla3[[#This Row],[Nivel 3]]&Tabla3[[#This Row],[Nivel 4]]&Tabla3[[#This Row],[Nivel 5]]&Tabla3[[#This Row],[Nivel 6]]&Tabla3[[#This Row],[Nivel 7]]","v":"6.602.05.01.04.01.03."}]
[null,"6.","602.","05.","01.","04.","01.","04.","Sociedades Industriales y Comerciales","SI",null,{"$f":"+Tabla3[[#This Row],[Nivel 1]]&Tabla3[[#This Row],[Nivel 2]]&Tabla3[[#This Row],[Nivel 3]]&Tabla3[[#This Row],[Nivel 4]]&Tabla3[[#This Row],[Nivel 5]]&Tabla3[[#This Row],[Nivel 6]]&Tabla3[[#This Row],[Nivel 7]]","v":"6.602.05.01.04.01.04."}]
[null,"6.","602.","05.","01.","04.","01.","05.","Sociedades Civiles","SI",null,{"$f":"+Tabla3[[#This Row],[Nivel 1]]&Tabla3[[#This Row],[Nivel 2]]&Tabla3[[#This Row],[Nivel 3]]&Tabla3[[#This Row],[Nivel 4]]&Tabla3[[#This Row],[Nivel 5]]&Tabla3[[#This Row],[Nivel 6]]&Tabla3[[#This Row],[Nivel 7]]","v":"6.602.05.01.04.01.05."}]
[null,"6.","602.","05.","01.","04.","01.","06.","Empresas Filiales, Afiliadas y Relacionadas","SI",null,{"$f":"+Tabla3[[#This Row],[Nivel 1]]&Tabla3[[#This Row],[Nivel 2]]&Tabla3[[#This Row],[Nivel 3]]&Tabla3[[#This Row],[Nivel 4]]&Tabla3[[#This Row],[Nivel 5]]&Tabla3[[#This Row],[Nivel 6]]&Tabla3[[#This Row],[Nivel 7]]","v":"6.602.05.01.04.01.06."}]
[null,"6.","602.","05.","01.","04.","01.","07.","Otras Sociedades Anónimas","SI",null,{"$f":"+Tabla3[[#This Row],[Nivel 1]]&Tabla3[[#This Row],[Nivel 2]]&Tabla3[[#This Row],[Nivel 3]]&Tabla3[[#This Row],[Nivel 4]]&Tabla3[[#This Row],[Nivel 5]]&Tabla3[[#This Row],[Nivel 6]]&Tabla3[[#This Row],[Nivel 7]]","v":"6.602.05.01.04.01.07."}]
[null,"6.","602.","05.","01.","04.","02.",null,"Bonos de Sociedades Anónimas","SI",null,{"$f":"+Tabla3[[#This Row],[Nivel 1]]&Tabla3[[#This Row],[Nivel 2]]&Tabla3[[#This Row],[Nivel 3]]&Tabla3[[#This Row],[Nivel 4]]&Tabla3[[#This Row],[Nivel 5]]&Tabla3[[#This Row],[Nivel 6]]&Tabla3[[#This Row],[Nivel 7]]","v":"6.602.05.01.04.02."}]
[null,"6.","602.","05.","01.","04.","03.",null,"Otras Inversiones emitidas por el Sector Privado.","SI",null,{"$f":"+Tabla3[[#This Row],[Nivel 1]]&Tabla3[[#This Row],[Nivel 2]]&Tabla3[[#This Row],[Nivel 3]]&Tabla3[[#This Row],[Nivel 4]]&Tabla3[[#This Row],[Nivel 5]]&Tabla3[[#This Row],[Nivel 6]]&Tabla3[[#This Row],[Nivel 7]]","v":"6.602.05.01.04.03."}]
[null,"6.","602.","05.","01.","05.",null,null,"Activos en el Extranjero","NO",null,{"$f":"+Tabla3[[#This Row],[Nivel 1]]&Tabla3[[#This Row],[Nivel 2]]&Tabla3[[#This Row],[Nivel 3]]&Tabla3[[#This Row],[Nivel 4]]&Tabla3[[#This Row],[Nivel 5]]&Tabla3[[#This Row],[Nivel 6]]&Tabla3[[#This Row],[Nivel 7]]","v":"6.602.05.01.05."}]
[null,"6.","602.","05.","01.","05.","01.",null,"Titulos Valores","SI",null,{"$f":"+Tabla3[[#This Row],[Nivel 1]]&Tabla3[[#This Row],[Nivel 2]]&Tabla3[[#This Row],[Nivel 3]]&Tabla3[[#This Row],[Nivel 4]]&Tabla3[[#This Row],[Nivel 5]]&Tabla3[[#This Row],[Nivel 6]]&Tabla3[[#This Row],[Nivel 7]]","v":"6.602.05.01.05.01."}]
[null,"6.","602.","05.","02.",null,null,null,"Pérdidas en Negociación de Bienes","NO",null,{"$f":"+Tabla3[[#This Row],[Nivel 1]]&Tabla3[[#This Row],[Nivel 2]]&Tabla3[[#This Row],[Nivel 3]]&Tabla3[[#This Row],[Nivel 4]]&Tabla3[[#This Row],[Nivel 5]]&Tabla3[[#This Row],[Nivel 6]]&Tabla3[[#This Row],[Nivel 7]]","v":"6.602.05.02."}]
[null,"6.","602.","05.","02.","01.",null,null,"Participación Fondos de Inversión Inmobiliarios","SI",null,{"$f":"+Tabla3[[#This Row],[Nivel 1]]&Tabla3[[#This Row],[Nivel 2]]&Tabla3[[#This Row],[Nivel 3]]&Tabla3[[#This Row],[Nivel 4]]&Tabla3[[#This Row],[Nivel 5]]&Tabla3[[#This Row],[Nivel 6]]&Tabla3[[#This Row],[Nivel 7]]","v":"6.602.05.02.01."}]
[null,"6.","602.","05.","02.","02.",null,null,"Bienes Inmuebles ","SI",null,{"$f":"+Tabla3[[#This Row],[Nivel 1]]&Tabla3[[#This Row],[Nivel 2]]&Tabla3[[#This Row],[Nivel 3]]&Tabla3[[#This Row],[Nivel 4]]&Tabla3[[#This Row],[Nivel 5]]&Tabla3[[#This Row],[Nivel 6]]&Tabla3[[#This Row],[Nivel 7]]","v":"6.602.05.02.02."}]
[null,"6.","602.","05.","02.","04.",null,null,"Activos en el Extranjero","SI",null,{"$f":"+Tabla3[[#This Row],[Nivel 1]]&Tabla3[[#This Row],[Nivel 2]]&Tabla3[[#This Row],[Nivel 3]]&Tabla3[[#This Row],[Nivel 4]]&Tabla3[[#This Row],[Nivel 5]]&Tabla3[[#This Row],[Nivel 6]]&Tabla3[[#This Row],[Nivel 7]]","v":"6.602.05.02.04."}]
[null,"6.","602.","06.",null,null,null,null,"Gastos de Depreciación y Amortización","NO",null,{"$f":"+Tabla3[[#This Row],[Nivel 1]]&Tabla3[[#This Row],[Nivel 2]]&Tabla3[[#This Row],[Nivel 3]]&Tabla3[[#This Row],[Nivel 4]]&Tabla3[[#This Row],[Nivel 5]]&Tabla3[[#This Row],[Nivel 6]]&Tabla3[[#This Row],[Nivel 7]]","v":"6.602.06."}]
[null,"6.","602.","06.","01.",null,null,null,"Activos Depreciables","NO",null,{"$f":"+Tabla3[[#This Row],[Nivel 1]]&Tabla3[[#This Row],[Nivel 2]]&Tabla3[[#This Row],[Nivel 3]]&Tabla3[[#This Row],[Nivel 4]]&Tabla3[[#This Row],[Nivel 5]]&Tabla3[[#This Row],[Nivel 6]]&Tabla3[[#This Row],[Nivel 7]]","v":"6.602.06.01."}]
[null,"6.","602.","06.","01.","01.",null,null,"Bienes Inmuebles ","SI",null,{"$f":"+Tabla3[[#This Row],[Nivel 1]]&Tabla3[[#This Row],[Nivel 2]]&Tabla3[[#This Row],[Nivel 3]]&Tabla3[[#This Row],[Nivel 4]]&Tabla3[[#This Row],[Nivel 5]]&Tabla3[[#This Row],[Nivel 6]]&Tabla3[[#This Row],[Nivel 7]]","v":"6.602.06.01.01."}]
[null,"6.","602.","06.","01.","02.",null,null,"Mobiliario","SI",null,{"$f":"+Tabla3[[#This Row],[Nivel 1]]&Tabla3[[#This Row],[Nivel 2]]&Tabla3[[#This Row],[Nivel 3]]&Tabla3[[#This Row],[Nivel 4]]&Tabla3[[#This Row],[Nivel 5]]&Tabla3[[#This Row],[Nivel 6]]&Tabla3[[#This Row],[Nivel 7]]","v":"6.602.06.01.02."}]
[null,"6.","602.","06.","01.","03.",null,null,"Equipos de Oficina","SI",null,{"$f":"+Tabla3[[#This Row],[Nivel 1]]&Tabla3[[#This Row],[Nivel 2]]&Tabla3[[#This Row],[Nivel 3]]&Tabla3[[#This Row],[Nivel 4]]&Tabla3[[#This Row],[Nivel 5]]&Tabla3[[#This Row],[Nivel 6]]&Tabla3[[#This Row],[Nivel 7]]","v":"6.602.06.01.03."}]
[null,"6.","602.","06.","01.","04.",null,null,"Equipos de Computación y Software","SI",null,{"$f":"+Tabla3[[#This Row],[Nivel 1]]&Tabla3[[#This Row],[Nivel 2]]&Tabla3[[#This Row],[Nivel 3]]&Tabla3[[#This Row],[Nivel 4]]&Tabla3[[#This Row],[Nivel 5]]&Tabla3[[#This Row],[Nivel 6]]&Tabla3[[#This Row],[Nivel 7]]","v":"6.602.06.01.04."}]
[null,"6.","602.","06.","01.","05.",null,null,"Vehículos","SI",null,{"$f":"+Tabla3[[#This Row],[Nivel 1]]&Tabla3[[#This Row],[Nivel 2]]&Tabla3[[#This Row],[Nivel 3]]&Tabla3[[#This Row],[Nivel 4]]&Tabla3[[#This Row],[Nivel 5]]&Tabla3[[#This Row],[Nivel 6]]&Tabla3[[#This Row],[Nivel 7]]","v":"6.602.06.01.05."}]
[null,"6.","602.","06.","01.","06.",null,null,"Aeronaves","SI",null,{"$f":"+Tabla3[[#This Row],[Nivel 1]]&Tabla3[[#This Row],[Nivel 2]]&Tabla3[[#This Row],[Nivel 3]]&Tabla3[[#This Row],[Nivel 4]]&Tabla3[[#This Row],[Nivel 5]]&Tabla3[[#This Row],[Nivel 6]]&Tabla3[[#This Row],[Nivel 7]]","v":"6.602.06.01.06."}]
[null,"6.","602.","06.","01.","07.",null,null,"Naves","SI",null,{"$f":"+Tabla3[[#This Row],[Nivel 1]]&Tabla3[[#This Row],[Nivel 2]]&Tabla3[[#This Row],[Nivel 3]]&Tabla3[[#This Row],[Nivel 4]]&Tabla3[[#This Row],[Nivel 5]]&Tabla3[[#This Row],[Nivel 6]]&Tabla3[[#This Row],[Nivel 7]]","v":"6.602.06.01.07."}]
[null,"6.","602.","06.","02.",null,null,null,"Activos Amortizables","NO",null,{"$f":"+Tabla3[[#This Row],[Nivel 1]]&Tabla3[[#This Row],[Nivel 2]]&Tabla3[[#This Row],[Nivel 3]]&Tabla3[[#This Row],[Nivel 4]]&Tabla3[[#This Row],[Nivel 5]]&Tabla3[[#This Row],[Nivel 6]]&Tabla3[[#This Row],[Nivel 7]]","v":"6.602.06.02."}]
[null,"6.","602.","06.","02.","01.",null,null,"Gastos de Constitución","SI",null,{"$f":"+Tabla3[[#This Row],[Nivel 1]]&Tabla3[[#This Row],[Nivel 2]]&Tabla3[[#This Row],[Nivel 3]]&Tabla3[[#This Row],[Nivel 4]]&Tabla3[[#This Row],[Nivel 5]]&Tabla3[[#This Row],[Nivel 6]]&Tabla3[[#This Row],[Nivel 7]]","v":"6.602.06.02.01."}]
[null,"6.","602.","06.","02.","02.",null,null,"Gastos de Instalación","SI",null,{"$f":"+Tabla3[[#This Row],[Nivel 1]]&Tabla3[[#This Row],[Nivel 2]]&Tabla3[[#This Row],[Nivel 3]]&Tabla3[[#This Row],[Nivel 4]]&Tabla3[[#This Row],[Nivel 5]]&Tabla3[[#This Row],[Nivel 6]]&Tabla3[[#This Row],[Nivel 7]]","v":"6.602.06.02.02."}]
[null,"6.","602.","07.",null,null,null,null,"Reserva de Provisión","NO",null,{"$f":"+Tabla3[[#This Row],[Nivel 1]]&Tabla3[[#This Row],[Nivel 2]]&Tabla3[[#This Row],[Nivel 3]]&Tabla3[[#This Row],[Nivel 4]]&Tabla3[[#This Row],[Nivel 5]]&Tabla3[[#This Row],[Nivel 6]]&Tabla3[[#This Row],[Nivel 7]]","v":"6.602.07."}]
[null,"6.","602.","07.","01.",null,null,null,"Para Cuentas Dudosas","NO",null,{"$f":"+Tabla3[[#This Row],[Nivel 1]]&Tabla3[[#This Row],[Nivel 2]]&Tabla3[[#This Row],[Nivel 3]]&Tabla3[[#This Row],[Nivel 4]]&Tabla3[[#This Row],[Nivel 5]]&Tabla3[[#This Row],[Nivel 6]]&Tabla3[[#This Row],[Nivel 7]]","v":"6.602.07.01."}]
[null,"6.","602.","07.","01.","01.",null,null,"Cuentas por Cobrar ","SI",null,{"$f":"+Tabla3[[#This Row],[Nivel 1]]&Tabla3[[#This Row],[Nivel 2]]&Tabla3[[#This Row],[Nivel 3]]&Tabla3[[#This Row],[Nivel 4]]&Tabla3[[#This Row],[Nivel 5]]&Tabla3[[#This Row],[Nivel 6]]&Tabla3[[#This Row],[Nivel 7]]","v":"6.602.07.01.01."}]
[null,"6.","602.","07.","01.","02.",null,null,"Préstamos por Cobrar ","SI",null,{"$f":"+Tabla3[[#This Row],[Nivel 1]]&Tabla3[[#This Row],[Nivel 2]]&Tabla3[[#This Row],[Nivel 3]]&Tabla3[[#This Row],[Nivel 4]]&Tabla3[[#This Row],[Nivel 5]]&Tabla3[[#This Row],[Nivel 6]]&Tabla3[[#This Row],[Nivel 7]]","v":"6.602.07.01.02."}]
[null,"6.","602.","07.","01.","03.",null,null,"Otras Cuentas por Cobrar","SI",null,{"$f":"+Tabla3[[#This Row],[Nivel 1]]&Tabla3[[#This Row],[Nivel 2]]&Tabla3[[#This Row],[Nivel 3]]&Tabla3[[#This Row],[Nivel 4]]&Tabla3[[#This Row],[Nivel 5]]&Tabla3[[#This Row],[Nivel 6]]&Tabla3[[#This Row],[Nivel 7]]","v":"6.602.07.01.03."}]
[null,"6.","602.","07.","02.",null,null,null,"Otros Fines","NO",null,{"$f":"+Tabla3[[#This Row],[Nivel 1]]&Tabla3[[#This Row],[Nivel 2]]&Tabla3[[#This Row],[Nivel 3]]&Tabla3[[#This Row],[Nivel 4]]&Tabla3[[#This Row],[Nivel 5]]&Tabla3[[#This Row],[Nivel 6]]&Tabla3[[#This Row],[Nivel 7]]","v":"6.602.07.02."}]
[null,"6.","602.","07.","02.","01.",null,null,"Depósitos y Títulos Valores ","NO",null,{"$f":"+Tabla3[[#This Row],[Nivel 1]]&Tabla3[[#This Row],[Nivel 2]]&Tabla3[[#This Row],[Nivel 3]]&Tabla3[[#This Row],[Nivel 4]]&Tabla3[[#This Row],[Nivel 5]]&Tabla3[[#This Row],[Nivel 6]]&Tabla3[[#This Row],[Nivel 7]]","v":"6.602.07.02.01."}]
[null,"6.","602.","07.","02.","01.","01.",null,"Bancos","SI",null,{"$f":"+Tabla3[[#This Row],[Nivel 1]]&Tabla3[[#This Row],[Nivel 2]]&Tabla3[[#This Row],[Nivel 3]]&Tabla3[[#This Row],[Nivel 4]]&Tabla3[[#This Row],[Nivel 5]]&Tabla3[[#This Row],[Nivel 6]]&Tabla3[[#This Row],[Nivel 7]]","v":"6.602.07.02.01.01."}]
[null,"6.","602.","07.","02.","01.","02.",null,"Titulos Valores","NO",null,{"$f":"+Tabla3[[#This Row],[Nivel 1]]&Tabla3[[#This Row],[Nivel 2]]&Tabla3[[#This Row],[Nivel 3]]&Tabla3[[#This Row],[Nivel 4]]&Tabla3[[#This Row],[Nivel 5]]&Tabla3[[#This Row],[Nivel 6]]&Tabla3[[#This Row],[Nivel 7]]","v":"6.602.07.02.01.02."}]
[null,"6.","602.","07.","02.","01.","02.","01.","Públicos","SI",null,{"$f":"+Tabla3[[#This Row],[Nivel 1]]&Tabla3[[#This Row],[Nivel 2]]&Tabla3[[#This Row],[Nivel 3]]&Tabla3[[#This Row],[Nivel 4]]&Tabla3[[#This Row],[Nivel 5]]&Tabla3[[#This Row],[Nivel 6]]&Tabla3[[#This Row],[Nivel 7]]","v":"6.602.07.02.01.02.01."}]
[null,"6.","602.","07.","02.","01.","02.","02.","Privados","SI",null,{"$f":"+Tabla3[[#This Row],[Nivel 1]]&Tabla3[[#This Row],[Nivel 2]]&Tabla3[[#This Row],[Nivel 3]]&Tabla3[[#This Row],[Nivel 4]]&Tabla3[[#This Row],[Nivel 5]]&Tabla3[[#This Row],[Nivel 6]]&Tabla3[[#This Row],[Nivel 7]]","v":"6.602.07.02.01.02.02."}]
[null,"6.","602.","07.","02.","02.",null,null,"Organismos y Entes de la Administración Pública","SI",null,{"$f":"+Tabla3[[#This Row],[Nivel 1]]&Tabla3[[#This Row],[Nivel 2]]&Tabla3[[#This Row],[Nivel 3]]&Tabla3[[#This Row],[Nivel 4]]&Tabla3[[#This Row],[Nivel 5]]&Tabla3[[#This Row],[Nivel 6]]&Tabla3[[#This Row],[Nivel 7]]","v":"6.602.07.02.02."}]
[null,"6.","602.","07.","02.","03.",null,null,"Valores Privados","NO",null,{"$f":"+Tabla3[[#This Row],[Nivel 1]]&Tabla3[[#This Row],[Nivel 2]]&Tabla3[[#This Row],[Nivel 3]]&Tabla3[[#This Row],[Nivel 4]]&Tabla3[[#This Row],[Nivel 5]]&Tabla3[[#This Row],[Nivel 6]]&Tabla3[[#This Row],[Nivel 7]]","v":"6.602.07.02.03."}]
[null,"6.","602.","07.","02.","03.","01.",null,"Acciones de Sociedades Anónimas","SI",null,{"$f":"+Tabla3[[#This Row],[Nivel 1]]&Tabla3[[#This Row],[Nivel 2]]&Tabla3[[#This Row],[Nivel 3]]&Tabla3[[#This Row],[Nivel 4]]&Tabla3[[#This Row],[Nivel 5]]&Tabla3[[#This Row],[Nivel 6]]&Tabla3[[#This Row],[Nivel 7]]","v":"6.602.07.02.03.01."}]
[null,"6.","602.","07.","02.","03.","02.",null,"Bonos de Sociedades Anónimas","SI",null,{"$f":"+Tabla3[[#This Row],[Nivel 1]]&Tabla3[[#This Row],[Nivel 2]]&Tabla3[[#This Row],[Nivel 3]]&Tabla3[[#This Row],[Nivel 4]]&Tabla3[[#This Row],[Nivel 5]]&Tabla3[[#This Row],[Nivel 6]]&Tabla3[[#This Row],[Nivel 7]]","v":"6.602.07.02.03.02."}]
[null,"6.","602.","07.","02.","03.","03.",null,"Obligaciones Mercantiles","SI",null,{"$f":"+Tabla3[[#This Row],[Nivel 1]]&Tabla3[[#This Row],[Nivel 2]]&Tabla3[[#This Row],[Nivel 3]]&Tabla3[[#This Row],[Nivel 4]]&Tabla3[[#This Row],[Nivel 5]]&Tabla3[[#This Row],[Nivel 6]]&Tabla3[[#This Row],[Nivel 7]]","v":"6.602.07.02.03.03."}]
[null,"6.","602.","07.","02.","03.","04.",null,"Otras Inversiones ","SI",null,{"$f":"+Tabla3[[#This Row],[Nivel 1]]&Tabla3[[#This Row],[Nivel 2]]&Tabla3[[#This Row],[Nivel 3]]&Tabla3[[#This Row],[Nivel 4]]&Tabla3[[#This Row],[Nivel 5]]&Tabla3[[#This Row],[Nivel 6]]&Tabla3[[#This Row],[Nivel 7]]","v":"6.602.07.02.03.04."}]
[null,"6.","602.","07.","02.","04.",null,null,"Otras Inversiones emitidas por el Sector Privado.","SI",null,{"$f":"+Tabla3[[#This Row],[Nivel 1]]&Tabla3[[#This Row],[Nivel 2]]&Tabla3[[#This Row],[Nivel 3]]&Tabla3[[#This Row],[Nivel 4]]&Tabla3[[#This Row],[Nivel 5]]&Tabla3[[#This Row],[Nivel 6]]&Tabla3[[#This Row],[Nivel 7]]","v":"6.602.07.02.04."}]
[null,"6.","602.","07.","02.","05.",null,null,"Activos en el Extranjero","SI",null,{"$f":"+Tabla3[[#This Row],[Nivel 1]]&Tabla3[[#This Row],[Nivel 2]]&Tabla3[[#This Row],[Nivel 3]]&Tabla3[[#This Row],[Nivel 4]]&Tabla3[[#This Row],[Nivel 5]]&Tabla3[[#This Row],[Nivel 6]]&Tabla3[[#This Row],[Nivel 7]]","v":"6.602.07.02.05."}]
[null,"6.","602.","07.","03.",null,null,null,"Otras Contingencias","NO",null,{"$f":"+Tabla3[[#This Row],[Nivel 1]]&Tabla3[[#This Row],[Nivel 2]]&Tabla3[[#This Row],[Nivel 3]]&Tabla3[[#This Row],[Nivel 4]]&Tabla3[[#This Row],[Nivel 5]]&Tabla3[[#This Row],[Nivel 6]]&Tabla3[[#This Row],[Nivel 7]]","v":"6.602.07.03."}]
[null,"6.","602.","07.","03.","01.",null,null,"Litigios","SI",null,{"$f":"+Tabla3[[#This Row],[Nivel 1]]&Tabla3[[#This Row],[Nivel 2]]&Tabla3[[#This Row],[Nivel 3]]&Tabla3[[#This Row],[Nivel 4]]&Tabla3[[#This Row],[Nivel 5]]&Tabla3[[#This Row],[Nivel 6]]&Tabla3[[#This Row],[Nivel 7]]","v":"6.602.07.03.01."}]
[null,"6.","602.","07.","03.","02.",null,null,"Multas ","SI",null,{"$f":"+Tabla3[[#This Row],[Nivel 1]]&Tabla3[[#This Row],[Nivel 2]]&Tabla3[[#This Row],[Nivel 3]]&Tabla3[[#This Row],[Nivel 4]]&Tabla3[[#This Row],[Nivel 5]]&Tabla3[[#This Row],[Nivel 6]]&Tabla3[[#This Row],[Nivel 7]]","v":"6.602.07.03.02."}]
[null,"6.","602.","07.","03.","03.",null,null,"Reparos","SI",null,{"$f":"+Tabla3[[#This Row],[Nivel 1]]&Tabla3[[#This Row],[Nivel 2]]&Tabla3[[#This Row],[Nivel 3]]&Tabla3[[#This Row],[Nivel 4]]&Tabla3[[#This Row],[Nivel 5]]&Tabla3[[#This Row],[Nivel 6]]&Tabla3[[#This Row],[Nivel 7]]","v":"6.602.07.03.03."}]
[null,"6.","602.","07.","03.","04.",null,null,"Otras ","SI",null,{"$f":"+Tabla3[[#This Row],[Nivel 1]]&Tabla3[[#This Row],[Nivel 2]]&Tabla3[[#This Row],[Nivel 3]]&Tabla3[[#This Row],[Nivel 4]]&Tabla3[[#This Row],[Nivel 5]]&Tabla3[[#This Row],[Nivel 6]]&Tabla3[[#This Row],[Nivel 7]]","v":"6.602.07.03.04."}]
[null,"6.","602.","07.","04.",null,null,null,"Participación Estatutaria","NO",null,{"$f":"+Tabla3[[#This Row],[Nivel 1]]&Tabla3[[#This Row],[Nivel 2]]&Tabla3[[#This Row],[Nivel 3]]&Tabla3[[#This Row],[Nivel 4]]&Tabla3[[#This Row],[Nivel 5]]&Tabla3[[#This Row],[Nivel 6]]&Tabla3[[#This Row],[Nivel 7]]","v":"6.602.07.04."}]
[null,"6.","602.","07.","05.",null,null,null,"Prestaciones Laborales de Ley","NO",null,{"$f":"+Tabla3[[#This Row],[Nivel 1]]&Tabla3[[#This Row],[Nivel 2]]&Tabla3[[#This Row],[Nivel 3]]&Tabla3[[#This Row],[Nivel 4]]&Tabla3[[#This Row],[Nivel 5]]&Tabla3[[#This Row],[Nivel 6]]&Tabla3[[#This Row],[Nivel 7]]","v":"6.602.07.05."}]
[null,"6.","602.","07.","05.","01.",null,null,"Vacaciones ","SI",null,{"$f":"+Tabla3[[#This Row],[Nivel 1]]&Tabla3[[#This Row],[Nivel 2]]&Tabla3[[#This Row],[Nivel 3]]&Tabla3[[#This Row],[Nivel 4]]&Tabla3[[#This Row],[Nivel 5]]&Tabla3[[#This Row],[Nivel 6]]&Tabla3[[#This Row],[Nivel 7]]","v":"6.602.07.05.01."}]
[null,"6.","602.","07.","05.","02.",null,null,"Bono Vacacional","SI",null,{"$f":"+Tabla3[[#This Row],[Nivel 1]]&Tabla3[[#This Row],[Nivel 2]]&Tabla3[[#This Row],[Nivel 3]]&Tabla3[[#This Row],[Nivel 4]]&Tabla3[[#This Row],[Nivel 5]]&Tabla3[[#This Row],[Nivel 6]]&Tabla3[[#This Row],[Nivel 7]]","v":"6.602.07.05.02."}]
[null,"6.","602.","07.","05.","03.",null,null,"Bonificaciones Especiales","SI",null,{"$f":"+Tabla3[[#This Row],[Nivel 1]]&Tabla3[[#This Row],[Nivel 2]]&Tabla3[[#This Row],[Nivel 3]]&Tabla3[[#This Row],[Nivel 4]]&Tabla3[[#This Row],[Nivel 5]]&Tabla3[[#This Row],[Nivel 6]]&Tabla3[[#This Row],[Nivel 7]]","v":"6.602.07.05.03."}]
[null,"6.","602.","07.","05.","04.",null,null,"Prestaciones Sociales","SI",null,{"$f":"+Tabla3[[#This Row],[Nivel 1]]&Tabla3[[#This Row],[Nivel 2]]&Tabla3[[#This Row],[Nivel 3]]&Tabla3[[#This Row],[Nivel 4]]&Tabla3[[#This Row],[Nivel 5]]&Tabla3[[#This Row],[Nivel 6]]&Tabla3[[#This Row],[Nivel 7]]","v":"6.602.07.05.04."}]
[null,"6.","602.","07.","05.","05.",null,null,"Caja de Ahorro de los Trabajadores - Aporte Patronal","SI",null,{"$f":"+Tabla3[[#This Row],[Nivel 1]]&Tabla3[[#This Row],[Nivel 2]]&Tabla3[[#This Row],[Nivel 3]]&Tabla3[[#This Row],[Nivel 4]]&Tabla3[[#This Row],[Nivel 5]]&Tabla3[[#This Row],[Nivel 6]]&Tabla3[[#This Row],[Nivel 7]]","v":"6.602.07.05.05."}]
[null,"6.","602.","07.","05.","06.",null,null,"Otras Cuentas por Pagar al Personal","SI",null,{"$f":"+Tabla3[[#This Row],[Nivel 1]]&Tabla3[[#This Row],[Nivel 2]]&Tabla3[[#This Row],[Nivel 3]]&Tabla3[[#This Row],[Nivel 4]]&Tabla3[[#This Row],[Nivel 5]]&Tabla3[[#This Row],[Nivel 6]]&Tabla3[[#This Row],[Nivel 7]]","v":"6.602.07.05.06."}]
[null,"6.","602.","07.","06.",null,null,null,"Gravámenes y Contribuciones","NO",null,{"$f":"+Tabla3[[#This Row],[Nivel 1]]&Tabla3[[#This Row],[Nivel 2]]&Tabla3[[#This Row],[Nivel 3]]&Tabla3[[#This Row],[Nivel 4]]&Tabla3[[#This Row],[Nivel 5]]&Tabla3[[#This Row],[Nivel 6]]&Tabla3[[#This Row],[Nivel 7]]","v":"6.602.07.06."}]
[null,"6.","602.","07.","06.","01.",null,null,"Gravámenes","NO",null,{"$f":"+Tabla3[[#This Row],[Nivel 1]]&Tabla3[[#This Row],[Nivel 2]]&Tabla3[[#This Row],[Nivel 3]]&Tabla3[[#This Row],[Nivel 4]]&Tabla3[[#This Row],[Nivel 5]]&Tabla3[[#This Row],[Nivel 6]]&Tabla3[[#This Row],[Nivel 7]]","v":"6.602.07.06.01."}]
[null,"6.","602.","07.","06.","01.","01.",null,"Impuesto Sobre la Renta","SI",null,{"$f":"+Tabla3[[#This Row],[Nivel 1]]&Tabla3[[#This Row],[Nivel 2]]&Tabla3[[#This Row],[Nivel 3]]&Tabla3[[#This Row],[Nivel 4]]&Tabla3[[#This Row],[Nivel 5]]&Tabla3[[#This Row],[Nivel 6]]&Tabla3[[#This Row],[Nivel 7]]","v":"6.602.07.06.01.01."}]
[null,"6.","602.","07.","06.","01.","02.",null,"Impuesto Sobre la Renta - Diferido","SI",null,{"$f":"+Tabla3[[#This Row],[Nivel 1]]&Tabla3[[#This Row],[Nivel 2]]&Tabla3[[#This Row],[Nivel 3]]&Tabla3[[#This Row],[Nivel 4]]&Tabla3[[#This Row],[Nivel 5]]&Tabla3[[#This Row],[Nivel 6]]&Tabla3[[#This Row],[Nivel 7]]","v":"6.602.07.06.01.02."}]
[null,"6.","602.","07.","06.","01.","03.",null,"Impuesto al Valor Agregado","SI",null,{"$f":"+Tabla3[[#This Row],[Nivel 1]]&Tabla3[[#This Row],[Nivel 2]]&Tabla3[[#This Row],[Nivel 3]]&Tabla3[[#This Row],[Nivel 4]]&Tabla3[[#This Row],[Nivel 5]]&Tabla3[[#This Row],[Nivel 6]]&Tabla3[[#This Row],[Nivel 7]]","v":"6.602.07.06.01.03."}]
[null,"6.","602.","07.","06.","01.","04.",null,"Impuesto a las Grandes Transacciones Financieras","SI",null,{"$f":"+Tabla3[[#This Row],[Nivel 1]]&Tabla3[[#This Row],[Nivel 2]]&Tabla3[[#This Row],[Nivel 3]]&Tabla3[[#This Row],[Nivel 4]]&Tabla3[[#This Row],[Nivel 5]]&Tabla3[[#This Row],[Nivel 6]]&Tabla3[[#This Row],[Nivel 7]]","v":"6.602.07.06.01.04."}]
[null,"6.","602.","07.","06.","01.","05.",null,"Impuesto a los Grandes Patrimonios","SI",null,{"$f":"+Tabla3[[#This Row],[Nivel 1]]&Tabla3[[#This Row],[Nivel 2]]&Tabla3[[#This Row],[Nivel 3]]&Tabla3[[#This Row],[Nivel 4]]&Tabla3[[#This Row],[Nivel 5]]&Tabla3[[#This Row],[Nivel 6]]&Tabla3[[#This Row],[Nivel 7]]","v":"6.602.07.06.01.05."}]
[null,null,"602.","07.","06.","01.","06.",null,"Impuestos Municipales","SI",null,{"$f":"+Tabla3[[#This Row],[Nivel 1]]&Tabla3[[#This Row],[Nivel 2]]&Tabla3[[#This Row],[Nivel 3]]&Tabla3[[#This Row],[Nivel 4]]&Tabla3[[#This Row],[Nivel 5]]&Tabla3[[#This Row],[Nivel 6]]&Tabla3[[#This Row],[Nivel 7]]","v":"602.07.06.01.06."}]
[null,"6.","602.","07.","06.","01.","07.",null,"Otros Impuestos","SI",null,{"$f":"+Tabla3[[#This Row],[Nivel 1]]&Tabla3[[#This Row],[Nivel 2]]&Tabla3[[#This Row],[Nivel 3]]&Tabla3[[#This Row],[Nivel 4]]&Tabla3[[#This Row],[Nivel 5]]&Tabla3[[#This Row],[Nivel 6]]&Tabla3[[#This Row],[Nivel 7]]","v":"6.602.07.06.01.07."}]
[null,"6.","602.","07.","06.","02.",null,null,"Contribuciones","NO",null,{"$f":"+Tabla3[[#This Row],[Nivel 1]]&Tabla3[[#This Row],[Nivel 2]]&Tabla3[[#This Row],[Nivel 3]]&Tabla3[[#This Row],[Nivel 4]]&Tabla3[[#This Row],[Nivel 5]]&Tabla3[[#This Row],[Nivel 6]]&Tabla3[[#This Row],[Nivel 7]]","v":"6.602.07.06.02."}]
[null,"6.","602.","07.","06.","02.","01.",null,"Instituto Nacional de Capacitación y Educación Socialista (INCES) - Aporte Patronal","SI",null,{"$f":"+Tabla3[[#This Row],[Nivel 1]]&Tabla3[[#This Row],[Nivel 2]]&Tabla3[[#This Row],[Nivel 3]]&Tabla3[[#This Row],[Nivel 4]]&Tabla3[[#This Row],[Nivel 5]]&Tabla3[[#This Row],[Nivel 6]]&Tabla3[[#This Row],[Nivel 7]]","v":"6.602.07.06.02.01."}]
[null,"6.","602.","07.","06.","02.","02.",null,"Instituto Venezolano de los Seguros Sociales (IVSS) - Aporte Patronal","SI",null,{"$f":"+Tabla3[[#This Row],[Nivel 1]]&Tabla3[[#This Row],[Nivel 2]]&Tabla3[[#This Row],[Nivel 3]]&Tabla3[[#This Row],[Nivel 4]]&Tabla3[[#This Row],[Nivel 5]]&Tabla3[[#This Row],[Nivel 6]]&Tabla3[[#This Row],[Nivel 7]]","v":"6.602.07.06.02.02."}]
[null,"6.","602.","07.","06.","02.","03.",null,"Instituto Venezolano de los Seguros Sociales (IVSS) - Paro Forzoso - Aporte Patronal ","SI",null,{"$f":"+Tabla3[[#This Row],[Nivel 1]]&Tabla3[[#This Row],[Nivel 2]]&Tabla3[[#This Row],[Nivel 3]]&Tabla3[[#This Row],[Nivel 4]]&Tabla3[[#This Row],[Nivel 5]]&Tabla3[[#This Row],[Nivel 6]]&Tabla3[[#This Row],[Nivel 7]]","v":"6.602.07.06.02.03."}]
[null,"6.","602.","07.","06.","02.","04.",null,"Fondo de Ahorro Obligatorio para la Vivienda (FAOV) -  Aporte Patronal","SI",null,{"$f":"+Tabla3[[#This Row],[Nivel 1]]&Tabla3[[#This Row],[Nivel 2]]&Tabla3[[#This Row],[Nivel 3]]&Tabla3[[#This Row],[Nivel 4]]&Tabla3[[#This Row],[Nivel 5]]&Tabla3[[#This Row],[Nivel 6]]&Tabla3[[#This Row],[Nivel 7]]","v":"6.602.07.06.02.04."}]
[null,"6.","602.","07.","06.","02.","05.",null,"Aporte Especial a la Superintendencia de la Actividad Aseguradora","SI",null,{"$f":"+Tabla3[[#This Row],[Nivel 1]]&Tabla3[[#This Row],[Nivel 2]]&Tabla3[[#This Row],[Nivel 3]]&Tabla3[[#This Row],[Nivel 4]]&Tabla3[[#This Row],[Nivel 5]]&Tabla3[[#This Row],[Nivel 6]]&Tabla3[[#This Row],[Nivel 7]]","v":"6.602.07.06.02.05."}]
[null,"6.","602.","07.","06.","02.","06.",null,"Ley Orgánica de Ciencia, Tecnología e Innovación (LOCTI)","SI",null,{"$f":"+Tabla3[[#This Row],[Nivel 1]]&Tabla3[[#This Row],[Nivel 2]]&Tabla3[[#This Row],[Nivel 3]]&Tabla3[[#This Row],[Nivel 4]]&Tabla3[[#This Row],[Nivel 5]]&Tabla3[[#This Row],[Nivel 6]]&Tabla3[[#This Row],[Nivel 7]]","v":"6.602.07.06.02.06."}]
[null,"6.","602.","07.","06.","02.","07.",null,"Decreto con Fuerza de Ley de los Cuerpos de Bomberos y Bomberas y Administración de Emergencias de Carácter Civil","SI",null,{"$f":"+Tabla3[[#This Row],[Nivel 1]]&Tabla3[[#This Row],[Nivel 2]]&Tabla3[[#This Row],[Nivel 3]]&Tabla3[[#This Row],[Nivel 4]]&Tabla3[[#This Row],[Nivel 5]]&Tabla3[[#This Row],[Nivel 6]]&Tabla3[[#This Row],[Nivel 7]]","v":"6.602.07.06.02.07."}]
[null,"6.","602.","07.","06.","02.","08.",null,"Ley Orgánica de Drogas","SI",null,{"$f":"+Tabla3[[#This Row],[Nivel 1]]&Tabla3[[#This Row],[Nivel 2]]&Tabla3[[#This Row],[Nivel 3]]&Tabla3[[#This Row],[Nivel 4]]&Tabla3[[#This Row],[Nivel 5]]&Tabla3[[#This Row],[Nivel 6]]&Tabla3[[#This Row],[Nivel 7]]","v":"6.602.07.06.02.08."}]
[null,"6.","602.","07.","06.","02.","09.",null,"Ley del Deporte","SI",null,{"$f":"+Tabla3[[#This Row],[Nivel 1]]&Tabla3[[#This Row],[Nivel 2]]&Tabla3[[#This Row],[Nivel 3]]&Tabla3[[#This Row],[Nivel 4]]&Tabla3[[#This Row],[Nivel 5]]&Tabla3[[#This Row],[Nivel 6]]&Tabla3[[#This Row],[Nivel 7]]","v":"6.602.07.06.02.09."}]
[null,"6.","602.","07.","06.","02.","10.",null,"Ley de Gestión Integral de Riesgos Socio-Naturales y Tecnológicos","SI",null,{"$f":"+Tabla3[[#This Row],[Nivel 1]]&Tabla3[[#This Row],[Nivel 2]]&Tabla3[[#This Row],[Nivel 3]]&Tabla3[[#This Row],[Nivel 4]]&Tabla3[[#This Row],[Nivel 5]]&Tabla3[[#This Row],[Nivel 6]]&Tabla3[[#This Row],[Nivel 7]]","v":"6.602.07.06.02.10."}]
[null,"6.","602.","07.","06.","02.","11.",null,"Otras Contribuciones","SI",null,{"$f":"+Tabla3[[#This Row],[Nivel 1]]&Tabla3[[#This Row],[Nivel 2]]&Tabla3[[#This Row],[Nivel 3]]&Tabla3[[#This Row],[Nivel 4]]&Tabla3[[#This Row],[Nivel 5]]&Tabla3[[#This Row],[Nivel 6]]&Tabla3[[#This Row],[Nivel 7]]","v":"6.602.07.06.02.11."}]
[null,"6.","602.","08.",null,null,null,null,"Egresos por Servicios","NO",null,{"$f":"+Tabla3[[#This Row],[Nivel 1]]&Tabla3[[#This Row],[Nivel 2]]&Tabla3[[#This Row],[Nivel 3]]&Tabla3[[#This Row],[Nivel 4]]&Tabla3[[#This Row],[Nivel 5]]&Tabla3[[#This Row],[Nivel 6]]&Tabla3[[#This Row],[Nivel 7]]","v":"6.602.08."}]
[null,"6.","602.","08.","01.",null,null,null,"Administracion de Siniestros","SI",null,{"$f":"+Tabla3[[#This Row],[Nivel 1]]&Tabla3[[#This Row],[Nivel 2]]&Tabla3[[#This Row],[Nivel 3]]&Tabla3[[#This Row],[Nivel 4]]&Tabla3[[#This Row],[Nivel 5]]&Tabla3[[#This Row],[Nivel 6]]&Tabla3[[#This Row],[Nivel 7]]","v":"6.602.08.01."}]
[null,"6.","602.","08.","02.",null,null,null,"Operaciones de Fondos o Contratos Administrados","SI",null,{"$f":"+Tabla3[[#This Row],[Nivel 1]]&Tabla3[[#This Row],[Nivel 2]]&Tabla3[[#This Row],[Nivel 3]]&Tabla3[[#This Row],[Nivel 4]]&Tabla3[[#This Row],[Nivel 5]]&Tabla3[[#This Row],[Nivel 6]]&Tabla3[[#This Row],[Nivel 7]]","v":"6.602.08.02."}]
[null,"6.","602.","08.","03.",null,null,null,"Otros Servicios ","SI",null,{"$f":"+Tabla3[[#This Row],[Nivel 1]]&Tabla3[[#This Row],[Nivel 2]]&Tabla3[[#This Row],[Nivel 3]]&Tabla3[[#This Row],[Nivel 4]]&Tabla3[[#This Row],[Nivel 5]]&Tabla3[[#This Row],[Nivel 6]]&Tabla3[[#This Row],[Nivel 7]]","v":"6.602.08.03."}]
[null,"6.","602.","09.",null,null,null,null,"Otros Egresos","NO",null,{"$f":"+Tabla3[[#This Row],[Nivel 1]]&Tabla3[[#This Row],[Nivel 2]]&Tabla3[[#This Row],[Nivel 3]]&Tabla3[[#This Row],[Nivel 4]]&Tabla3[[#This Row],[Nivel 5]]&Tabla3[[#This Row],[Nivel 6]]&Tabla3[[#This Row],[Nivel 7]]","v":"6.602.09."}]
[null,"6.","602.","09.","01.",null,null,null,"Diferencias en Cobranzas","SI",null,{"$f":"+Tabla3[[#This Row],[Nivel 1]]&Tabla3[[#This Row],[Nivel 2]]&Tabla3[[#This Row],[Nivel 3]]&Tabla3[[#This Row],[Nivel 4]]&Tabla3[[#This Row],[Nivel 5]]&Tabla3[[#This Row],[Nivel 6]]&Tabla3[[#This Row],[Nivel 7]]","v":"6.602.09.01."}]
[null,"6.","602.","09.","02.",null,null,null,"Ajustes de Años Anteriores","SI",null,{"$f":"+Tabla3[[#This Row],[Nivel 1]]&Tabla3[[#This Row],[Nivel 2]]&Tabla3[[#This Row],[Nivel 3]]&Tabla3[[#This Row],[Nivel 4]]&Tabla3[[#This Row],[Nivel 5]]&Tabla3[[#This Row],[Nivel 6]]&Tabla3[[#This Row],[Nivel 7]]","v":"6.602.09.02."}]
[null,"6.","602.","09.","03.",null,null,null,"Otros","SI",null,{"$f":"+Tabla3[[#This Row],[Nivel 1]]&Tabla3[[#This Row],[Nivel 2]]&Tabla3[[#This Row],[Nivel 3]]&Tabla3[[#This Row],[Nivel 4]]&Tabla3[[#This Row],[Nivel 5]]&Tabla3[[#This Row],[Nivel 6]]&Tabla3[[#This Row],[Nivel 7]]","v":"6.602.09.03."}]
[null,null,null,null,null,null,null,null,"TOTAL EGRESOS…..","NO",null,{"$f":"+Tabla3[[#This Row],[Nivel 1]]&Tabla3[[#This Row],[Nivel 2]]&Tabla3[[#This Row],[Nivel 3]]&Tabla3[[#This Row],[Nivel 4]]&Tabla3[[#This Row],[Nivel 5]]&Tabla3[[#This Row],[Nivel 6]]&Tabla3[[#This Row],[Nivel 7]]","v":""}]
[null,"6.","603.",null,null,null,null,null,"RESULTADO DEL EJERCICIO","NO",null,{"$f":"+Tabla3[[#This Row],[Nivel 1]]&Tabla3[[#This Row],[Nivel 2]]&Tabla3[[#This Row],[Nivel 3]]&Tabla3[[#This Row],[Nivel 4]]&Tabla3[[#This Row],[Nivel 5]]&Tabla3[[#This Row],[Nivel 6]]&Tabla3[[#This Row],[Nivel 7]]","v":"6.603."}]
[null,"6.","603.","01.",null,null,null,null,"Utilidad del Ejercicio ","SI",null,{"$f":"+Tabla3[[#This Row],[Nivel 1]]&Tabla3[[#This Row],[Nivel 2]]&Tabla3[[#This Row],[Nivel 3]]&Tabla3[[#This Row],[Nivel 4]]&Tabla3[[#This Row],[Nivel 5]]&Tabla3[[#This Row],[Nivel 6]]&Tabla3[[#This Row],[Nivel 7]]","v":"6.603.01."}]
[null,"6.","603.","02.",null,null,null,null,"Saldo de Operaciones - Utilidad","SI",null,{"$f":"+Tabla3[[#This Row],[Nivel 1]]&Tabla3[[#This Row],[Nivel 2]]&Tabla3[[#This Row],[Nivel 3]]&Tabla3[[#This Row],[Nivel 4]]&Tabla3[[#This Row],[Nivel 5]]&Tabla3[[#This Row],[Nivel 6]]&Tabla3[[#This Row],[Nivel 7]]","v":"6.603.02."}]
[null,null,null,null,null,null,null,null,"TOTAL GENERAL","NO"]

{"sheet":"Ingreso Analitico","index":3,"n_rows":166,"n_cols":12,"rows_kept":166,"cut":false,"hidden":false,"merged":[]}
[null,"EMPRESA FINANCIADORA DE PRIMAS O CUOTAS"]
[null,"INGRESO ANALÍTICO"]
[null,"AL XX/XX/20___"]
[]
[null,"Nivel 1","Nivel 2","Nivel 3","Nivel 4","Nivel 5","Nivel 6","Nivel 7","Nombre de la Cuenta","Admite Monto","Identificador del Anexo","Cuenta Contable"]
[null,"7.",null,null,null,null,null,null,"INGRESO","NO",null,{"$f":"+Tabla4[[#This Row],[Nivel 1]]&Tabla4[[#This Row],[Nivel 2]]&Tabla4[[#This Row],[Nivel 3]]&Tabla4[[#This Row],[Nivel 4]]&Tabla4[[#This Row],[Nivel 5]]&Tabla4[[#This Row],[Nivel 6]]&Tabla4[[#This Row],[Nivel 7]]","v":"7."}]
[null,"7.","701.",null,null,null,null,null,"POR FINANCIAMIENTO DE PRIMAS O  CUOTAS","NO",null,{"$f":"+Tabla4[[#This Row],[Nivel 1]]&Tabla4[[#This Row],[Nivel 2]]&Tabla4[[#This Row],[Nivel 3]]&Tabla4[[#This Row],[Nivel 4]]&Tabla4[[#This Row],[Nivel 5]]&Tabla4[[#This Row],[Nivel 6]]&Tabla4[[#This Row],[Nivel 7]]","v":"7.701."}]
[null,"7.","701.","01.",null,null,null,null,"Intereses Cobrados por Primas Financiadas","SI",null,{"$f":"+Tabla4[[#This Row],[Nivel 1]]&Tabla4[[#This Row],[Nivel 2]]&Tabla4[[#This Row],[Nivel 3]]&Tabla4[[#This Row],[Nivel 4]]&Tabla4[[#This Row],[Nivel 5]]&Tabla4[[#This Row],[Nivel 6]]&Tabla4[[#This Row],[Nivel 7]]","v":"7.701.01."}]
[null,"7.","701.","02.",null,null,null,null,"Intereses Cobrados por Cuotas Financiadas","SI",null,{"$f":"+Tabla4[[#This Row],[Nivel 1]]&Tabla4[[#This Row],[Nivel 2]]&Tabla4[[#This Row],[Nivel 3]]&Tabla4[[#This Row],[Nivel 4]]&Tabla4[[#This Row],[Nivel 5]]&Tabla4[[#This Row],[Nivel 6]]&Tabla4[[#This Row],[Nivel 7]]","v":"7.701.02."}]
[null,"7.","702.",null,null,null,null,null,"GESTIÓN GENERAL DE LA EMPRESA","NO",null,{"$f":"+Tabla4[[#This Row],[Nivel 1]]&Tabla4[[#This Row],[Nivel 2]]&Tabla4[[#This Row],[Nivel 3]]&Tabla4[[#This Row],[Nivel 4]]&Tabla4[[#This Row],[Nivel 5]]&Tabla4[[#This Row],[Nivel 6]]&Tabla4[[#This Row],[Nivel 7]]","v":"7.702."}]
[null,"7.","702.","01.",null,null,null,null,"Producto de Inversiones","NO",null,{"$f":"+Tabla4[[#This Row],[Nivel 1]]&Tabla4[[#This Row],[Nivel 2]]&Tabla4[[#This Row],[Nivel 3]]&Tabla4[[#This Row],[Nivel 4]]&Tabla4[[#This Row],[Nivel 5]]&Tabla4[[#This Row],[Nivel 6]]&Tabla4[[#This Row],[Nivel 7]]","v":"7.702.01."}]
[null,"7.","702.","01.","01.",null,null,null,"Intereses Ganados","NO","A10-C17",{"$f":"+Tabla4[[#This Row],[Nivel 1]]&Tabla4[[#This Row],[Nivel 2]]&Tabla4[[#This Row],[Nivel 3]]&Tabla4[[#This Row],[Nivel 4]]&Tabla4[[#This Row],[Nivel 5]]&Tabla4[[#This Row],[Nivel 6]]&Tabla4[[#This Row],[Nivel 7]]","v":"7.702.01.01."}]
[null,"7.","702.","01.","01.","01.",null,null,"Depósitos a la Vista","NO",null,{"$f":"+Tabla4[[#This Row],[Nivel 1]]&Tabla4[[#This Row],[Nivel 2]]&Tabla4[[#This Row],[Nivel 3]]&Tabla4[[#This Row],[Nivel 4]]&Tabla4[[#This Row],[Nivel 5]]&Tabla4[[#This Row],[Nivel 6]]&Tabla4[[#This Row],[Nivel 7]]","v":"7.702.01.01.01."}]
[null,"7.","702.","01.","01.","01.","01.",null,"Bancos","NO",null,{"$f":"+Tabla4[[#This Row],[Nivel 1]]&Tabla4[[#This Row],[Nivel 2]]&Tabla4[[#This Row],[Nivel 3]]&Tabla4[[#This Row],[Nivel 4]]&Tabla4[[#This Row],[Nivel 5]]&Tabla4[[#This Row],[Nivel 6]]&Tabla4[[#This Row],[Nivel 7]]","v":"7.702.01.01.01.01."}]
[null,"7.","702.","01.","01.","01.","01.","01.","Moneda Nacional","SI",null,{"$f":"+Tabla4[[#This Row],[Nivel 1]]&Tabla4[[#This Row],[Nivel 2]]&Tabla4[[#This Row],[Nivel 3]]&Tabla4[[#This Row],[Nivel 4]]&Tabla4[[#This Row],[Nivel 5]]&Tabla4[[#This Row],[Nivel 6]]&Tabla4[[#This Row],[Nivel 7]]","v":"7.702.01.01.01.01.01."}]
[null,"7.","702.","01.","01.","01.","01.","02.","Moneda Extranjera","SI",null,{"$f":"+Tabla4[[#This Row],[Nivel 1]]&Tabla4[[#This Row],[Nivel 2]]&Tabla4[[#This Row],[Nivel 3]]&Tabla4[[#This Row],[Nivel 4]]&Tabla4[[#This Row],[Nivel 5]]&Tabla4[[#This Row],[Nivel 6]]&Tabla4[[#This Row],[Nivel 7]]","v":"7.702.01.01.01.01.02."}]
[null,"7.","702.","01.","01.","01.","02.",null,"Otras Instituciones Financieras","NO",null,{"$f":"+Tabla4[[#This Row],[Nivel 1]]&Tabla4[[#This Row],[Nivel 2]]&Tabla4[[#This Row],[Nivel 3]]&Tabla4[[#This Row],[Nivel 4]]&Tabla4[[#This Row],[Nivel 5]]&Tabla4[[#This Row],[Nivel 6]]&Tabla4[[#This Row],[Nivel 7]]","v":"7.702.01.01.01.02."}]
[null,"7.","702.","01.","01.","01.","02.","01.","Moneda Nacional","SI",null,{"$f":"+Tabla4[[#This Row],[Nivel 1]]&Tabla4[[#This Row],[Nivel 2]]&Tabla4[[#This Row],[Nivel 3]]&Tabla4[[#This Row],[Nivel 4]]&Tabla4[[#This Row],[Nivel 5]]&Tabla4[[#This Row],[Nivel 6]]&Tabla4[[#This Row],[Nivel 7]]","v":"7.702.01.01.01.02.01."}]
[null,"7.","702.","01.","01.","01.","02.","02.","Moneda Extranjera","SI",null,{"$f":"+Tabla4[[#This Row],[Nivel 1]]&Tabla4[[#This Row],[Nivel 2]]&Tabla4[[#This Row],[Nivel 3]]&Tabla4[[#This Row],[Nivel 4]]&Tabla4[[#This Row],[Nivel 5]]&Tabla4[[#This Row],[Nivel 6]]&Tabla4[[#This Row],[Nivel 7]]","v":"7.702.01.01.01.02.02."}]
[null,"7.","702.","01.","01.","02.",null,null,"Depósitos a Plazo Fijo","NO",null,{"$f":"+Tabla4[[#This Row],[Nivel 1]]&Tabla4[[#This Row],[Nivel 2]]&Tabla4[[#This Row],[Nivel 3]]&Tabla4[[#This Row],[Nivel 4]]&Tabla4[[#This Row],[Nivel 5]]&Tabla4[[#This Row],[Nivel 6]]&Tabla4[[#This Row],[Nivel 7]]","v":"7.702.01.01.02."}]
[null,"7.","702.","01.","01.","02.","01.",null,"Bancos","NO",null,{"$f":"+Tabla4[[#This Row],[Nivel 1]]&Tabla4[[#This Row],[Nivel 2]]&Tabla4[[#This Row],[Nivel 3]]&Tabla4[[#This Row],[Nivel 4]]&Tabla4[[#This Row],[Nivel 5]]&Tabla4[[#This Row],[Nivel 6]]&Tabla4[[#This Row],[Nivel 7]]","v":"7.702.01.01.02.01."}]
[null,"7.","702.","01.","01.","02.","01.","01.","Moneda Nacional","SI",null,{"$f":"+Tabla4[[#This Row],[Nivel 1]]&Tabla4[[#This Row],[Nivel 2]]&Tabla4[[#This Row],[Nivel 3]]&Tabla4[[#This Row],[Nivel 4]]&Tabla4[[#This Row],[Nivel 5]]&Tabla4[[#This Row],[Nivel 6]]&Tabla4[[#This Row],[Nivel 7]]","v":"7.702.01.01.02.01.01."}]
[null,"7.","702.","01.","01.","02.","01.","02.","Moneda Extranjera","SI",null,{"$f":"+Tabla4[[#This Row],[Nivel 1]]&Tabla4[[#This Row],[Nivel 2]]&Tabla4[[#This Row],[Nivel 3]]&Tabla4[[#This Row],[Nivel 4]]&Tabla4[[#This Row],[Nivel 5]]&Tabla4[[#This Row],[Nivel 6]]&Tabla4[[#This Row],[Nivel 7]]","v":"7.702.01.01.02.01.02."}]
[null,"7.","702.","01.","01.","02.","02.",null,"Otras Instituciones Financieras","NO",null,{"$f":"+Tabla4[[#This Row],[Nivel 1]]&Tabla4[[#This Row],[Nivel 2]]&Tabla4[[#This Row],[Nivel 3]]&Tabla4[[#This Row],[Nivel 4]]&Tabla4[[#This Row],[Nivel 5]]&Tabla4[[#This Row],[Nivel 6]]&Tabla4[[#This Row],[Nivel 7]]","v":"7.702.01.01.02.02."}]
[null,"7.","702.","01.","01.","02.","02.","01.","Moneda Nacional","SI",null,{"$f":"+Tabla4[[#This Row],[Nivel 1]]&Tabla4[[#This Row],[Nivel 2]]&Tabla4[[#This Row],[Nivel 3]]&Tabla4[[#This Row],[Nivel 4]]&Tabla4[[#This Row],[Nivel 5]]&Tabla4[[#This Row],[Nivel 6]]&Tabla4[[#This Row],[Nivel 7]]","v":"7.702.01.01.02.02.01."}]
[null,"7.","702.","01.","01.","02.","02.","02.","Moneda Extranjera","SI",null,{"$f":"+Tabla4[[#This Row],[Nivel 1]]&Tabla4[[#This Row],[Nivel 2]]&Tabla4[[#This Row],[Nivel 3]]&Tabla4[[#This Row],[Nivel 4]]&Tabla4[[#This Row],[Nivel 5]]&Tabla4[[#This Row],[Nivel 6]]&Tabla4[[#This Row],[Nivel 7]]","v":"7.702.01.01.02.02.02."}]
[null,"7.","702.","01.","01.","03.",null,null,"Valores Públicos","NO",null,{"$f":"+Tabla4[[#This Row],[Nivel 1]]&Tabla4[[#This Row],[Nivel 2]]&Tabla4[[#This Row],[Nivel 3]]&Tabla4[[#This Row],[Nivel 4]]&Tabla4[[#This Row],[Nivel 5]]&Tabla4[[#This Row],[Nivel 6]]&Tabla4[[#This Row],[Nivel 7]]","v":"7.702.01.01.03."}]
[null,"7.","702.","01.","01.","03.","01.",null,"Emitidos o Garantizados por la República","SI",null,{"$f":"+Tabla4[[#This Row],[Nivel 1]]&Tabla4[[#This Row],[Nivel 2]]&Tabla4[[#This Row],[Nivel 3]]&Tabla4[[#This Row],[Nivel 4]]&Tabla4[[#This Row],[Nivel 5]]&Tabla4[[#This Row],[Nivel 6]]&Tabla4[[#This Row],[Nivel 7]]","v":"7.702.01.01.03.01."}]
[null,"7.","702.","01.","01.","03.","02.",null,"Emitidos por Otros Sujetos de Derecho Público Nacional","SI",null,{"$f":"+Tabla4[[#This Row],[Nivel 1]]&Tabla4[[#This Row],[Nivel 2]]&Tabla4[[#This Row],[Nivel 3]]&Tabla4[[#This Row],[Nivel 4]]&Tabla4[[#This Row],[Nivel 5]]&Tabla4[[#This Row],[Nivel 6]]&Tabla4[[#This Row],[Nivel 7]]","v":"7.702.01.01.03.02."}]
[null,"7.","702.","01.","01.","03.","03.",null,"Emitidos por Empresas con Participación de la República","SI",null,{"$f":"+Tabla4[[#This Row],[Nivel 1]]&Tabla4[[#This Row],[Nivel 2]]&Tabla4[[#This Row],[Nivel 3]]&Tabla4[[#This Row],[Nivel 4]]&Tabla4[[#This Row],[Nivel 5]]&Tabla4[[#This Row],[Nivel 6]]&Tabla4[[#This Row],[Nivel 7]]","v":"7.702.01.01.03.03."}]
[null,"7.","702.","01.","01.","03.","04.",null,"Emitidos por Instituciones con Participación de la República","SI",null,{"$f":"+Tabla4[[#This Row],[Nivel 1]]&Tabla4[[#This Row],[Nivel 2]]&Tabla4[[#This Row],[Nivel 3]]&Tabla4[[#This Row],[Nivel 4]]&Tabla4[[#This Row],[Nivel 5]]&Tabla4[[#This Row],[Nivel 6]]&Tabla4[[#This Row],[Nivel 7]]","v":"7.702.01.01.03.04."}]
[null,"7.","702.","01.","01.","04.",null,null,"Participación en Fondos de Inversión","NO",null,{"$f":"+Tabla4[[#This Row],[Nivel 1]]&Tabla4[[#This Row],[Nivel 2]]&Tabla4[[#This Row],[Nivel 3]]&Tabla4[[#This Row],[Nivel 4]]&Tabla4[[#This Row],[Nivel 5]]&Tabla4[[#This Row],[Nivel 6]]&Tabla4[[#This Row],[Nivel 7]]","v":"7.702.01.01.04."}]
[null,"7.","702.","01.","01.","04.","01.",null,"Renta Fija","SI",null,{"$f":"+Tabla4[[#This Row],[Nivel 1]]&Tabla4[[#This Row],[Nivel 2]]&Tabla4[[#This Row],[Nivel 3]]&Tabla4[[#This Row],[Nivel 4]]&Tabla4[[#This Row],[Nivel 5]]&Tabla4[[#This Row],[Nivel 6]]&Tabla4[[#This Row],[Nivel 7]]","v":"7.702.01.01.04.01."}]
[null,"7.","702.","01.","01.","04.","02.",null,"Renta Variable","SI",null,{"$f":"+Tabla4[[#This Row],[Nivel 1]]&Tabla4[[#This Row],[Nivel 2]]&Tabla4[[#This Row],[Nivel 3]]&Tabla4[[#This Row],[Nivel 4]]&Tabla4[[#This Row],[Nivel 5]]&Tabla4[[#This Row],[Nivel 6]]&Tabla4[[#This Row],[Nivel 7]]","v":"7.702.01.01.04.02."}]
[null,"7.","702.","01.","01.","05.",null,null,"Valores Privados","NO",null,{"$f":"+Tabla4[[#This Row],[Nivel 1]]&Tabla4[[#This Row],[Nivel 2]]&Tabla4[[#This Row],[Nivel 3]]&Tabla4[[#This Row],[Nivel 4]]&Tabla4[[#This Row],[Nivel 5]]&Tabla4[[#This Row],[Nivel 6]]&Tabla4[[#This Row],[Nivel 7]]","v":"7.702.01.01.05."}]
[null,"7.","702.","01.","01.","05.","01.",null,"Bonos de Sociedades Anónimas","SI",null,{"$f":"+Tabla4[[#This Row],[Nivel 1]]&Tabla4[[#This Row],[Nivel 2]]&Tabla4[[#This Row],[Nivel 3]]&Tabla4[[#This Row],[Nivel 4]]&Tabla4[[#This Row],[Nivel 5]]&Tabla4[[#This Row],[Nivel 6]]&Tabla4[[#This Row],[Nivel 7]]","v":"7.702.01.01.05.01."}]
[null,"7.","702.","01.","01.","05.","02.",null,"Otras Inversiones emitidas por el Sector Privado.","SI",null,{"$f":"+Tabla4[[#This Row],[Nivel 1]]&Tabla4[[#This Row],[Nivel 2]]&Tabla4[[#This Row],[Nivel 3]]&Tabla4[[#This Row],[Nivel 4]]&Tabla4[[#This Row],[Nivel 5]]&Tabla4[[#This Row],[Nivel 6]]&Tabla4[[#This Row],[Nivel 7]]","v":"7.702.01.01.05.02."}]
[null,"7.","702.","01.","01.","06.",null,null,"Activos en el Extranjero","NO",null,{"$f":"+Tabla4[[#This Row],[Nivel 1]]&Tabla4[[#This Row],[Nivel 2]]&Tabla4[[#This Row],[Nivel 3]]&Tabla4[[#This Row],[Nivel 4]]&Tabla4[[#This Row],[Nivel 5]]&Tabla4[[#This Row],[Nivel 6]]&Tabla4[[#This Row],[Nivel 7]]","v":"7.702.01.01.06."}]
[null,"7.","702.","01.","01.","06.","01.",null,"Bancos  ","SI",null,{"$f":"+Tabla4[[#This Row],[Nivel 1]]&Tabla4[[#This Row],[Nivel 2]]&Tabla4[[#This Row],[Nivel 3]]&Tabla4[[#This Row],[Nivel 4]]&Tabla4[[#This Row],[Nivel 5]]&Tabla4[[#This Row],[Nivel 6]]&Tabla4[[#This Row],[Nivel 7]]","v":"7.702.01.01.06.01."}]
[null,"7.","702.","01.","01.","06.","02.",null,"Titulos Valores","SI",null,{"$f":"+Tabla4[[#This Row],[Nivel 1]]&Tabla4[[#This Row],[Nivel 2]]&Tabla4[[#This Row],[Nivel 3]]&Tabla4[[#This Row],[Nivel 4]]&Tabla4[[#This Row],[Nivel 5]]&Tabla4[[#This Row],[Nivel 6]]&Tabla4[[#This Row],[Nivel 7]]","v":"7.702.01.01.06.02."}]
[null,"7.","702.","01.","01.","06.","03.",null,"Otras Inversiones","SI",null,{"$f":"+Tabla4[[#This Row],[Nivel 1]]&Tabla4[[#This Row],[Nivel 2]]&Tabla4[[#This Row],[Nivel 3]]&Tabla4[[#This Row],[Nivel 4]]&Tabla4[[#This Row],[Nivel 5]]&Tabla4[[#This Row],[Nivel 6]]&Tabla4[[#This Row],[Nivel 7]]","v":"7.702.01.01.06.03."}]
[null,"7.","702.","01.","01.","07.",null,null,"Sobre Depósitos y Títulos Valores en Instituciones Intervenidas","SI",null,{"$f":"+Tabla4[[#This Row],[Nivel 1]]&Tabla4[[#This Row],[Nivel 2]]&Tabla4[[#This Row],[Nivel 3]]&Tabla4[[#This Row],[Nivel 4]]&Tabla4[[#This Row],[Nivel 5]]&Tabla4[[#This Row],[Nivel 6]]&Tabla4[[#This Row],[Nivel 7]]","v":"7.702.01.01.07."}]
[null,"7.","702.","01.","01.","08.",null,null,"Cuentas por Cobrar - Empleados","SI",null,{"$f":"+Tabla4[[#This Row],[Nivel 1]]&Tabla4[[#This Row],[Nivel 2]]&Tabla4[[#This Row],[Nivel 3]]&Tabla4[[#This Row],[Nivel 4]]&Tabla4[[#This Row],[Nivel 5]]&Tabla4[[#This Row],[Nivel 6]]&Tabla4[[#This Row],[Nivel 7]]","v":"7.702.01.01.08."}]
[null,"7.","702.","01.","01.","09.",null,null,"Sobre cuentas por cobrar al Grupo Económico","NO",null,{"$f":"+Tabla4[[#This Row],[Nivel 1]]&Tabla4[[#This Row],[Nivel 2]]&Tabla4[[#This Row],[Nivel 3]]&Tabla4[[#This Row],[Nivel 4]]&Tabla4[[#This Row],[Nivel 5]]&Tabla4[[#This Row],[Nivel 6]]&Tabla4[[#This Row],[Nivel 7]]","v":"7.702.01.01.09."}]
[null,"7.","702.","01.","01.","09.","01.",null,"Empresas Filiales","SI",null,{"$f":"+Tabla4[[#This Row],[Nivel 1]]&Tabla4[[#This Row],[Nivel 2]]&Tabla4[[#This Row],[Nivel 3]]&Tabla4[[#This Row],[Nivel 4]]&Tabla4[[#This Row],[Nivel 5]]&Tabla4[[#This Row],[Nivel 6]]&Tabla4[[#This Row],[Nivel 7]]","v":"7.702.01.01.09.01."}]
[null,"7.","702.","01.","01.","09.","02.",null,"Empresas Afiliadas","SI",null,{"$f":"+Tabla4[[#This Row],[Nivel 1]]&Tabla4[[#This Row],[Nivel 2]]&Tabla4[[#This Row],[Nivel 3]]&Tabla4[[#This Row],[Nivel 4]]&Tabla4[[#This Row],[Nivel 5]]&Tabla4[[#This Row],[Nivel 6]]&Tabla4[[#This Row],[Nivel 7]]","v":"7.702.01.01.09.02."}]
[null,"7.","702.","01.","01.","09.","03.",null,"Empresas Relacionadas","SI",null,{"$f":"+Tabla4[[#This Row],[Nivel 1]]&Tabla4[[#This Row],[Nivel 2]]&Tabla4[[#This Row],[Nivel 3]]&Tabla4[[#This Row],[Nivel 4]]&Tabla4[[#This Row],[Nivel 5]]&Tabla4[[#This Row],[Nivel 6]]&Tabla4[[#This Row],[Nivel 7]]","v":"7.702.01.01.09.03."}]
[null,"7.","702.","01.","01.","10.",null,null,"Otras Cuentas por Cobrar ","SI",null,{"$f":"+Tabla4[[#This Row],[Nivel 1]]&Tabla4[[#This Row],[Nivel 2]]&Tabla4[[#This Row],[Nivel 3]]&Tabla4[[#This Row],[Nivel 4]]&Tabla4[[#This Row],[Nivel 5]]&Tabla4[[#This Row],[Nivel 6]]&Tabla4[[#This Row],[Nivel 7]]","v":"7.702.01.01.10."}]
[null,"7.","702.","01.","02.",null,null,null,"Dividendos Ganados ","NO","A10-C18",{"$f":"+Tabla4[[#This Row],[Nivel 1]]&Tabla4[[#This Row],[Nivel 2]]&Tabla4[[#This Row],[Nivel 3]]&Tabla4[[#This Row],[Nivel 4]]&Tabla4[[#This Row],[Nivel 5]]&Tabla4[[#This Row],[Nivel 6]]&Tabla4[[#This Row],[Nivel 7]]","v":"7.702.01.02."}]
[null,"7.","702.","01.","02.","01.",null,null,"Participación Fondos de Inversión Inmobiliarios","SI",null,{"$f":"+Tabla4[[#This Row],[Nivel 1]]&Tabla4[[#This Row],[Nivel 2]]&Tabla4[[#This Row],[Nivel 3]]&Tabla4[[#This Row],[Nivel 4]]&Tabla4[[#This Row],[Nivel 5]]&Tabla4[[#This Row],[Nivel 6]]&Tabla4[[#This Row],[Nivel 7]]","v":"7.702.01.02.01."}]
[null,"7.","702.","01.","02.","02.",null,null,"Valores Privados","NO",null,{"$f":"+Tabla4[[#This Row],[Nivel 1]]&Tabla4[[#This Row],[Nivel 2]]&Tabla4[[#This Row],[Nivel 3]]&Tabla4[[#This Row],[Nivel 4]]&Tabla4[[#This Row],[Nivel 5]]&Tabla4[[#This Row],[Nivel 6]]&Tabla4[[#This Row],[Nivel 7]]","v":"7.702.01.02.02."}]
[null,"7.","702.","01.","02.","02.","01.",null,"Acciones de Sociedades Anónimas","NO",null,{"$f":"+Tabla4[[#This Row],[Nivel 1]]&Tabla4[[#This Row],[Nivel 2]]&Tabla4[[#This Row],[Nivel 3]]&Tabla4[[#This Row],[Nivel 4]]&Tabla4[[#This Row],[Nivel 5]]&Tabla4[[#This Row],[Nivel 6]]&Tabla4[[#This Row],[Nivel 7]]","v":"7.702.01.02.02.01."}]
[null,"7.","702.","01.","02.","02.","01.","01.","Empresas de Seguros o Reaseguros","SI",null,{"$f":"+Tabla4[[#This Row],[Nivel 1]]&Tabla4[[#This Row],[Nivel 2]]&Tabla4[[#This Row],[Nivel 3]]&Tabla4[[#This Row],[Nivel 4]]&Tabla4[[#This Row],[Nivel 5]]&Tabla4[[#This Row],[Nivel 6]]&Tabla4[[#This Row],[Nivel 7]]","v":"7.702.01.02.02.01.01."}]
[null,"7.","702.","01.","02.","02.","01.","02.","Sociedades de Corretaje de Seguros, de Reaseguros o de Valores","SI",null,{"$f":"+Tabla4[[#This Row],[Nivel 1]]&Tabla4[[#This Row],[Nivel 2]]&Tabla4[[#This Row],[Nivel 3]]&Tabla4[[#This Row],[Nivel 4]]&Tabla4[[#This Row],[Nivel 5]]&Tabla4[[#This Row],[Nivel 6]]&Tabla4[[#This Row],[Nivel 7]]","v":"7.702.01.02.02.01.02."}]
[null,"7.","702.","01.","02.","02.","01.","03.","Bancos y Otras Instituciones Financieras","SI",null,{"$f":"+Tabla4[[#This Row],[Nivel 1]]&Tabla4[[#This Row],[Nivel 2]]&Tabla4[[#This Row],[Nivel 3]]&Tabla4[[#This Row],[Nivel 4]]&Tabla4[[#This Row],[Nivel 5]]&Tabla4[[#This Row],[Nivel 6]]&Tabla4[[#This Row],[Nivel 7]]","v":"7.702.01.02.02.01.03."}]
[null,"7.","702.","01.","02.","02.","01.","04.","Sociedades Industriales y Comerciales","SI",null,{"$f":"+Tabla4[[#This Row],[Nivel 1]]&Tabla4[[#This Row],[Nivel 2]]&Tabla4[[#This Row],[Nivel 3]]&Tabla4[[#This Row],[Nivel 4]]&Tabla4[[#This Row],[Nivel 5]]&Tabla4[[#This Row],[Nivel 6]]&Tabla4[[#This Row],[Nivel 7]]","v":"7.702.01.02.02.01.04."}]
[null,"7.","702.","01.","02.","02.","01.","05.","Sociedades Civiles","SI",null,{"$f":"+Tabla4[[#This Row],[Nivel 1]]&Tabla4[[#This Row],[Nivel 2]]&Tabla4[[#This Row],[Nivel 3]]&Tabla4[[#This Row],[Nivel 4]]&Tabla4[[#This Row],[Nivel 5]]&Tabla4[[#This Row],[Nivel 6]]&Tabla4[[#This Row],[Nivel 7]]","v":"7.702.01.02.02.01.05."}]
[null,"7.","702.","01.","02.","02.","01.","06.","Empresas Filiales, Afiliadas y Relacionadas","SI",null,{"$f":"+Tabla4[[#This Row],[Nivel 1]]&Tabla4[[#This Row],[Nivel 2]]&Tabla4[[#This Row],[Nivel 3]]&Tabla4[[#This Row],[Nivel 4]]&Tabla4[[#This Row],[Nivel 5]]&Tabla4[[#This Row],[Nivel 6]]&Tabla4[[#This Row],[Nivel 7]]","v":"7.702.01.02.02.01.06."}]
[null,"7.","702.","01.","02.","02.","01.","07.","Otras Sociedades Anónimas","SI",null,{"$f":"+Tabla4[[#This Row],[Nivel 1]]&Tabla4[[#This Row],[Nivel 2]]&Tabla4[[#This Row],[Nivel 3]]&Tabla4[[#This Row],[Nivel 4]]&Tabla4[[#This Row],[Nivel 5]]&Tabla4[[#This Row],[Nivel 6]]&Tabla4[[#This Row],[Nivel 7]]","v":"7.702.01.02.02.01.07."}]
[null,"7.","702.","01.","02.","02.","01.","08.","Otras Inversiones emitidas por el Sector Privado.","SI",null,{"$f":"+Tabla4[[#This Row],[Nivel 1]]&Tabla4[[#This Row],[Nivel 2]]&Tabla4[[#This Row],[Nivel 3]]&Tabla4[[#This Row],[Nivel 4]]&Tabla4[[#This Row],[Nivel 5]]&Tabla4[[#This Row],[Nivel 6]]&Tabla4[[#This Row],[Nivel 7]]","v":"7.702.01.02.02.01.08."}]
[null,"7.","702.","02.",null,null,null,null,"AJUSTES DE VALORES Y BIENES","NO",null,{"$f":"+Tabla4[[#This Row],[Nivel 1]]&Tabla4[[#This Row],[Nivel 2]]&Tabla4[[#This Row],[Nivel 3]]&Tabla4[[#This Row],[Nivel 4]]&Tabla4[[#This Row],[Nivel 5]]&Tabla4[[#This Row],[Nivel 6]]&Tabla4[[#This Row],[Nivel 7]]","v":"7.702.02."}]
[null,"7.","702.","02.","01.",null,null,null,"Ajustes de Valores","NO",null,{"$f":"+Tabla4[[#This Row],[Nivel 1]]&Tabla4[[#This Row],[Nivel 2]]&Tabla4[[#This Row],[Nivel 3]]&Tabla4[[#This Row],[Nivel 4]]&Tabla4[[#This Row],[Nivel 5]]&Tabla4[[#This Row],[Nivel 6]]&Tabla4[[#This Row],[Nivel 7]]","v":"7.702.02.01."}]
[null,"7.","702.","02.","01.","01.",null,null,"Valores Públicos","NO",null,{"$f":"+Tabla4[[#This Row],[Nivel 1]]&Tabla4[[#This Row],[Nivel 2]]&Tabla4[[#This Row],[Nivel 3]]&Tabla4[[#This Row],[Nivel 4]]&Tabla4[[#This Row],[Nivel 5]]&Tabla4[[#This Row],[Nivel 6]]&Tabla4[[#This Row],[Nivel 7]]","v":"7.702.02.01.01."}]
[null,"7.","702.","02.","01.","01.","01.",null,"Emitidos o Garantizados por la República","SI",null,{"$f":"+Tabla4[[#This Row],[Nivel 1]]&Tabla4[[#This Row],[Nivel 2]]&Tabla4[[#This Row],[Nivel 3]]&Tabla4[[#This Row],[Nivel 4]]&Tabla4[[#This Row],[Nivel 5]]&Tabla4[[#This Row],[Nivel 6]]&Tabla4[[#This Row],[Nivel 7]]","v":"7.702.02.01.01.01."}]
[null,"7.","702.","02.","01.","01.","02.",null,"Emitidos por Otros Sujetos de Derecho Público Nacional","SI",null,{"$f":"+Tabla4[[#This Row],[Nivel 1]]&Tabla4[[#This Row],[Nivel 2]]&Tabla4[[#This Row],[Nivel 3]]&Tabla4[[#This Row],[Nivel 4]]&Tabla4[[#This Row],[Nivel 5]]&Tabla4[[#This Row],[Nivel 6]]&Tabla4[[#This Row],[Nivel 7]]","v":"7.702.02.01.01.02."}]
[null,"7.","702.","02.","01.","01.","03.",null,"Emitidos por Empresas con Participación de la República","SI",null,{"$f":"+Tabla4[[#This Row],[Nivel 1]]&Tabla4[[#This Row],[Nivel 2]]&Tabla4[[#This Row],[Nivel 3]]&Tabla4[[#This Row],[Nivel 4]]&Tabla4[[#This Row],[Nivel 5]]&Tabla4[[#This Row],[Nivel 6]]&Tabla4[[#This Row],[Nivel 7]]","v":"7.702.02.01.01.03."}]
[null,"7.","702.","02.","01.","01.","04.",null,"Emitidos por Instituciones con Participación de la República","SI",null,{"$f":"+Tabla4[[#This Row],[Nivel 1]]&Tabla4[[#This Row],[Nivel 2]]&Tabla4[[#This Row],[Nivel 3]]&Tabla4[[#This Row],[Nivel 4]]&Tabla4[[#This Row],[Nivel 5]]&Tabla4[[#This Row],[Nivel 6]]&Tabla4[[#This Row],[Nivel 7]]","v":"7.702.02.01.01.04."}]
[null,"7.","702.","02.","01.","02.",null,null,"Participación en Fondos de Inversión","NO",null,{"$f":"+Tabla4[[#This Row],[Nivel 1]]&Tabla4[[#This Row],[Nivel 2]]&Tabla4[[#This Row],[Nivel 3]]&Tabla4[[#This Row],[Nivel 4]]&Tabla4[[#This Row],[Nivel 5]]&Tabla4[[#This Row],[Nivel 6]]&Tabla4[[#This Row],[Nivel 7]]","v":"7.702.02.01.02."}]
[null,"7.","702.","02.","01.","02.","01.",null,"Renta Fija","SI",null,{"$f":"+Tabla4[[#This Row],[Nivel 1]]&Tabla4[[#This Row],[Nivel 2]]&Tabla4[[#This Row],[Nivel 3]]&Tabla4[[#This Row],[Nivel 4]]&Tabla4[[#This Row],[Nivel 5]]&Tabla4[[#This Row],[Nivel 6]]&Tabla4[[#This Row],[Nivel 7]]","v":"7.702.02.01.02.01."}]
[null,"7.","702.","02.","01.","02.","02.",null,"Renta Variable","SI",null,{"$f":"+Tabla4[[#This Row],[Nivel 1]]&Tabla4[[#This Row],[Nivel 2]]&Tabla4[[#This Row],[Nivel 3]]&Tabla4[[#This Row],[Nivel 4]]&Tabla4[[#This Row],[Nivel 5]]&Tabla4[[#This Row],[Nivel 6]]&Tabla4[[#This Row],[Nivel 7]]","v":"7.702.02.01.02.02."}]
[null,"7.","702.","02.","01.","03.",null,null,"Valores Privados","NO",null,{"$f":"+Tabla4[[#This Row],[Nivel 1]]&Tabla4[[#This Row],[Nivel 2]]&Tabla4[[#This Row],[Nivel 3]]&Tabla4[[#This Row],[Nivel 4]]&Tabla4[[#This Row],[Nivel 5]]&Tabla4[[#This Row],[Nivel 6]]&Tabla4[[#This Row],[Nivel 7]]","v":"7.702.02.01.03."}]
[null,"7.","702.","02.","01.","03.","01.",null,"Acciones de Sociedades Anónimas","NO",null,{"$f":"+Tabla4[[#This Row],[Nivel 1]]&Tabla4[[#This Row],[Nivel 2]]&Tabla4[[#This Row],[Nivel 3]]&Tabla4[[#This Row],[Nivel 4]]&Tabla4[[#This Row],[Nivel 5]]&Tabla4[[#This Row],[Nivel 6]]&Tabla4[[#This Row],[Nivel 7]]","v":"7.702.02.01.03.01."}]
[null,"7.","702.","02.","01.","03.","01.","01.","Empresas de Seguros o Reaseguros","SI",null,{"$f":"+Tabla4[[#This Row],[Nivel 1]]&Tabla4[[#This Row],[Nivel 2]]&Tabla4[[#This Row],[Nivel 3]]&Tabla4[[#This Row],[Nivel 4]]&Tabla4[[#This Row],[Nivel 5]]&Tabla4[[#This Row],[Nivel 6]]&Tabla4[[#This Row],[Nivel 7]]","v":"7.702.02.01.03.01.01."}]
[null,"7.","702.","02.","01.","03.","01.","02.","Sociedades de Corretaje de Seguros, de Reaseguros o de Valores","SI",null,{"$f":"+Tabla4[[#This Row],[Nivel 1]]&Tabla4[[#This Row],[Nivel 2]]&Tabla4[[#This Row],[Nivel 3]]&Tabla4[[#This Row],[Nivel 4]]&Tabla4[[#This Row],[Nivel 5]]&Tabla4[[#This Row],[Nivel 6]]&Tabla4[[#This Row],[Nivel 7]]","v":"7.702.02.01.03.01.02."}]
[null,"7.","702.","02.","01.","03.","01.","03.","Bancos y Otras Instituciones Financieras","SI",null,{"$f":"+Tabla4[[#This Row],[Nivel 1]]&Tabla4[[#This Row],[Nivel 2]]&Tabla4[[#This Row],[Nivel 3]]&Tabla4[[#This Row],[Nivel 4]]&Tabla4[[#This Row],[Nivel 5]]&Tabla4[[#This Row],[Nivel 6]]&Tabla4[[#This Row],[Nivel 7]]","v":"7.702.02.01.03.01.03."}]
[null,"7.","702.","02.","01.","03.","01.","04.","Sociedades Industriales y Comerciales","SI",null,{"$f":"+Tabla4[[#This Row],[Nivel 1]]&Tabla4[[#This Row],[Nivel 2]]&Tabla4[[#This Row],[Nivel 3]]&Tabla4[[#This Row],[Nivel 4]]&Tabla4[[#This Row],[Nivel 5]]&Tabla4[[#This Row],[Nivel 6]]&Tabla4[[#This Row],[Nivel 7]]","v":"7.702.02.01.03.01.04."}]
[null,"7.","702.","02.","01.","03.","01.","05.","Sociedades Civiles","SI",null,{"$f":"+Tabla4[[#This Row],[Nivel 1]]&Tabla4[[#This Row],[Nivel 2]]&Tabla4[[#This Row],[Nivel 3]]&Tabla4[[#This Row],[Nivel 4]]&Tabla4[[#This Row],[Nivel 5]]&Tabla4[[#This Row],[Nivel 6]]&Tabla4[[#This Row],[Nivel 7]]","v":"7.702.02.01.03.01.05."}]
[null,"7.","702.","02.","01.","03.","01.","06.","Empresas Filiales, Afiliadas y Relacionadas","SI",null,{"$f":"+Tabla4[[#This Row],[Nivel 1]]&Tabla4[[#This Row],[Nivel 2]]&Tabla4[[#This Row],[Nivel 3]]&Tabla4[[#This Row],[Nivel 4]]&Tabla4[[#This Row],[Nivel 5]]&Tabla4[[#This Row],[Nivel 6]]&Tabla4[[#This Row],[Nivel 7]]","v":"7.702.02.01.03.01.06."}]
[null,"7.","702.","02.","01.","03.","01.","07.","Otras Sociedades Anónimas","SI",null,{"$f":"+Tabla4[[#This Row],[Nivel 1]]&Tabla4[[#This Row],[Nivel 2]]&Tabla4[[#This Row],[Nivel 3]]&Tabla4[[#This Row],[Nivel 4]]&Tabla4[[#This Row],[Nivel 5]]&Tabla4[[#This Row],[Nivel 6]]&Tabla4[[#This Row],[Nivel 7]]","v":"7.702.02.01.03.01.07."}]
[null,"7.","702.","02.","01.","04.",null,null,"Bonos de Sociedades Anónimas","SI",null,{"$f":"+Tabla4[[#This Row],[Nivel 1]]&Tabla4[[#This Row],[Nivel 2]]&Tabla4[[#This Row],[Nivel 3]]&Tabla4[[#This Row],[Nivel 4]]&Tabla4[[#This Row],[Nivel 5]]&Tabla4[[#This Row],[Nivel 6]]&Tabla4[[#This Row],[Nivel 7]]","v":"7.702.02.01.04."}]
[null,"7.","702.","02.","01.","05.",null,null,"Activos en el Extranjero","NO",null,{"$f":"+Tabla4[[#This Row],[Nivel 1]]&Tabla4[[#This Row],[Nivel 2]]&Tabla4[[#This Row],[Nivel 3]]&Tabla4[[#This Row],[Nivel 4]]&Tabla4[[#This Row],[Nivel 5]]&Tabla4[[#This Row],[Nivel 6]]&Tabla4[[#This Row],[Nivel 7]]","v":"7.702.02.01.05."}]
[null,"7.","702.","02.","01.","05.","01.",null,"Titulos Valores","SI",null,{"$f":"+Tabla4[[#This Row],[Nivel 1]]&Tabla4[[#This Row],[Nivel 2]]&Tabla4[[#This Row],[Nivel 3]]&Tabla4[[#This Row],[Nivel 4]]&Tabla4[[#This Row],[Nivel 5]]&Tabla4[[#This Row],[Nivel 6]]&Tabla4[[#This Row],[Nivel 7]]","v":"7.702.02.01.05.01."}]
[null,"7.","702.","02.","02.",null,null,null,"Bienes ","NO",null,{"$f":"+Tabla4[[#This Row],[Nivel 1]]&Tabla4[[#This Row],[Nivel 2]]&Tabla4[[#This Row],[Nivel 3]]&Tabla4[[#This Row],[Nivel 4]]&Tabla4[[#This Row],[Nivel 5]]&Tabla4[[#This Row],[Nivel 6]]&Tabla4[[#This Row],[Nivel 7]]","v":"7.702.02.02."}]
[null,"7.","702.","02.","02.","01.",null,null,"Participación Fondos de Inversión Inmobiliarios","SI",null,{"$f":"+Tabla4[[#This Row],[Nivel 1]]&Tabla4[[#This Row],[Nivel 2]]&Tabla4[[#This Row],[Nivel 3]]&Tabla4[[#This Row],[Nivel 4]]&Tabla4[[#This Row],[Nivel 5]]&Tabla4[[#This Row],[Nivel 6]]&Tabla4[[#This Row],[Nivel 7]]","v":"7.702.02.02.01."}]
[null,"7.","702.","02.","02.","02.",null,null,"Bienes Inmuebles Edificados","NO",null,{"$f":"+Tabla4[[#This Row],[Nivel 1]]&Tabla4[[#This Row],[Nivel 2]]&Tabla4[[#This Row],[Nivel 3]]&Tabla4[[#This Row],[Nivel 4]]&Tabla4[[#This Row],[Nivel 5]]&Tabla4[[#This Row],[Nivel 6]]&Tabla4[[#This Row],[Nivel 7]]","v":"7.702.02.02.02."}]
[null,"7.","702.","02.","02.","02.","01.",null,"Terrenos","SI",null,{"$f":"+Tabla4[[#This Row],[Nivel 1]]&Tabla4[[#This Row],[Nivel 2]]&Tabla4[[#This Row],[Nivel 3]]&Tabla4[[#This Row],[Nivel 4]]&Tabla4[[#This Row],[Nivel 5]]&Tabla4[[#This Row],[Nivel 6]]&Tabla4[[#This Row],[Nivel 7]]","v":"7.702.02.02.02.01."}]
[null,"7.","702.","02.","02.","02.","02.",null,"Edificaciones","SI",null,{"$f":"+Tabla4[[#This Row],[Nivel 1]]&Tabla4[[#This Row],[Nivel 2]]&Tabla4[[#This Row],[Nivel 3]]&Tabla4[[#This Row],[Nivel 4]]&Tabla4[[#This Row],[Nivel 5]]&Tabla4[[#This Row],[Nivel 6]]&Tabla4[[#This Row],[Nivel 7]]","v":"7.702.02.02.02.02."}]
[null,"7.","702.","02.","02.","03.",null,null,"Activos en el Extranjero","NO",null,{"$f":"+Tabla4[[#This Row],[Nivel 1]]&Tabla4[[#This Row],[Nivel 2]]&Tabla4[[#This Row],[Nivel 3]]&Tabla4[[#This Row],[Nivel 4]]&Tabla4[[#This Row],[Nivel 5]]&Tabla4[[#This Row],[Nivel 6]]&Tabla4[[#This Row],[Nivel 7]]","v":"7.702.02.02.03."}]
[null,"7.","702.","02.","02.","03.","01.",null,"Inmuebles ","SI",null,{"$f":"+Tabla4[[#This Row],[Nivel 1]]&Tabla4[[#This Row],[Nivel 2]]&Tabla4[[#This Row],[Nivel 3]]&Tabla4[[#This Row],[Nivel 4]]&Tabla4[[#This Row],[Nivel 5]]&Tabla4[[#This Row],[Nivel 6]]&Tabla4[[#This Row],[Nivel 7]]","v":"7.702.02.02.03.01."}]
[null,"7.","702.","02.","02.","03.","02.",null,"Otras Inversiones ","SI",null,{"$f":"+Tabla4[[#This Row],[Nivel 1]]&Tabla4[[#This Row],[Nivel 2]]&Tabla4[[#This Row],[Nivel 3]]&Tabla4[[#This Row],[Nivel 4]]&Tabla4[[#This Row],[Nivel 5]]&Tabla4[[#This Row],[Nivel 6]]&Tabla4[[#This Row],[Nivel 7]]","v":"7.702.02.02.03.02."}]
[null,"7.","702.","03.",null,null,null,null,"Fluctuación Cambiaria","NO",null,{"$f":"+Tabla4[[#This Row],[Nivel 1]]&Tabla4[[#This Row],[Nivel 2]]&Tabla4[[#This Row],[Nivel 3]]&Tabla4[[#This Row],[Nivel 4]]&Tabla4[[#This Row],[Nivel 5]]&Tabla4[[#This Row],[Nivel 6]]&Tabla4[[#This Row],[Nivel 7]]","v":"7.702.03."}]
[null,"7.","702.","03.","01.",null,null,null,"Sobre Activos","NO",null,{"$f":"+Tabla4[[#This Row],[Nivel 1]]&Tabla4[[#This Row],[Nivel 2]]&Tabla4[[#This Row],[Nivel 3]]&Tabla4[[#This Row],[Nivel 4]]&Tabla4[[#This Row],[Nivel 5]]&Tabla4[[#This Row],[Nivel 6]]&Tabla4[[#This Row],[Nivel 7]]","v":"7.702.03.01."}]
[null,"7.","702.","03.","01.","01.",null,null,"Disponible","NO",null,{"$f":"+Tabla4[[#This Row],[Nivel 1]]&Tabla4[[#This Row],[Nivel 2]]&Tabla4[[#This Row],[Nivel 3]]&Tabla4[[#This Row],[Nivel 4]]&Tabla4[[#This Row],[Nivel 5]]&Tabla4[[#This Row],[Nivel 6]]&Tabla4[[#This Row],[Nivel 7]]","v":"7.702.03.01.01."}]
[null,"7.","702.","03.","01.","01.","01.",null,"Caja","SI",null,{"$f":"+Tabla4[[#This Row],[Nivel 1]]&Tabla4[[#This Row],[Nivel 2]]&Tabla4[[#This Row],[Nivel 3]]&Tabla4[[#This Row],[Nivel 4]]&Tabla4[[#This Row],[Nivel 5]]&Tabla4[[#This Row],[Nivel 6]]&Tabla4[[#This Row],[Nivel 7]]","v":"7.702.03.01.01.01."}]
[null,"7.","702.","03.","01.","01.","02.",null,"Caja Chica","SI",null,{"$f":"+Tabla4[[#This Row],[Nivel 1]]&Tabla4[[#This Row],[Nivel 2]]&Tabla4[[#This Row],[Nivel 3]]&Tabla4[[#This Row],[Nivel 4]]&Tabla4[[#This Row],[Nivel 5]]&Tabla4[[#This Row],[Nivel 6]]&Tabla4[[#This Row],[Nivel 7]]","v":"7.702.03.01.01.02."}]
[null,"7.","702.","03.","01.","01.","03.",null,"Depósitos a la Vista","NO",null,{"$f":"+Tabla4[[#This Row],[Nivel 1]]&Tabla4[[#This Row],[Nivel 2]]&Tabla4[[#This Row],[Nivel 3]]&Tabla4[[#This Row],[Nivel 4]]&Tabla4[[#This Row],[Nivel 5]]&Tabla4[[#This Row],[Nivel 6]]&Tabla4[[#This Row],[Nivel 7]]","v":"7.702.03.01.01.03."}]
[null,"7.","702.","03.","01.","01.","03.","01.","Bancos","SI",null,{"$f":"+Tabla4[[#This Row],[Nivel 1]]&Tabla4[[#This Row],[Nivel 2]]&Tabla4[[#This Row],[Nivel 3]]&Tabla4[[#This Row],[Nivel 4]]&Tabla4[[#This Row],[Nivel 5]]&Tabla4[[#This Row],[Nivel 6]]&Tabla4[[#This Row],[Nivel 7]]","v":"7.702.03.01.01.03.01."}]
[null,"7.","702.","03.","01.","01.","03.","02.","Otras Instituciones Financieras","SI",null,{"$f":"+Tabla4[[#This Row],[Nivel 1]]&Tabla4[[#This Row],[Nivel 2]]&Tabla4[[#This Row],[Nivel 3]]&Tabla4[[#This Row],[Nivel 4]]&Tabla4[[#This Row],[Nivel 5]]&Tabla4[[#This Row],[Nivel 6]]&Tabla4[[#This Row],[Nivel 7]]","v":"7.702.03.01.01.03.02."}]
[null,"7.","702.","03.","01.","01.","04.",null,"Depósitos a Plazo","NO",null,{"$f":"+Tabla4[[#This Row],[Nivel 1]]&Tabla4[[#This Row],[Nivel 2]]&Tabla4[[#This Row],[Nivel 3]]&Tabla4[[#This Row],[Nivel 4]]&Tabla4[[#This Row],[Nivel 5]]&Tabla4[[#This Row],[Nivel 6]]&Tabla4[[#This Row],[Nivel 7]]","v":"7.702.03.01.01.04."}]
[null,"7.","702.","03.","01.","01.","04.","01.","Bancos","SI",null,{"$f":"+Tabla4[[#This Row],[Nivel 1]]&Tabla4[[#This Row],[Nivel 2]]&Tabla4[[#This Row],[Nivel 3]]&Tabla4[[#This Row],[Nivel 4]]&Tabla4[[#This Row],[Nivel 5]]&Tabla4[[#This Row],[Nivel 6]]&Tabla4[[#This Row],[Nivel 7]]","v":"7.702.03.01.01.04.01."}]
[null,"7.","702.","03.","01.","01.","04.","02.","Otras Instituciones Financieras","SI",null,{"$f":"+Tabla4[[#This Row],[Nivel 1]]&Tabla4[[#This Row],[Nivel 2]]&Tabla4[[#This Row],[Nivel 3]]&Tabla4[[#This Row],[Nivel 4]]&Tabla4[[#This Row],[Nivel 5]]&Tabla4[[#This Row],[Nivel 6]]&Tabla4[[#This Row],[Nivel 7]]","v":"7.702.03.01.01.04.02."}]
[null,"7.","702.","03.","01.","02.",null,null,"Valores Públicos","NO",null,{"$f":"+Tabla4[[#This Row],[Nivel 1]]&Tabla4[[#This Row],[Nivel 2]]&Tabla4[[#This Row],[Nivel 3]]&Tabla4[[#This Row],[Nivel 4]]&Tabla4[[#This Row],[Nivel 5]]&Tabla4[[#This Row],[Nivel 6]]&Tabla4[[#This Row],[Nivel 7]]","v":"7.702.03.01.02."}]
[null,"7.","702.","03.","01.","02.","01.",null,"Emitidos o Garantizados por la República","SI",null,{"$f":"+Tabla4[[#This Row],[Nivel 1]]&Tabla4[[#This Row],[Nivel 2]]&Tabla4[[#This Row],[Nivel 3]]&Tabla4[[#This Row],[Nivel 4]]&Tabla4[[#This Row],[Nivel 5]]&Tabla4[[#This Row],[Nivel 6]]&Tabla4[[#This Row],[Nivel 7]]","v":"7.702.03.01.02.01."}]
[null,"7.","702.","03.","01.","02.","02.",null,"Emitidos por Otros Sujetos de Derecho Público Nacional","SI",null,{"$f":"+Tabla4[[#This Row],[Nivel 1]]&Tabla4[[#This Row],[Nivel 2]]&Tabla4[[#This Row],[Nivel 3]]&Tabla4[[#This Row],[Nivel 4]]&Tabla4[[#This Row],[Nivel 5]]&Tabla4[[#This Row],[Nivel 6]]&Tabla4[[#This Row],[Nivel 7]]","v":"7.702.03.01.02.02."}]
[null,"7.","702.","03.","01.","02.","03.",null,"Emitidos por Empresas con Participación de la República","SI",null,{"$f":"+Tabla4[[#This Row],[Nivel 1]]&Tabla4[[#This Row],[Nivel 2]]&Tabla4[[#This Row],[Nivel 3]]&Tabla4[[#This Row],[Nivel 4]]&Tabla4[[#This Row],[Nivel 5]]&Tabla4[[#This Row],[Nivel 6]]&Tabla4[[#This Row],[Nivel 7]]","v":"7.702.03.01.02.03."}]
[null,"7.","702.","03.","01.","02.","04.",null,"Emitidos por Instituciones con Participación de la República","SI",null,{"$f":"+Tabla4[[#This Row],[Nivel 1]]&Tabla4[[#This Row],[Nivel 2]]&Tabla4[[#This Row],[Nivel 3]]&Tabla4[[#This Row],[Nivel 4]]&Tabla4[[#This Row],[Nivel 5]]&Tabla4[[#This Row],[Nivel 6]]&Tabla4[[#This Row],[Nivel 7]]","v":"7.702.03.01.02.04."}]
[null,"7.","702.","03.","01.","03.",null,null,"Participación en Fondos de Inversión","NO",null,{"$f":"+Tabla4[[#This Row],[Nivel 1]]&Tabla4[[#This Row],[Nivel 2]]&Tabla4[[#This Row],[Nivel 3]]&Tabla4[[#This Row],[Nivel 4]]&Tabla4[[#This Row],[Nivel 5]]&Tabla4[[#This Row],[Nivel 6]]&Tabla4[[#This Row],[Nivel 7]]","v":"7.702.03.01.03."}]
[null,"7.","702.","03.","01.","03.","01.",null,"Renta Fija","SI",null,{"$f":"+Tabla4[[#This Row],[Nivel 1]]&Tabla4[[#This Row],[Nivel 2]]&Tabla4[[#This Row],[Nivel 3]]&Tabla4[[#This Row],[Nivel 4]]&Tabla4[[#This Row],[Nivel 5]]&Tabla4[[#This Row],[Nivel 6]]&Tabla4[[#This Row],[Nivel 7]]","v":"7.702.03.01.03.01."}]
[null,"7.","702.","03.","01.","03.","02.",null,"Renta Variable","SI",null,{"$f":"+Tabla4[[#This Row],[Nivel 1]]&Tabla4[[#This Row],[Nivel 2]]&Tabla4[[#This Row],[Nivel 3]]&Tabla4[[#This Row],[Nivel 4]]&Tabla4[[#This Row],[Nivel 5]]&Tabla4[[#This Row],[Nivel 6]]&Tabla4[[#This Row],[Nivel 7]]","v":"7.702.03.01.03.02."}]
[null,"7.","702.","03.","01.","04.",null,null,"Participación Fondos de Inversión Inmobiliarios","SI",null,{"$f":"+Tabla4[[#This Row],[Nivel 1]]&Tabla4[[#This Row],[Nivel 2]]&Tabla4[[#This Row],[Nivel 3]]&Tabla4[[#This Row],[Nivel 4]]&Tabla4[[#This Row],[Nivel 5]]&Tabla4[[#This Row],[Nivel 6]]&Tabla4[[#This Row],[Nivel 7]]","v":"7.702.03.01.04."}]
[null,"7.","702.","03.","01.","05.",null,null,"Valores Privados","NO",null,{"$f":"+Tabla4[[#This Row],[Nivel 1]]&Tabla4[[#This Row],[Nivel 2]]&Tabla4[[#This Row],[Nivel 3]]&Tabla4[[#This Row],[Nivel 4]]&Tabla4[[#This Row],[Nivel 5]]&Tabla4[[#This Row],[Nivel 6]]&Tabla4[[#This Row],[Nivel 7]]","v":"7.702.03.01.05."}]
[null,"7.","702.","03.","01.","05.","01.",null,"Acciones de Sociedades Anónimas","NO",null,{"$f":"+Tabla4[[#This Row],[Nivel 1]]&Tabla4[[#This Row],[Nivel 2]]&Tabla4[[#This Row],[Nivel 3]]&Tabla4[[#This Row],[Nivel 4]]&Tabla4[[#This Row],[Nivel 5]]&Tabla4[[#This Row],[Nivel 6]]&Tabla4[[#This Row],[Nivel 7]]","v":"7.702.03.01.05.01."}]
[null,"7.","702.","03.","01.","05.","01.","01.","Empresas de Seguros o Reaseguros","SI",null,{"$f":"+Tabla4[[#This Row],[Nivel 1]]&Tabla4[[#This Row],[Nivel 2]]&Tabla4[[#This Row],[Nivel 3]]&Tabla4[[#This Row],[Nivel 4]]&Tabla4[[#This Row],[Nivel 5]]&Tabla4[[#This Row],[Nivel 6]]&Tabla4[[#This Row],[Nivel 7]]","v":"7.702.03.01.05.01.01."}]
[null,"7.","702.","03.","01.","05.","01.","02.","Sociedades de Corretaje de Seguros, de Reaseguros o de Valores","SI",null,{"$f":"+Tabla4[[#This Row],[Nivel 1]]&Tabla4[[#This Row],[Nivel 2]]&Tabla4[[#This Row],[Nivel 3]]&Tabla4[[#This Row],[Nivel 4]]&Tabla4[[#This Row],[Nivel 5]]&Tabla4[[#This Row],[Nivel 6]]&Tabla4[[#This Row],[Nivel 7]]","v":"7.702.03.01.05.01.02."}]
[null,"7.","702.","03.","01.","05.","01.","03.","Bancos y Otras Instituciones Financieras","SI",null,{"$f":"+Tabla4[[#This Row],[Nivel 1]]&Tabla4[[#This Row],[Nivel 2]]&Tabla4[[#This Row],[Nivel 3]]&Tabla4[[#This Row],[Nivel 4]]&Tabla4[[#This Row],[Nivel 5]]&Tabla4[[#This Row],[Nivel 6]]&Tabla4[[#This Row],[Nivel 7]]","v":"7.702.03.01.05.01.03."}]
[null,"7.","702.","03.","01.","05.","01.","04.","Sociedades Industriales y Comerciales","SI",null,{"$f":"+Tabla4[[#This Row],[Nivel 1]]&Tabla4[[#This Row],[Nivel 2]]&Tabla4[[#This Row],[Nivel 3]]&Tabla4[[#This Row],[Nivel 4]]&Tabla4[[#This Row],[Nivel 5]]&Tabla4[[#This Row],[Nivel 6]]&Tabla4[[#This Row],[Nivel 7]]","v":"7.702.03.01.05.01.04."}]
[null,"7.","702.","03.","01.","05.","01.","05.","Sociedades Civiles","SI",null,{"$f":"+Tabla4[[#This Row],[Nivel 1]]&Tabla4[[#This Row],[Nivel 2]]&Tabla4[[#This Row],[Nivel 3]]&Tabla4[[#This Row],[Nivel 4]]&Tabla4[[#This Row],[Nivel 5]]&Tabla4[[#This Row],[Nivel 6]]&Tabla4[[#This Row],[Nivel 7]]","v":"7.702.03.01.05.01.05."}]
[null,"7.","702.","03.","01.","05.","01.","06.","Empresas Filiales, Afiliadas y Relacionadas","SI",null,{"$f":"+Tabla4[[#This Row],[Nivel 1]]&Tabla4[[#This Row],[Nivel 2]]&Tabla4[[#This Row],[Nivel 3]]&Tabla4[[#This Row],[Nivel 4]]&Tabla4[[#This Row],[Nivel 5]]&Tabla4[[#This Row],[Nivel 6]]&Tabla4[[#This Row],[Nivel 7]]","v":"7.702.03.01.05.01.06."}]
[null,"7.","702.","03.","01.","05.","01.","07.","Otras Sociedades Anónimas","SI",null,{"$f":"+Tabla4[[#This Row],[Nivel 1]]&Tabla4[[#This Row],[Nivel 2]]&Tabla4[[#This Row],[Nivel 3]]&Tabla4[[#This Row],[Nivel 4]]&Tabla4[[#This Row],[Nivel 5]]&Tabla4[[#This Row],[Nivel 6]]&Tabla4[[#This Row],[Nivel 7]]","v":"7.702.03.01.05.01.07."}]
[null,"7.","702.","03.","01.","05.","02.",null,"Bonos de Sociedades Anónimas","SI",null,{"$f":"+Tabla4[[#This Row],[Nivel 1]]&Tabla4[[#This Row],[Nivel 2]]&Tabla4[[#This Row],[Nivel 3]]&Tabla4[[#This Row],[Nivel 4]]&Tabla4[[#This Row],[Nivel 5]]&Tabla4[[#This Row],[Nivel 6]]&Tabla4[[#This Row],[Nivel 7]]","v":"7.702.03.01.05.02."}]
[null,"7.","702.","03.","01.","05.","03.",null,"Otras Inversiones emitidas por el Sector Privado.","SI",null,{"$f":"+Tabla4[[#This Row],[Nivel 1]]&Tabla4[[#This Row],[Nivel 2]]&Tabla4[[#This Row],[Nivel 3]]&Tabla4[[#This Row],[Nivel 4]]&Tabla4[[#This Row],[Nivel 5]]&Tabla4[[#This Row],[Nivel 6]]&Tabla4[[#This Row],[Nivel 7]]","v":"7.702.03.01.05.03."}]
[null,"7.","702.","03.","01.","06.",null,null,"Activos en el Extranjero","NO",null,{"$f":"+Tabla4[[#This Row],[Nivel 1]]&Tabla4[[#This Row],[Nivel 2]]&Tabla4[[#This Row],[Nivel 3]]&Tabla4[[#This Row],[Nivel 4]]&Tabla4[[#This Row],[Nivel 5]]&Tabla4[[#This Row],[Nivel 6]]&Tabla4[[#This Row],[Nivel 7]]","v":"7.702.03.01.06."}]
[null,"7.","702.","03.","01.","06.","01.",null,"Bancos  ","SI",null,{"$f":"+Tabla4[[#This Row],[Nivel 1]]&Tabla4[[#This Row],[Nivel 2]]&Tabla4[[#This Row],[Nivel 3]]&Tabla4[[#This Row],[Nivel 4]]&Tabla4[[#This Row],[Nivel 5]]&Tabla4[[#This Row],[Nivel 6]]&Tabla4[[#This Row],[Nivel 7]]","v":"7.702.03.01.06.01."}]
[null,"7.","702.","03.","01.","06.","02.",null,"Titulos Valores","SI",null,{"$f":"+Tabla4[[#This Row],[Nivel 1]]&Tabla4[[#This Row],[Nivel 2]]&Tabla4[[#This Row],[Nivel 3]]&Tabla4[[#This Row],[Nivel 4]]&Tabla4[[#This Row],[Nivel 5]]&Tabla4[[#This Row],[Nivel 6]]&Tabla4[[#This Row],[Nivel 7]]","v":"7.702.03.01.06.02."}]
[null,"7.","702.","03.","01.","06.","03.",null,"Inmuebles ","SI",null,{"$f":"+Tabla4[[#This Row],[Nivel 1]]&Tabla4[[#This Row],[Nivel 2]]&Tabla4[[#This Row],[Nivel 3]]&Tabla4[[#This Row],[Nivel 4]]&Tabla4[[#This Row],[Nivel 5]]&Tabla4[[#This Row],[Nivel 6]]&Tabla4[[#This Row],[Nivel 7]]","v":"7.702.03.01.06.03."}]
[null,"7.","702.","03.","01.","06.","04.",null,"Otras Inversiones ","SI",null,{"$f":"+Tabla4[[#This Row],[Nivel 1]]&Tabla4[[#This Row],[Nivel 2]]&Tabla4[[#This Row],[Nivel 3]]&Tabla4[[#This Row],[Nivel 4]]&Tabla4[[#This Row],[Nivel 5]]&Tabla4[[#This Row],[Nivel 6]]&Tabla4[[#This Row],[Nivel 7]]","v":"7.702.03.01.06.04."}]
[null,"7.","702.","04.",null,null,null,null,"Utilidad en Negociación de Valores Bienes y Otros Activos","NO","A10-C19",{"$f":"+Tabla4[[#This Row],[Nivel 1]]&Tabla4[[#This Row],[Nivel 2]]&Tabla4[[#This Row],[Nivel 3]]&Tabla4[[#This Row],[Nivel 4]]&Tabla4[[#This Row],[Nivel 5]]&Tabla4[[#This Row],[Nivel 6]]&Tabla4[[#This Row],[Nivel 7]]","v":"7.702.04."}]
[null,"7.","702.","04.","01.",null,null,null,"Utilidad en Negociación de Valores  ","NO",null,{"$f":"+Tabla4[[#This Row],[Nivel 1]]&Tabla4[[#This Row],[Nivel 2]]&Tabla4[[#This Row],[Nivel 3]]&Tabla4[[#This Row],[Nivel 4]]&Tabla4[[#This Row],[Nivel 5]]&Tabla4[[#This Row],[Nivel 6]]&Tabla4[[#This Row],[Nivel 7]]","v":"7.702.04.01."}]
[null,"7.","702.","04.","01.","01.",null,null,"Valores Públicos","NO",null,{"$f":"+Tabla4[[#This Row],[Nivel 1]]&Tabla4[[#This Row],[Nivel 2]]&Tabla4[[#This Row],[Nivel 3]]&Tabla4[[#This Row],[Nivel 4]]&Tabla4[[#This Row],[Nivel 5]]&Tabla4[[#This Row],[Nivel 6]]&Tabla4[[#This Row],[Nivel 7]]","v":"7.702.04.01.01."}]
[null,"7.","702.","04.","01.","01.","01.",null,"Emitidos o Garantizados por la República","SI",null,{"$f":"+Tabla4[[#This Row],[Nivel 1]]&Tabla4[[#This Row],[Nivel 2]]&Tabla4[[#This Row],[Nivel 3]]&Tabla4[[#This Row],[Nivel 4]]&Tabla4[[#This Row],[Nivel 5]]&Tabla4[[#This Row],[Nivel 6]]&Tabla4[[#This Row],[Nivel 7]]","v":"7.702.04.01.01.01."}]
[null,"7.","702.","04.","01.","01.","02.",null,"Emitidos por Otros Sujetos de Derecho Público Nacional","SI",null,{"$f":"+Tabla4[[#This Row],[Nivel 1]]&Tabla4[[#This Row],[Nivel 2]]&Tabla4[[#This Row],[Nivel 3]]&Tabla4[[#This Row],[Nivel 4]]&Tabla4[[#This Row],[Nivel 5]]&Tabla4[[#This Row],[Nivel 6]]&Tabla4[[#This Row],[Nivel 7]]","v":"7.702.04.01.01.02."}]
[null,"7.","702.","04.","01.","01.","03.",null,"Emitidos por Empresas con Participación de la República","SI",null,{"$f":"+Tabla4[[#This Row],[Nivel 1]]&Tabla4[[#This Row],[Nivel 2]]&Tabla4[[#This Row],[Nivel 3]]&Tabla4[[#This Row],[Nivel 4]]&Tabla4[[#This Row],[Nivel 5]]&Tabla4[[#This Row],[Nivel 6]]&Tabla4[[#This Row],[Nivel 7]]","v":"7.702.04.01.01.03."}]
[null,"7.","702.","04.","01.","01.","04.",null,"Emitidos por Instituciones con Participación de la República","SI",null,{"$f":"+Tabla4[[#This Row],[Nivel 1]]&Tabla4[[#This Row],[Nivel 2]]&Tabla4[[#This Row],[Nivel 3]]&Tabla4[[#This Row],[Nivel 4]]&Tabla4[[#This Row],[Nivel 5]]&Tabla4[[#This Row],[Nivel 6]]&Tabla4[[#This Row],[Nivel 7]]","v":"7.702.04.01.01.04."}]
[null,"7.","702.","04.","01.","02.",null,null,"Participación en Fondos de Inversión","NO",null,{"$f":"+Tabla4[[#This Row],[Nivel 1]]&Tabla4[[#This Row],[Nivel 2]]&Tabla4[[#This Row],[Nivel 3]]&Tabla4[[#This Row],[Nivel 4]]&Tabla4[[#This Row],[Nivel 5]]&Tabla4[[#This Row],[Nivel 6]]&Tabla4[[#This Row],[Nivel 7]]","v":"7.702.04.01.02."}]
[null,"7.","702.","04.","01.","02.","01.",null,"Renta Fija","SI",null,{"$f":"+Tabla4[[#This Row],[Nivel 1]]&Tabla4[[#This Row],[Nivel 2]]&Tabla4[[#This Row],[Nivel 3]]&Tabla4[[#This Row],[Nivel 4]]&Tabla4[[#This Row],[Nivel 5]]&Tabla4[[#This Row],[Nivel 6]]&Tabla4[[#This Row],[Nivel 7]]","v":"7.702.04.01.02.01."}]
[null,"7.","702.","04.","01.","02.","02.",null,"Renta Variable","SI",null,{"$f":"+Tabla4[[#This Row],[Nivel 1]]&Tabla4[[#This Row],[Nivel 2]]&Tabla4[[#This Row],[Nivel 3]]&Tabla4[[#This Row],[Nivel 4]]&Tabla4[[#This Row],[Nivel 5]]&Tabla4[[#This Row],[Nivel 6]]&Tabla4[[#This Row],[Nivel 7]]","v":"7.702.04.01.02.02."}]
[null,"7.","702.","04.","01.","03.",null,null,"Valores Privados","NO",null,{"$f":"+Tabla4[[#This Row],[Nivel 1]]&Tabla4[[#This Row],[Nivel 2]]&Tabla4[[#This Row],[Nivel 3]]&Tabla4[[#This Row],[Nivel 4]]&Tabla4[[#This Row],[Nivel 5]]&Tabla4[[#This Row],[Nivel 6]]&Tabla4[[#This Row],[Nivel 7]]","v":"7.702.04.01.03."}]
[null,"7.","702.","04.","01.","03.","01.",null,"Acciones de Sociedades Anónimas","NO",null,{"$f":"+Tabla4[[#This Row],[Nivel 1]]&Tabla4[[#This Row],[Nivel 2]]&Tabla4[[#This Row],[Nivel 3]]&Tabla4[[#This Row],[Nivel 4]]&Tabla4[[#This Row],[Nivel 5]]&Tabla4[[#This Row],[Nivel 6]]&Tabla4[[#This Row],[Nivel 7]]","v":"7.702.04.01.03.01."}]
[null,"7.","702.","04.","01.","03.","01.","01.","Empresas de Seguros o Reaseguros","SI",null,{"$f":"+Tabla4[[#This Row],[Nivel 1]]&Tabla4[[#This Row],[Nivel 2]]&Tabla4[[#This Row],[Nivel 3]]&Tabla4[[#This Row],[Nivel 4]]&Tabla4[[#This Row],[Nivel 5]]&Tabla4[[#This Row],[Nivel 6]]&Tabla4[[#This Row],[Nivel 7]]","v":"7.702.04.01.03.01.01."}]
[null,"7.","702.","04.","01.","03.","01.","02.","Sociedades de Corretaje de Seguros, de Reaseguros o de Valores","SI",null,{"$f":"+Tabla4[[#This Row],[Nivel 1]]&Tabla4[[#This Row],[Nivel 2]]&Tabla4[[#This Row],[Nivel 3]]&Tabla4[[#This Row],[Nivel 4]]&Tabla4[[#This Row],[Nivel 5]]&Tabla4[[#This Row],[Nivel 6]]&Tabla4[[#This Row],[Nivel 7]]","v":"7.702.04.01.03.01.02."}]
[null,"7.","702.","04.","01.","03.","01.","03.","Bancos y Otras Instituciones Financieras","SI",null,{"$f":"+Tabla4[[#This Row],[Nivel 1]]&Tabla4[[#This Row],[Nivel 2]]&Tabla4[[#This Row],[Nivel 3]]&Tabla4[[#This Row],[Nivel 4]]&Tabla4[[#This Row],[Nivel 5]]&Tabla4[[#This Row],[Nivel 6]]&Tabla4[[#This Row],[Nivel 7]]","v":"7.702.04.01.03.01.03."}]
[null,"7.","702.","04.","01.","03.","01.","04.","Sociedades Industriales y Comerciales","SI",null,{"$f":"+Tabla4[[#This Row],[Nivel 1]]&Tabla4[[#This Row],[Nivel 2]]&Tabla4[[#This Row],[Nivel 3]]&Tabla4[[#This Row],[Nivel 4]]&Tabla4[[#This Row],[Nivel 5]]&Tabla4[[#This Row],[Nivel 6]]&Tabla4[[#This Row],[Nivel 7]]","v":"7.702.04.01.03.01.04."}]
[null,"7.","702.","04.","01.","03.","01.","05.","Sociedades Civiles","SI",null,{"$f":"+Tabla4[[#This Row],[Nivel 1]]&Tabla4[[#This Row],[Nivel 2]]&Tabla4[[#This Row],[Nivel 3]]&Tabla4[[#This Row],[Nivel 4]]&Tabla4[[#This Row],[Nivel 5]]&Tabla4[[#This Row],[Nivel 6]]&Tabla4[[#This Row],[Nivel 7]]","v":"7.702.04.01.03.01.05."}]
[null,"7.","702.","04.","01.","03.","01.","06.","Empresas Filiales, Afiliadas y Relacionadas","SI",null,{"$f":"+Tabla4[[#This Row],[Nivel 1]]&Tabla4[[#This Row],[Nivel 2]]&Tabla4[[#This Row],[Nivel 3]]&Tabla4[[#This Row],[Nivel 4]]&Tabla4[[#This Row],[Nivel 5]]&Tabla4[[#This Row],[Nivel 6]]&Tabla4[[#This Row],[Nivel 7]]","v":"7.702.04.01.03.01.06."}]
[null,"7.","702.","04.","01.","03.","01.","07.","Otras Sociedades Anónimas","SI",null,{"$f":"+Tabla4[[#This Row],[Nivel 1]]&Tabla4[[#This Row],[Nivel 2]]&Tabla4[[#This Row],[Nivel 3]]&Tabla4[[#This Row],[Nivel 4]]&Tabla4[[#This Row],[Nivel 5]]&Tabla4[[#This Row],[Nivel 6]]&Tabla4[[#This Row],[Nivel 7]]","v":"7.702.04.01.03.01.07."}]
[null,"7.","702.","04.","01.","03.","02.",null,"Bonos de Sociedades Anónimas","SI",null,{"$f":"+Tabla4[[#This Row],[Nivel 1]]&Tabla4[[#This Row],[Nivel 2]]&Tabla4[[#This Row],[Nivel 3]]&Tabla4[[#This Row],[Nivel 4]]&Tabla4[[#This Row],[Nivel 5]]&Tabla4[[#This Row],[Nivel 6]]&Tabla4[[#This Row],[Nivel 7]]","v":"7.702.04.01.03.02."}]
[null,"7.","702.","04.","01.","03.","03.",null,"Otras Inversiones emitidas por el Sector Privado.","SI",null,{"$f":"+Tabla4[[#This Row],[Nivel 1]]&Tabla4[[#This Row],[Nivel 2]]&Tabla4[[#This Row],[Nivel 3]]&Tabla4[[#This Row],[Nivel 4]]&Tabla4[[#This Row],[Nivel 5]]&Tabla4[[#This Row],[Nivel 6]]&Tabla4[[#This Row],[Nivel 7]]","v":"7.702.04.01.03.03."}]
[null,"7.","702.","04.","01.","03.","04.",null,"Activos en el Extranjero","NO",null,{"$f":"+Tabla4[[#This Row],[Nivel 1]]&Tabla4[[#This Row],[Nivel 2]]&Tabla4[[#This Row],[Nivel 3]]&Tabla4[[#This Row],[Nivel 4]]&Tabla4[[#This Row],[Nivel 5]]&Tabla4[[#This Row],[Nivel 6]]&Tabla4[[#This Row],[Nivel 7]]","v":"7.702.04.01.03.04."}]
[null,"7.","702.","04.","01.","03.","04.","01.","Titulos Valores","SI",null,{"$f":"+Tabla4[[#This Row],[Nivel 1]]&Tabla4[[#This Row],[Nivel 2]]&Tabla4[[#This Row],[Nivel 3]]&Tabla4[[#This Row],[Nivel 4]]&Tabla4[[#This Row],[Nivel 5]]&Tabla4[[#This Row],[Nivel 6]]&Tabla4[[#This Row],[Nivel 7]]","v":"7.702.04.01.03.04.01."}]
[null,"7.","702.","04.","02.",null,null,null,"Utilidad en Negociación de Bienes","NO",null,{"$f":"+Tabla4[[#This Row],[Nivel 1]]&Tabla4[[#This Row],[Nivel 2]]&Tabla4[[#This Row],[Nivel 3]]&Tabla4[[#This Row],[Nivel 4]]&Tabla4[[#This Row],[Nivel 5]]&Tabla4[[#This Row],[Nivel 6]]&Tabla4[[#This Row],[Nivel 7]]","v":"7.702.04.02."}]
[null,"7.","702.","04.","02.","01.",null,null,"Participación Fondos de Inversión Inmobiliarios","SI",null,{"$f":"+Tabla4[[#This Row],[Nivel 1]]&Tabla4[[#This Row],[Nivel 2]]&Tabla4[[#This Row],[Nivel 3]]&Tabla4[[#This Row],[Nivel 4]]&Tabla4[[#This Row],[Nivel 5]]&Tabla4[[#This Row],[Nivel 6]]&Tabla4[[#This Row],[Nivel 7]]","v":"7.702.04.02.01."}]
[null,"7.","702.","04.","02.","02.",null,null,"Bienes Inmuebles Edificados","SI",null,{"$f":"+Tabla4[[#This Row],[Nivel 1]]&Tabla4[[#This Row],[Nivel 2]]&Tabla4[[#This Row],[Nivel 3]]&Tabla4[[#This Row],[Nivel 4]]&Tabla4[[#This Row],[Nivel 5]]&Tabla4[[#This Row],[Nivel 6]]&Tabla4[[#This Row],[Nivel 7]]","v":"7.702.04.02.02."}]
[null,"7.","702.","04.","02.","03.",null,null,"Bienes Inmuebles ","SI",null,{"$f":"+Tabla4[[#This Row],[Nivel 1]]&Tabla4[[#This Row],[Nivel 2]]&Tabla4[[#This Row],[Nivel 3]]&Tabla4[[#This Row],[Nivel 4]]&Tabla4[[#This Row],[Nivel 5]]&Tabla4[[#This Row],[Nivel 6]]&Tabla4[[#This Row],[Nivel 7]]","v":"7.702.04.02.03."}]
[null,"7.","702.","04.","02.","04.",null,null,"Activos en el Extranjero","SI",null,{"$f":"+Tabla4[[#This Row],[Nivel 1]]&Tabla4[[#This Row],[Nivel 2]]&Tabla4[[#This Row],[Nivel 3]]&Tabla4[[#This Row],[Nivel 4]]&Tabla4[[#This Row],[Nivel 5]]&Tabla4[[#This Row],[Nivel 6]]&Tabla4[[#This Row],[Nivel 7]]","v":"7.702.04.02.04."}]
[null,"7.","702.","05.",null,null,null,null,"Ingresos por Servicios","SI",null,{"$f":"+Tabla4[[#This Row],[Nivel 1]]&Tabla4[[#This Row],[Nivel 2]]&Tabla4[[#This Row],[Nivel 3]]&Tabla4[[#This Row],[Nivel 4]]&Tabla4[[#This Row],[Nivel 5]]&Tabla4[[#This Row],[Nivel 6]]&Tabla4[[#This Row],[Nivel 7]]","v":"7.702.05."}]
[null,"7.","702.","06.",null,null,null,null,"Beneficios Diversos","NO",null,{"$f":"+Tabla4[[#This Row],[Nivel 1]]&Tabla4[[#This Row],[Nivel 2]]&Tabla4[[#This Row],[Nivel 3]]&Tabla4[[#This Row],[Nivel 4]]&Tabla4[[#This Row],[Nivel 5]]&Tabla4[[#This Row],[Nivel 6]]&Tabla4[[#This Row],[Nivel 7]]","v":"7.702.06."}]
[null,"7.","702.","06.","01.",null,null,null,"Diferencias en Cobranzas","SI",null,{"$f":"+Tabla4[[#This Row],[Nivel 1]]&Tabla4[[#This Row],[Nivel 2]]&Tabla4[[#This Row],[Nivel 3]]&Tabla4[[#This Row],[Nivel 4]]&Tabla4[[#This Row],[Nivel 5]]&Tabla4[[#This Row],[Nivel 6]]&Tabla4[[#This Row],[Nivel 7]]","v":"7.702.06.01."}]
[null,"7.","702.","06.","02.",null,null,null,"Recuperación de Cuentas Incobrables","SI",null,{"$f":"+Tabla4[[#This Row],[Nivel 1]]&Tabla4[[#This Row],[Nivel 2]]&Tabla4[[#This Row],[Nivel 3]]&Tabla4[[#This Row],[Nivel 4]]&Tabla4[[#This Row],[Nivel 5]]&Tabla4[[#This Row],[Nivel 6]]&Tabla4[[#This Row],[Nivel 7]]","v":"7.702.06.02."}]
[null,"7.","702.","06.","03.",null,null,null,"Liberación de Provisiones o Fondos para Contingencias","SI",null,{"$f":"+Tabla4[[#This Row],[Nivel 1]]&Tabla4[[#This Row],[Nivel 2]]&Tabla4[[#This Row],[Nivel 3]]&Tabla4[[#This Row],[Nivel 4]]&Tabla4[[#This Row],[Nivel 5]]&Tabla4[[#This Row],[Nivel 6]]&Tabla4[[#This Row],[Nivel 7]]","v":"7.702.06.03."}]
[null,"7.","702.","06.","04.",null,null,null,"Ajustes de Años Anteriores","SI",null,{"$f":"+Tabla4[[#This Row],[Nivel 1]]&Tabla4[[#This Row],[Nivel 2]]&Tabla4[[#This Row],[Nivel 3]]&Tabla4[[#This Row],[Nivel 4]]&Tabla4[[#This Row],[Nivel 5]]&Tabla4[[#This Row],[Nivel 6]]&Tabla4[[#This Row],[Nivel 7]]","v":"7.702.06.04."}]
[null,"7.","702.","06.","05.",null,null,null,"Otros Beneficios","SI",null,{"$f":"+Tabla4[[#This Row],[Nivel 1]]&Tabla4[[#This Row],[Nivel 2]]&Tabla4[[#This Row],[Nivel 3]]&Tabla4[[#This Row],[Nivel 4]]&Tabla4[[#This Row],[Nivel 5]]&Tabla4[[#This Row],[Nivel 6]]&Tabla4[[#This Row],[Nivel 7]]","v":"7.702.06.05."}]
[null,null,null,null,null,null,null,null,"TOTAL INGRESOS…..","NO",null,{"$f":"+Tabla4[[#This Row],[Nivel 1]]&Tabla4[[#This Row],[Nivel 2]]&Tabla4[[#This Row],[Nivel 3]]&Tabla4[[#This Row],[Nivel 4]]&Tabla4[[#This Row],[Nivel 5]]&Tabla4[[#This Row],[Nivel 6]]&Tabla4[[#This Row],[Nivel 7]]","v":""}]
[null,"7.","703.",null,null,null,null,null,"RESULTADO DEL EJERCICIO","NO",null,{"$f":"+Tabla4[[#This Row],[Nivel 1]]&Tabla4[[#This Row],[Nivel 2]]&Tabla4[[#This Row],[Nivel 3]]&Tabla4[[#This Row],[Nivel 4]]&Tabla4[[#This Row],[Nivel 5]]&Tabla4[[#This Row],[Nivel 6]]&Tabla4[[#This Row],[Nivel 7]]","v":"7.703."}]
[null,"7.","703.","01.",null,null,null,null,"Pérdida del Ejercicio","SI",null,{"$f":"+Tabla4[[#This Row],[Nivel 1]]&Tabla4[[#This Row],[Nivel 2]]&Tabla4[[#This Row],[Nivel 3]]&Tabla4[[#This Row],[Nivel 4]]&Tabla4[[#This Row],[Nivel 5]]&Tabla4[[#This Row],[Nivel 6]]&Tabla4[[#This Row],[Nivel 7]]","v":"7.703.01."}]
[null,"7.","703.","02.",null,null,null,null,"Saldo de Operaciones - Pérdida","SI",null,{"$f":"+Tabla4[[#This Row],[Nivel 1]]&Tabla4[[#This Row],[Nivel 2]]&Tabla4[[#This Row],[Nivel 3]]&Tabla4[[#This Row],[Nivel 4]]&Tabla4[[#This Row],[Nivel 5]]&Tabla4[[#This Row],[Nivel 6]]&Tabla4[[#This Row],[Nivel 7]]","v":"7.703.02."}]
[null,null,null,null,null,null,null,null,"TOTAL GENERAL","NO"]

{"sheet":"Instructivo","index":4,"n_rows":15,"n_cols":3,"rows_kept":15,"cut":false,"hidden":false,"merged":[]}
[]
["Identificación de anexos requeridos en la circular vigente."]
[]
["Identificador","Codigo ","Descripcion"]
[1101,"A1.","Activo. Circulante. Disponible"]
["1.103.01.01 y","A2.","Activos Depreciables y Amortizables. Activos Depreciables. Activos fijos. Inmuebles"]
["1.103.01.02. "]
["1.102.05.","A3.","Activo en el Extranjero"]
["1.104.02.","A4","Cuentas por Cobrar - Financiamiento de Primas o Cuotas"]
["3.301.01","A5.","Obligaciones por Pagar. Cuentas y Efectos por Pagar - Financiamiento de Primas o Cuotas"]
["3.301.02","A6","Obligaciones por Pagar. A Corto Plazo"]
["3.301.03","A7","Obligaciones por Pagar. A Largo Plazo"]
["3.301.05.02","A8","Obligaciones por Pagar. Cuentas por Pagar Accionistas. Otras Cuentas por Pagar"]
["4.401.","A9","Patrimonio. Capital Pagado"]
[null,"A10","Información detallada de la cartera de inversiones"]

{"sheet":"RELACIONES ENTRE EEFF Y ANEXOS","index":5,"n_rows":80,"n_cols":5,"rows_kept":80,"cut":false,"hidden":false,"merged":[[3,1,3,4],[4,1,4,4],[5,1,5,4]]}
[null,"Relaciones entre Estados Financieros y Anexos Contables"]
[]
[null,"Financiadoras de Primas o Cuotas"]
[null,"Para la adecuada integración de los anexos contables con los estados financieros analíticos, se debe considerar que:"]
[null,"1. En el campo código contable de los anexos requeridos se debe indicar cuentas contables que admitan monto. "]
[null,"2. la sumatoria de los campos cuya Relación / Uso Común represente el saldo de la cuenta contable, debe coincidir con el saldo de la cuenta contable afecta."]
[]
[]
[]
[null,"Cuenta Contable","Identificador de anexo","Descripción de la cuenta","Campo del anexo que debe considir los Estados Financieros"]
[null,"1.101.01.01.","A1","Moneda Nacional","Campo 6"]
[null,"1.101.01.02.","A1","Moneda Extranjera","Campo 6"]
[null,"1.101.02.01.","A1","Moneda Nacional","Campo 6"]
[null,"1.101.02.02.","A1","Moneda Extranjera","Campo 6"]
[null,"1.101.03.01.01.","A1","Moneda Nacional","Campo 6"]
[null,"1.101.03.01.02.","A1","Moneda Extranjera","Campo 6"]
[null,"1.101.03.02.01.","A1","Moneda Nacional","Campo 6"]
[null,"1.101.03.02.02.","A1","Moneda Extranjera","Campo 6"]
[null,"1.101.04.01.01.","A1","Moneda Nacional","Campo 6"]
[null,"1.101.04.01.02.","A1","Moneda Extranjera","Campo 6"]
[null,"1.101.04.02.01.","A1","Moneda Nacional","Campo 6"]
[null,"1.101.04.02.02.","A1","Moneda Extranjera","Campo 6"]
[null,"1.102.01.","A10","Valores Públicos","Campo 15"]
[null,"1.102.01.01.","A10","Emitidos o Garantizados por la República","Campo 15"]
[null,"1.102.01.02.","A10","Emitidos por Otros Sujetos de Derecho Público Nacional","Campo 15"]
[null,"1.102.01.03.","A10","Emitidos por Empresas con Participación de la República","Campo 15"]
[null,"1.102.01.04.","A10","Emitidos por Instituciones con Participación de la República","Campo 15"]
[null,"1.102.02.","A10","Participación en Fondos de Inversión","Campo 15"]
[null,"1.102.02.01.","A10","Renta Fija","Campo 15"]
[null,"1.102.02.02.","A10","Renta Variable","Campo 15"]
[null,"1.102.03.","A10","Participación Fondos de Inversión Inmobiliarios","Campo 15"]
[null,"1.102.04.","A10","Valores Privados","Campo 15"]
[null,"1.102.04.01.01.","A10","Empresas de Seguros o Reaseguros","Campo 15"]
[null,"1.102.04.01.02.","A10","Sociedades de Corretaje de Seguros o de Reaseguros o de Valores","Campo 15"]
[null,"1.102.04.01.03.","A10","Bancos y Otras Instituciones Financieras","Campo 15"]
[null,"1.102.04.01.04.","A10","Sociedades Industriales y Comerciales","Campo 15"]
[null,"1.102.04.01.05.","A10","Sociedades Civiles","Campo 15"]
[null,"1.102.04.01.06.","A10","Empresas Filiales, Afiliadas y Relacionadas","Campo 15"]
[null,"1.102.04.01.07.","A10","Otras Sociedades Anónimas","Campo 15"]
[null,"1.102.04.02.","A10","Bonos de Sociedades Anónimas","Campo 15"]
[null,"1.102.04.03.","A10","Otras Inversiones emitidas por el Sector Privado","Campo 15"]
[null,"1.102.05.","A3","ACTIVOS EN EL EXTRANJERO","Campo 15"]
[null,"1.102.05.01.","A3","Bancos  "]
[null,"1.102.05.02.","A3","Titulos Valores","Campo 8"]
[null,"1.102.05.03.","A3","Inmuebles ","Campo 8"]
[null,"1.102.05.04.","A3","Otras Inversiones ","Campo 8"]
[null,"1.103.01.01.","A2","Terrenos","Campo 9 - Campo 11"]
[null,"1.103.01.02.","A2","Inmuebles","Campo 10 - ( Campo 11 + Campo 13)"]
[null,"1.104.02.","A4","Cuentas por Cobrar - Financiamiento de Primas o Cuotas"]
[null,"1.104.02.01.01.","A4","Moneda Nacional","Campo 7"]
[null,"1.104.02.02.02.","A4","Moneda Extranjera","Campo 7"]
[null,"1.104.02.02.01.","A4","Moneda Nacional","Campo 7"]
[null,"1.104.02.02.02.","A4","Moneda Extranjera","Campo 7"]
[null,"1.104.02.01.03.02.","A4","Contratantes del sector Privado","Campo 7"]
[null,"1.104.02.02.01.","A4","Empresas de Seguros","Campo 7"]
[null,"1.104.02.02.02.","A4","Empresas de Medicina Prepagada","Campo 7"]
[null,"1.104.02.02.03.01.","A4","Organismos y Entes de la Administración Pública","Campo 7"]
[null,"1.104.02.02.03.02.","A4","Contratantes del sector Privado","Campo 7"]
[null,"1.104.04.","A5","Cuentas por Cobrar Diversas"]
[null,"1.104.04.01.01.","A5","Filiales","Campo 7"]
[null,"1.104.04.01.02.","A5","Afiliadas","Campo 7"]
[null,"1.104.04.01.03.","A5","Relacionadas","Campo 7"]
[null,"1.104.04.02.","A5","Proveedores de Bienes y Servicios","Campo 7"]
[null,"1.104.04.03.","A5","Otras Cuentas por Pagar","Campo 7"]
[null,"3.301.02.","A6","A Corto Plazo"]
[null,"3.301.02.01.","A6","Préstamos Bancarios","Campo 7"]
[null,"3.301.02.02.","A6","Sobregiros","Campo 7"]
[null,"3.301.02.03.","A6","Pagarés","Campo 7"]
[null,"3.301.02.04.","A6","Línea de Crédito","Campo 7"]
[null,"3.301.02.05.","A6","Cartas de Crédito","Campo 7"]
[null,"3.301.02.06.","A6","Otras Obligaciones a Corto Plazo","Campo 7"]
[null,"3.301.03.","A7","A Largo Plazo"]
[null,"3.301.03.01.","A7","Hipotecas","Campo 7"]
[null,"3.301.03.02.","A7","Bonos y Obligaciones","Campo 7"]
[null,"3.301.03.03.","A7","Otras Obligaciones a Largo Plazo ","Campo 7"]
[null,"3.301.05.02.","A8","Otras cuentas por Pagar","Campo 6"]
[null,"4.401.","A9","Capital Pagado","Campo 7"]
[null,"7.702.01.01.","A10","Intereses Ganados","Campo 17"]
[null,"7.702.01.02.","A10","Dividendos Ganados ","Campo 18"]
[null,"7.702.04.","A10","Utilidad en Negociación de Valores Bienes y Otros Activos","Campo 19"]